{"text_format":"1","workbook":"xlsx","n_sheets":7,"sheets":["届出(一括)","エラー","列項目TBL_TTL","列項目TBL_DATA","表示シート制御マスタ","マスタ","連動マスタ"],"not_rendered":{"charts":0,"images":0,"macros":1,"external_links":0,"defined_names":182,"comments":2,"pivot_tables":0},"unopened":[],"bounds":{"document_bytes":16777216,"sheet_cells":100000,"rows_first":2000,"rows_last":500,"rows_between":2000,"halvings":0,"cell_chars":16384,"cell_head_chars":4096},"cells_cut":0,"cells_raw":0,"read":"whole","date_system":"1900"}

{"sheet":"届出(一括)","index":0,"n_rows":320,"n_cols":28,"rows_kept":320,"cut":false,"hidden":false,"merged":[[15,0,17,0],[16,1,17,1],[16,9,17,9],[16,2,16,8],[16,10,16,12],[16,17,17,22],[17,3,17,8],[18,17,18,22],[16,23,16,26],[18,3,18,8],[16,13,17,13],[16,14,17,15],[16,16,17,16]]}
[null,"中長期在留者の受入れに関する届出(一括)(2025/11/28版)"]
[null,"(Lump sum) Notification of acceptance of mid-to-long-term resident"]
[]
[]
[]
[]
[]
[]
[]
[]
[]
[]
[]
[]
[]
["項目\nItem","　　　届　出　の　内　容  Item of notification",null,null,null,null,null,null,null,null,null,null,null,"　　　届　出　の　対　象　者　（　中　長　期　在　留　者　）   Subjects of notification （MID-TO-LONG TERM RESIDENT）"]
[null,"届出の事由\nItem of notification","届出の事由発生年月日\nItem Generating date of notification",null,null,null,null,null,null,"受け入れた中長期在留者が\n行う活動の内容\nDetails of activities \nat the organization","受入れ終了の理由\nReason of end of acceptance",null,null,"国籍・地域\nNationality/Region","氏名英字\nName in alphabet",null,"性別\nSex","生年月日\nDate of Birth",null,null,null,null,null,"住居地\nAddress in Japan",null,null,null,"在留カード番号\nResidence card No."]
[null,null,"区分\nClassification","年月日\nDate",null,null,null,null,null,null,"区分\nClassification","その他の理由\nOther reasons","退学／除籍の理由\nDropped out / Expelled reasons",null,null,null,null,null,null,null,null,null,null,"郵便番号\nPostNo","都道府県\nPrefecture","市区町村\nMunicipality","町名丁目番地号等\nTown name, street name, etc.","在留カード番号\nResidence card No."]
["入力\n方法\nInstructions","該当のセルをクリックするとプルダウンが表示されますので，その中から選択して下さい。\nClick the applicable cell and select from the drop-down list shown.","-","半角数字で入力してください。\nEnter 1-byte numbers.\n入力例\n年月日不詳:99999999\n月日不詳:20250000\n日不詳:20250500\nExample\nUnknown about year,month and day of birth:99999999\nUnknown about month and day of birth:20250000\nUnknown about day of birth:20250500",null,null,null,null,null,"プルダウンから選択して下さい。\nSelect from the drop-down list.","プルダウンから選択して下さい。\nSelect from the drop-down list.","全角，90文字以内で入力してください。\nEnter up to 90 2-byte characters.","プルダウンから選択して下さい。\nSelect from the drop-down list.","プルダウンから選択して下さい。\nSelect from the drop-down list.","半角英字（大文字入力），104文字以内　スペース区切りで入力してください。\nA half-width alphabetic character, 104 or less characters, Separate two words by a space.\n在留カード又は外国人登録証明書の券面に氏名英字が記載されていない場合は，旅券に記載されている氏名英字を入力してください。\nIn case your name is not written in English on your residence Card or Foreigner Registration Certificate, enter your name spelling it as it appears on your passport.","全角，26文字以内  スペース区切りで入力してください。\nA full-width japanese, 26 or less characters,Separate two words by a space.","プルダウンから選択して下さい。\nSelect from the drop-down list.","半角数字で入力してください。\nEnter 1-byte numbers.",null,null,null,null,null,"半角数字で入力してください。\nEnter 1-byte numbers.","プルダウンから選択して下さい。\nSelect from the drop-down list.","プルダウンから選択して下さい。\nSelect from the drop-down list.","全角，80文字以内で入力してください。\nA full-width japanese, 80 or less characters","半角英数字（大文字入力），12文字で入力してください。\nA half-width alphanumeric character, 12 characters"]
["例\nEx.","受入れの終了（留学） Termination of acceptance(Student)",{"$f":"IF(B20<>\"\",VLOOKUP(B20,表示シート制御マスタ!B:C,2,FALSE), \"\")","v":"終了年月日\nDate of end of acceptance"},"2012","年\nYear",12,"月\nMonth",31,"日\nDay","技術開発（農林水産分野） Technology development (agriculture, forestry and fisheries field)","卒業\nGraduation",null,null,"米国\nUnited States of America","TURNER ELIZABETH MD","入管　太郎","女\nFemale","1985","年\nYear",12,"月\nMonth",31,"日\nDay","9999999","東京都","千代田区","○○町１－１－１○○ハイツ○○号室","AB12345678CD"]
[1,null,{"$f":"IF(B21<>\"\",VLOOKUP(B21,表示シート制御マスタ!B:C,2,FALSE), \"\")","v":""},null,"年\nYear",null,"月\nMonth",null,"日\nDay",null,null,null,null,null,null,null,null,null,"年\nYear",null,"月\nMonth",null,"日\nDay"]
[{"$f":"A21+1","v":2},null,{"$f":"IF(B22<>\"\",VLOOKUP(B22,表示シート制御マスタ!B:C,2,FALSE), \"\")","v":""},null,"年\nYear",null,"月\nMonth",null,"日\nDay",null,null,null,null,null,null,null,null,null,"年\nYear",null,"月\nMonth",null,"日\nDay"]
[{"$f":"A22+1","v":3},null,{"$f":"IF(B23<>\"\",VLOOKUP(B23,表示シート制御マスタ!B:C,2,FALSE), \"\")","v":""},null,"年\nYear",null,"月\nMonth",null,"日\nDay",null,null,null,null,null,null,null,null,null,"年\nYear",null,"月\nMonth",null,"日\nDay"]
[{"$f":"A23+1","v":4},null,{"$f":"IF(B24<>\"\",VLOOKUP(B24,表示シート制御マスタ!B:C,2,FALSE), \"\")","v":""},null,"年\nYear",null,"月\nMonth",null,"日\nDay",null,null,null,null,null,null,null,null,null,"年\nYear",null,"月\nMonth",null,"日\nDay",null,""]
[5,null,{"$f":"IF(B25<>\"\",VLOOKUP(B25,表示シート制御マスタ!B:C,2,FALSE), \"\")","v":""},null,"年\nYear",null,"月\nMonth",null,"日\nDay",null,null,null,null,null,null,null,null,null,"年\nYear",null,"月\nMonth",null,"日\nDay",null,""]
[6,null,{"$f":"IF(B26<>\"\",VLOOKUP(B26,表示シート制御マスタ!B:C,2,FALSE), \"\")","v":""},null,"年\nYear",null,"月\nMonth",null,"日\nDay",null,null,null,null,null,null,null,null,null,"年\nYear",null,"月\nMonth",null,"日\nDay",null,""]
[7,null,{"$f":"IF(B27<>\"\",VLOOKUP(B27,表示シート制御マスタ!B:C,2,FALSE), \"\")","v":""},null,"年\nYear",null,"月\nMonth",null,"日\nDay",null,null,null,null,null,null,null,null,null,"年\nYear",null,"月\nMonth",null,"日\nDay",null,""]
[8,null,{"$f":"IF(B28<>\"\",VLOOKUP(B28,表示シート制御マスタ!B:C,2,FALSE), \"\")","v":""},null,"年\nYear",null,"月\nMonth",null,"日\nDay",null,null,null,null,null,null,null,null,null,"年\nYear",null,"月\nMonth",null,"日\nDay",null,""]
[9,null,{"$f":"IF(B29<>\"\",VLOOKUP(B29,表示シート制御マスタ!B:C,2,FALSE), \"\")","v":""},null,"年\nYear",null,"月\nMonth",null,"日\nDay",null,null,null,null,null,null,null,null,null,"年\nYear",null,"月\nMonth",null,"日\nDay",null,""]
[10,null,{"$f":"IF(B30<>\"\",VLOOKUP(B30,表示シート制御マスタ!B:C,2,FALSE), \"\")","v":""},null,"年\nYear",null,"月\nMonth",null,"日\nDay",null,null,null,null,null,null,null,null,null,"年\nYear",null,"月\nMonth",null,"日\nDay",null,""]
[11,null,{"$f":"IF(B31<>\"\",VLOOKUP(B31,表示シート制御マスタ!B:C,2,FALSE), \"\")","v":""},null,"年\nYear",null,"月\nMonth",null,"日\nDay",null,null,null,null,null,null,null,null,null,"年\nYear",null,"月\nMonth",null,"日\nDay",null,""]
[12,null,{"$f":"IF(B32<>\"\",VLOOKUP(B32,表示シート制御マスタ!B:C,2,FALSE), \"\")","v":""},null,"年\nYear",null,"月\nMonth",null,"日\nDay",null,null,null,null,null,null,null,null,null,"年\nYear",null,"月\nMonth",null,"日\nDay",null,""]
[13,null,{"$f":"IF(B33<>\"\",VLOOKUP(B33,表示シート制御マスタ!B:C,2,FALSE), \"\")","v":""},null,"年\nYear",null,"月\nMonth",null,"日\nDay",null,null,null,null,null,null,null,null,null,"年\nYear",null,"月\nMonth",null,"日\nDay",null,""]
[14,null,{"$f":"IF(B34<>\"\",VLOOKUP(B34,表示シート制御マスタ!B:C,2,FALSE), \"\")","v":""},null,"年\nYear",null,"月\nMonth",null,"日\nDay",null,null,null,null,null,null,null,null,null,"年\nYear",null,"月\nMonth",null,"日\nDay",null,""]
[15,null,{"$f":"IF(B35<>\"\",VLOOKUP(B35,表示シート制御マスタ!B:C,2,FALSE), \"\")","v":""},null,"年\nYear",null,"月\nMonth",null,"日\nDay",null,null,null,null,null,null,null,null,null,"年\nYear",null,"月\nMonth",null,"日\nDay",null,""]
[16,null,{"$f":"IF(B36<>\"\",VLOOKUP(B36,表示シート制御マスタ!B:C,2,FALSE), \"\")","v":""},null,"年\nYear",null,"月\nMonth",null,"日\nDay",null,null,null,null,null,null,null,null,null,"年\nYear",null,"月\nMonth",null,"日\nDay",null,""]
[17,null,{"$f":"IF(B37<>\"\",VLOOKUP(B37,表示シート制御マスタ!B:C,2,FALSE), \"\")","v":""},null,"年\nYear",null,"月\nMonth",null,"日\nDay",null,null,null,null,null,null,null,null,null,"年\nYear",null,"月\nMonth",null,"日\nDay",null,""]
[18,null,{"$f":"IF(B38<>\"\",VLOOKUP(B38,表示シート制御マスタ!B:C,2,FALSE), \"\")","v":""},null,"年\nYear",null,"月\nMonth",null,"日\nDay",null,null,null,null,null,null,null,null,null,"年\nYear",null,"月\nMonth",null,"日\nDay",null,""]
[19,null,{"$f":"IF(B39<>\"\",VLOOKUP(B39,表示シート制御マスタ!B:C,2,FALSE), \"\")","v":""},null,"年\nYear",null,"月\nMonth",null,"日\nDay",null,null,null,null,null,null,null,null,null,"年\nYear",null,"月\nMonth",null,"日\nDay",null,""]
[20,null,{"$f":"IF(B40<>\"\",VLOOKUP(B40,表示シート制御マスタ!B:C,2,FALSE), \"\")","v":""},null,"年\nYear",null,"月\nMonth",null,"日\nDay",null,null,null,null,null,null,null,null,null,"年\nYear",null,"月\nMonth",null,"日\nDay",null,""]
[21,null,{"$f":"IF(B41<>\"\",VLOOKUP(B41,表示シート制御マスタ!B:C,2,FALSE), \"\")","v":""},null,"年\nYear",null,"月\nMonth",null,"日\nDay",null,null,null,null,null,null,null,null,null,"年\nYear",null,"月\nMonth",null,"日\nDay",null,""]
[22,null,{"$f":"IF(B42<>\"\",VLOOKUP(B42,表示シート制御マスタ!B:C,2,FALSE), \"\")","v":""},null,"年\nYear",null,"月\nMonth",null,"日\nDay",null,null,null,null,null,null,null,null,null,"年\nYear",null,"月\nMonth",null,"日\nDay",null,""]
[23,null,{"$f":"IF(B43<>\"\",VLOOKUP(B43,表示シート制御マスタ!B:C,2,FALSE), \"\")","v":""},null,"年\nYear",null,"月\nMonth",null,"日\nDay",null,null,null,null,null,null,null,null,null,"年\nYear",null,"月\nMonth",null,"日\nDay",null,""]
[24,null,{"$f":"IF(B44<>\"\",VLOOKUP(B44,表示シート制御マスタ!B:C,2,FALSE), \"\")","v":""},null,"年\nYear",null,"月\nMonth",null,"日\nDay",null,null,null,null,null,null,null,null,null,"年\nYear",null,"月\nMonth",null,"日\nDay",null,""]
[25,null,{"$f":"IF(B45<>\"\",VLOOKUP(B45,表示シート制御マスタ!B:C,2,FALSE), \"\")","v":""},null,"年\nYear",null,"月\nMonth",null,"日\nDay",null,null,null,null,null,null,null,null,null,"年\nYear",null,"月\nMonth",null,"日\nDay",null,""]
[26,null,{"$f":"IF(B46<>\"\",VLOOKUP(B46,表示シート制御マスタ!B:C,2,FALSE), \"\")","v":""},null,"年\nYear",null,"月\nMonth",null,"日\nDay",null,null,null,null,null,null,null,null,null,"年\nYear",null,"月\nMonth",null,"日\nDay",null,""]
[27,null,{"$f":"IF(B47<>\"\",VLOOKUP(B47,表示シート制御マスタ!B:C,2,FALSE), \"\")","v":""},null,"年\nYear",null,"月\nMonth",null,"日\nDay",null,null,null,null,null,null,null,null,null,"年\nYear",null,"月\nMonth",null,"日\nDay",null,""]
[28,null,{"$f":"IF(B48<>\"\",VLOOKUP(B48,表示シート制御マスタ!B:C,2,FALSE), \"\")","v":""},null,"年\nYear",null,"月\nMonth",null,"日\nDay",null,null,null,null,null,null,null,null,null,"年\nYear",null,"月\nMonth",null,"日\nDay",null,""]
[29,null,{"$f":"IF(B49<>\"\",VLOOKUP(B49,表示シート制御マスタ!B:C,2,FALSE), \"\")","v":""},null,"年\nYear",null,"月\nMonth",null,"日\nDay",null,null,null,null,null,null,null,null,null,"年\nYear",null,"月\nMonth",null,"日\nDay",null,""]
[30,null,{"$f":"IF(B50<>\"\",VLOOKUP(B50,表示シート制御マスタ!B:C,2,FALSE), \"\")","v":""},null,"年\nYear",null,"月\nMonth",null,"日\nDay",null,null,null,null,null,null,null,null,null,"年\nYear",null,"月\nMonth",null,"日\nDay",null,""]
[31,null,{"$f":"IF(B51<>\"\",VLOOKUP(B51,表示シート制御マスタ!B:C,2,FALSE), \"\")","v":""},null,"年\nYear",null,"月\nMonth",null,"日\nDay",null,null,null,null,null,null,null,null,null,"年\nYear",null,"月\nMonth",null,"日\nDay",null,""]
[32,null,{"$f":"IF(B52<>\"\",VLOOKUP(B52,表示シート制御マスタ!B:C,2,FALSE), \"\")","v":""},null,"年\nYear",null,"月\nMonth",null,"日\nDay",null,null,null,null,null,null,null,null,null,"年\nYear",null,"月\nMonth",null,"日\nDay",null,""]
[33,null,{"$f":"IF(B53<>\"\",VLOOKUP(B53,表示シート制御マスタ!B:C,2,FALSE), \"\")","v":""},null,"年\nYear",null,"月\nMonth",null,"日\nDay",null,null,null,null,null,null,null,null,null,"年\nYear",null,"月\nMonth",null,"日\nDay",null,""]
[34,null,{"$f":"IF(B54<>\"\",VLOOKUP(B54,表示シート制御マスタ!B:C,2,FALSE), \"\")","v":""},null,"年\nYear",null,"月\nMonth",null,"日\nDay",null,null,null,null,null,null,null,null,null,"年\nYear",null,"月\nMonth",null,"日\nDay",null,""]
[35,null,{"$f":"IF(B55<>\"\",VLOOKUP(B55,表示シート制御マスタ!B:C,2,FALSE), \"\")","v":""},null,"年\nYear",null,"月\nMonth",null,"日\nDay",null,null,null,null,null,null,null,null,null,"年\nYear",null,"月\nMonth",null,"日\nDay",null,""]
[36,null,{"$f":"IF(B56<>\"\",VLOOKUP(B56,表示シート制御マスタ!B:C,2,FALSE), \"\")","v":""},null,"年\nYear",null,"月\nMonth",null,"日\nDay",null,null,null,null,null,null,null,null,null,"年\nYear",null,"月\nMonth",null,"日\nDay",null,""]
[37,null,{"$f":"IF(B57<>\"\",VLOOKUP(B57,表示シート制御マスタ!B:C,2,FALSE), \"\")","v":""},null,"年\nYear",null,"月\nMonth",null,"日\nDay",null,null,null,null,null,null,null,null,null,"年\nYear",null,"月\nMonth",null,"日\nDay",null,""]
[38,null,{"$f":"IF(B58<>\"\",VLOOKUP(B58,表示シート制御マスタ!B:C,2,FALSE), \"\")","v":""},null,"年\nYear",null,"月\nMonth",null,"日\nDay",null,null,null,null,null,null,null,null,null,"年\nYear",null,"月\nMonth",null,"日\nDay",null,""]
[39,null,{"$f":"IF(B59<>\"\",VLOOKUP(B59,表示シート制御マスタ!B:C,2,FALSE), \"\")","v":""},null,"年\nYear",null,"月\nMonth",null,"日\nDay",null,null,null,null,null,null,null,null,null,"年\nYear",null,"月\nMonth",null,"日\nDay",null,""]
[40,null,{"$f":"IF(B60<>\"\",VLOOKUP(B60,表示シート制御マスタ!B:C,2,FALSE), \"\")","v":""},null,"年\nYear",null,"月\nMonth",null,"日\nDay",null,null,null,null,null,null,null,null,null,"年\nYear",null,"月\nMonth",null,"日\nDay",null,""]
[41,null,{"$f":"IF(B61<>\"\",VLOOKUP(B61,表示シート制御マスタ!B:C,2,FALSE), \"\")","v":""},null,"年\nYear",null,"月\nMonth",null,"日\nDay",null,null,null,null,null,null,null,null,null,"年\nYear",null,"月\nMonth",null,"日\nDay",null,""]
[42,null,{"$f":"IF(B62<>\"\",VLOOKUP(B62,表示シート制御マスタ!B:C,2,FALSE), \"\")","v":""},null,"年\nYear",null,"月\nMonth",null,"日\nDay",null,null,null,null,null,null,null,null,null,"年\nYear",null,"月\nMonth",null,"日\nDay",null,""]
[43,null,{"$f":"IF(B63<>\"\",VLOOKUP(B63,表示シート制御マスタ!B:C,2,FALSE), \"\")","v":""},null,"年\nYear",null,"月\nMonth",null,"日\nDay",null,null,null,null,null,null,null,null,null,"年\nYear",null,"月\nMonth",null,"日\nDay",null,""]
[44,null,{"$f":"IF(B64<>\"\",VLOOKUP(B64,表示シート制御マスタ!B:C,2,FALSE), \"\")","v":""},null,"年\nYear",null,"月\nMonth",null,"日\nDay",null,null,null,null,null,null,null,null,null,"年\nYear",null,"月\nMonth",null,"日\nDay",null,""]
[45,null,{"$f":"IF(B65<>\"\",VLOOKUP(B65,表示シート制御マスタ!B:C,2,FALSE), \"\")","v":""},null,"年\nYear",null,"月\nMonth",null,"日\nDay",null,null,null,null,null,null,null,null,null,"年\nYear",null,"月\nMonth",null,"日\nDay",null,""]
[46,null,{"$f":"IF(B66<>\"\",VLOOKUP(B66,表示シート制御マスタ!B:C,2,FALSE), \"\")","v":""},null,"年\nYear",null,"月\nMonth",null,"日\nDay",null,null,null,null,null,null,null,null,null,"年\nYear",null,"月\nMonth",null,"日\nDay",null,""]
[47,null,{"$f":"IF(B67<>\"\",VLOOKUP(B67,表示シート制御マスタ!B:C,2,FALSE), \"\")","v":""},null,"年\nYear",null,"月\nMonth",null,"日\nDay",null,null,null,null,null,null,null,null,null,"年\nYear",null,"月\nMonth",null,"日\nDay",null,""]
[48,null,{"$f":"IF(B68<>\"\",VLOOKUP(B68,表示シート制御マスタ!B:C,2,FALSE), \"\")","v":""},null,"年\nYear",null,"月\nMonth",null,"日\nDay",null,null,null,null,null,null,null,null,null,"年\nYear",null,"月\nMonth",null,"日\nDay",null,""]
[49,null,{"$f":"IF(B69<>\"\",VLOOKUP(B69,表示シート制御マスタ!B:C,2,FALSE), \"\")","v":""},null,"年\nYear",null,"月\nMonth",null,"日\nDay",null,null,null,null,null,null,null,null,null,"年\nYear",null,"月\nMonth",null,"日\nDay",null,""]
[50,null,{"$f":"IF(B70<>\"\",VLOOKUP(B70,表示シート制御マスタ!B:C,2,FALSE), \"\")","v":""},null,"年\nYear",null,"月\nMonth",null,"日\nDay",null,null,null,null,null,null,null,null,null,"年\nYear",null,"月\nMonth",null,"日\nDay",null,""]
[51,null,{"$f":"IF(B71<>\"\",VLOOKUP(B71,表示シート制御マスタ!B:C,2,FALSE), \"\")","v":""},null,"年\nYear",null,"月\nMonth",null,"日\nDay",null,null,null,null,null,null,null,null,null,"年\nYear",null,"月\nMonth",null,"日\nDay",null,""]
[52,null,{"$f":"IF(B72<>\"\",VLOOKUP(B72,表示シート制御マスタ!B:C,2,FALSE), \"\")","v":""},null,"年\nYear",null,"月\nMonth",null,"日\nDay",null,null,null,null,null,null,null,null,null,"年\nYear",null,"月\nMonth",null,"日\nDay",null,""]
[53,null,{"$f":"IF(B73<>\"\",VLOOKUP(B73,表示シート制御マスタ!B:C,2,FALSE), \"\")","v":""},null,"年\nYear",null,"月\nMonth",null,"日\nDay",null,null,null,null,null,null,null,null,null,"年\nYear",null,"月\nMonth",null,"日\nDay",null,""]
[54,null,{"$f":"IF(B74<>\"\",VLOOKUP(B74,表示シート制御マスタ!B:C,2,FALSE), \"\")","v":""},null,"年\nYear",null,"月\nMonth",null,"日\nDay",null,null,null,null,null,null,null,null,null,"年\nYear",null,"月\nMonth",null,"日\nDay",null,""]
[55,null,{"$f":"IF(B75<>\"\",VLOOKUP(B75,表示シート制御マスタ!B:C,2,FALSE), \"\")","v":""},null,"年\nYear",null,"月\nMonth",null,"日\nDay",null,null,null,null,null,null,null,null,null,"年\nYear",null,"月\nMonth",null,"日\nDay",null,""]
[56,null,{"$f":"IF(B76<>\"\",VLOOKUP(B76,表示シート制御マスタ!B:C,2,FALSE), \"\")","v":""},null,"年\nYear",null,"月\nMonth",null,"日\nDay",null,null,null,null,null,null,null,null,null,"年\nYear",null,"月\nMonth",null,"日\nDay",null,""]
[57,null,{"$f":"IF(B77<>\"\",VLOOKUP(B77,表示シート制御マスタ!B:C,2,FALSE), \"\")","v":""},null,"年\nYear",null,"月\nMonth",null,"日\nDay",null,null,null,null,null,null,null,null,null,"年\nYear",null,"月\nMonth",null,"日\nDay",null,""]
[58,null,{"$f":"IF(B78<>\"\",VLOOKUP(B78,表示シート制御マスタ!B:C,2,FALSE), \"\")","v":""},null,"年\nYear",null,"月\nMonth",null,"日\nDay",null,null,null,null,null,null,null,null,null,"年\nYear",null,"月\nMonth",null,"日\nDay",null,""]
[59,null,{"$f":"IF(B79<>\"\",VLOOKUP(B79,表示シート制御マスタ!B:C,2,FALSE), \"\")","v":""},null,"年\nYear",null,"月\nMonth",null,"日\nDay",null,null,null,null,null,null,null,null,null,"年\nYear",null,"月\nMonth",null,"日\nDay",null,""]
[60,null,{"$f":"IF(B80<>\"\",VLOOKUP(B80,表示シート制御マスタ!B:C,2,FALSE), \"\")","v":""},null,"年\nYear",null,"月\nMonth",null,"日\nDay",null,null,null,null,null,null,null,null,null,"年\nYear",null,"月\nMonth",null,"日\nDay",null,""]
[61,null,{"$f":"IF(B81<>\"\",VLOOKUP(B81,表示シート制御マスタ!B:C,2,FALSE), \"\")","v":""},null,"年\nYear",null,"月\nMonth",null,"日\nDay",null,null,null,null,null,null,null,null,null,"年\nYear",null,"月\nMonth",null,"日\nDay",null,""]
[62,null,{"$f":"IF(B82<>\"\",VLOOKUP(B82,表示シート制御マスタ!B:C,2,FALSE), \"\")","v":""},null,"年\nYear",null,"月\nMonth",null,"日\nDay",null,null,null,null,null,null,null,null,null,"年\nYear",null,"月\nMonth",null,"日\nDay",null,""]
[63,null,{"$f":"IF(B83<>\"\",VLOOKUP(B83,表示シート制御マスタ!B:C,2,FALSE), \"\")","v":""},null,"年\nYear",null,"月\nMonth",null,"日\nDay",null,null,null,null,null,null,null,null,null,"年\nYear",null,"月\nMonth",null,"日\nDay",null,""]
[64,null,{"$f":"IF(B84<>\"\",VLOOKUP(B84,表示シート制御マスタ!B:C,2,FALSE), \"\")","v":""},null,"年\nYear",null,"月\nMonth",null,"日\nDay",null,null,null,null,null,null,null,null,null,"年\nYear",null,"月\nMonth",null,"日\nDay",null,""]
[65,null,{"$f":"IF(B85<>\"\",VLOOKUP(B85,表示シート制御マスタ!B:C,2,FALSE), \"\")","v":""},null,"年\nYear",null,"月\nMonth",null,"日\nDay",null,null,null,null,null,null,null,null,null,"年\nYear",null,"月\nMonth",null,"日\nDay",null,""]
[66,null,{"$f":"IF(B86<>\"\",VLOOKUP(B86,表示シート制御マスタ!B:C,2,FALSE), \"\")","v":""},null,"年\nYear",null,"月\nMonth",null,"日\nDay",null,null,null,null,null,null,null,null,null,"年\nYear",null,"月\nMonth",null,"日\nDay",null,""]
[67,null,{"$f":"IF(B87<>\"\",VLOOKUP(B87,表示シート制御マスタ!B:C,2,FALSE), \"\")","v":""},null,"年\nYear",null,"月\nMonth",null,"日\nDay",null,null,null,null,null,null,null,null,null,"年\nYear",null,"月\nMonth",null,"日\nDay",null,""]
[{"$f":"A87+1","v":68},null,{"$f":"IF(B88<>\"\",VLOOKUP(B88,表示シート制御マスタ!B:C,2,FALSE), \"\")","v":""},null,"年\nYear",null,"月\nMonth",null,"日\nDay",null,null,null,null,null,null,null,null,null,"年\nYear",null,"月\nMonth",null,"日\nDay",null,""]
[69,null,{"$f":"IF(B89<>\"\",VLOOKUP(B89,表示シート制御マスタ!B:C,2,FALSE), \"\")","v":""},null,"年\nYear",null,"月\nMonth",null,"日\nDay",null,null,null,null,null,null,null,null,null,"年\nYear",null,"月\nMonth",null,"日\nDay",null,""]
[70,null,{"$f":"IF(B90<>\"\",VLOOKUP(B90,表示シート制御マスタ!B:C,2,FALSE), \"\")","v":""},null,"年\nYear",null,"月\nMonth",null,"日\nDay",null,null,null,null,null,null,null,null,null,"年\nYear",null,"月\nMonth",null,"日\nDay",null,""]
[71,null,{"$f":"IF(B91<>\"\",VLOOKUP(B91,表示シート制御マスタ!B:C,2,FALSE), \"\")","v":""},null,"年\nYear",null,"月\nMonth",null,"日\nDay",null,null,null,null,null,null,null,null,null,"年\nYear",null,"月\nMonth",null,"日\nDay",null,""]
[72,null,{"$f":"IF(B92<>\"\",VLOOKUP(B92,表示シート制御マスタ!B:C,2,FALSE), \"\")","v":""},null,"年\nYear",null,"月\nMonth",null,"日\nDay",null,null,null,null,null,null,null,null,null,"年\nYear",null,"月\nMonth",null,"日\nDay",null,""]
[73,null,{"$f":"IF(B93<>\"\",VLOOKUP(B93,表示シート制御マスタ!B:C,2,FALSE), \"\")","v":""},null,"年\nYear",null,"月\nMonth",null,"日\nDay",null,null,null,null,null,null,null,null,null,"年\nYear",null,"月\nMonth",null,"日\nDay",null,""]
[74,null,{"$f":"IF(B94<>\"\",VLOOKUP(B94,表示シート制御マスタ!B:C,2,FALSE), \"\")","v":""},null,"年\nYear",null,"月\nMonth",null,"日\nDay",null,null,null,null,null,null,null,null,null,"年\nYear",null,"月\nMonth",null,"日\nDay",null,""]
[75,null,{"$f":"IF(B95<>\"\",VLOOKUP(B95,表示シート制御マスタ!B:C,2,FALSE), \"\")","v":""},null,"年\nYear",null,"月\nMonth",null,"日\nDay",null,null,null,null,null,null,null,null,null,"年\nYear",null,"月\nMonth",null,"日\nDay",null,""]
[76,null,{"$f":"IF(B96<>\"\",VLOOKUP(B96,表示シート制御マスタ!B:C,2,FALSE), \"\")","v":""},null,"年\nYear",null,"月\nMonth",null,"日\nDay",null,null,null,null,null,null,null,null,null,"年\nYear",null,"月\nMonth",null,"日\nDay",null,""]
[77,null,{"$f":"IF(B97<>\"\",VLOOKUP(B97,表示シート制御マスタ!B:C,2,FALSE), \"\")","v":""},null,"年\nYear",null,"月\nMonth",null,"日\nDay",null,null,null,null,null,null,null,null,null,"年\nYear",null,"月\nMonth",null,"日\nDay",null,""]
[78,null,{"$f":"IF(B98<>\"\",VLOOKUP(B98,表示シート制御マスタ!B:C,2,FALSE), \"\")","v":""},null,"年\nYear",null,"月\nMonth",null,"日\nDay",null,null,null,null,null,null,null,null,null,"年\nYear",null,"月\nMonth",null,"日\nDay",null,""]
[79,null,{"$f":"IF(B99<>\"\",VLOOKUP(B99,表示シート制御マスタ!B:C,2,FALSE), \"\")","v":""},null,"年\nYear",null,"月\nMonth",null,"日\nDay",null,null,null,null,null,null,null,null,null,"年\nYear",null,"月\nMonth",null,"日\nDay",null,""]
[80,null,{"$f":"IF(B100<>\"\",VLOOKUP(B100,表示シート制御マスタ!B:C,2,FALSE), \"\")","v":""},null,"年\nYear",null,"月\nMonth",null,"日\nDay",null,null,null,null,null,null,null,null,null,"年\nYear",null,"月\nMonth",null,"日\nDay",null,""]
[81,null,{"$f":"IF(B101<>\"\",VLOOKUP(B101,表示シート制御マスタ!B:C,2,FALSE), \"\")","v":""},null,"年\nYear",null,"月\nMonth",null,"日\nDay",null,null,null,null,null,null,null,null,null,"年\nYear",null,"月\nMonth",null,"日\nDay",null,""]
[82,null,{"$f":"IF(B102<>\"\",VLOOKUP(B102,表示シート制御マスタ!B:C,2,FALSE), \"\")","v":""},null,"年\nYear",null,"月\nMonth",null,"日\nDay",null,null,null,null,null,null,null,null,null,"年\nYear",null,"月\nMonth",null,"日\nDay",null,""]
[83,null,{"$f":"IF(B103<>\"\",VLOOKUP(B103,表示シート制御マスタ!B:C,2,FALSE), \"\")","v":""},null,"年\nYear",null,"月\nMonth",null,"日\nDay",null,null,null,null,null,null,null,null,null,"年\nYear",null,"月\nMonth",null,"日\nDay",null,""]
[84,null,{"$f":"IF(B104<>\"\",VLOOKUP(B104,表示シート制御マスタ!B:C,2,FALSE), \"\")","v":""},null,"年\nYear",null,"月\nMonth",null,"日\nDay",null,null,null,null,null,null,null,null,null,"年\nYear",null,"月\nMonth",null,"日\nDay",null,""]
[85,null,{"$f":"IF(B105<>\"\",VLOOKUP(B105,表示シート制御マスタ!B:C,2,FALSE), \"\")","v":""},null,"年\nYear",null,"月\nMonth",null,"日\nDay",null,null,null,null,null,null,null,null,null,"年\nYear",null,"月\nMonth",null,"日\nDay",null,""]
[86,null,{"$f":"IF(B106<>\"\",VLOOKUP(B106,表示シート制御マスタ!B:C,2,FALSE), \"\")","v":""},null,"年\nYear",null,"月\nMonth",null,"日\nDay",null,null,null,null,null,null,null,null,null,"年\nYear",null,"月\nMonth",null,"日\nDay",null,""]
[87,null,{"$f":"IF(B107<>\"\",VLOOKUP(B107,表示シート制御マスタ!B:C,2,FALSE), \"\")","v":""},null,"年\nYear",null,"月\nMonth",null,"日\nDay",null,null,null,null,null,null,null,null,null,"年\nYear",null,"月\nMonth",null,"日\nDay",null,""]
[88,null,{"$f":"IF(B108<>\"\",VLOOKUP(B108,表示シート制御マスタ!B:C,2,FALSE), \"\")","v":""},null,"年\nYear",null,"月\nMonth",null,"日\nDay",null,null,null,null,null,null,null,null,null,"年\nYear",null,"月\nMonth",null,"日\nDay",null,""]
[89,null,{"$f":"IF(B109<>\"\",VLOOKUP(B109,表示シート制御マスタ!B:C,2,FALSE), \"\")","v":""},null,"年\nYear",null,"月\nMonth",null,"日\nDay",null,null,null,null,null,null,null,null,null,"年\nYear",null,"月\nMonth",null,"日\nDay",null,""]
[90,null,{"$f":"IF(B110<>\"\",VLOOKUP(B110,表示シート制御マスタ!B:C,2,FALSE), \"\")","v":""},null,"年\nYear",null,"月\nMonth",null,"日\nDay",null,null,null,null,null,null,null,null,null,"年\nYear",null,"月\nMonth",null,"日\nDay",null,""]
[91,null,{"$f":"IF(B111<>\"\",VLOOKUP(B111,表示シート制御マスタ!B:C,2,FALSE), \"\")","v":""},null,"年\nYear",null,"月\nMonth",null,"日\nDay",null,null,null,null,null,null,null,null,null,"年\nYear",null,"月\nMonth",null,"日\nDay",null,""]
[92,null,{"$f":"IF(B112<>\"\",VLOOKUP(B112,表示シート制御マスタ!B:C,2,FALSE), \"\")","v":""},null,"年\nYear",null,"月\nMonth",null,"日\nDay",null,null,null,null,null,null,null,null,null,"年\nYear",null,"月\nMonth",null,"日\nDay",null,""]
[93,null,{"$f":"IF(B113<>\"\",VLOOKUP(B113,表示シート制御マスタ!B:C,2,FALSE), \"\")","v":""},null,"年\nYear",null,"月\nMonth",null,"日\nDay",null,null,null,null,null,null,null,null,null,"年\nYear",null,"月\nMonth",null,"日\nDay",null,""]
[94,null,{"$f":"IF(B114<>\"\",VLOOKUP(B114,表示シート制御マスタ!B:C,2,FALSE), \"\")","v":""},null,"年\nYear",null,"月\nMonth",null,"日\nDay",null,null,null,null,null,null,null,null,null,"年\nYear",null,"月\nMonth",null,"日\nDay",null,""]
[95,null,{"$f":"IF(B115<>\"\",VLOOKUP(B115,表示シート制御マスタ!B:C,2,FALSE), \"\")","v":""},null,"年\nYear",null,"月\nMonth",null,"日\nDay",null,null,null,null,null,null,null,null,null,"年\nYear",null,"月\nMonth",null,"日\nDay",null,""]
[96,null,{"$f":"IF(B116<>\"\",VLOOKUP(B116,表示シート制御マスタ!B:C,2,FALSE), \"\")","v":""},null,"年\nYear",null,"月\nMonth",null,"日\nDay",null,null,null,null,null,null,null,null,null,"年\nYear",null,"月\nMonth",null,"日\nDay",null,""]
[97,null,{"$f":"IF(B117<>\"\",VLOOKUP(B117,表示シート制御マスタ!B:C,2,FALSE), \"\")","v":""},null,"年\nYear",null,"月\nMonth",null,"日\nDay",null,null,null,null,null,null,null,null,null,"年\nYear",null,"月\nMonth",null,"日\nDay",null,""]
[98,null,{"$f":"IF(B118<>\"\",VLOOKUP(B118,表示シート制御マスタ!B:C,2,FALSE), \"\")","v":""},null,"年\nYear",null,"月\nMonth",null,"日\nDay",null,null,null,null,null,null,null,null,null,"年\nYear",null,"月\nMonth",null,"日\nDay",null,""]
[99,null,{"$f":"IF(B119<>\"\",VLOOKUP(B119,表示シート制御マスタ!B:C,2,FALSE), \"\")","v":""},null,"年\nYear",null,"月\nMonth",null,"日\nDay",null,null,null,null,null,null,null,null,null,"年\nYear",null,"月\nMonth",null,"日\nDay",null,""]
[100,null,{"$f":"IF(B120<>\"\",VLOOKUP(B120,表示シート制御マスタ!B:C,2,FALSE), \"\")","v":""},null,"年\nYear",null,"月\nMonth",null,"日\nDay",null,null,null,null,null,null,null,null,null,"年\nYear",null,"月\nMonth",null,"日\nDay",null,""]
[101,null,{"$f":"IF(B121<>\"\",VLOOKUP(B121,表示シート制御マスタ!B:C,2,FALSE), \"\")","v":""},null,"年\nYear",null,"月\nMonth",null,"日\nDay",null,null,null,null,null,null,null,null,null,"年\nYear",null,"月\nMonth",null,"日\nDay",null,""]
[102,null,{"$f":"IF(B122<>\"\",VLOOKUP(B122,表示シート制御マスタ!B:C,2,FALSE), \"\")","v":""},null,"年\nYear",null,"月\nMonth",null,"日\nDay",null,null,null,null,null,null,null,null,null,"年\nYear",null,"月\nMonth",null,"日\nDay",null,""]
[103,null,{"$f":"IF(B123<>\"\",VLOOKUP(B123,表示シート制御マスタ!B:C,2,FALSE), \"\")","v":""},null,"年\nYear",null,"月\nMonth",null,"日\nDay",null,null,null,null,null,null,null,null,null,"年\nYear",null,"月\nMonth",null,"日\nDay",null,""]
[104,null,{"$f":"IF(B124<>\"\",VLOOKUP(B124,表示シート制御マスタ!B:C,2,FALSE), \"\")","v":""},null,"年\nYear",null,"月\nMonth",null,"日\nDay",null,null,null,null,null,null,null,null,null,"年\nYear",null,"月\nMonth",null,"日\nDay",null,""]
[105,null,{"$f":"IF(B125<>\"\",VLOOKUP(B125,表示シート制御マスタ!B:C,2,FALSE), \"\")","v":""},null,"年\nYear",null,"月\nMonth",null,"日\nDay",null,null,null,null,null,null,null,null,null,"年\nYear",null,"月\nMonth",null,"日\nDay",null,""]
[106,null,{"$f":"IF(B126<>\"\",VLOOKUP(B126,表示シート制御マスタ!B:C,2,FALSE), \"\")","v":""},null,"年\nYear",null,"月\nMonth",null,"日\nDay",null,null,null,null,null,null,null,null,null,"年\nYear",null,"月\nMonth",null,"日\nDay",null,""]
[107,null,{"$f":"IF(B127<>\"\",VLOOKUP(B127,表示シート制御マスタ!B:C,2,FALSE), \"\")","v":""},null,"年\nYear",null,"月\nMonth",null,"日\nDay",null,null,null,null,null,null,null,null,null,"年\nYear",null,"月\nMonth",null,"日\nDay",null,""]
[108,null,{"$f":"IF(B128<>\"\",VLOOKUP(B128,表示シート制御マスタ!B:C,2,FALSE), \"\")","v":""},null,"年\nYear",null,"月\nMonth",null,"日\nDay",null,null,null,null,null,null,null,null,null,"年\nYear",null,"月\nMonth",null,"日\nDay",null,""]
[109,null,{"$f":"IF(B129<>\"\",VLOOKUP(B129,表示シート制御マスタ!B:C,2,FALSE), \"\")","v":""},null,"年\nYear",null,"月\nMonth",null,"日\nDay",null,null,null,null,null,null,null,null,null,"年\nYear",null,"月\nMonth",null,"日\nDay",null,""]
[110,null,{"$f":"IF(B130<>\"\",VLOOKUP(B130,表示シート制御マスタ!B:C,2,FALSE), \"\")","v":""},null,"年\nYear",null,"月\nMonth",null,"日\nDay",null,null,null,null,null,null,null,null,null,"年\nYear",null,"月\nMonth",null,"日\nDay",null,""]
[111,null,{"$f":"IF(B131<>\"\",VLOOKUP(B131,表示シート制御マスタ!B:C,2,FALSE), \"\")","v":""},null,"年\nYear",null,"月\nMonth",null,"日\nDay",null,null,null,null,null,null,null,null,null,"年\nYear",null,"月\nMonth",null,"日\nDay",null,""]
[112,null,{"$f":"IF(B132<>\"\",VLOOKUP(B132,表示シート制御マスタ!B:C,2,FALSE), \"\")","v":""},null,"年\nYear",null,"月\nMonth",null,"日\nDay",null,null,null,null,null,null,null,null,null,"年\nYear",null,"月\nMonth",null,"日\nDay",null,""]
[113,null,{"$f":"IF(B133<>\"\",VLOOKUP(B133,表示シート制御マスタ!B:C,2,FALSE), \"\")","v":""},null,"年\nYear",null,"月\nMonth",null,"日\nDay",null,null,null,null,null,null,null,null,null,"年\nYear",null,"月\nMonth",null,"日\nDay",null,""]
[114,null,{"$f":"IF(B134<>\"\",VLOOKUP(B134,表示シート制御マスタ!B:C,2,FALSE), \"\")","v":""},null,"年\nYear",null,"月\nMonth",null,"日\nDay",null,null,null,null,null,null,null,null,null,"年\nYear",null,"月\nMonth",null,"日\nDay",null,""]
[115,null,{"$f":"IF(B135<>\"\",VLOOKUP(B135,表示シート制御マスタ!B:C,2,FALSE), \"\")","v":""},null,"年\nYear",null,"月\nMonth",null,"日\nDay",null,null,null,null,null,null,null,null,null,"年\nYear",null,"月\nMonth",null,"日\nDay",null,""]
[116,null,{"$f":"IF(B136<>\"\",VLOOKUP(B136,表示シート制御マスタ!B:C,2,FALSE), \"\")","v":""},null,"年\nYear",null,"月\nMonth",null,"日\nDay",null,null,null,null,null,null,null,null,null,"年\nYear",null,"月\nMonth",null,"日\nDay",null,""]
[117,null,{"$f":"IF(B137<>\"\",VLOOKUP(B137,表示シート制御マスタ!B:C,2,FALSE), \"\")","v":""},null,"年\nYear",null,"月\nMonth",null,"日\nDay",null,null,null,null,null,null,null,null,null,"年\nYear",null,"月\nMonth",null,"日\nDay",null,""]
[118,null,{"$f":"IF(B138<>\"\",VLOOKUP(B138,表示シート制御マスタ!B:C,2,FALSE), \"\")","v":""},null,"年\nYear",null,"月\nMonth",null,"日\nDay",null,null,null,null,null,null,null,null,null,"年\nYear",null,"月\nMonth",null,"日\nDay",null,""]
[119,null,{"$f":"IF(B139<>\"\",VLOOKUP(B139,表示シート制御マスタ!B:C,2,FALSE), \"\")","v":""},null,"年\nYear",null,"月\nMonth",null,"日\nDay",null,null,null,null,null,null,null,null,null,"年\nYear",null,"月\nMonth",null,"日\nDay",null,""]
[120,null,{"$f":"IF(B140<>\"\",VLOOKUP(B140,表示シート制御マスタ!B:C,2,FALSE), \"\")","v":""},null,"年\nYear",null,"月\nMonth",null,"日\nDay",null,null,null,null,null,null,null,null,null,"年\nYear",null,"月\nMonth",null,"日\nDay",null,""]
[121,null,{"$f":"IF(B141<>\"\",VLOOKUP(B141,表示シート制御マスタ!B:C,2,FALSE), \"\")","v":""},null,"年\nYear",null,"月\nMonth",null,"日\nDay",null,null,null,null,null,null,null,null,null,"年\nYear",null,"月\nMonth",null,"日\nDay",null,""]
[122,null,{"$f":"IF(B142<>\"\",VLOOKUP(B142,表示シート制御マスタ!B:C,2,FALSE), \"\")","v":""},null,"年\nYear",null,"月\nMonth",null,"日\nDay",null,null,null,null,null,null,null,null,null,"年\nYear",null,"月\nMonth",null,"日\nDay",null,""]
[123,null,{"$f":"IF(B143<>\"\",VLOOKUP(B143,表示シート制御マスタ!B:C,2,FALSE), \"\")","v":""},null,"年\nYear",null,"月\nMonth",null,"日\nDay",null,null,null,null,null,null,null,null,null,"年\nYear",null,"月\nMonth",null,"日\nDay",null,""]
[124,null,{"$f":"IF(B144<>\"\",VLOOKUP(B144,表示シート制御マスタ!B:C,2,FALSE), \"\")","v":""},null,"年\nYear",null,"月\nMonth",null,"日\nDay",null,null,null,null,null,null,null,null,null,"年\nYear",null,"月\nMonth",null,"日\nDay",null,""]
[125,null,{"$f":"IF(B145<>\"\",VLOOKUP(B145,表示シート制御マスタ!B:C,2,FALSE), \"\")","v":""},null,"年\nYear",null,"月\nMonth",null,"日\nDay",null,null,null,null,null,null,null,null,null,"年\nYear",null,"月\nMonth",null,"日\nDay",null,""]
[126,null,{"$f":"IF(B146<>\"\",VLOOKUP(B146,表示シート制御マスタ!B:C,2,FALSE), \"\")","v":""},null,"年\nYear",null,"月\nMonth",null,"日\nDay",null,null,null,null,null,null,null,null,null,"年\nYear",null,"月\nMonth",null,"日\nDay",null,""]
[127,null,{"$f":"IF(B147<>\"\",VLOOKUP(B147,表示シート制御マスタ!B:C,2,FALSE), \"\")","v":""},null,"年\nYear",null,"月\nMonth",null,"日\nDay",null,null,null,null,null,null,null,null,null,"年\nYear",null,"月\nMonth",null,"日\nDay",null,""]
[128,null,{"$f":"IF(B148<>\"\",VLOOKUP(B148,表示シート制御マスタ!B:C,2,FALSE), \"\")","v":""},null,"年\nYear",null,"月\nMonth",null,"日\nDay",null,null,null,null,null,null,null,null,null,"年\nYear",null,"月\nMonth",null,"日\nDay",null,""]
[129,null,{"$f":"IF(B149<>\"\",VLOOKUP(B149,表示シート制御マスタ!B:C,2,FALSE), \"\")","v":""},null,"年\nYear",null,"月\nMonth",null,"日\nDay",null,null,null,null,null,null,null,null,null,"年\nYear",null,"月\nMonth",null,"日\nDay",null,""]
[130,null,{"$f":"IF(B150<>\"\",VLOOKUP(B150,表示シート制御マスタ!B:C,2,FALSE), \"\")","v":""},null,"年\nYear",null,"月\nMonth",null,"日\nDay",null,null,null,null,null,null,null,null,null,"年\nYear",null,"月\nMonth",null,"日\nDay",null,""]
[131,null,{"$f":"IF(B151<>\"\",VLOOKUP(B151,表示シート制御マスタ!B:C,2,FALSE), \"\")","v":""},null,"年\nYear",null,"月\nMonth",null,"日\nDay",null,null,null,null,null,null,null,null,null,"年\nYear",null,"月\nMonth",null,"日\nDay",null,""]
[{"$f":"A151+1","v":132},null,{"$f":"IF(B152<>\"\",VLOOKUP(B152,表示シート制御マスタ!B:C,2,FALSE), \"\")","v":""},null,"年\nYear",null,"月\nMonth",null,"日\nDay",null,null,null,null,null,null,null,null,null,"年\nYear",null,"月\nMonth",null,"日\nDay",null,""]
[133,null,{"$f":"IF(B153<>\"\",VLOOKUP(B153,表示シート制御マスタ!B:C,2,FALSE), \"\")","v":""},null,"年\nYear",null,"月\nMonth",null,"日\nDay",null,null,null,null,null,null,null,null,null,"年\nYear",null,"月\nMonth",null,"日\nDay",null,""]
[134,null,{"$f":"IF(B154<>\"\",VLOOKUP(B154,表示シート制御マスタ!B:C,2,FALSE), \"\")","v":""},null,"年\nYear",null,"月\nMonth",null,"日\nDay",null,null,null,null,null,null,null,null,null,"年\nYear",null,"月\nMonth",null,"日\nDay",null,""]
[135,null,{"$f":"IF(B155<>\"\",VLOOKUP(B155,表示シート制御マスタ!B:C,2,FALSE), \"\")","v":""},null,"年\nYear",null,"月\nMonth",null,"日\nDay",null,null,null,null,null,null,null,null,null,"年\nYear",null,"月\nMonth",null,"日\nDay",null,""]
[136,null,{"$f":"IF(B156<>\"\",VLOOKUP(B156,表示シート制御マスタ!B:C,2,FALSE), \"\")","v":""},null,"年\nYear",null,"月\nMonth",null,"日\nDay",null,null,null,null,null,null,null,null,null,"年\nYear",null,"月\nMonth",null,"日\nDay",null,""]
[137,null,{"$f":"IF(B157<>\"\",VLOOKUP(B157,表示シート制御マスタ!B:C,2,FALSE), \"\")","v":""},null,"年\nYear",null,"月\nMonth",null,"日\nDay",null,null,null,null,null,null,null,null,null,"年\nYear",null,"月\nMonth",null,"日\nDay",null,""]
[138,null,{"$f":"IF(B158<>\"\",VLOOKUP(B158,表示シート制御マスタ!B:C,2,FALSE), \"\")","v":""},null,"年\nYear",null,"月\nMonth",null,"日\nDay",null,null,null,null,null,null,null,null,null,"年\nYear",null,"月\nMonth",null,"日\nDay",null,""]
[139,null,{"$f":"IF(B159<>\"\",VLOOKUP(B159,表示シート制御マスタ!B:C,2,FALSE), \"\")","v":""},null,"年\nYear",null,"月\nMonth",null,"日\nDay",null,null,null,null,null,null,null,null,null,"年\nYear",null,"月\nMonth",null,"日\nDay",null,""]
[140,null,{"$f":"IF(B160<>\"\",VLOOKUP(B160,表示シート制御マスタ!B:C,2,FALSE), \"\")","v":""},null,"年\nYear",null,"月\nMonth",null,"日\nDay",null,null,null,null,null,null,null,null,null,"年\nYear",null,"月\nMonth",null,"日\nDay",null,""]
[141,null,{"$f":"IF(B161<>\"\",VLOOKUP(B161,表示シート制御マスタ!B:C,2,FALSE), \"\")","v":""},null,"年\nYear",null,"月\nMonth",null,"日\nDay",null,null,null,null,null,null,null,null,null,"年\nYear",null,"月\nMonth",null,"日\nDay",null,""]
[142,null,{"$f":"IF(B162<>\"\",VLOOKUP(B162,表示シート制御マスタ!B:C,2,FALSE), \"\")","v":""},null,"年\nYear",null,"月\nMonth",null,"日\nDay",null,null,null,null,null,null,null,null,null,"年\nYear",null,"月\nMonth",null,"日\nDay",null,""]
[143,null,{"$f":"IF(B163<>\"\",VLOOKUP(B163,表示シート制御マスタ!B:C,2,FALSE), \"\")","v":""},null,"年\nYear",null,"月\nMonth",null,"日\nDay",null,null,null,null,null,null,null,null,null,"年\nYear",null,"月\nMonth",null,"日\nDay",null,""]
[144,null,{"$f":"IF(B164<>\"\",VLOOKUP(B164,表示シート制御マスタ!B:C,2,FALSE), \"\")","v":""},null,"年\nYear",null,"月\nMonth",null,"日\nDay",null,null,null,null,null,null,null,null,null,"年\nYear",null,"月\nMonth",null,"日\nDay",null,""]
[145,null,{"$f":"IF(B165<>\"\",VLOOKUP(B165,表示シート制御マスタ!B:C,2,FALSE), \"\")","v":""},null,"年\nYear",null,"月\nMonth",null,"日\nDay",null,null,null,null,null,null,null,null,null,"年\nYear",null,"月\nMonth",null,"日\nDay",null,""]
[146,null,{"$f":"IF(B166<>\"\",VLOOKUP(B166,表示シート制御マスタ!B:C,2,FALSE), \"\")","v":""},null,"年\nYear",null,"月\nMonth",null,"日\nDay",null,null,null,null,null,null,null,null,null,"年\nYear",null,"月\nMonth",null,"日\nDay",null,""]
[147,null,{"$f":"IF(B167<>\"\",VLOOKUP(B167,表示シート制御マスタ!B:C,2,FALSE), \"\")","v":""},null,"年\nYear",null,"月\nMonth",null,"日\nDay",null,null,null,null,null,null,null,null,null,"年\nYear",null,"月\nMonth",null,"日\nDay",null,""]
[148,null,{"$f":"IF(B168<>\"\",VLOOKUP(B168,表示シート制御マスタ!B:C,2,FALSE), \"\")","v":""},null,"年\nYear",null,"月\nMonth",null,"日\nDay",null,null,null,null,null,null,null,null,null,"年\nYear",null,"月\nMonth",null,"日\nDay",null,""]
[149,null,{"$f":"IF(B169<>\"\",VLOOKUP(B169,表示シート制御マスタ!B:C,2,FALSE), \"\")","v":""},null,"年\nYear",null,"月\nMonth",null,"日\nDay",null,null,null,null,null,null,null,null,null,"年\nYear",null,"月\nMonth",null,"日\nDay",null,""]
[150,null,{"$f":"IF(B170<>\"\",VLOOKUP(B170,表示シート制御マスタ!B:C,2,FALSE), \"\")","v":""},null,"年\nYear",null,"月\nMonth",null,"日\nDay",null,null,null,null,null,null,null,null,null,"年\nYear",null,"月\nMonth",null,"日\nDay",null,""]
[151,null,{"$f":"IF(B171<>\"\",VLOOKUP(B171,表示シート制御マスタ!B:C,2,FALSE), \"\")","v":""},null,"年\nYear",null,"月\nMonth",null,"日\nDay",null,null,null,null,null,null,null,null,null,"年\nYear",null,"月\nMonth",null,"日\nDay",null,""]
[152,null,{"$f":"IF(B172<>\"\",VLOOKUP(B172,表示シート制御マスタ!B:C,2,FALSE), \"\")","v":""},null,"年\nYear",null,"月\nMonth",null,"日\nDay",null,null,null,null,null,null,null,null,null,"年\nYear",null,"月\nMonth",null,"日\nDay",null,""]
[153,null,{"$f":"IF(B173<>\"\",VLOOKUP(B173,表示シート制御マスタ!B:C,2,FALSE), \"\")","v":""},null,"年\nYear",null,"月\nMonth",null,"日\nDay",null,null,null,null,null,null,null,null,null,"年\nYear",null,"月\nMonth",null,"日\nDay",null,""]
[154,null,{"$f":"IF(B174<>\"\",VLOOKUP(B174,表示シート制御マスタ!B:C,2,FALSE), \"\")","v":""},null,"年\nYear",null,"月\nMonth",null,"日\nDay",null,null,null,null,null,null,null,null,null,"年\nYear",null,"月\nMonth",null,"日\nDay",null,""]
[155,null,{"$f":"IF(B175<>\"\",VLOOKUP(B175,表示シート制御マスタ!B:C,2,FALSE), \"\")","v":""},null,"年\nYear",null,"月\nMonth",null,"日\nDay",null,null,null,null,null,null,null,null,null,"年\nYear",null,"月\nMonth",null,"日\nDay",null,""]
[156,null,{"$f":"IF(B176<>\"\",VLOOKUP(B176,表示シート制御マスタ!B:C,2,FALSE), \"\")","v":""},null,"年\nYear",null,"月\nMonth",null,"日\nDay",null,null,null,null,null,null,null,null,null,"年\nYear",null,"月\nMonth",null,"日\nDay",null,""]
[157,null,{"$f":"IF(B177<>\"\",VLOOKUP(B177,表示シート制御マスタ!B:C,2,FALSE), \"\")","v":""},null,"年\nYear",null,"月\nMonth",null,"日\nDay",null,null,null,null,null,null,null,null,null,"年\nYear",null,"月\nMonth",null,"日\nDay",null,""]
[158,null,{"$f":"IF(B178<>\"\",VLOOKUP(B178,表示シート制御マスタ!B:C,2,FALSE), \"\")","v":""},null,"年\nYear",null,"月\nMonth",null,"日\nDay",null,null,null,null,null,null,null,null,null,"年\nYear",null,"月\nMonth",null,"日\nDay",null,""]
[159,null,{"$f":"IF(B179<>\"\",VLOOKUP(B179,表示シート制御マスタ!B:C,2,FALSE), \"\")","v":""},null,"年\nYear",null,"月\nMonth",null,"日\nDay",null,null,null,null,null,null,null,null,null,"年\nYear",null,"月\nMonth",null,"日\nDay",null,""]
[160,null,{"$f":"IF(B180<>\"\",VLOOKUP(B180,表示シート制御マスタ!B:C,2,FALSE), \"\")","v":""},null,"年\nYear",null,"月\nMonth",null,"日\nDay",null,null,null,null,null,null,null,null,null,"年\nYear",null,"月\nMonth",null,"日\nDay",null,""]
[161,null,{"$f":"IF(B181<>\"\",VLOOKUP(B181,表示シート制御マスタ!B:C,2,FALSE), \"\")","v":""},null,"年\nYear",null,"月\nMonth",null,"日\nDay",null,null,null,null,null,null,null,null,null,"年\nYear",null,"月\nMonth",null,"日\nDay",null,""]
[162,null,{"$f":"IF(B182<>\"\",VLOOKUP(B182,表示シート制御マスタ!B:C,2,FALSE), \"\")","v":""},null,"年\nYear",null,"月\nMonth",null,"日\nDay",null,null,null,null,null,null,null,null,null,"年\nYear",null,"月\nMonth",null,"日\nDay",null,""]
[163,null,{"$f":"IF(B183<>\"\",VLOOKUP(B183,表示シート制御マスタ!B:C,2,FALSE), \"\")","v":""},null,"年\nYear",null,"月\nMonth",null,"日\nDay",null,null,null,null,null,null,null,null,null,"年\nYear",null,"月\nMonth",null,"日\nDay",null,""]
[164,null,{"$f":"IF(B184<>\"\",VLOOKUP(B184,表示シート制御マスタ!B:C,2,FALSE), \"\")","v":""},null,"年\nYear",null,"月\nMonth",null,"日\nDay",null,null,null,null,null,null,null,null,null,"年\nYear",null,"月\nMonth",null,"日\nDay",null,""]
[165,null,{"$f":"IF(B185<>\"\",VLOOKUP(B185,表示シート制御マスタ!B:C,2,FALSE), \"\")","v":""},null,"年\nYear",null,"月\nMonth",null,"日\nDay",null,null,null,null,null,null,null,null,null,"年\nYear",null,"月\nMonth",null,"日\nDay",null,""]
[166,null,{"$f":"IF(B186<>\"\",VLOOKUP(B186,表示シート制御マスタ!B:C,2,FALSE), \"\")","v":""},null,"年\nYear",null,"月\nMonth",null,"日\nDay",null,null,null,null,null,null,null,null,null,"年\nYear",null,"月\nMonth",null,"日\nDay",null,""]
[167,null,{"$f":"IF(B187<>\"\",VLOOKUP(B187,表示シート制御マスタ!B:C,2,FALSE), \"\")","v":""},null,"年\nYear",null,"月\nMonth",null,"日\nDay",null,null,null,null,null,null,null,null,null,"年\nYear",null,"月\nMonth",null,"日\nDay",null,""]
[168,null,{"$f":"IF(B188<>\"\",VLOOKUP(B188,表示シート制御マスタ!B:C,2,FALSE), \"\")","v":""},null,"年\nYear",null,"月\nMonth",null,"日\nDay",null,null,null,null,null,null,null,null,null,"年\nYear",null,"月\nMonth",null,"日\nDay",null,""]
[169,null,{"$f":"IF(B189<>\"\",VLOOKUP(B189,表示シート制御マスタ!B:C,2,FALSE), \"\")","v":""},null,"年\nYear",null,"月\nMonth",null,"日\nDay",null,null,null,null,null,null,null,null,null,"年\nYear",null,"月\nMonth",null,"日\nDay",null,""]
[170,null,{"$f":"IF(B190<>\"\",VLOOKUP(B190,表示シート制御マスタ!B:C,2,FALSE), \"\")","v":""},null,"年\nYear",null,"月\nMonth",null,"日\nDay",null,null,null,null,null,null,null,null,null,"年\nYear",null,"月\nMonth",null,"日\nDay",null,""]
[171,null,{"$f":"IF(B191<>\"\",VLOOKUP(B191,表示シート制御マスタ!B:C,2,FALSE), \"\")","v":""},null,"年\nYear",null,"月\nMonth",null,"日\nDay",null,null,null,null,null,null,null,null,null,"年\nYear",null,"月\nMonth",null,"日\nDay",null,""]
[172,null,{"$f":"IF(B192<>\"\",VLOOKUP(B192,表示シート制御マスタ!B:C,2,FALSE), \"\")","v":""},null,"年\nYear",null,"月\nMonth",null,"日\nDay",null,null,null,null,null,null,null,null,null,"年\nYear",null,"月\nMonth",null,"日\nDay",null,""]
[173,null,{"$f":"IF(B193<>\"\",VLOOKUP(B193,表示シート制御マスタ!B:C,2,FALSE), \"\")","v":""},null,"年\nYear",null,"月\nMonth",null,"日\nDay",null,null,null,null,null,null,null,null,null,"年\nYear",null,"月\nMonth",null,"日\nDay",null,""]
[174,null,{"$f":"IF(B194<>\"\",VLOOKUP(B194,表示シート制御マスタ!B:C,2,FALSE), \"\")","v":""},null,"年\nYear",null,"月\nMonth",null,"日\nDay",null,null,null,null,null,null,null,null,null,"年\nYear",null,"月\nMonth",null,"日\nDay",null,""]
[175,null,{"$f":"IF(B195<>\"\",VLOOKUP(B195,表示シート制御マスタ!B:C,2,FALSE), \"\")","v":""},null,"年\nYear",null,"月\nMonth",null,"日\nDay",null,null,null,null,null,null,null,null,null,"年\nYear",null,"月\nMonth",null,"日\nDay",null,""]
[176,null,{"$f":"IF(B196<>\"\",VLOOKUP(B196,表示シート制御マスタ!B:C,2,FALSE), \"\")","v":""},null,"年\nYear",null,"月\nMonth",null,"日\nDay",null,null,null,null,null,null,null,null,null,"年\nYear",null,"月\nMonth",null,"日\nDay",null,""]
[177,null,{"$f":"IF(B197<>\"\",VLOOKUP(B197,表示シート制御マスタ!B:C,2,FALSE), \"\")","v":""},null,"年\nYear",null,"月\nMonth",null,"日\nDay",null,null,null,null,null,null,null,null,null,"年\nYear",null,"月\nMonth",null,"日\nDay",null,""]
[178,null,{"$f":"IF(B198<>\"\",VLOOKUP(B198,表示シート制御マスタ!B:C,2,FALSE), \"\")","v":""},null,"年\nYear",null,"月\nMonth",null,"日\nDay",null,null,null,null,null,null,null,null,null,"年\nYear",null,"月\nMonth",null,"日\nDay",null,""]
[179,null,{"$f":"IF(B199<>\"\",VLOOKUP(B199,表示シート制御マスタ!B:C,2,FALSE), \"\")","v":""},null,"年\nYear",null,"月\nMonth",null,"日\nDay",null,null,null,null,null,null,null,null,null,"年\nYear",null,"月\nMonth",null,"日\nDay",null,""]
[180,null,{"$f":"IF(B200<>\"\",VLOOKUP(B200,表示シート制御マスタ!B:C,2,FALSE), \"\")","v":""},null,"年\nYear",null,"月\nMonth",null,"日\nDay",null,null,null,null,null,null,null,null,null,"年\nYear",null,"月\nMonth",null,"日\nDay",null,""]
[181,null,{"$f":"IF(B201<>\"\",VLOOKUP(B201,表示シート制御マスタ!B:C,2,FALSE), \"\")","v":""},null,"年\nYear",null,"月\nMonth",null,"日\nDay",null,null,null,null,null,null,null,null,null,"年\nYear",null,"月\nMonth",null,"日\nDay",null,""]
[182,null,{"$f":"IF(B202<>\"\",VLOOKUP(B202,表示シート制御マスタ!B:C,2,FALSE), \"\")","v":""},null,"年\nYear",null,"月\nMonth",null,"日\nDay",null,null,null,null,null,null,null,null,null,"年\nYear",null,"月\nMonth",null,"日\nDay",null,""]
[183,null,{"$f":"IF(B203<>\"\",VLOOKUP(B203,表示シート制御マスタ!B:C,2,FALSE), \"\")","v":""},null,"年\nYear",null,"月\nMonth",null,"日\nDay",null,null,null,null,null,null,null,null,null,"年\nYear",null,"月\nMonth",null,"日\nDay",null,""]
[184,null,{"$f":"IF(B204<>\"\",VLOOKUP(B204,表示シート制御マスタ!B:C,2,FALSE), \"\")","v":""},null,"年\nYear",null,"月\nMonth",null,"日\nDay",null,null,null,null,null,null,null,null,null,"年\nYear",null,"月\nMonth",null,"日\nDay",null,""]
[185,null,{"$f":"IF(B205<>\"\",VLOOKUP(B205,表示シート制御マスタ!B:C,2,FALSE), \"\")","v":""},null,"年\nYear",null,"月\nMonth",null,"日\nDay",null,null,null,null,null,null,null,null,null,"年\nYear",null,"月\nMonth",null,"日\nDay",null,""]
[186,null,{"$f":"IF(B206<>\"\",VLOOKUP(B206,表示シート制御マスタ!B:C,2,FALSE), \"\")","v":""},null,"年\nYear",null,"月\nMonth",null,"日\nDay",null,null,null,null,null,null,null,null,null,"年\nYear",null,"月\nMonth",null,"日\nDay",null,""]
[187,null,{"$f":"IF(B207<>\"\",VLOOKUP(B207,表示シート制御マスタ!B:C,2,FALSE), \"\")","v":""},null,"年\nYear",null,"月\nMonth",null,"日\nDay",null,null,null,null,null,null,null,null,null,"年\nYear",null,"月\nMonth",null,"日\nDay",null,""]
[188,null,{"$f":"IF(B208<>\"\",VLOOKUP(B208,表示シート制御マスタ!B:C,2,FALSE), \"\")","v":""},null,"年\nYear",null,"月\nMonth",null,"日\nDay",null,null,null,null,null,null,null,null,null,"年\nYear",null,"月\nMonth",null,"日\nDay",null,""]
[189,null,{"$f":"IF(B209<>\"\",VLOOKUP(B209,表示シート制御マスタ!B:C,2,FALSE), \"\")","v":""},null,"年\nYear",null,"月\nMonth",null,"日\nDay",null,null,null,null,null,null,null,null,null,"年\nYear",null,"月\nMonth",null,"日\nDay",null,""]
[190,null,{"$f":"IF(B210<>\"\",VLOOKUP(B210,表示シート制御マスタ!B:C,2,FALSE), \"\")","v":""},null,"年\nYear",null,"月\nMonth",null,"日\nDay",null,null,null,null,null,null,null,null,null,"年\nYear",null,"月\nMonth",null,"日\nDay",null,""]
[191,null,{"$f":"IF(B211<>\"\",VLOOKUP(B211,表示シート制御マスタ!B:C,2,FALSE), \"\")","v":""},null,"年\nYear",null,"月\nMonth",null,"日\nDay",null,null,null,null,null,null,null,null,null,"年\nYear",null,"月\nMonth",null,"日\nDay",null,""]
[192,null,{"$f":"IF(B212<>\"\",VLOOKUP(B212,表示シート制御マスタ!B:C,2,FALSE), \"\")","v":""},null,"年\nYear",null,"月\nMonth",null,"日\nDay",null,null,null,null,null,null,null,null,null,"年\nYear",null,"月\nMonth",null,"日\nDay",null,""]
[193,null,{"$f":"IF(B213<>\"\",VLOOKUP(B213,表示シート制御マスタ!B:C,2,FALSE), \"\")","v":""},null,"年\nYear",null,"月\nMonth",null,"日\nDay",null,null,null,null,null,null,null,null,null,"年\nYear",null,"月\nMonth",null,"日\nDay",null,""]
[194,null,{"$f":"IF(B214<>\"\",VLOOKUP(B214,表示シート制御マスタ!B:C,2,FALSE), \"\")","v":""},null,"年\nYear",null,"月\nMonth",null,"日\nDay",null,null,null,null,null,null,null,null,null,"年\nYear",null,"月\nMonth",null,"日\nDay",null,""]
[195,null,{"$f":"IF(B215<>\"\",VLOOKUP(B215,表示シート制御マスタ!B:C,2,FALSE), \"\")","v":""},null,"年\nYear",null,"月\nMonth",null,"日\nDay",null,null,null,null,null,null,null,null,null,"年\nYear",null,"月\nMonth",null,"日\nDay",null,""]
[{"$f":"A215+1","v":196},null,{"$f":"IF(B216<>\"\",VLOOKUP(B216,表示シート制御マスタ!B:C,2,FALSE), \"\")","v":""},null,"年\nYear",null,"月\nMonth",null,"日\nDay",null,null,null,null,null,null,null,null,null,"年\nYear",null,"月\nMonth",null,"日\nDay",null,""]
[197,null,{"$f":"IF(B217<>\"\",VLOOKUP(B217,表示シート制御マスタ!B:C,2,FALSE), \"\")","v":""},null,"年\nYear",null,"月\nMonth",null,"日\nDay",null,null,null,null,null,null,null,null,null,"年\nYear",null,"月\nMonth",null,"日\nDay",null,""]
[198,null,{"$f":"IF(B218<>\"\",VLOOKUP(B218,表示シート制御マスタ!B:C,2,FALSE), \"\")","v":""},null,"年\nYear",null,"月\nMonth",null,"日\nDay",null,null,null,null,null,null,null,null,null,"年\nYear",null,"月\nMonth",null,"日\nDay",null,""]
[199,null,{"$f":"IF(B219<>\"\",VLOOKUP(B219,表示シート制御マスタ!B:C,2,FALSE), \"\")","v":""},null,"年\nYear",null,"月\nMonth",null,"日\nDay",null,null,null,null,null,null,null,null,null,"年\nYear",null,"月\nMonth",null,"日\nDay",null,""]
[200,null,{"$f":"IF(B220<>\"\",VLOOKUP(B220,表示シート制御マスタ!B:C,2,FALSE), \"\")","v":""},null,"年\nYear",null,"月\nMonth",null,"日\nDay",null,null,null,null,null,null,null,null,null,"年\nYear",null,"月\nMonth",null,"日\nDay",null,""]
[201,null,{"$f":"IF(B221<>\"\",VLOOKUP(B221,表示シート制御マスタ!B:C,2,FALSE), \"\")","v":""},null,"年\nYear",null,"月\nMonth",null,"日\nDay",null,null,null,null,null,null,null,null,null,"年\nYear",null,"月\nMonth",null,"日\nDay",null,""]
[202,null,{"$f":"IF(B222<>\"\",VLOOKUP(B222,表示シート制御マスタ!B:C,2,FALSE), \"\")","v":""},null,"年\nYear",null,"月\nMonth",null,"日\nDay",null,null,null,null,null,null,null,null,null,"年\nYear",null,"月\nMonth",null,"日\nDay",null,""]
[203,null,{"$f":"IF(B223<>\"\",VLOOKUP(B223,表示シート制御マスタ!B:C,2,FALSE), \"\")","v":""},null,"年\nYear",null,"月\nMonth",null,"日\nDay",null,null,null,null,null,null,null,null,null,"年\nYear",null,"月\nMonth",null,"日\nDay",null,""]
[204,null,{"$f":"IF(B224<>\"\",VLOOKUP(B224,表示シート制御マスタ!B:C,2,FALSE), \"\")","v":""},null,"年\nYear",null,"月\nMonth",null,"日\nDay",null,null,null,null,null,null,null,null,null,"年\nYear",null,"月\nMonth",null,"日\nDay",null,""]
[205,null,{"$f":"IF(B225<>\"\",VLOOKUP(B225,表示シート制御マスタ!B:C,2,FALSE), \"\")","v":""},null,"年\nYear",null,"月\nMonth",null,"日\nDay",null,null,null,null,null,null,null,null,null,"年\nYear",null,"月\nMonth",null,"日\nDay",null,""]
[206,null,{"$f":"IF(B226<>\"\",VLOOKUP(B226,表示シート制御マスタ!B:C,2,FALSE), \"\")","v":""},null,"年\nYear",null,"月\nMonth",null,"日\nDay",null,null,null,null,null,null,null,null,null,"年\nYear",null,"月\nMonth",null,"日\nDay",null,""]
[207,null,{"$f":"IF(B227<>\"\",VLOOKUP(B227,表示シート制御マスタ!B:C,2,FALSE), \"\")","v":""},null,"年\nYear",null,"月\nMonth",null,"日\nDay",null,null,null,null,null,null,null,null,null,"年\nYear",null,"月\nMonth",null,"日\nDay",null,""]
[208,null,{"$f":"IF(B228<>\"\",VLOOKUP(B228,表示シート制御マスタ!B:C,2,FALSE), \"\")","v":""},null,"年\nYear",null,"月\nMonth",null,"日\nDay",null,null,null,null,null,null,null,null,null,"年\nYear",null,"月\nMonth",null,"日\nDay",null,""]
[209,null,{"$f":"IF(B229<>\"\",VLOOKUP(B229,表示シート制御マスタ!B:C,2,FALSE), \"\")","v":""},null,"年\nYear",null,"月\nMonth",null,"日\nDay",null,null,null,null,null,null,null,null,null,"年\nYear",null,"月\nMonth",null,"日\nDay",null,""]
[210,null,{"$f":"IF(B230<>\"\",VLOOKUP(B230,表示シート制御マスタ!B:C,2,FALSE), \"\")","v":""},null,"年\nYear",null,"月\nMonth",null,"日\nDay",null,null,null,null,null,null,null,null,null,"年\nYear",null,"月\nMonth",null,"日\nDay",null,""]
[211,null,{"$f":"IF(B231<>\"\",VLOOKUP(B231,表示シート制御マスタ!B:C,2,FALSE), \"\")","v":""},null,"年\nYear",null,"月\nMonth",null,"日\nDay",null,null,null,null,null,null,null,null,null,"年\nYear",null,"月\nMonth",null,"日\nDay",null,""]
[212,null,{"$f":"IF(B232<>\"\",VLOOKUP(B232,表示シート制御マスタ!B:C,2,FALSE), \"\")","v":""},null,"年\nYear",null,"月\nMonth",null,"日\nDay",null,null,null,null,null,null,null,null,null,"年\nYear",null,"月\nMonth",null,"日\nDay",null,""]
[213,null,{"$f":"IF(B233<>\"\",VLOOKUP(B233,表示シート制御マスタ!B:C,2,FALSE), \"\")","v":""},null,"年\nYear",null,"月\nMonth",null,"日\nDay",null,null,null,null,null,null,null,null,null,"年\nYear",null,"月\nMonth",null,"日\nDay",null,""]
[214,null,{"$f":"IF(B234<>\"\",VLOOKUP(B234,表示シート制御マスタ!B:C,2,FALSE), \"\")","v":""},null,"年\nYear",null,"月\nMonth",null,"日\nDay",null,null,null,null,null,null,null,null,null,"年\nYear",null,"月\nMonth",null,"日\nDay",null,""]
[215,null,{"$f":"IF(B235<>\"\",VLOOKUP(B235,表示シート制御マスタ!B:C,2,FALSE), \"\")","v":""},null,"年\nYear",null,"月\nMonth",null,"日\nDay",null,null,null,null,null,null,null,null,null,"年\nYear",null,"月\nMonth",null,"日\nDay",null,""]
[216,null,{"$f":"IF(B236<>\"\",VLOOKUP(B236,表示シート制御マスタ!B:C,2,FALSE), \"\")","v":""},null,"年\nYear",null,"月\nMonth",null,"日\nDay",null,null,null,null,null,null,null,null,null,"年\nYear",null,"月\nMonth",null,"日\nDay",null,""]
[217,null,{"$f":"IF(B237<>\"\",VLOOKUP(B237,表示シート制御マスタ!B:C,2,FALSE), \"\")","v":""},null,"年\nYear",null,"月\nMonth",null,"日\nDay",null,null,null,null,null,null,null,null,null,"年\nYear",null,"月\nMonth",null,"日\nDay",null,""]
[218,null,{"$f":"IF(B238<>\"\",VLOOKUP(B238,表示シート制御マスタ!B:C,2,FALSE), \"\")","v":""},null,"年\nYear",null,"月\nMonth",null,"日\nDay",null,null,null,null,null,null,null,null,null,"年\nYear",null,"月\nMonth",null,"日\nDay",null,""]
[219,null,{"$f":"IF(B239<>\"\",VLOOKUP(B239,表示シート制御マスタ!B:C,2,FALSE), \"\")","v":""},null,"年\nYear",null,"月\nMonth",null,"日\nDay",null,null,null,null,null,null,null,null,null,"年\nYear",null,"月\nMonth",null,"日\nDay",null,""]
[220,null,{"$f":"IF(B240<>\"\",VLOOKUP(B240,表示シート制御マスタ!B:C,2,FALSE), \"\")","v":""},null,"年\nYear",null,"月\nMonth",null,"日\nDay",null,null,null,null,null,null,null,null,null,"年\nYear",null,"月\nMonth",null,"日\nDay",null,""]
[221,null,{"$f":"IF(B241<>\"\",VLOOKUP(B241,表示シート制御マスタ!B:C,2,FALSE), \"\")","v":""},null,"年\nYear",null,"月\nMonth",null,"日\nDay",null,null,null,null,null,null,null,null,null,"年\nYear",null,"月\nMonth",null,"日\nDay",null,""]
[222,null,{"$f":"IF(B242<>\"\",VLOOKUP(B242,表示シート制御マスタ!B:C,2,FALSE), \"\")","v":""},null,"年\nYear",null,"月\nMonth",null,"日\nDay",null,null,null,null,null,null,null,null,null,"年\nYear",null,"月\nMonth",null,"日\nDay",null,""]
[223,null,{"$f":"IF(B243<>\"\",VLOOKUP(B243,表示シート制御マスタ!B:C,2,FALSE), \"\")","v":""},null,"年\nYear",null,"月\nMonth",null,"日\nDay",null,null,null,null,null,null,null,null,null,"年\nYear",null,"月\nMonth",null,"日\nDay",null,""]
[224,null,{"$f":"IF(B244<>\"\",VLOOKUP(B244,表示シート制御マスタ!B:C,2,FALSE), \"\")","v":""},null,"年\nYear",null,"月\nMonth",null,"日\nDay",null,null,null,null,null,null,null,null,null,"年\nYear",null,"月\nMonth",null,"日\nDay",null,""]
[225,null,{"$f":"IF(B245<>\"\",VLOOKUP(B245,表示シート制御マスタ!B:C,2,FALSE), \"\")","v":""},null,"年\nYear",null,"月\nMonth",null,"日\nDay",null,null,null,null,null,null,null,null,null,"年\nYear",null,"月\nMonth",null,"日\nDay",null,""]
[226,null,{"$f":"IF(B246<>\"\",VLOOKUP(B246,表示シート制御マスタ!B:C,2,FALSE), \"\")","v":""},null,"年\nYear",null,"月\nMonth",null,"日\nDay",null,null,null,null,null,null,null,null,null,"年\nYear",null,"月\nMonth",null,"日\nDay",null,""]
[227,null,{"$f":"IF(B247<>\"\",VLOOKUP(B247,表示シート制御マスタ!B:C,2,FALSE), \"\")","v":""},null,"年\nYear",null,"月\nMonth",null,"日\nDay",null,null,null,null,null,null,null,null,null,"年\nYear",null,"月\nMonth",null,"日\nDay",null,""]
[228,null,{"$f":"IF(B248<>\"\",VLOOKUP(B248,表示シート制御マスタ!B:C,2,FALSE), \"\")","v":""},null,"年\nYear",null,"月\nMonth",null,"日\nDay",null,null,null,null,null,null,null,null,null,"年\nYear",null,"月\nMonth",null,"日\nDay",null,""]
[229,null,{"$f":"IF(B249<>\"\",VLOOKUP(B249,表示シート制御マスタ!B:C,2,FALSE), \"\")","v":""},null,"年\nYear",null,"月\nMonth",null,"日\nDay",null,null,null,null,null,null,null,null,null,"年\nYear",null,"月\nMonth",null,"日\nDay",null,""]
[230,null,{"$f":"IF(B250<>\"\",VLOOKUP(B250,表示シート制御マスタ!B:C,2,FALSE), \"\")","v":""},null,"年\nYear",null,"月\nMonth",null,"日\nDay",null,null,null,null,null,null,null,null,null,"年\nYear",null,"月\nMonth",null,"日\nDay",null,""]
[231,null,{"$f":"IF(B251<>\"\",VLOOKUP(B251,表示シート制御マスタ!B:C,2,FALSE), \"\")","v":""},null,"年\nYear",null,"月\nMonth",null,"日\nDay",null,null,null,null,null,null,null,null,null,"年\nYear",null,"月\nMonth",null,"日\nDay",null,""]
[232,null,{"$f":"IF(B252<>\"\",VLOOKUP(B252,表示シート制御マスタ!B:C,2,FALSE), \"\")","v":""},null,"年\nYear",null,"月\nMonth",null,"日\nDay",null,null,null,null,null,null,null,null,null,"年\nYear",null,"月\nMonth",null,"日\nDay",null,""]
[233,null,{"$f":"IF(B253<>\"\",VLOOKUP(B253,表示シート制御マスタ!B:C,2,FALSE), \"\")","v":""},null,"年\nYear",null,"月\nMonth",null,"日\nDay",null,null,null,null,null,null,null,null,null,"年\nYear",null,"月\nMonth",null,"日\nDay",null,""]
[234,null,{"$f":"IF(B254<>\"\",VLOOKUP(B254,表示シート制御マスタ!B:C,2,FALSE), \"\")","v":""},null,"年\nYear",null,"月\nMonth",null,"日\nDay",null,null,null,null,null,null,null,null,null,"年\nYear",null,"月\nMonth",null,"日\nDay",null,""]
[235,null,{"$f":"IF(B255<>\"\",VLOOKUP(B255,表示シート制御マスタ!B:C,2,FALSE), \"\")","v":""},null,"年\nYear",null,"月\nMonth",null,"日\nDay",null,null,null,null,null,null,null,null,null,"年\nYear",null,"月\nMonth",null,"日\nDay",null,""]
[236,null,{"$f":"IF(B256<>\"\",VLOOKUP(B256,表示シート制御マスタ!B:C,2,FALSE), \"\")","v":""},null,"年\nYear",null,"月\nMonth",null,"日\nDay",null,null,null,null,null,null,null,null,null,"年\nYear",null,"月\nMonth",null,"日\nDay",null,""]
[237,null,{"$f":"IF(B257<>\"\",VLOOKUP(B257,表示シート制御マスタ!B:C,2,FALSE), \"\")","v":""},null,"年\nYear",null,"月\nMonth",null,"日\nDay",null,null,null,null,null,null,null,null,null,"年\nYear",null,"月\nMonth",null,"日\nDay",null,""]
[238,null,{"$f":"IF(B258<>\"\",VLOOKUP(B258,表示シート制御マスタ!B:C,2,FALSE), \"\")","v":""},null,"年\nYear",null,"月\nMonth",null,"日\nDay",null,null,null,null,null,null,null,null,null,"年\nYear",null,"月\nMonth",null,"日\nDay",null,""]
[239,null,{"$f":"IF(B259<>\"\",VLOOKUP(B259,表示シート制御マスタ!B:C,2,FALSE), \"\")","v":""},null,"年\nYear",null,"月\nMonth",null,"日\nDay",null,null,null,null,null,null,null,null,null,"年\nYear",null,"月\nMonth",null,"日\nDay",null,""]
[240,null,{"$f":"IF(B260<>\"\",VLOOKUP(B260,表示シート制御マスタ!B:C,2,FALSE), \"\")","v":""},null,"年\nYear",null,"月\nMonth",null,"日\nDay",null,null,null,null,null,null,null,null,null,"年\nYear",null,"月\nMonth",null,"日\nDay",null,""]
[241,null,{"$f":"IF(B261<>\"\",VLOOKUP(B261,表示シート制御マスタ!B:C,2,FALSE), \"\")","v":""},null,"年\nYear",null,"月\nMonth",null,"日\nDay",null,null,null,null,null,null,null,null,null,"年\nYear",null,"月\nMonth",null,"日\nDay",null,""]
[242,null,{"$f":"IF(B262<>\"\",VLOOKUP(B262,表示シート制御マスタ!B:C,2,FALSE), \"\")","v":""},null,"年\nYear",null,"月\nMonth",null,"日\nDay",null,null,null,null,null,null,null,null,null,"年\nYear",null,"月\nMonth",null,"日\nDay",null,""]
[243,null,{"$f":"IF(B263<>\"\",VLOOKUP(B263,表示シート制御マスタ!B:C,2,FALSE), \"\")","v":""},null,"年\nYear",null,"月\nMonth",null,"日\nDay",null,null,null,null,null,null,null,null,null,"年\nYear",null,"月\nMonth",null,"日\nDay",null,""]
[244,null,{"$f":"IF(B264<>\"\",VLOOKUP(B264,表示シート制御マスタ!B:C,2,FALSE), \"\")","v":""},null,"年\nYear",null,"月\nMonth",null,"日\nDay",null,null,null,null,null,null,null,null,null,"年\nYear",null,"月\nMonth",null,"日\nDay",null,""]
[245,null,{"$f":"IF(B265<>\"\",VLOOKUP(B265,表示シート制御マスタ!B:C,2,FALSE), \"\")","v":""},null,"年\nYear",null,"月\nMonth",null,"日\nDay",null,null,null,null,null,null,null,null,null,"年\nYear",null,"月\nMonth",null,"日\nDay",null,""]
[246,null,{"$f":"IF(B266<>\"\",VLOOKUP(B266,表示シート制御マスタ!B:C,2,FALSE), \"\")","v":""},null,"年\nYear",null,"月\nMonth",null,"日\nDay",null,null,null,null,null,null,null,null,null,"年\nYear",null,"月\nMonth",null,"日\nDay",null,""]
[247,null,{"$f":"IF(B267<>\"\",VLOOKUP(B267,表示シート制御マスタ!B:C,2,FALSE), \"\")","v":""},null,"年\nYear",null,"月\nMonth",null,"日\nDay",null,null,null,null,null,null,null,null,null,"年\nYear",null,"月\nMonth",null,"日\nDay",null,""]
[248,null,{"$f":"IF(B268<>\"\",VLOOKUP(B268,表示シート制御マスタ!B:C,2,FALSE), \"\")","v":""},null,"年\nYear",null,"月\nMonth",null,"日\nDay",null,null,null,null,null,null,null,null,null,"年\nYear",null,"月\nMonth",null,"日\nDay",null,""]
[249,null,{"$f":"IF(B269<>\"\",VLOOKUP(B269,表示シート制御マスタ!B:C,2,FALSE), \"\")","v":""},null,"年\nYear",null,"月\nMonth",null,"日\nDay",null,null,null,null,null,null,null,null,null,"年\nYear",null,"月\nMonth",null,"日\nDay",null,""]
[250,null,{"$f":"IF(B270<>\"\",VLOOKUP(B270,表示シート制御マスタ!B:C,2,FALSE), \"\")","v":""},null,"年\nYear",null,"月\nMonth",null,"日\nDay",null,null,null,null,null,null,null,null,null,"年\nYear",null,"月\nMonth",null,"日\nDay",null,""]
[251,null,{"$f":"IF(B271<>\"\",VLOOKUP(B271,表示シート制御マスタ!B:C,2,FALSE), \"\")","v":""},null,"年\nYear",null,"月\nMonth",null,"日\nDay",null,null,null,null,null,null,null,null,null,"年\nYear",null,"月\nMonth",null,"日\nDay",null,""]
[252,null,{"$f":"IF(B272<>\"\",VLOOKUP(B272,表示シート制御マスタ!B:C,2,FALSE), \"\")","v":""},null,"年\nYear",null,"月\nMonth",null,"日\nDay",null,null,null,null,null,null,null,null,null,"年\nYear",null,"月\nMonth",null,"日\nDay",null,""]
[253,null,{"$f":"IF(B273<>\"\",VLOOKUP(B273,表示シート制御マスタ!B:C,2,FALSE), \"\")","v":""},null,"年\nYear",null,"月\nMonth",null,"日\nDay",null,null,null,null,null,null,null,null,null,"年\nYear",null,"月\nMonth",null,"日\nDay",null,""]
[254,null,{"$f":"IF(B274<>\"\",VLOOKUP(B274,表示シート制御マスタ!B:C,2,FALSE), \"\")","v":""},null,"年\nYear",null,"月\nMonth",null,"日\nDay",null,null,null,null,null,null,null,null,null,"年\nYear",null,"月\nMonth",null,"日\nDay",null,""]
[255,null,{"$f":"IF(B275<>\"\",VLOOKUP(B275,表示シート制御マスタ!B:C,2,FALSE), \"\")","v":""},null,"年\nYear",null,"月\nMonth",null,"日\nDay",null,null,null,null,null,null,null,null,null,"年\nYear",null,"月\nMonth",null,"日\nDay",null,""]
[256,null,{"$f":"IF(B276<>\"\",VLOOKUP(B276,表示シート制御マスタ!B:C,2,FALSE), \"\")","v":""},null,"年\nYear",null,"月\nMonth",null,"日\nDay",null,null,null,null,null,null,null,null,null,"年\nYear",null,"月\nMonth",null,"日\nDay",null,""]
[257,null,{"$f":"IF(B277<>\"\",VLOOKUP(B277,表示シート制御マスタ!B:C,2,FALSE), \"\")","v":""},null,"年\nYear",null,"月\nMonth",null,"日\nDay",null,null,null,null,null,null,null,null,null,"年\nYear",null,"月\nMonth",null,"日\nDay",null,""]
[258,null,{"$f":"IF(B278<>\"\",VLOOKUP(B278,表示シート制御マスタ!B:C,2,FALSE), \"\")","v":""},null,"年\nYear",null,"月\nMonth",null,"日\nDay",null,null,null,null,null,null,null,null,null,"年\nYear",null,"月\nMonth",null,"日\nDay",null,""]
[259,null,{"$f":"IF(B279<>\"\",VLOOKUP(B279,表示シート制御マスタ!B:C,2,FALSE), \"\")","v":""},null,"年\nYear",null,"月\nMonth",null,"日\nDay",null,null,null,null,null,null,null,null,null,"年\nYear",null,"月\nMonth",null,"日\nDay",null,""]
[{"$f":"A279+1","v":260},null,{"$f":"IF(B280<>\"\",VLOOKUP(B280,表示シート制御マスタ!B:C,2,FALSE), \"\")","v":""},null,"年\nYear",null,"月\nMonth",null,"日\nDay",null,null,null,null,null,null,null,null,null,"年\nYear",null,"月\nMonth",null,"日\nDay",null,""]
[261,null,{"$f":"IF(B281<>\"\",VLOOKUP(B281,表示シート制御マスタ!B:C,2,FALSE), \"\")","v":""},null,"年\nYear",null,"月\nMonth",null,"日\nDay",null,null,null,null,null,null,null,null,null,"年\nYear",null,"月\nMonth",null,"日\nDay",null,""]
[262,null,{"$f":"IF(B282<>\"\",VLOOKUP(B282,表示シート制御マスタ!B:C,2,FALSE), \"\")","v":""},null,"年\nYear",null,"月\nMonth",null,"日\nDay",null,null,null,null,null,null,null,null,null,"年\nYear",null,"月\nMonth",null,"日\nDay",null,""]
[263,null,{"$f":"IF(B283<>\"\",VLOOKUP(B283,表示シート制御マスタ!B:C,2,FALSE), \"\")","v":""},null,"年\nYear",null,"月\nMonth",null,"日\nDay",null,null,null,null,null,null,null,null,null,"年\nYear",null,"月\nMonth",null,"日\nDay",null,""]
[264,null,{"$f":"IF(B284<>\"\",VLOOKUP(B284,表示シート制御マスタ!B:C,2,FALSE), \"\")","v":""},null,"年\nYear",null,"月\nMonth",null,"日\nDay",null,null,null,null,null,null,null,null,null,"年\nYear",null,"月\nMonth",null,"日\nDay",null,""]
[265,null,{"$f":"IF(B285<>\"\",VLOOKUP(B285,表示シート制御マスタ!B:C,2,FALSE), \"\")","v":""},null,"年\nYear",null,"月\nMonth",null,"日\nDay",null,null,null,null,null,null,null,null,null,"年\nYear",null,"月\nMonth",null,"日\nDay",null,""]
[266,null,{"$f":"IF(B286<>\"\",VLOOKUP(B286,表示シート制御マスタ!B:C,2,FALSE), \"\")","v":""},null,"年\nYear",null,"月\nMonth",null,"日\nDay",null,null,null,null,null,null,null,null,null,"年\nYear",null,"月\nMonth",null,"日\nDay",null,""]
[267,null,{"$f":"IF(B287<>\"\",VLOOKUP(B287,表示シート制御マスタ!B:C,2,FALSE), \"\")","v":""},null,"年\nYear",null,"月\nMonth",null,"日\nDay",null,null,null,null,null,null,null,null,null,"年\nYear",null,"月\nMonth",null,"日\nDay",null,""]
[268,null,{"$f":"IF(B288<>\"\",VLOOKUP(B288,表示シート制御マスタ!B:C,2,FALSE), \"\")","v":""},null,"年\nYear",null,"月\nMonth",null,"日\nDay",null,null,null,null,null,null,null,null,null,"年\nYear",null,"月\nMonth",null,"日\nDay",null,""]
[269,null,{"$f":"IF(B289<>\"\",VLOOKUP(B289,表示シート制御マスタ!B:C,2,FALSE), \"\")","v":""},null,"年\nYear",null,"月\nMonth",null,"日\nDay",null,null,null,null,null,null,null,null,null,"年\nYear",null,"月\nMonth",null,"日\nDay",null,""]
[270,null,{"$f":"IF(B290<>\"\",VLOOKUP(B290,表示シート制御マスタ!B:C,2,FALSE), \"\")","v":""},null,"年\nYear",null,"月\nMonth",null,"日\nDay",null,null,null,null,null,null,null,null,null,"年\nYear",null,"月\nMonth",null,"日\nDay",null,""]
[271,null,{"$f":"IF(B291<>\"\",VLOOKUP(B291,表示シート制御マスタ!B:C,2,FALSE), \"\")","v":""},null,"年\nYear",null,"月\nMonth",null,"日\nDay",null,null,null,null,null,null,null,null,null,"年\nYear",null,"月\nMonth",null,"日\nDay",null,""]
[272,null,{"$f":"IF(B292<>\"\",VLOOKUP(B292,表示シート制御マスタ!B:C,2,FALSE), \"\")","v":""},null,"年\nYear",null,"月\nMonth",null,"日\nDay",null,null,null,null,null,null,null,null,null,"年\nYear",null,"月\nMonth",null,"日\nDay",null,""]
[273,null,{"$f":"IF(B293<>\"\",VLOOKUP(B293,表示シート制御マスタ!B:C,2,FALSE), \"\")","v":""},null,"年\nYear",null,"月\nMonth",null,"日\nDay",null,null,null,null,null,null,null,null,null,"年\nYear",null,"月\nMonth",null,"日\nDay",null,""]
[274,null,{"$f":"IF(B294<>\"\",VLOOKUP(B294,表示シート制御マスタ!B:C,2,FALSE), \"\")","v":""},null,"年\nYear",null,"月\nMonth",null,"日\nDay",null,null,null,null,null,null,null,null,null,"年\nYear",null,"月\nMonth",null,"日\nDay",null,""]
[275,null,{"$f":"IF(B295<>\"\",VLOOKUP(B295,表示シート制御マスタ!B:C,2,FALSE), \"\")","v":""},null,"年\nYear",null,"月\nMonth",null,"日\nDay",null,null,null,null,null,null,null,null,null,"年\nYear",null,"月\nMonth",null,"日\nDay",null,""]
[276,null,{"$f":"IF(B296<>\"\",VLOOKUP(B296,表示シート制御マスタ!B:C,2,FALSE), \"\")","v":""},null,"年\nYear",null,"月\nMonth",null,"日\nDay",null,null,null,null,null,null,null,null,null,"年\nYear",null,"月\nMonth",null,"日\nDay",null,""]
[277,null,{"$f":"IF(B297<>\"\",VLOOKUP(B297,表示シート制御マスタ!B:C,2,FALSE), \"\")","v":""},null,"年\nYear",null,"月\nMonth",null,"日\nDay",null,null,null,null,null,null,null,null,null,"年\nYear",null,"月\nMonth",null,"日\nDay",null,""]
[278,null,{"$f":"IF(B298<>\"\",VLOOKUP(B298,表示シート制御マスタ!B:C,2,FALSE), \"\")","v":""},null,"年\nYear",null,"月\nMonth",null,"日\nDay",null,null,null,null,null,null,null,null,null,"年\nYear",null,"月\nMonth",null,"日\nDay",null,""]
[279,null,{"$f":"IF(B299<>\"\",VLOOKUP(B299,表示シート制御マスタ!B:C,2,FALSE), \"\")","v":""},null,"年\nYear",null,"月\nMonth",null,"日\nDay",null,null,null,null,null,null,null,null,null,"年\nYear",null,"月\nMonth",null,"日\nDay",null,""]
[280,null,{"$f":"IF(B300<>\"\",VLOOKUP(B300,表示シート制御マスタ!B:C,2,FALSE), \"\")","v":""},null,"年\nYear",null,"月\nMonth",null,"日\nDay",null,null,null,null,null,null,null,null,null,"年\nYear",null,"月\nMonth",null,"日\nDay",null,""]
[281,null,{"$f":"IF(B301<>\"\",VLOOKUP(B301,表示シート制御マスタ!B:C,2,FALSE), \"\")","v":""},null,"年\nYear",null,"月\nMonth",null,"日\nDay",null,null,null,null,null,null,null,null,null,"年\nYear",null,"月\nMonth",null,"日\nDay",null,""]
[282,null,{"$f":"IF(B302<>\"\",VLOOKUP(B302,表示シート制御マスタ!B:C,2,FALSE), \"\")","v":""},null,"年\nYear",null,"月\nMonth",null,"日\nDay",null,null,null,null,null,null,null,null,null,"年\nYear",null,"月\nMonth",null,"日\nDay",null,""]
[283,null,{"$f":"IF(B303<>\"\",VLOOKUP(B303,表示シート制御マスタ!B:C,2,FALSE), \"\")","v":""},null,"年\nYear",null,"月\nMonth",null,"日\nDay",null,null,null,null,null,null,null,null,null,"年\nYear",null,"月\nMonth",null,"日\nDay",null,""]
[284,null,{"$f":"IF(B304<>\"\",VLOOKUP(B304,表示シート制御マスタ!B:C,2,FALSE), \"\")","v":""},null,"年\nYear",null,"月\nMonth",null,"日\nDay",null,null,null,null,null,null,null,null,null,"年\nYear",null,"月\nMonth",null,"日\nDay",null,""]
[285,null,{"$f":"IF(B305<>\"\",VLOOKUP(B305,表示シート制御マスタ!B:C,2,FALSE), \"\")","v":""},null,"年\nYear",null,"月\nMonth",null,"日\nDay",null,null,null,null,null,null,null,null,null,"年\nYear",null,"月\nMonth",null,"日\nDay",null,""]
[286,null,{"$f":"IF(B306<>\"\",VLOOKUP(B306,表示シート制御マスタ!B:C,2,FALSE), \"\")","v":""},null,"年\nYear",null,"月\nMonth",null,"日\nDay",null,null,null,null,null,null,null,null,null,"年\nYear",null,"月\nMonth",null,"日\nDay",null,""]
[287,null,{"$f":"IF(B307<>\"\",VLOOKUP(B307,表示シート制御マスタ!B:C,2,FALSE), \"\")","v":""},null,"年\nYear",null,"月\nMonth",null,"日\nDay",null,null,null,null,null,null,null,null,null,"年\nYear",null,"月\nMonth",null,"日\nDay",null,""]
[288,null,{"$f":"IF(B308<>\"\",VLOOKUP(B308,表示シート制御マスタ!B:C,2,FALSE), \"\")","v":""},null,"年\nYear",null,"月\nMonth",null,"日\nDay",null,null,null,null,null,null,null,null,null,"年\nYear",null,"月\nMonth",null,"日\nDay",null,""]
[289,null,{"$f":"IF(B309<>\"\",VLOOKUP(B309,表示シート制御マスタ!B:C,2,FALSE), \"\")","v":""},null,"年\nYear",null,"月\nMonth",null,"日\nDay",null,null,null,null,null,null,null,null,null,"年\nYear",null,"月\nMonth",null,"日\nDay",null,""]
[290,null,{"$f":"IF(B310<>\"\",VLOOKUP(B310,表示シート制御マスタ!B:C,2,FALSE), \"\")","v":""},null,"年\nYear",null,"月\nMonth",null,"日\nDay",null,null,null,null,null,null,null,null,null,"年\nYear",null,"月\nMonth",null,"日\nDay",null,""]
[291,null,{"$f":"IF(B311<>\"\",VLOOKUP(B311,表示シート制御マスタ!B:C,2,FALSE), \"\")","v":""},null,"年\nYear",null,"月\nMonth",null,"日\nDay",null,null,null,null,null,null,null,null,null,"年\nYear",null,"月\nMonth",null,"日\nDay",null,""]
[292,null,{"$f":"IF(B312<>\"\",VLOOKUP(B312,表示シート制御マスタ!B:C,2,FALSE), \"\")","v":""},null,"年\nYear",null,"月\nMonth",null,"日\nDay",null,null,null,null,null,null,null,null,null,"年\nYear",null,"月\nMonth",null,"日\nDay",null,""]
[293,null,{"$f":"IF(B313<>\"\",VLOOKUP(B313,表示シート制御マスタ!B:C,2,FALSE), \"\")","v":""},null,"年\nYear",null,"月\nMonth",null,"日\nDay",null,null,null,null,null,null,null,null,null,"年\nYear",null,"月\nMonth",null,"日\nDay",null,""]
[294,null,{"$f":"IF(B314<>\"\",VLOOKUP(B314,表示シート制御マスタ!B:C,2,FALSE), \"\")","v":""},null,"年\nYear",null,"月\nMonth",null,"日\nDay",null,null,null,null,null,null,null,null,null,"年\nYear",null,"月\nMonth",null,"日\nDay",null,""]
[295,null,{"$f":"IF(B315<>\"\",VLOOKUP(B315,表示シート制御マスタ!B:C,2,FALSE), \"\")","v":""},null,"年\nYear",null,"月\nMonth",null,"日\nDay",null,null,null,null,null,null,null,null,null,"年\nYear",null,"月\nMonth",null,"日\nDay",null,""]
[296,null,{"$f":"IF(B316<>\"\",VLOOKUP(B316,表示シート制御マスタ!B:C,2,FALSE), \"\")","v":""},null,"年\nYear",null,"月\nMonth",null,"日\nDay",null,null,null,null,null,null,null,null,null,"年\nYear",null,"月\nMonth",null,"日\nDay",null,""]
[297,null,{"$f":"IF(B317<>\"\",VLOOKUP(B317,表示シート制御マスタ!B:C,2,FALSE), \"\")","v":""},null,"年\nYear",null,"月\nMonth",null,"日\nDay",null,null,null,null,null,null,null,null,null,"年\nYear",null,"月\nMonth",null,"日\nDay",null,""]
[298,null,{"$f":"IF(B318<>\"\",VLOOKUP(B318,表示シート制御マスタ!B:C,2,FALSE), \"\")","v":""},null,"年\nYear",null,"月\nMonth",null,"日\nDay",null,null,null,null,null,null,null,null,null,"年\nYear",null,"月\nMonth",null,"日\nDay",null,""]
[299,null,{"$f":"IF(B319<>\"\",VLOOKUP(B319,表示シート制御マスタ!B:C,2,FALSE), \"\")","v":""},null,"年\nYear",null,"月\nMonth",null,"日\nDay",null,null,null,null,null,null,null,null,null,"年\nYear",null,"月\nMonth",null,"日\nDay",null,""]
[300,null,{"$f":"IF(B320<>\"\",VLOOKUP(B320,表示シート制御マスタ!B:C,2,FALSE), \"\")","v":""},null,"年\nYear",null,"月\nMonth",null,"日\nDay",null,null,null,null,null,null,null,null,null,"年\nYear",null,"月\nMonth",null,"日\nDay",null,""]

{"sheet":"エラー","index":1,"n_rows":2,"n_cols":4,"rows_kept":2,"cut":false,"hidden":true,"merged":[]}
[]
[null,"シート","セル","エラー内容"]

{"sheet":"列項目TBL_TTL","index":2,"n_rows":4,"n_cols":17,"rows_kept":4,"cut":false,"hidden":true,"merged":[]}
["シート","列位置","列項目名","チェック種別","桁数","桁数一致","必須","業務コード","区切り","改行","CSV出力列番号","リスト連動親シート","リスト連動親列","チェック親列","チェック親値","CSVヘッダ名","定数"]
["-","-","ファイル名称",null,null,null,null,null,null,null,1,null,null,null,null,null,"一括届出ファイル"]
["-","-","一括届出用テンプレートバージョン",null,null,null,null,null,null,null,2,null,null,null,null,null,"1000"]
["-","-","作成日時",null,null,null,null,null,null,null,3,null,null,null,null,null,"[システム日時]"]

{"sheet":"列項目TBL_DATA","index":3,"n_rows":17,"n_cols":17,"rows_kept":17,"cut":false,"hidden":true,"merged":[]}
["シート","列位置","列項目名","チェック種別","桁数","桁数一致","必須","業務コード","区切り","改行","CSV出力列番号","リスト連動親シート","リスト連動親列","チェック親列","チェック親値","CSVヘッダ名","定数"]
["-","-","項番",null,null,null,null,null,null,null,1,null,null,null,null,null,"[項番]"]
["届出(一括)","B","届出の事由",null,null,null,"○","A013",null,null,2]
["届出(一括)","D,F,H","届出の事由発生年月日","半角数字",8,"○","○",null,null,null,3,null,null,"B","受入れの開始（留学） Beginning of acceptance(Student),受入れの終了（留学） Termination of acceptance(Student),受入れの開始（留学以外） Beginning of acceptance(Excluding Student),受入れの終了（留学以外） Termination of acceptance(Excluding Student)"]
["届出(一括)","J","受け入れた中長期在留者が行う活動の内容",null,null,null,"○","C698",null,null,4,null,null,"B","受入れの開始（留学以外） Beginning of acceptance(Excluding Student)"]
["届出(一括)","K","受入れ終了の理由（区分）",null,null,null,"○","A016",null,null,17,null,null,"B","受入れの終了（留学） Termination of acceptance(Student)"]
["届出(一括)","L","受入れ終了の理由（その他の理由）",null,90,null,"○",null,null,null,5,null,null,"K","その他の理由 Other reasons"]
["届出(一括)","M","退学／除籍の理由",null,null,null,"○","A017",null,null,18,null,null,"K","退学／除籍 Leave school/Expulsion"]
["届出(一括)","N","届出の対象者 国籍・地域",null,null,null,"○","CA61",null,null,6]
["届出(一括)","O","届出の対象者 氏名英字","半角スペース，半角英大文字，半角カンマ",104,null,"○",null,null,null,7]
["届出(一括)","Q","届出の対象者 性別",null,null,null,"○","C611",null,null,9]
["届出(一括)","R,T,V","届出の対象者 生年月日","半角数字",8,"○","○",null,null,null,10]
["届出(一括)","X","届出の対象者 住居地（郵便番号）","半角数字",7,"○",null,null,null,null,16]
["届出(一括)","Y","届出の対象者 住居地（都道府県）",null,null,null,"○","CA69_1",null,null,0]
["届出(一括)","Z","届出の対象者 住居地（市区町村）",null,null,null,"○","CA69",null,null,11,"届出(一括)","Y"]
["届出(一括)","AA","届出の対象者 住居地（町名丁目番地号等）","ひらがな，全角カナ，漢字，全角英字，全角数字，全角記号",80,null,"○",null,null,null,12]
["届出(一括)","AB","届出の対象者 在留カード番号","半角英字，半角数字",12,"○","○",null,null,null,13]

{"sheet":"表示シート制御マスタ","index":4,"n_rows":7,"n_cols":3,"rows_kept":7,"cut":false,"hidden":true,"merged":[]}
[null,"届出の事由","事由発生日種別"]
[null,"受入れの開始（留学） Beginning of acceptance(Student)","開始年月日\nDate of start of acceptance"]
[null,"受入れの終了（留学） Termination of acceptance(Student)","終了年月日\nDate of end of acceptance"]
[null,"受入れの開始（留学以外） Beginning of acceptance(Excluding Student)","開始年月日\nDate of start of acceptance"]
[null,"受入れの終了（留学以外） Termination of acceptance(Excluding Student)","終了年月日\nDate of end of acceptance"]
[null,"５月１日の受入状況 Acceptance status as of May 1"," "]
[null,"１１月１日の受入状況 Acceptance status as of November 1"," "]

{"sheet":"マスタ","index":5,"n_rows":1913,"n_cols":17,"rows_kept":1913,"cut":false,"hidden":true,"merged":[]}
[null,"A013",null,"C698",null,"A016",null,"A017",null,"CA61",null,"C611",null,"CA69_1",null,"CA69"]
[null,"届出の事由","コード","活動の内容","コード","退学／除籍の理由","コード","受入れ終了の理由","コード","電子届出用国籍コード","コード","性別コード","コード","住所コード","コード","電子届出用住所コード","コード"]
[null,"受入れの開始（留学） Beginning of acceptance(Student)","88","技術開発（農林水産分野） Technology development (agriculture, forestry and fisheries field)","22","卒業 Graduation","1","更新不許可 Extension not allowed","01","中国 People's Republic of China","039","男\nMale","1","北海道","010006","札幌市中央区","011011"]
[null,"受入れの終了（留学） Termination of acceptance(Student)","87","技術開発（食品分野） Technology development (food product field)","23","退学／除籍 Leave school/Expulsion","2","所在不明 Unknown location","02","ベトナム Viet Nam","283","女\nFemale","2","青森県","020001","札幌市北区","011029"]
[null,"受入れの開始（留学以外） Beginning of acceptance(Excluding Student)","90","技術開発（機械器具分野） Technology development (machinery and equipment field)","24","その他の理由 Other reasons","3","学費未納 Unpaid tuition fees","03","韓国 Republic of Korea","140",null,null,"岩手県","030007","札幌市東区","011037"]
[null,"受入れの終了（留学以外） Termination of acceptance(Excluding Student)","89","技術開発（その他製造分野） Technology development (other manufacturing fields)","25",null,null,"修学不良・素行不良 Not enough academic performance/behavior","04","フィリピン Philippines","204",null,null,"宮城県","040002","札幌市白石区","011045"]
[null,"５月１日の受入状況 Acceptance status as of May 1","51","生産管理（食品分野） Production management (food product field)","26",null,null,"転学 Transfer","05","ブラジル Brazil","012",null,null,"秋田県","050008","札幌市豊平区","011053"]
[null,"１１月１日の受入状況 Acceptance status as of November 1","52","生産管理（機械器具分野） Production management (machinery and equipment field)","27",null,null,"就職 finding employment","06","ネパール Nepal","180",null,null,"山形県","060003","札幌市南区","011061"]
[null,null,null,"生産管理（その他製造分野） Production management (other manufacturing fields)","28",null,null,"帰国（前記を除く。） return to country(Excluding the above.)","07","インドネシア Indonesia","112",null,null,"福島県","070009","札幌市西区","011070"]
[null,null,null,"管理業務（経営者を除く） Management business (excluding the operator)","20",null,null,"その他 Others","08","ミャンマー Myanmar","014",null,null,"茨城県","080004","札幌市厚別区","011088"]
[null,null,null,"調査研究 Research","21",null,null,null,null,"台湾 Taiwan","042",null,null,"栃木県","090000","札幌市手稲区","011096"]
[null,null,null,"情報処理・通信技術 Information processing, communications technicians","30",null,null,null,null,"米国 United States of America","265",null,null,"群馬県","100005","札幌市清田区","011100"]
[null,null,null,"ＣＡＤオペレーション CAD operation","44",null,null,null,null,"アフガニスタン Afghanistan","001",null,null,"埼玉県","110001","函館市","012025"]
[null,null,null,"翻訳・通訳 Translation/Interpretation","38",null,null,null,null,"アルバニア Albania","002",null,null,"千葉県","120006","小樽市","012033"]
[null,null,null,"海外取引業務 Overseas trading business","39",null,null,null,null,"アルジェリア Algeria","003",null,null,"東京都","130001","旭川市","012041"]
[null,null,null,"コピーライティング Copywriting","33",null,null,null,null,"アンドラ Andorra","505",null,null,"新潟県","150002","室蘭市","012050"]
[null,null,null,"編集 Editing","35",null,null,null,null,"アンゴラ Angola","501",null,null,"山梨県","190004","釧路市","012068"]
[null,null,null,"デザイン Designing","36",null,null,null,null,"アンティグア・バーブーダ Antigua and Barbuda","502",null,null,"長野県","200000","帯広市","012076"]
[null,null,null,"企画事務（マーケティング，リサーチ） Planning administration work (marketing, research)","40",null,null,null,null,"アルゼンチン Argentina","004",null,null,"神奈川県","140007","北見市","012084"]
[null,null,null,"企画事務（広報・宣伝） Planning administration work (public relations, advertising)","41",null,null,null,null,"アルメニア Armenia","503",null,null,"富山県","160008","夕張市","012092"]
[null,null,null,"法人営業 Corporate sales","43",null,null,null,null,"オーストラリア Australia","005",null,null,"石川県","170003","岩見沢市","012106"]
[null,null,null,"金融・保険 Finance/Insurance","32",null,null,null,null,"オーストリア Austria","006",null,null,"福井県","180009","網走市","012114"]
[null,null,null,"建築・土木・測量技術 Architecture, civil engineering, surveying technicians","29",null,null,null,null,"アゼルバイジャン Azerbaijan","504",null,null,"岐阜県","210005","留萌市","012122"]
[null,null,null,"法律関係業務 Law-related business","31",null,null,null,null,"バハマ The Bahamas","022",null,null,"静岡県","220001","苫小牧市","012131"]
[null,null,null,"会計事務 Accounting","42",null,null,null,null,"バーレーン Bahrain","015",null,null,"愛知県","230006","稚内市","012149"]
[null,null,null,"記者 Press","47",null,null,null,null,"バングラデシュ Bangladesh","021",null,null,"三重県","240001","美唄市","012157"]
[null,null,null,"報道カメラマン News photographer","48",null,null,null,null,"バルバドス Barbados","018",null,null,"滋賀県","250007","芦別市","012165"]
[null,null,null,"経営（高度専門職） Business(Highly skilled professional)","45",null,null,null,null,"ベラルーシ Belarus","025",null,null,"京都府","260002","江別市","012173"]
[null,null,null,"報道 Journalist","34",null,null,null,null,"ベルギー Belgium","010",null,null,"大阪府","270008","赤平市","012181"]
[null,null,null,"教育（教育機関以外） Education (other than educational institutions)","37",null,null,null,null,"ベリーズ Belize","023",null,null,"兵庫県","280003","紋別市","012190"]
[null,null,null,"調理 Cooking","49",null,null,null,null,"ベナン Benin","060",null,null,"奈良県","290009","士別市","012203"]
[null,null,null,"外国特有の建築技術 Foreign-specific construction technology","50",null,null,null,null,"ブータン Bhutan","016",null,null,"和歌山県","300004","名寄市","012211"]
[null,null,null,"外国特有の製品製造 Foreign-specific product manufacturing","51",null,null,null,null,"ボリビア Bolivia","011",null,null,"鳥取県","310000","三笠市","012220"]
[null,null,null,"宝石・貴金属・毛皮加エ Jewelry, precious metal, fur processing","52",null,null,null,null,"ボスニア・ヘルツェゴビナ Bosnia and Herzegovina","602",null,null,"島根県","320005","根室市","012238"]
[null,null,null,"動物の調教 Training of animals","53",null,null,null,null,"ボツワナ Botswana","019",null,null,"岡山県","330001","千歳市","012246"]
[null,null,null,"石油・地熱等掘削調査 Petroleum and geothermal,etc drilling survery","54",null,null,null,null,"ブルネイ Brunei","024",null,null,"広島県","340006","滝川市","012254"]
[null,null,null,"パイロット Pilot","55",null,null,null,null,"ブルガリア Bulgaria","013",null,null,"山口県","350001","砂川市","012262"]
[null,null,null,"スポーツ指導 Sports instruction","56",null,null,null,null,"ブルキナファソ Burkina Faso","266",null,null,"香川県","370002","歌志内市","012271"]
[null,null,null,"ソムリエ Sommelier","57",null,null,null,null,"ブルンジ Burundi","017",null,null,"愛媛県","380008","深川市","012289"]
[null,null,null,"介護福祉士 Certified careworker","58",null,null,null,null,"カンボジア Cambodia","030",null,null,"徳島県","360007","富良野市","012297"]
[null,null,null,"情報処理・通信技術者 Information processing and communications technician","63",null,null,null,null,"カメルーン Cameroon","032",null,null,"高知県","390003","登別市","012301"]
[null,null,null,"研究 Research","59",null,null,null,null,"カナダ Canada","033",null,null,"福岡県","400009","恵庭市","012319"]
[null,null,null,"研究の指導 Research guidance","60",null,null,null,null,"カーボベルデ Cape Verde","050",null,null,"佐賀県","410004","伊達市","012335"]
[null,null,null,"教育（大学等） Education (university, etc.)","61",null,null,null,null,"中央アフリカ Central Africa","034",null,null,"熊本県","430005","北広島市","012343"]
[null,null,null,"経営（特定研究等活動） Management (designated research activities, etc.)","62",null,null,null,null,"チャド Chad","036",null,null,"長崎県","420000","石狩市","012351"]
[null,null,null,"なし None","46",null,null,null,null,"チリ Chile","037",null,null,"大分県","440001","北斗市","012360"]
[null,null,null,"その他 Others","99",null,null,null,null,"コロンビア Colombia","043",null,null,"宮崎県","450006","石狩郡当別町","013030"]
[null,null,null,null,null,null,null,null,null,"コモロ Comoros","051",null,null,"鹿児島県","460001","石狩郡新篠津村","013048"]
[null,null,null,null,null,null,null,null,null,"コンゴ民主共和国 Democratic Republic of the Congo","045",null,null,"沖縄県","470007","松前郡松前町","013315"]
[null,null,null,null,null,null,null,null,null,"コンゴ共和国 Republic of Congo","044",null,null,null,null,"松前郡福島町","013323"]
[null,null,null,null,null,null,null,null,null,"コスタリカ Costa Rica","046",null,null,null,null,"上磯郡知内町","013331"]
[null,null,null,null,null,null,null,null,null,"コートジボワール Cote d'Ivoire","118",null,null,null,null,"上磯郡木古内町","013340"]
[null,null,null,null,null,null,null,null,null,"クロアチア Croatia","052",null,null,null,null,"亀田郡七飯町","013374"]
[null,null,null,null,null,null,null,null,null,"キューバ Cuba","047",null,null,null,null,"茅部郡鹿部町","013439"]
[null,null,null,null,null,null,null,null,null,"キプロス Cyprus","048",null,null,null,null,"茅部郡森町","013455"]
[null,null,null,null,null,null,null,null,null,"チェコ Czech Republic","053",null,null,null,null,"二海郡八雲町","013463"]
[null,null,null,null,null,null,null,null,null,"デンマーク Denmark","061",null,null,null,null,"山越郡長万部町","013471"]
[null,null,null,null,null,null,null,null,null,"ジブチ Djibouti","063",null,null,null,null,"檜山郡江差町","013617"]
[null,null,null,null,null,null,null,null,null,"ドミニカ Dominica","064",null,null,null,null,"檜山郡上ノ国町","013625"]
[null,null,null,null,null,null,null,null,null,"ドミニカ共和国 Dominican Republic","062",null,null,null,null,"檜山郡厚沢部町","013633"]
[null,null,null,null,null,null,null,null,null,"エクアドル Ecuador","070",null,null,null,null,"爾志郡乙部町","013641"]
[null,null,null,null,null,null,null,null,null,"エジプト Egypt","263",null,null,null,null,"奥尻郡奥尻町","013676"]
[null,null,null,null,null,null,null,null,null,"エルサルバドル El Salvador","071",null,null,null,null,"瀬棚郡今金町","013706"]
[null,null,null,null,null,null,null,null,null,"赤道ギニア Equatorial Guinea","073",null,null,null,null,"久遠郡せたな町","013714"]
[null,null,null,null,null,null,null,null,null,"エリトリア Eritrea","075",null,null,null,null,"島牧郡島牧村","013919"]
[null,null,null,null,null,null,null,null,null,"エストニア Estonia","074",null,null,null,null,"寿都郡寿都町","013927"]
[null,null,null,null,null,null,null,null,null,"エチオピア Ethiopia","072",null,null,null,null,"寿都郡黒松内町","013935"]
[null,null,null,null,null,null,null,null,null,"フィジー Fiji","083",null,null,null,null,"磯谷郡蘭越町","013943"]
[null,null,null,null,null,null,null,null,null,"フィンランド Finland","080",null,null,null,null,"虻田郡ニセコ町","013951"]
[null,null,null,null,null,null,null,null,null,"フランス France","081",null,null,null,null,"虻田郡真狩村","013960"]
[null,null,null,null,null,null,null,null,null,"ガボン Gabon","090",null,null,null,null,"虻田郡留寿都村","013978"]
[null,null,null,null,null,null,null,null,null,"ガンビア The Gambia","097",null,null,null,null,"虻田郡喜茂別町","013986"]
[null,null,null,null,null,null,null,null,null,"ジョージア Georgia","550",null,null,null,null,"虻田郡京極町","013994"]
[null,null,null,null,null,null,null,null,null,"ドイツ Germany","091",null,null,null,null,"虻田郡倶知安町","014001"]
[null,null,null,null,null,null,null,null,null,"ガーナ Ghana","093",null,null,null,null,"岩内郡共和町","014010"]
[null,null,null,null,null,null,null,null,null,"ギリシャ Greece","094",null,null,null,null,"岩内郡岩内町","014028"]
[null,null,null,null,null,null,null,null,null,"グレナダ Grenada","500",null,null,null,null,"古宇郡泊村","014036"]
[null,null,null,null,null,null,null,null,null,"グアテマラ Guatemala","095",null,null,null,null,"古宇郡神恵内村","014044"]
[null,null,null,null,null,null,null,null,null,"ギニア Guinea","096",null,null,null,null,"積丹郡積丹町","014052"]
[null,null,null,null,null,null,null,null,null,"ギニアビサウ Guinea-Bissau","099",null,null,null,null,"古平郡古平町","014061"]
[null,null,null,null,null,null,null,null,null,"ガイアナ Guyana","098",null,null,null,null,"余市郡仁木町","014079"]
[null,null,null,null,null,null,null,null,null,"ハイチ Haiti","100",null,null,null,null,"余市郡余市町","014087"]
[null,null,null,null,null,null,null,null,null,"ホンジュラス Honduras","101",null,null,null,null,"余市郡赤井川村","014095"]
[null,null,null,null,null,null,null,null,null,"ハンガリー Hungary","102",null,null,null,null,"空知郡南幌町","014231"]
[null,null,null,null,null,null,null,null,null,"アイスランド Iceland","110",null,null,null,null,"空知郡奈井江町","014249"]
[null,null,null,null,null,null,null,null,null,"インド India","111",null,null,null,null,"空知郡上砂川町","014257"]
[null,null,null,null,null,null,null,null,null,"イラン Iran","113",null,null,null,null,"夕張郡由仁町","014273"]
[null,null,null,null,null,null,null,null,null,"イラク Iraq","114",null,null,null,null,"夕張郡長沼町","014281"]
[null,null,null,null,null,null,null,null,null,"アイルランド Ireland","115",null,null,null,null,"夕張郡栗山町","014290"]
[null,null,null,null,null,null,null,null,null,"イスラエル Israel","116",null,null,null,null,"樺戸郡月形町","014303"]
[null,null,null,null,null,null,null,null,null,"イタリア Italy","117",null,null,null,null,"樺戸郡浦臼町","014311"]
[null,null,null,null,null,null,null,null,null,"ジャマイカ Jamaica","130",null,null,null,null,"樺戸郡新十津川町","014320"]
[null,null,null,null,null,null,null,null,null,"ヨルダン Jordan","131",null,null,null,null,"雨竜郡妹背牛町","014338"]
[null,null,null,null,null,null,null,null,null,"カザフスタン Kazakhstan","146",null,null,null,null,"雨竜郡秩父別町","014346"]
[null,null,null,null,null,null,null,null,null,"ケニア Kenya","143",null,null,null,null,"雨竜郡雨竜町","014362"]
[null,null,null,null,null,null,null,null,null,"キリバス Kiribati","144",null,null,null,null,"雨竜郡北竜町","014371"]
[null,null,null,null,null,null,null,null,null,"コソボ Kosovo","607",null,null,null,null,"雨竜郡沼田町","014389"]
[null,null,null,null,null,null,null,null,null,"クウェート Kuwait","142",null,null,null,null,"上川郡鷹栖町","014524"]
[null,null,null,null,null,null,null,null,null,"キルギス Kyrgyz Republic","145",null,null,null,null,"上川郡東神楽町","014532"]
[null,null,null,null,null,null,null,null,null,"ラオス Laos","150",null,null,null,null,"上川郡当麻町","014541"]
[null,null,null,null,null,null,null,null,null,"ラトビア Latvia","157",null,null,null,null,"上川郡比布町","014559"]
[null,null,null,null,null,null,null,null,null,"レバノン Lebanon","151",null,null,null,null,"上川郡愛別町","014567"]
[null,null,null,null,null,null,null,null,null,"レソト Lesotho","156",null,null,null,null,"上川郡上川町","014575"]
[null,null,null,null,null,null,null,null,null,"リベリア Liberia","152",null,null,null,null,"上川郡東川町","014583"]
[null,null,null,null,null,null,null,null,null,"リビア Libya","153",null,null,null,null,"上川郡美瑛町","014591"]
[null,null,null,null,null,null,null,null,null,"リヒテンシュタイン Liechtenstein","154",null,null,null,null,"空知郡上富良野町","014605"]
[null,null,null,null,null,null,null,null,null,"リトアニア Lithuania","158",null,null,null,null,"空知郡中富良野町","014613"]
[null,null,null,null,null,null,null,null,null,"ルクセンブルク Luxembourg","155",null,null,null,null,"空知郡南富良野町","014621"]
[null,null,null,null,null,null,null,null,null,"北マケドニア North Macedonia","177",null,null,null,null,"勇払郡占冠村","014630"]
[null,null,null,null,null,null,null,null,null,"マダガスカル Madagascar","160",null,null,null,null,"上川郡和寒町","014648"]
[null,null,null,null,null,null,null,null,null,"マラウイ Malawi","169",null,null,null,null,"上川郡剣淵町","014656"]
[null,null,null,null,null,null,null,null,null,"マレーシア Malaysia","161",null,null,null,null,"上川郡下川町","014681"]
[null,null,null,null,null,null,null,null,null,"モルディブ Maldives","171",null,null,null,null,"中川郡美深町","014699"]
[null,null,null,null,null,null,null,null,null,"マリ Mali","162",null,null,null,null,"中川郡音威子府村","014702"]
[null,null,null,null,null,null,null,null,null,"マルタ Malta","170",null,null,null,null,"中川郡中川町","014711"]
[null,null,null,null,null,null,null,null,null,"マーシャル Marshall","174",null,null,null,null,"雨竜郡幌加内町","014729"]
[null,null,null,null,null,null,null,null,null,"モーリタニア Mauritania","163",null,null,null,null,"増毛郡増毛町","014818"]
[null,null,null,null,null,null,null,null,null,"モーリシャス Mauritius","172",null,null,null,null,"留萌郡小平町","014826"]
[null,null,null,null,null,null,null,null,null,"メキシコ Mexico","164",null,null,null,null,"苫前郡苫前町","014834"]
[null,null,null,null,null,null,null,null,null,"ミクロネシア Micronesia","175",null,null,null,null,"苫前郡羽幌町","014842"]
[null,null,null,null,null,null,null,null,null,"モルドバ Moldova","176",null,null,null,null,"苫前郡初山別村","014851"]
[null,null,null,null,null,null,null,null,null,"モナコ Monaco","165",null,null,null,null,"天塩郡遠別町","014869"]
[null,null,null,null,null,null,null,null,null,"モンゴル Mongolia","166",null,null,null,null,"天塩郡天塩町","014877"]
[null,null,null,null,null,null,null,null,null,"モンテネグロ Montenegro","605",null,null,null,null,"宗谷郡猿払村","015113"]
[null,null,null,null,null,null,null,null,null,"モロッコ Morocco","167",null,null,null,null,"枝幸郡浜頓別町","015121"]
[null,null,null,null,null,null,null,null,null,"モザンビーク Mozambique","173",null,null,null,null,"枝幸郡中頓別町","015130"]
[null,null,null,null,null,null,null,null,null,"ナミビア Namibia","188",null,null,null,null,"枝幸郡枝幸町","015148"]
[null,null,null,null,null,null,null,null,null,"ナウル Nauru","187",null,null,null,null,"天塩郡豊富町","015164"]
[null,null,null,null,null,null,null,null,null,"オランダ Netherlands","181",null,null,null,null,"礼文郡礼文町","015172"]
[null,null,null,null,null,null,null,null,null,"ニュージーランド New Zealand","182",null,null,null,null,"利尻郡利尻町","015181"]
[null,null,null,null,null,null,null,null,null,"ニカラグア Nicaragua","183",null,null,null,null,"利尻郡利尻富士町","015199"]
[null,null,null,null,null,null,null,null,null,"ニジェール Niger","184",null,null,null,null,"天塩郡幌延町","015202"]
[null,null,null,null,null,null,null,null,null,"ナイジェリア Nigeria","185",null,null,null,null,"網走郡美幌町","015431"]
[null,null,null,null,null,null,null,null,null,"ノルウェー Norway","186",null,null,null,null,"網走郡津別町","015440"]
[null,null,null,null,null,null,null,null,null,"オマーン Oman","168",null,null,null,null,"斜里郡斜里町","015458"]
[null,null,null,null,null,null,null,null,null,"パキスタン Pakistan","200",null,null,null,null,"斜里郡清里町","015466"]
[null,null,null,null,null,null,null,null,null,"パラオ Palau","208",null,null,null,null,"斜里郡小清水町","015474"]
[null,null,null,null,null,null,null,null,null,"パレスチナ Palestine","606",null,null,null,null,"常呂郡訓子府町","015491"]
[null,null,null,null,null,null,null,null,null,"パナマ Panama","201",null,null,null,null,"常呂郡置戸町","015504"]
[null,null,null,null,null,null,null,null,null,"パプアニューギニア Papua New Guinea","207",null,null,null,null,"常呂郡佐呂間町","015521"]
[null,null,null,null,null,null,null,null,null,"パラグアイ Paraguay","202",null,null,null,null,"紋別郡遠軽町","015555"]
[null,null,null,null,null,null,null,null,null,"ペルー Peru","203",null,null,null,null,"紋別郡湧別町","015598"]
[null,null,null,null,null,null,null,null,null,"ポーランド Poland","205",null,null,null,null,"紋別郡滝上町","015601"]
[null,null,null,null,null,null,null,null,null,"ポルトガル Portugal","206",null,null,null,null,"紋別郡興部町","015610"]
[null,null,null,null,null,null,null,null,null,"カタール Qatar","210",null,null,null,null,"紋別郡西興部村","015628"]
[null,null,null,null,null,null,null,null,null,"ルーマニア Romania","220",null,null,null,null,"紋別郡雄武町","015636"]
[null,null,null,null,null,null,null,null,null,"ロシア Russia","222",null,null,null,null,"網走郡大空町","015644"]
[null,null,null,null,null,null,null,null,null,"ルワンダ Rwanda","221",null,null,null,null,"虻田郡豊浦町","015717"]
[null,null,null,null,null,null,null,null,null,"セントクリストファー・ネービス Saint Christopher and Nevis","249",null,null,null,null,"有珠郡壮瞥町","015750"]
[null,null,null,null,null,null,null,null,null,"セントルシア Saint Lucia","247",null,null,null,null,"白老郡白老町","015784"]
[null,null,null,null,null,null,null,null,null,"セントビンセント Saint Vincent","248",null,null,null,null,"勇払郡厚真町","015814"]
[null,null,null,null,null,null,null,null,null,"サモア Samoa","290",null,null,null,null,"虻田郡洞爺湖町","015849"]
[null,null,null,null,null,null,null,null,null,"サンマリノ San Marino","230",null,null,null,null,"勇払郡安平町","015857"]
[null,null,null,null,null,null,null,null,null,"サントメ・プリンシペ Sao Tome and Principe","243",null,null,null,null,"勇払郡むかわ町","015865"]
[null,null,null,null,null,null,null,null,null,"サウジアラビア Saudi Arabia","231",null,null,null,null,"沙流郡日高町","016012"]
[null,null,null,null,null,null,null,null,null,"セネガル Senegal","232",null,null,null,null,"沙流郡平取町","016021"]
[null,null,null,null,null,null,null,null,null,"セルビア Serbia","604",null,null,null,null,"新冠郡新冠町","016047"]
[null,null,null,null,null,null,null,null,null,"セーシェル Seychelles","245",null,null,null,null,"浦河郡浦河町","016071"]
[null,null,null,null,null,null,null,null,null,"シエラレオネ Sierra Leone","233",null,null,null,null,"様似郡様似町","016080"]
[null,null,null,null,null,null,null,null,null,"シンガポール Singapore","240",null,null,null,null,"幌泉郡えりも町","016098"]
[null,null,null,null,null,null,null,null,null,"スロバキア Slovakia","601",null,null,null,null,"日高郡新ひだか町","016101"]
[null,null,null,null,null,null,null,null,null,"スロベニア Slovenia","600",null,null,null,null,"河東郡音更町","016314"]
[null,null,null,null,null,null,null,null,null,"ソロモン Solomon","246",null,null,null,null,"河東郡士幌町","016322"]
[null,null,null,null,null,null,null,null,null,"ソマリア Somalia","234",null,null,null,null,"河東郡上士幌町","016331"]
[null,null,null,null,null,null,null,null,null,"南アフリカ共和国 Republic of South Africa","261",null,null,null,null,"河東郡鹿追町","016349"]
[null,null,null,null,null,null,null,null,null,"南スーダン共和国 South Sudan","608",null,null,null,null,"上川郡新得町","016357"]
[null,null,null,null,null,null,null,null,null,"スペイン Spain","235",null,null,null,null,"上川郡清水町","016365"]
[null,null,null,null,null,null,null,null,null,"スリランカ Sri Lanka","035",null,null,null,null,"河西郡芽室町","016373"]
[null,null,null,null,null,null,null,null,null,"スーダン Sudan","236",null,null,null,null,"河西郡中札内村","016381"]
[null,null,null,null,null,null,null,null,null,"スリナム Suriname","244",null,null,null,null,"河西郡更別村","016390"]
[null,null,null,null,null,null,null,null,null,"エスワティニ Eswatini","241",null,null,null,null,"広尾郡大樹町","016411"]
[null,null,null,null,null,null,null,null,null,"スウェーデン Sweden","237",null,null,null,null,"広尾郡広尾町","016420"]
[null,null,null,null,null,null,null,null,null,"スイス Switzerland","238",null,null,null,null,"中川郡幕別町","016438"]
[null,null,null,null,null,null,null,null,null,"シリア Syria","239",null,null,null,null,"中川郡池田町","016446"]
[null,null,null,null,null,null,null,null,null,"タジキスタン Tajikistan","259",null,null,null,null,"中川郡豊頃町","016454"]
[null,null,null,null,null,null,null,null,null,"タンザニア Tanzania","251",null,null,null,null,"中川郡本別町","016462"]
[null,null,null,null,null,null,null,null,null,"タイ Thailand","250",null,null,null,null,"足寄郡足寄町","016471"]
[null,null,null,null,null,null,null,null,null,"東ティモール Timor-Leste","076",null,null,null,null,"足寄郡陸別町","016489"]
[null,null,null,null,null,null,null,null,null,"トーゴ Togo","252",null,null,null,null,"十勝郡浦幌町","016497"]
[null,null,null,null,null,null,null,null,null,"トンガ Tonga","256",null,null,null,null,"釧路郡釧路町","016616"]
[null,null,null,null,null,null,null,null,null,"トリニダード・トバゴ Trinidad and Tobago","253",null,null,null,null,"厚岸郡厚岸町","016624"]
[null,null,null,null,null,null,null,null,null,"チュニジア Tunisia","254",null,null,null,null,"厚岸郡浜中町","016632"]
[null,null,null,null,null,null,null,null,null,"トルコ Turkey","255",null,null,null,null,"川上郡標茶町","016641"]
[null,null,null,null,null,null,null,null,null,"トルクメニスタン Turkmenistan","258",null,null,null,null,"川上郡弟子屈町","016659"]
[null,null,null,null,null,null,null,null,null,"ツバル Tuvalu","257",null,null,null,null,"阿寒郡鶴居村","016675"]
[null,null,null,null,null,null,null,null,null,"ウガンダ Uganda","260",null,null,null,null,"白糠郡白糠町","016683"]
[null,null,null,null,null,null,null,null,null,"ウクライナ Ukraine","269",null,null,null,null,"野付郡別海町","016918"]
[null,null,null,null,null,null,null,null,null,"アラブ首長国連邦 United Arab Emirates","009",null,null,null,null,"標津郡中標津町","016926"]
[null,null,null,null,null,null,null,null,null,"英国 United Kingdom","264",null,null,null,null,"標津郡標津町","016934"]
[null,null,null,null,null,null,null,null,null,"ウルグアイ Uruguay","267",null,null,null,null,"目梨郡羅臼町","016942"]
[null,null,null,null,null,null,null,null,null,"ウズベキスタン Uzbekistan","270",null,null,null,null,"色丹郡色丹村","016951"]
[null,null,null,null,null,null,null,null,null,"バヌアツ Vanuatu","284",null,null,null,null,"国後郡泊村","016969"]
[null,null,null,null,null,null,null,null,null,"バチカン Vatican","280",null,null,null,null,"国後郡留夜別村","016977"]
[null,null,null,null,null,null,null,null,null,"ベネズエラ Venezuela","281",null,null,null,null,"択捉郡留別村","016985"]
[null,null,null,null,null,null,null,null,null,"イエメン Yemen","300",null,null,null,null,"紗那郡紗那村","016993"]
[null,null,null,null,null,null,null,null,null,"ザンビア Zambia","310",null,null,null,null,"蘂取郡蘂取村","017001"]
[null,null,null,null,null,null,null,null,null,"ジンバブエ Zimbabwe","311",null,null,null,null,"青森市","022012"]
[null,null,null,null,null,null,null,null,null,"朝鮮","139",null,null,null,null,"弘前市","022021"]
[null,null,null,null,null,null,null,null,null,"無国籍 statelessness","401",null,null,null,null,"八戸市","022039"]
[null,null,null,null,null,null,null,null,null,null,null,null,null,null,null,"黒石市","022047"]
[null,null,null,null,null,null,null,null,null,null,null,null,null,null,null,"五所川原市","022055"]
[null,null,null,null,null,null,null,null,null,null,null,null,null,null,null,"十和田市","022063"]
[null,null,null,null,null,null,null,null,null,null,null,null,null,null,null,"三沢市","022071"]
[null,null,null,null,null,null,null,null,null,null,null,null,null,null,null,"むつ市","022080"]
[null,null,null,null,null,null,null,null,null,null,null,null,null,null,null,"つがる市","022098"]
[null,null,null,null,null,null,null,null,null,null,null,null,null,null,null,"平川市","022101"]
[null,null,null,null,null,null,null,null,null,null,null,null,null,null,null,"東津軽郡平内町","023019"]
[null,null,null,null,null,null,null,null,null,null,null,null,null,null,null,"東津軽郡今別町","023035"]
[null,null,null,null,null,null,null,null,null,null,null,null,null,null,null,"東津軽郡蓬田村","023043"]
[null,null,null,null,null,null,null,null,null,null,null,null,null,null,null,"東津軽郡外ヶ浜町","023078"]
[null,null,null,null,null,null,null,null,null,null,null,null,null,null,null,"西津軽郡鰺ヶ沢町","023213"]
[null,null,null,null,null,null,null,null,null,null,null,null,null,null,null,"西津軽郡深浦町","023230"]
[null,null,null,null,null,null,null,null,null,null,null,null,null,null,null,"中津軽郡西目屋村","023434"]
[null,null,null,null,null,null,null,null,null,null,null,null,null,null,null,"南津軽郡藤崎町","023612"]
[null,null,null,null,null,null,null,null,null,null,null,null,null,null,null,"南津軽郡大鰐町","023621"]
[null,null,null,null,null,null,null,null,null,null,null,null,null,null,null,"南津軽郡田舎館村","023671"]
[null,null,null,null,null,null,null,null,null,null,null,null,null,null,null,"北津軽郡板柳町","023817"]
[null,null,null,null,null,null,null,null,null,null,null,null,null,null,null,"北津軽郡鶴田町","023841"]
[null,null,null,null,null,null,null,null,null,null,null,null,null,null,null,"北津軽郡中泊町","023876"]
[null,null,null,null,null,null,null,null,null,null,null,null,null,null,null,"上北郡野辺地町","024015"]
[null,null,null,null,null,null,null,null,null,null,null,null,null,null,null,"上北郡七戸町","024023"]
[null,null,null,null,null,null,null,null,null,null,null,null,null,null,null,"上北郡六戸町","024058"]
[null,null,null,null,null,null,null,null,null,null,null,null,null,null,null,"上北郡横浜町","024066"]
[null,null,null,null,null,null,null,null,null,null,null,null,null,null,null,"上北郡東北町","024082"]
[null,null,null,null,null,null,null,null,null,null,null,null,null,null,null,"上北郡六ヶ所村","024112"]
[null,null,null,null,null,null,null,null,null,null,null,null,null,null,null,"上北郡おいらせ町","024121"]
[null,null,null,null,null,null,null,null,null,null,null,null,null,null,null,"下北郡大間町","024236"]
[null,null,null,null,null,null,null,null,null,null,null,null,null,null,null,"下北郡東通村","024244"]
[null,null,null,null,null,null,null,null,null,null,null,null,null,null,null,"下北郡風間浦村","024252"]
[null,null,null,null,null,null,null,null,null,null,null,null,null,null,null,"下北郡佐井村","024261"]
[null,null,null,null,null,null,null,null,null,null,null,null,null,null,null,"三戸郡三戸町","024414"]
[null,null,null,null,null,null,null,null,null,null,null,null,null,null,null,"三戸郡五戸町","024422"]
[null,null,null,null,null,null,null,null,null,null,null,null,null,null,null,"三戸郡田子町","024431"]
[null,null,null,null,null,null,null,null,null,null,null,null,null,null,null,"三戸郡南部町","024457"]
[null,null,null,null,null,null,null,null,null,null,null,null,null,null,null,"三戸郡階上町","024465"]
[null,null,null,null,null,null,null,null,null,null,null,null,null,null,null,"三戸郡新郷村","024503"]
[null,null,null,null,null,null,null,null,null,null,null,null,null,null,null,"盛岡市","032018"]
[null,null,null,null,null,null,null,null,null,null,null,null,null,null,null,"宮古市","032026"]
[null,null,null,null,null,null,null,null,null,null,null,null,null,null,null,"大船渡市","032034"]
[null,null,null,null,null,null,null,null,null,null,null,null,null,null,null,"花巻市","032051"]
[null,null,null,null,null,null,null,null,null,null,null,null,null,null,null,"北上市","032069"]
[null,null,null,null,null,null,null,null,null,null,null,null,null,null,null,"久慈市","032077"]
[null,null,null,null,null,null,null,null,null,null,null,null,null,null,null,"遠野市","032085"]
[null,null,null,null,null,null,null,null,null,null,null,null,null,null,null,"一関市","032093"]
[null,null,null,null,null,null,null,null,null,null,null,null,null,null,null,"陸前高田市","032107"]
[null,null,null,null,null,null,null,null,null,null,null,null,null,null,null,"釜石市","032115"]
[null,null,null,null,null,null,null,null,null,null,null,null,null,null,null,"二戸市","032131"]
[null,null,null,null,null,null,null,null,null,null,null,null,null,null,null,"八幡平市","032140"]
[null,null,null,null,null,null,null,null,null,null,null,null,null,null,null,"奥州市","032158"]
[null,null,null,null,null,null,null,null,null,null,null,null,null,null,null,"滝沢市","032166"]
[null,null,null,null,null,null,null,null,null,null,null,null,null,null,null,"岩手郡雫石町","033014"]
[null,null,null,null,null,null,null,null,null,null,null,null,null,null,null,"岩手郡葛巻町","033022"]
[null,null,null,null,null,null,null,null,null,null,null,null,null,null,null,"岩手郡岩手町","033031"]
[null,null,null,null,null,null,null,null,null,null,null,null,null,null,null,"岩手郡滝沢村","033057"]
[null,null,null,null,null,null,null,null,null,null,null,null,null,null,null,"紫波郡紫波町","033219"]
[null,null,null,null,null,null,null,null,null,null,null,null,null,null,null,"紫波郡矢巾町","033227"]
[null,null,null,null,null,null,null,null,null,null,null,null,null,null,null,"和賀郡西和賀町","033669"]
[null,null,null,null,null,null,null,null,null,null,null,null,null,null,null,"胆沢郡金ケ崎町","033812"]
[null,null,null,null,null,null,null,null,null,null,null,null,null,null,null,"西磐井郡平泉町","034029"]
[null,null,null,null,null,null,null,null,null,null,null,null,null,null,null,"気仙郡住田町","034410"]
[null,null,null,null,null,null,null,null,null,null,null,null,null,null,null,"上閉伊郡大槌町","034614"]
[null,null,null,null,null,null,null,null,null,null,null,null,null,null,null,"下閉伊郡山田町","034827"]
[null,null,null,null,null,null,null,null,null,null,null,null,null,null,null,"下閉伊郡岩泉町","034835"]
[null,null,null,null,null,null,null,null,null,null,null,null,null,null,null,"下閉伊郡田野畑村","034843"]
[null,null,null,null,null,null,null,null,null,null,null,null,null,null,null,"下閉伊郡普代村","034851"]
[null,null,null,null,null,null,null,null,null,null,null,null,null,null,null,"九戸郡軽米町","035017"]
[null,null,null,null,null,null,null,null,null,null,null,null,null,null,null,"九戸郡野田村","035033"]
[null,null,null,null,null,null,null,null,null,null,null,null,null,null,null,"九戸郡九戸村","035068"]
[null,null,null,null,null,null,null,null,null,null,null,null,null,null,null,"九戸郡洋野町","035076"]
[null,null,null,null,null,null,null,null,null,null,null,null,null,null,null,"二戸郡一戸町","035246"]
[null,null,null,null,null,null,null,null,null,null,null,null,null,null,null,"仙台市青葉区","041017"]
[null,null,null,null,null,null,null,null,null,null,null,null,null,null,null,"仙台市宮城野区","041025"]
[null,null,null,null,null,null,null,null,null,null,null,null,null,null,null,"仙台市若林区","041033"]
[null,null,null,null,null,null,null,null,null,null,null,null,null,null,null,"仙台市太白区","041041"]
[null,null,null,null,null,null,null,null,null,null,null,null,null,null,null,"仙台市泉区","041050"]
[null,null,null,null,null,null,null,null,null,null,null,null,null,null,null,"石巻市","042021"]
[null,null,null,null,null,null,null,null,null,null,null,null,null,null,null,"塩竈市","042030"]
[null,null,null,null,null,null,null,null,null,null,null,null,null,null,null,"気仙沼市","042056"]
[null,null,null,null,null,null,null,null,null,null,null,null,null,null,null,"白石市","042064"]
[null,null,null,null,null,null,null,null,null,null,null,null,null,null,null,"名取市","042072"]
[null,null,null,null,null,null,null,null,null,null,null,null,null,null,null,"角田市","042081"]
[null,null,null,null,null,null,null,null,null,null,null,null,null,null,null,"多賀城市","042099"]
[null,null,null,null,null,null,null,null,null,null,null,null,null,null,null,"岩沼市","042111"]
[null,null,null,null,null,null,null,null,null,null,null,null,null,null,null,"登米市","042129"]
[null,null,null,null,null,null,null,null,null,null,null,null,null,null,null,"栗原市","042137"]
[null,null,null,null,null,null,null,null,null,null,null,null,null,null,null,"東松島市","042145"]
[null,null,null,null,null,null,null,null,null,null,null,null,null,null,null,"大崎市","042153"]
[null,null,null,null,null,null,null,null,null,null,null,null,null,null,null,"富谷市","042161"]
[null,null,null,null,null,null,null,null,null,null,null,null,null,null,null,"刈田郡蔵王町","043010"]
[null,null,null,null,null,null,null,null,null,null,null,null,null,null,null,"刈田郡七ヶ宿町","043028"]
[null,null,null,null,null,null,null,null,null,null,null,null,null,null,null,"柴田郡大河原町","043214"]
[null,null,null,null,null,null,null,null,null,null,null,null,null,null,null,"柴田郡村田町","043222"]
[null,null,null,null,null,null,null,null,null,null,null,null,null,null,null,"柴田郡柴田町","043231"]
[null,null,null,null,null,null,null,null,null,null,null,null,null,null,null,"柴田郡川崎町","043249"]
[null,null,null,null,null,null,null,null,null,null,null,null,null,null,null,"伊具郡丸森町","043419"]
[null,null,null,null,null,null,null,null,null,null,null,null,null,null,null,"亘理郡亘理町","043613"]
[null,null,null,null,null,null,null,null,null,null,null,null,null,null,null,"亘理郡山元町","043621"]
[null,null,null,null,null,null,null,null,null,null,null,null,null,null,null,"宮城郡松島町","044016"]
[null,null,null,null,null,null,null,null,null,null,null,null,null,null,null,"宮城郡七ヶ浜町","044041"]
[null,null,null,null,null,null,null,null,null,null,null,null,null,null,null,"宮城郡利府町","044067"]
[null,null,null,null,null,null,null,null,null,null,null,null,null,null,null,"黒川郡大和町","044211"]
[null,null,null,null,null,null,null,null,null,null,null,null,null,null,null,"黒川郡大郷町","044229"]
[null,null,null,null,null,null,null,null,null,null,null,null,null,null,null,"黒川郡富谷町","044237"]
[null,null,null,null,null,null,null,null,null,null,null,null,null,null,null,"黒川郡大衡村","044245"]
[null,null,null,null,null,null,null,null,null,null,null,null,null,null,null,"加美郡色麻町","044440"]
[null,null,null,null,null,null,null,null,null,null,null,null,null,null,null,"加美郡加美町","044458"]
[null,null,null,null,null,null,null,null,null,null,null,null,null,null,null,"遠田郡涌谷町","045012"]
[null,null,null,null,null,null,null,null,null,null,null,null,null,null,null,"遠田郡美里町","045055"]
[null,null,null,null,null,null,null,null,null,null,null,null,null,null,null,"牡鹿郡女川町","045811"]
[null,null,null,null,null,null,null,null,null,null,null,null,null,null,null,"本吉郡南三陸町","046060"]
[null,null,null,null,null,null,null,null,null,null,null,null,null,null,null,"秋田市","052019"]
[null,null,null,null,null,null,null,null,null,null,null,null,null,null,null,"能代市","052027"]
[null,null,null,null,null,null,null,null,null,null,null,null,null,null,null,"横手市","052035"]
[null,null,null,null,null,null,null,null,null,null,null,null,null,null,null,"大館市","052043"]
[null,null,null,null,null,null,null,null,null,null,null,null,null,null,null,"男鹿市","052060"]
[null,null,null,null,null,null,null,null,null,null,null,null,null,null,null,"湯沢市","052078"]
[null,null,null,null,null,null,null,null,null,null,null,null,null,null,null,"鹿角市","052094"]
[null,null,null,null,null,null,null,null,null,null,null,null,null,null,null,"由利本荘市","052108"]
[null,null,null,null,null,null,null,null,null,null,null,null,null,null,null,"潟上市","052116"]
[null,null,null,null,null,null,null,null,null,null,null,null,null,null,null,"大仙市","052124"]
[null,null,null,null,null,null,null,null,null,null,null,null,null,null,null,"北秋田市","052132"]
[null,null,null,null,null,null,null,null,null,null,null,null,null,null,null,"にかほ市","052141"]
[null,null,null,null,null,null,null,null,null,null,null,null,null,null,null,"仙北市","052159"]
[null,null,null,null,null,null,null,null,null,null,null,null,null,null,null,"鹿角郡小坂町","053031"]
[null,null,null,null,null,null,null,null,null,null,null,null,null,null,null,"北秋田郡上小阿仁村","053279"]
[null,null,null,null,null,null,null,null,null,null,null,null,null,null,null,"山本郡藤里町","053465"]
[null,null,null,null,null,null,null,null,null,null,null,null,null,null,null,"山本郡三種町","053481"]
[null,null,null,null,null,null,null,null,null,null,null,null,null,null,null,"山本郡八峰町","053490"]
[null,null,null,null,null,null,null,null,null,null,null,null,null,null,null,"南秋田郡五城目町","053619"]
[null,null,null,null,null,null,null,null,null,null,null,null,null,null,null,"南秋田郡八郎潟町","053635"]
[null,null,null,null,null,null,null,null,null,null,null,null,null,null,null,"南秋田郡井川町","053660"]
[null,null,null,null,null,null,null,null,null,null,null,null,null,null,null,"南秋田郡大潟村","053686"]
[null,null,null,null,null,null,null,null,null,null,null,null,null,null,null,"仙北郡美郷町","054348"]
[null,null,null,null,null,null,null,null,null,null,null,null,null,null,null,"雄勝郡羽後町","054631"]
[null,null,null,null,null,null,null,null,null,null,null,null,null,null,null,"雄勝郡東成瀬村","054640"]
[null,null,null,null,null,null,null,null,null,null,null,null,null,null,null,"山形市","062014"]
[null,null,null,null,null,null,null,null,null,null,null,null,null,null,null,"米沢市","062022"]
[null,null,null,null,null,null,null,null,null,null,null,null,null,null,null,"鶴岡市","062031"]
[null,null,null,null,null,null,null,null,null,null,null,null,null,null,null,"酒田市","062049"]
[null,null,null,null,null,null,null,null,null,null,null,null,null,null,null,"新庄市","062057"]
[null,null,null,null,null,null,null,null,null,null,null,null,null,null,null,"寒河江市","062065"]
[null,null,null,null,null,null,null,null,null,null,null,null,null,null,null,"上山市","062073"]
[null,null,null,null,null,null,null,null,null,null,null,null,null,null,null,"村山市","062081"]
[null,null,null,null,null,null,null,null,null,null,null,null,null,null,null,"長井市","062090"]
[null,null,null,null,null,null,null,null,null,null,null,null,null,null,null,"天童市","062103"]
[null,null,null,null,null,null,null,null,null,null,null,null,null,null,null,"東根市","062111"]
[null,null,null,null,null,null,null,null,null,null,null,null,null,null,null,"尾花沢市","062120"]
[null,null,null,null,null,null,null,null,null,null,null,null,null,null,null,"南陽市","062138"]
[null,null,null,null,null,null,null,null,null,null,null,null,null,null,null,"東村山郡山辺町","063011"]
[null,null,null,null,null,null,null,null,null,null,null,null,null,null,null,"東村山郡中山町","063029"]
[null,null,null,null,null,null,null,null,null,null,null,null,null,null,null,"西村山郡河北町","063215"]
[null,null,null,null,null,null,null,null,null,null,null,null,null,null,null,"西村山郡西川町","063223"]
[null,null,null,null,null,null,null,null,null,null,null,null,null,null,null,"西村山郡朝日町","063231"]
[null,null,null,null,null,null,null,null,null,null,null,null,null,null,null,"西村山郡大江町","063240"]
[null,null,null,null,null,null,null,null,null,null,null,null,null,null,null,"北村山郡大石田町","063410"]
[null,null,null,null,null,null,null,null,null,null,null,null,null,null,null,"最上郡金山町","063614"]
[null,null,null,null,null,null,null,null,null,null,null,null,null,null,null,"最上郡最上町","063622"]
[null,null,null,null,null,null,null,null,null,null,null,null,null,null,null,"最上郡舟形町","063631"]
[null,null,null,null,null,null,null,null,null,null,null,null,null,null,null,"最上郡真室川町","063649"]
[null,null,null,null,null,null,null,null,null,null,null,null,null,null,null,"最上郡大蔵村","063657"]
[null,null,null,null,null,null,null,null,null,null,null,null,null,null,null,"最上郡鮭川村","063665"]
[null,null,null,null,null,null,null,null,null,null,null,null,null,null,null,"最上郡戸沢村","063673"]
[null,null,null,null,null,null,null,null,null,null,null,null,null,null,null,"東置賜郡高畠町","063819"]
[null,null,null,null,null,null,null,null,null,null,null,null,null,null,null,"東置賜郡川西町","063827"]
[null,null,null,null,null,null,null,null,null,null,null,null,null,null,null,"西置賜郡小国町","064017"]
[null,null,null,null,null,null,null,null,null,null,null,null,null,null,null,"西置賜郡白鷹町","064025"]
[null,null,null,null,null,null,null,null,null,null,null,null,null,null,null,"西置賜郡飯豊町","064033"]
[null,null,null,null,null,null,null,null,null,null,null,null,null,null,null,"東田川郡三川町","064262"]
[null,null,null,null,null,null,null,null,null,null,null,null,null,null,null,"東田川郡庄内町","064289"]
[null,null,null,null,null,null,null,null,null,null,null,null,null,null,null,"飽海郡遊佐町","064611"]
[null,null,null,null,null,null,null,null,null,null,null,null,null,null,null,"福島市","072010"]
[null,null,null,null,null,null,null,null,null,null,null,null,null,null,null,"会津若松市","072028"]
[null,null,null,null,null,null,null,null,null,null,null,null,null,null,null,"郡山市","072036"]
[null,null,null,null,null,null,null,null,null,null,null,null,null,null,null,"いわき市","072044"]
[null,null,null,null,null,null,null,null,null,null,null,null,null,null,null,"白河市","072052"]
[null,null,null,null,null,null,null,null,null,null,null,null,null,null,null,"須賀川市","072079"]
[null,null,null,null,null,null,null,null,null,null,null,null,null,null,null,"喜多方市","072087"]
[null,null,null,null,null,null,null,null,null,null,null,null,null,null,null,"相馬市","072095"]
[null,null,null,null,null,null,null,null,null,null,null,null,null,null,null,"二本松市","072109"]
[null,null,null,null,null,null,null,null,null,null,null,null,null,null,null,"田村市","072117"]
[null,null,null,null,null,null,null,null,null,null,null,null,null,null,null,"南相馬市","072125"]
[null,null,null,null,null,null,null,null,null,null,null,null,null,null,null,"伊達市","072133"]
[null,null,null,null,null,null,null,null,null,null,null,null,null,null,null,"本宮市","072141"]
[null,null,null,null,null,null,null,null,null,null,null,null,null,null,null,"伊達郡桑折町","073016"]
[null,null,null,null,null,null,null,null,null,null,null,null,null,null,null,"伊達郡国見町","073032"]
[null,null,null,null,null,null,null,null,null,null,null,null,null,null,null,"伊達郡川俣町","073083"]
[null,null,null,null,null,null,null,null,null,null,null,null,null,null,null,"安達郡大玉村","073229"]
[null,null,null,null,null,null,null,null,null,null,null,null,null,null,null,"岩瀬郡鏡石町","073423"]
[null,null,null,null,null,null,null,null,null,null,null,null,null,null,null,"岩瀬郡天栄村","073440"]
[null,null,null,null,null,null,null,null,null,null,null,null,null,null,null,"南会津郡下郷町","073628"]
[null,null,null,null,null,null,null,null,null,null,null,null,null,null,null,"南会津郡檜枝岐村","073644"]
[null,null,null,null,null,null,null,null,null,null,null,null,null,null,null,"南会津郡只見町","073679"]
[null,null,null,null,null,null,null,null,null,null,null,null,null,null,null,"南会津郡南会津町","073687"]
[null,null,null,null,null,null,null,null,null,null,null,null,null,null,null,"耶麻郡北塩原村","074021"]
[null,null,null,null,null,null,null,null,null,null,null,null,null,null,null,"耶麻郡西会津町","074055"]
[null,null,null,null,null,null,null,null,null,null,null,null,null,null,null,"耶麻郡磐梯町","074071"]
[null,null,null,null,null,null,null,null,null,null,null,null,null,null,null,"耶麻郡猪苗代町","074080"]
[null,null,null,null,null,null,null,null,null,null,null,null,null,null,null,"河沼郡会津坂下町","074217"]
[null,null,null,null,null,null,null,null,null,null,null,null,null,null,null,"河沼郡湯川村","074225"]
[null,null,null,null,null,null,null,null,null,null,null,null,null,null,null,"河沼郡柳津町","074233"]
[null,null,null,null,null,null,null,null,null,null,null,null,null,null,null,"大沼郡三島町","074446"]
[null,null,null,null,null,null,null,null,null,null,null,null,null,null,null,"大沼郡金山町","074454"]
[null,null,null,null,null,null,null,null,null,null,null,null,null,null,null,"大沼郡昭和村","074462"]
[null,null,null,null,null,null,null,null,null,null,null,null,null,null,null,"大沼郡会津美里町","074471"]
[null,null,null,null,null,null,null,null,null,null,null,null,null,null,null,"西白河郡西郷村","074616"]
[null,null,null,null,null,null,null,null,null,null,null,null,null,null,null,"西白河郡泉崎村","074641"]
[null,null,null,null,null,null,null,null,null,null,null,null,null,null,null,"西白河郡中島村","074659"]
[null,null,null,null,null,null,null,null,null,null,null,null,null,null,null,"西白河郡矢吹町","074667"]
[null,null,null,null,null,null,null,null,null,null,null,null,null,null,null,"東白川郡棚倉町","074811"]
[null,null,null,null,null,null,null,null,null,null,null,null,null,null,null,"東白川郡矢祭町","074829"]
[null,null,null,null,null,null,null,null,null,null,null,null,null,null,null,"東白川郡塙町","074837"]
[null,null,null,null,null,null,null,null,null,null,null,null,null,null,null,"東白川郡鮫川村","074845"]
[null,null,null,null,null,null,null,null,null,null,null,null,null,null,null,"石川郡石川町","075019"]
[null,null,null,null,null,null,null,null,null,null,null,null,null,null,null,"石川郡玉川村","075027"]
[null,null,null,null,null,null,null,null,null,null,null,null,null,null,null,"石川郡平田村","075035"]
[null,null,null,null,null,null,null,null,null,null,null,null,null,null,null,"石川郡浅川町","075043"]
[null,null,null,null,null,null,null,null,null,null,null,null,null,null,null,"石川郡古殿町","075051"]
[null,null,null,null,null,null,null,null,null,null,null,null,null,null,null,"田村郡三春町","075213"]
[null,null,null,null,null,null,null,null,null,null,null,null,null,null,null,"田村郡小野町","075221"]
[null,null,null,null,null,null,null,null,null,null,null,null,null,null,null,"双葉郡広野町","075418"]
[null,null,null,null,null,null,null,null,null,null,null,null,null,null,null,"双葉郡楢葉町","075426"]
[null,null,null,null,null,null,null,null,null,null,null,null,null,null,null,"双葉郡富岡町","075434"]
[null,null,null,null,null,null,null,null,null,null,null,null,null,null,null,"双葉郡川内村","075442"]
[null,null,null,null,null,null,null,null,null,null,null,null,null,null,null,"双葉郡大熊町","075451"]
[null,null,null,null,null,null,null,null,null,null,null,null,null,null,null,"双葉郡双葉町","075469"]
[null,null,null,null,null,null,null,null,null,null,null,null,null,null,null,"双葉郡浪江町","075477"]
[null,null,null,null,null,null,null,null,null,null,null,null,null,null,null,"双葉郡葛尾村","075485"]
[null,null,null,null,null,null,null,null,null,null,null,null,null,null,null,"相馬郡新地町","075612"]
[null,null,null,null,null,null,null,null,null,null,null,null,null,null,null,"相馬郡飯舘村","075647"]
[null,null,null,null,null,null,null,null,null,null,null,null,null,null,null,"水戸市","082015"]
[null,null,null,null,null,null,null,null,null,null,null,null,null,null,null,"日立市","082023"]
[null,null,null,null,null,null,null,null,null,null,null,null,null,null,null,"土浦市","082031"]
[null,null,null,null,null,null,null,null,null,null,null,null,null,null,null,"古河市","082040"]
[null,null,null,null,null,null,null,null,null,null,null,null,null,null,null,"石岡市","082058"]
[null,null,null,null,null,null,null,null,null,null,null,null,null,null,null,"結城市","082074"]
[null,null,null,null,null,null,null,null,null,null,null,null,null,null,null,"龍ケ崎市","082082"]
[null,null,null,null,null,null,null,null,null,null,null,null,null,null,null,"下妻市","082104"]
[null,null,null,null,null,null,null,null,null,null,null,null,null,null,null,"常総市","082112"]
[null,null,null,null,null,null,null,null,null,null,null,null,null,null,null,"常陸太田市","082121"]
[null,null,null,null,null,null,null,null,null,null,null,null,null,null,null,"高萩市","082147"]
[null,null,null,null,null,null,null,null,null,null,null,null,null,null,null,"北茨城市","082155"]
[null,null,null,null,null,null,null,null,null,null,null,null,null,null,null,"笠間市","082163"]
[null,null,null,null,null,null,null,null,null,null,null,null,null,null,null,"取手市","082171"]
[null,null,null,null,null,null,null,null,null,null,null,null,null,null,null,"牛久市","082198"]
[null,null,null,null,null,null,null,null,null,null,null,null,null,null,null,"つくば市","082201"]
[null,null,null,null,null,null,null,null,null,null,null,null,null,null,null,"ひたちなか市","082210"]
[null,null,null,null,null,null,null,null,null,null,null,null,null,null,null,"鹿嶋市","082228"]
[null,null,null,null,null,null,null,null,null,null,null,null,null,null,null,"潮来市","082236"]
[null,null,null,null,null,null,null,null,null,null,null,null,null,null,null,"守谷市","082244"]
[null,null,null,null,null,null,null,null,null,null,null,null,null,null,null,"常陸大宮市","082252"]
[null,null,null,null,null,null,null,null,null,null,null,null,null,null,null,"那珂市","082261"]
[null,null,null,null,null,null,null,null,null,null,null,null,null,null,null,"筑西市","082279"]
[null,null,null,null,null,null,null,null,null,null,null,null,null,null,null,"坂東市","082287"]
[null,null,null,null,null,null,null,null,null,null,null,null,null,null,null,"稲敷市","082295"]
[null,null,null,null,null,null,null,null,null,null,null,null,null,null,null,"かすみがうら市","082309"]
[null,null,null,null,null,null,null,null,null,null,null,null,null,null,null,"桜川市","082317"]
[null,null,null,null,null,null,null,null,null,null,null,null,null,null,null,"神栖市","082325"]
[null,null,null,null,null,null,null,null,null,null,null,null,null,null,null,"行方市","082333"]
[null,null,null,null,null,null,null,null,null,null,null,null,null,null,null,"鉾田市","082341"]
[null,null,null,null,null,null,null,null,null,null,null,null,null,null,null,"つくばみらい市","082350"]
[null,null,null,null,null,null,null,null,null,null,null,null,null,null,null,"小美玉市","082368"]
[null,null,null,null,null,null,null,null,null,null,null,null,null,null,null,"東茨城郡茨城町","083020"]
[null,null,null,null,null,null,null,null,null,null,null,null,null,null,null,"東茨城郡大洗町","083097"]
[null,null,null,null,null,null,null,null,null,null,null,null,null,null,null,"東茨城郡城里町","083101"]
[null,null,null,null,null,null,null,null,null,null,null,null,null,null,null,"那珂郡東海村","083411"]
[null,null,null,null,null,null,null,null,null,null,null,null,null,null,null,"久慈郡大子町","083640"]
[null,null,null,null,null,null,null,null,null,null,null,null,null,null,null,"稲敷郡美浦村","084425"]
[null,null,null,null,null,null,null,null,null,null,null,null,null,null,null,"稲敷郡阿見町","084433"]
[null,null,null,null,null,null,null,null,null,null,null,null,null,null,null,"稲敷郡河内町","084476"]
[null,null,null,null,null,null,null,null,null,null,null,null,null,null,null,"結城郡八千代町","085219"]
[null,null,null,null,null,null,null,null,null,null,null,null,null,null,null,"猿島郡五霞町","085421"]
[null,null,null,null,null,null,null,null,null,null,null,null,null,null,null,"猿島郡境町","085464"]
[null,null,null,null,null,null,null,null,null,null,null,null,null,null,null,"北相馬郡利根町","085642"]
[null,null,null,null,null,null,null,null,null,null,null,null,null,null,null,"宇都宮市","092011"]
[null,null,null,null,null,null,null,null,null,null,null,null,null,null,null,"足利市","092029"]
[null,null,null,null,null,null,null,null,null,null,null,null,null,null,null,"栃木市","092037"]
[null,null,null,null,null,null,null,null,null,null,null,null,null,null,null,"佐野市","092045"]
[null,null,null,null,null,null,null,null,null,null,null,null,null,null,null,"鹿沼市","092053"]
[null,null,null,null,null,null,null,null,null,null,null,null,null,null,null,"日光市","092061"]
[null,null,null,null,null,null,null,null,null,null,null,null,null,null,null,"小山市","092088"]
[null,null,null,null,null,null,null,null,null,null,null,null,null,null,null,"真岡市","092096"]
[null,null,null,null,null,null,null,null,null,null,null,null,null,null,null,"大田原市","092100"]
[null,null,null,null,null,null,null,null,null,null,null,null,null,null,null,"矢板市","092118"]
[null,null,null,null,null,null,null,null,null,null,null,null,null,null,null,"那須塩原市","092134"]
[null,null,null,null,null,null,null,null,null,null,null,null,null,null,null,"さくら市","092142"]
[null,null,null,null,null,null,null,null,null,null,null,null,null,null,null,"那須烏山市","092151"]
[null,null,null,null,null,null,null,null,null,null,null,null,null,null,null,"下野市","092169"]
[null,null,null,null,null,null,null,null,null,null,null,null,null,null,null,"河内郡上三川町","093017"]
[null,null,null,null,null,null,null,null,null,null,null,null,null,null,null,"芳賀郡益子町","093424"]
[null,null,null,null,null,null,null,null,null,null,null,null,null,null,null,"芳賀郡茂木町","093432"]
[null,null,null,null,null,null,null,null,null,null,null,null,null,null,null,"芳賀郡市貝町","093441"]
[null,null,null,null,null,null,null,null,null,null,null,null,null,null,null,"芳賀郡芳賀町","093459"]
[null,null,null,null,null,null,null,null,null,null,null,null,null,null,null,"下都賀郡壬生町","093611"]
[null,null,null,null,null,null,null,null,null,null,null,null,null,null,null,"下都賀郡野木町","093645"]
[null,null,null,null,null,null,null,null,null,null,null,null,null,null,null,"下都賀郡岩舟町","093670"]
[null,null,null,null,null,null,null,null,null,null,null,null,null,null,null,"塩谷郡塩谷町","093840"]
[null,null,null,null,null,null,null,null,null,null,null,null,null,null,null,"塩谷郡高根沢町","093866"]
[null,null,null,null,null,null,null,null,null,null,null,null,null,null,null,"那須郡那須町","094072"]
[null,null,null,null,null,null,null,null,null,null,null,null,null,null,null,"那須郡那珂川町","094111"]
[null,null,null,null,null,null,null,null,null,null,null,null,null,null,null,"前橋市","102016"]
[null,null,null,null,null,null,null,null,null,null,null,null,null,null,null,"高崎市","102024"]
[null,null,null,null,null,null,null,null,null,null,null,null,null,null,null,"桐生市","102032"]
[null,null,null,null,null,null,null,null,null,null,null,null,null,null,null,"伊勢崎市","102041"]
[null,null,null,null,null,null,null,null,null,null,null,null,null,null,null,"太田市","102059"]
[null,null,null,null,null,null,null,null,null,null,null,null,null,null,null,"沼田市","102067"]
[null,null,null,null,null,null,null,null,null,null,null,null,null,null,null,"館林市","102075"]
[null,null,null,null,null,null,null,null,null,null,null,null,null,null,null,"渋川市","102083"]
[null,null,null,null,null,null,null,null,null,null,null,null,null,null,null,"藤岡市","102091"]
[null,null,null,null,null,null,null,null,null,null,null,null,null,null,null,"富岡市","102105"]
[null,null,null,null,null,null,null,null,null,null,null,null,null,null,null,"安中市","102113"]
[null,null,null,null,null,null,null,null,null,null,null,null,null,null,null,"みどり市","102121"]
[null,null,null,null,null,null,null,null,null,null,null,null,null,null,null,"北群馬郡榛東村","103446"]
[null,null,null,null,null,null,null,null,null,null,null,null,null,null,null,"北群馬郡吉岡町","103454"]
[null,null,null,null,null,null,null,null,null,null,null,null,null,null,null,"多野郡上野村","103667"]
[null,null,null,null,null,null,null,null,null,null,null,null,null,null,null,"多野郡神流町","103675"]
[null,null,null,null,null,null,null,null,null,null,null,null,null,null,null,"甘楽郡下仁田町","103829"]
[null,null,null,null,null,null,null,null,null,null,null,null,null,null,null,"甘楽郡南牧村","103837"]
[null,null,null,null,null,null,null,null,null,null,null,null,null,null,null,"甘楽郡甘楽町","103845"]
[null,null,null,null,null,null,null,null,null,null,null,null,null,null,null,"吾妻郡中之条町","104213"]
[null,null,null,null,null,null,null,null,null,null,null,null,null,null,null,"吾妻郡長野原町","104248"]
[null,null,null,null,null,null,null,null,null,null,null,null,null,null,null,"吾妻郡嬬恋村","104256"]
[null,null,null,null,null,null,null,null,null,null,null,null,null,null,null,"吾妻郡草津町","104264"]
[null,null,null,null,null,null,null,null,null,null,null,null,null,null,null,"吾妻郡高山村","104281"]
[null,null,null,null,null,null,null,null,null,null,null,null,null,null,null,"吾妻郡東吾妻町","104299"]
[null,null,null,null,null,null,null,null,null,null,null,null,null,null,null,"利根郡片品村","104434"]
[null,null,null,null,null,null,null,null,null,null,null,null,null,null,null,"利根郡川場村","104442"]
[null,null,null,null,null,null,null,null,null,null,null,null,null,null,null,"利根郡昭和村","104485"]
[null,null,null,null,null,null,null,null,null,null,null,null,null,null,null,"利根郡みなかみ町","104493"]
[null,null,null,null,null,null,null,null,null,null,null,null,null,null,null,"佐波郡玉村町","104647"]
[null,null,null,null,null,null,null,null,null,null,null,null,null,null,null,"邑楽郡板倉町","105210"]
[null,null,null,null,null,null,null,null,null,null,null,null,null,null,null,"邑楽郡明和町","105228"]
[null,null,null,null,null,null,null,null,null,null,null,null,null,null,null,"邑楽郡千代田町","105236"]
[null,null,null,null,null,null,null,null,null,null,null,null,null,null,null,"邑楽郡大泉町","105244"]
[null,null,null,null,null,null,null,null,null,null,null,null,null,null,null,"邑楽郡邑楽町","105252"]
[null,null,null,null,null,null,null,null,null,null,null,null,null,null,null,"さいたま市西区","111015"]
[null,null,null,null,null,null,null,null,null,null,null,null,null,null,null,"さいたま市北区","111023"]
[null,null,null,null,null,null,null,null,null,null,null,null,null,null,null,"さいたま市大宮区","111031"]
[null,null,null,null,null,null,null,null,null,null,null,null,null,null,null,"さいたま市見沼区","111040"]
[null,null,null,null,null,null,null,null,null,null,null,null,null,null,null,"さいたま市中央区","111058"]
[null,null,null,null,null,null,null,null,null,null,null,null,null,null,null,"さいたま市桜区","111066"]
[null,null,null,null,null,null,null,null,null,null,null,null,null,null,null,"さいたま市浦和区","111074"]
[null,null,null,null,null,null,null,null,null,null,null,null,null,null,null,"さいたま市南区","111082"]
[null,null,null,null,null,null,null,null,null,null,null,null,null,null,null,"さいたま市緑区","111091"]
[null,null,null,null,null,null,null,null,null,null,null,null,null,null,null,"さいたま市岩槻区","111104"]
[null,null,null,null,null,null,null,null,null,null,null,null,null,null,null,"川越市","112011"]
[null,null,null,null,null,null,null,null,null,null,null,null,null,null,null,"熊谷市","112020"]
[null,null,null,null,null,null,null,null,null,null,null,null,null,null,null,"川口市","112038"]
[null,null,null,null,null,null,null,null,null,null,null,null,null,null,null,"行田市","112062"]
[null,null,null,null,null,null,null,null,null,null,null,null,null,null,null,"秩父市","112071"]
[null,null,null,null,null,null,null,null,null,null,null,null,null,null,null,"所沢市","112089"]
[null,null,null,null,null,null,null,null,null,null,null,null,null,null,null,"飯能市","112097"]
[null,null,null,null,null,null,null,null,null,null,null,null,null,null,null,"加須市","112101"]
[null,null,null,null,null,null,null,null,null,null,null,null,null,null,null,"本庄市","112119"]
[null,null,null,null,null,null,null,null,null,null,null,null,null,null,null,"東松山市","112127"]
[null,null,null,null,null,null,null,null,null,null,null,null,null,null,null,"春日部市","112143"]
[null,null,null,null,null,null,null,null,null,null,null,null,null,null,null,"狭山市","112151"]
[null,null,null,null,null,null,null,null,null,null,null,null,null,null,null,"羽生市","112160"]
[null,null,null,null,null,null,null,null,null,null,null,null,null,null,null,"鴻巣市","112178"]
[null,null,null,null,null,null,null,null,null,null,null,null,null,null,null,"深谷市","112186"]
[null,null,null,null,null,null,null,null,null,null,null,null,null,null,null,"上尾市","112194"]
[null,null,null,null,null,null,null,null,null,null,null,null,null,null,null,"草加市","112216"]
[null,null,null,null,null,null,null,null,null,null,null,null,null,null,null,"越谷市","112224"]
[null,null,null,null,null,null,null,null,null,null,null,null,null,null,null,"蕨市","112232"]
[null,null,null,null,null,null,null,null,null,null,null,null,null,null,null,"戸田市","112241"]
[null,null,null,null,null,null,null,null,null,null,null,null,null,null,null,"入間市","112259"]
[null,null,null,null,null,null,null,null,null,null,null,null,null,null,null,"朝霞市","112275"]
[null,null,null,null,null,null,null,null,null,null,null,null,null,null,null,"志木市","112283"]
[null,null,null,null,null,null,null,null,null,null,null,null,null,null,null,"和光市","112291"]
[null,null,null,null,null,null,null,null,null,null,null,null,null,null,null,"新座市","112305"]
[null,null,null,null,null,null,null,null,null,null,null,null,null,null,null,"桶川市","112313"]
[null,null,null,null,null,null,null,null,null,null,null,null,null,null,null,"久喜市","112321"]
[null,null,null,null,null,null,null,null,null,null,null,null,null,null,null,"北本市","112330"]
[null,null,null,null,null,null,null,null,null,null,null,null,null,null,null,"八潮市","112348"]
[null,null,null,null,null,null,null,null,null,null,null,null,null,null,null,"富士見市","112356"]
[null,null,null,null,null,null,null,null,null,null,null,null,null,null,null,"三郷市","112372"]
[null,null,null,null,null,null,null,null,null,null,null,null,null,null,null,"蓮田市","112381"]
[null,null,null,null,null,null,null,null,null,null,null,null,null,null,null,"坂戸市","112399"]
[null,null,null,null,null,null,null,null,null,null,null,null,null,null,null,"幸手市","112402"]
[null,null,null,null,null,null,null,null,null,null,null,null,null,null,null,"鶴ヶ島市","112411"]
[null,null,null,null,null,null,null,null,null,null,null,null,null,null,null,"日高市","112429"]
[null,null,null,null,null,null,null,null,null,null,null,null,null,null,null,"吉川市","112437"]
[null,null,null,null,null,null,null,null,null,null,null,null,null,null,null,"ふじみ野市","112453"]
[null,null,null,null,null,null,null,null,null,null,null,null,null,null,null,"白岡市","112461"]
[null,null,null,null,null,null,null,null,null,null,null,null,null,null,null,"北足立郡伊奈町","113018"]
[null,null,null,null,null,null,null,null,null,null,null,null,null,null,null,"入間郡三芳町","113247"]
[null,null,null,null,null,null,null,null,null,null,null,null,null,null,null,"入間郡毛呂山町","113263"]
[null,null,null,null,null,null,null,null,null,null,null,null,null,null,null,"入間郡越生町","113271"]
[null,null,null,null,null,null,null,null,null,null,null,null,null,null,null,"比企郡滑川町","113417"]
[null,null,null,null,null,null,null,null,null,null,null,null,null,null,null,"比企郡嵐山町","113425"]
[null,null,null,null,null,null,null,null,null,null,null,null,null,null,null,"比企郡小川町","113433"]
[null,null,null,null,null,null,null,null,null,null,null,null,null,null,null,"比企郡川島町","113468"]
[null,null,null,null,null,null,null,null,null,null,null,null,null,null,null,"比企郡吉見町","113476"]
[null,null,null,null,null,null,null,null,null,null,null,null,null,null,null,"比企郡鳩山町","113484"]
[null,null,null,null,null,null,null,null,null,null,null,null,null,null,null,"比企郡ときがわ町","113492"]
[null,null,null,null,null,null,null,null,null,null,null,null,null,null,null,"秩父郡横瀬町","113611"]
[null,null,null,null,null,null,null,null,null,null,null,null,null,null,null,"秩父郡皆野町","113620"]
[null,null,null,null,null,null,null,null,null,null,null,null,null,null,null,"秩父郡長瀞町","113638"]
[null,null,null,null,null,null,null,null,null,null,null,null,null,null,null,"秩父郡小鹿野町","113654"]
[null,null,null,null,null,null,null,null,null,null,null,null,null,null,null,"秩父郡東秩父村","113697"]
[null,null,null,null,null,null,null,null,null,null,null,null,null,null,null,"児玉郡美里町","113816"]
[null,null,null,null,null,null,null,null,null,null,null,null,null,null,null,"児玉郡神川町","113832"]
[null,null,null,null,null,null,null,null,null,null,null,null,null,null,null,"児玉郡上里町","113859"]
[null,null,null,null,null,null,null,null,null,null,null,null,null,null,null,"大里郡寄居町","114081"]
[null,null,null,null,null,null,null,null,null,null,null,null,null,null,null,"南埼玉郡宮代町","114421"]
[null,null,null,null,null,null,null,null,null,null,null,null,null,null,null,"南埼玉郡白岡町","114456"]
[null,null,null,null,null,null,null,null,null,null,null,null,null,null,null,"北葛飾郡杉戸町","114642"]
[null,null,null,null,null,null,null,null,null,null,null,null,null,null,null,"北葛飾郡松伏町","114651"]
[null,null,null,null,null,null,null,null,null,null,null,null,null,null,null,"千葉市中央区","121011"]
[null,null,null,null,null,null,null,null,null,null,null,null,null,null,null,"千葉市花見川区","121029"]
[null,null,null,null,null,null,null,null,null,null,null,null,null,null,null,"千葉市稲毛区","121037"]
[null,null,null,null,null,null,null,null,null,null,null,null,null,null,null,"千葉市若葉区","121045"]
[null,null,null,null,null,null,null,null,null,null,null,null,null,null,null,"千葉市緑区","121053"]
[null,null,null,null,null,null,null,null,null,null,null,null,null,null,null,"千葉市美浜区","121061"]
[null,null,null,null,null,null,null,null,null,null,null,null,null,null,null,"銚子市","122025"]
[null,null,null,null,null,null,null,null,null,null,null,null,null,null,null,"市川市","122033"]
[null,null,null,null,null,null,null,null,null,null,null,null,null,null,null,"船橋市","122041"]
[null,null,null,null,null,null,null,null,null,null,null,null,null,null,null,"館山市","122050"]
[null,null,null,null,null,null,null,null,null,null,null,null,null,null,null,"木更津市","122068"]
[null,null,null,null,null,null,null,null,null,null,null,null,null,null,null,"松戸市","122076"]
[null,null,null,null,null,null,null,null,null,null,null,null,null,null,null,"野田市","122084"]
[null,null,null,null,null,null,null,null,null,null,null,null,null,null,null,"茂原市","122106"]
[null,null,null,null,null,null,null,null,null,null,null,null,null,null,null,"成田市","122114"]
[null,null,null,null,null,null,null,null,null,null,null,null,null,null,null,"佐倉市","122122"]
[null,null,null,null,null,null,null,null,null,null,null,null,null,null,null,"東金市","122131"]
[null,null,null,null,null,null,null,null,null,null,null,null,null,null,null,"旭市","122157"]
[null,null,null,null,null,null,null,null,null,null,null,null,null,null,null,"習志野市","122165"]
[null,null,null,null,null,null,null,null,null,null,null,null,null,null,null,"柏市","122173"]
[null,null,null,null,null,null,null,null,null,null,null,null,null,null,null,"勝浦市","122181"]
[null,null,null,null,null,null,null,null,null,null,null,null,null,null,null,"市原市","122190"]
[null,null,null,null,null,null,null,null,null,null,null,null,null,null,null,"流山市","122203"]
[null,null,null,null,null,null,null,null,null,null,null,null,null,null,null,"八千代市","122211"]
[null,null,null,null,null,null,null,null,null,null,null,null,null,null,null,"我孫子市","122220"]
[null,null,null,null,null,null,null,null,null,null,null,null,null,null,null,"鴨川市","122238"]
[null,null,null,null,null,null,null,null,null,null,null,null,null,null,null,"鎌ケ谷市","122246"]
[null,null,null,null,null,null,null,null,null,null,null,null,null,null,null,"君津市","122254"]
[null,null,null,null,null,null,null,null,null,null,null,null,null,null,null,"富津市","122262"]
[null,null,null,null,null,null,null,null,null,null,null,null,null,null,null,"浦安市","122271"]
[null,null,null,null,null,null,null,null,null,null,null,null,null,null,null,"四街道市","122289"]
[null,null,null,null,null,null,null,null,null,null,null,null,null,null,null,"袖ケ浦市","122297"]
[null,null,null,null,null,null,null,null,null,null,null,null,null,null,null,"八街市","122301"]
[null,null,null,null,null,null,null,null,null,null,null,null,null,null,null,"印西市","122319"]
[null,null,null,null,null,null,null,null,null,null,null,null,null,null,null,"白井市","122327"]
[null,null,null,null,null,null,null,null,null,null,null,null,null,null,null,"富里市","122335"]
[null,null,null,null,null,null,null,null,null,null,null,null,null,null,null,"南房総市","122343"]
[null,null,null,null,null,null,null,null,null,null,null,null,null,null,null,"匝瑳市","122351"]
[null,null,null,null,null,null,null,null,null,null,null,null,null,null,null,"香取市","122360"]
[null,null,null,null,null,null,null,null,null,null,null,null,null,null,null,"山武市","122378"]
[null,null,null,null,null,null,null,null,null,null,null,null,null,null,null,"いすみ市","122386"]
[null,null,null,null,null,null,null,null,null,null,null,null,null,null,null,"大網白里市","122394"]
[null,null,null,null,null,null,null,null,null,null,null,null,null,null,null,"印旛郡酒々井町","123226"]
[null,null,null,null,null,null,null,null,null,null,null,null,null,null,null,"印旛郡栄町","123293"]
[null,null,null,null,null,null,null,null,null,null,null,null,null,null,null,"香取郡神崎町","123421"]
[null,null,null,null,null,null,null,null,null,null,null,null,null,null,null,"香取郡多古町","123471"]
[null,null,null,null,null,null,null,null,null,null,null,null,null,null,null,"香取郡東庄町","123498"]
[null,null,null,null,null,null,null,null,null,null,null,null,null,null,null,"山武郡大網白里町","124028"]
[null,null,null,null,null,null,null,null,null,null,null,null,null,null,null,"山武郡九十九里町","124036"]
[null,null,null,null,null,null,null,null,null,null,null,null,null,null,null,"山武郡芝山町","124095"]
[null,null,null,null,null,null,null,null,null,null,null,null,null,null,null,"山武郡横芝光町","124109"]
[null,null,null,null,null,null,null,null,null,null,null,null,null,null,null,"長生郡一宮町","124214"]
[null,null,null,null,null,null,null,null,null,null,null,null,null,null,null,"長生郡睦沢町","124222"]
[null,null,null,null,null,null,null,null,null,null,null,null,null,null,null,"長生郡長生村","124231"]
[null,null,null,null,null,null,null,null,null,null,null,null,null,null,null,"長生郡白子町","124249"]
[null,null,null,null,null,null,null,null,null,null,null,null,null,null,null,"長生郡長柄町","124265"]
[null,null,null,null,null,null,null,null,null,null,null,null,null,null,null,"長生郡長南町","124273"]
[null,null,null,null,null,null,null,null,null,null,null,null,null,null,null,"夷隅郡大多喜町","124419"]
[null,null,null,null,null,null,null,null,null,null,null,null,null,null,null,"夷隅郡御宿町","124435"]
[null,null,null,null,null,null,null,null,null,null,null,null,null,null,null,"安房郡鋸南町","124630"]
[null,null,null,null,null,null,null,null,null,null,null,null,null,null,null,"千代田区","131016"]
[null,null,null,null,null,null,null,null,null,null,null,null,null,null,null,"中央区","131024"]
[null,null,null,null,null,null,null,null,null,null,null,null,null,null,null,"港区","131032"]
[null,null,null,null,null,null,null,null,null,null,null,null,null,null,null,"新宿区","131041"]
[null,null,null,null,null,null,null,null,null,null,null,null,null,null,null,"文京区","131059"]
[null,null,null,null,null,null,null,null,null,null,null,null,null,null,null,"台東区","131067"]
[null,null,null,null,null,null,null,null,null,null,null,null,null,null,null,"墨田区","131075"]
[null,null,null,null,null,null,null,null,null,null,null,null,null,null,null,"江東区","131083"]
[null,null,null,null,null,null,null,null,null,null,null,null,null,null,null,"品川区","131091"]
[null,null,null,null,null,null,null,null,null,null,null,null,null,null,null,"目黒区","131105"]
[null,null,null,null,null,null,null,null,null,null,null,null,null,null,null,"大田区","131113"]
[null,null,null,null,null,null,null,null,null,null,null,null,null,null,null,"世田谷区","131121"]
[null,null,null,null,null,null,null,null,null,null,null,null,null,null,null,"渋谷区","131130"]
[null,null,null,null,null,null,null,null,null,null,null,null,null,null,null,"中野区","131148"]
[null,null,null,null,null,null,null,null,null,null,null,null,null,null,null,"杉並区","131156"]
[null,null,null,null,null,null,null,null,null,null,null,null,null,null,null,"豊島区","131164"]
[null,null,null,null,null,null,null,null,null,null,null,null,null,null,null,"北区","131172"]
[null,null,null,null,null,null,null,null,null,null,null,null,null,null,null,"荒川区","131181"]
[null,null,null,null,null,null,null,null,null,null,null,null,null,null,null,"板橋区","131199"]
[null,null,null,null,null,null,null,null,null,null,null,null,null,null,null,"練馬区","131202"]
[null,null,null,null,null,null,null,null,null,null,null,null,null,null,null,"足立区","131211"]
[null,null,null,null,null,null,null,null,null,null,null,null,null,null,null,"葛飾区","131229"]
[null,null,null,null,null,null,null,null,null,null,null,null,null,null,null,"江戸川区","131237"]
[null,null,null,null,null,null,null,null,null,null,null,null,null,null,null,"八王子市","132012"]
[null,null,null,null,null,null,null,null,null,null,null,null,null,null,null,"立川市","132021"]
[null,null,null,null,null,null,null,null,null,null,null,null,null,null,null,"武蔵野市","132039"]
[null,null,null,null,null,null,null,null,null,null,null,null,null,null,null,"三鷹市","132047"]
[null,null,null,null,null,null,null,null,null,null,null,null,null,null,null,"青梅市","132055"]
[null,null,null,null,null,null,null,null,null,null,null,null,null,null,null,"府中市","132063"]
[null,null,null,null,null,null,null,null,null,null,null,null,null,null,null,"昭島市","132071"]
[null,null,null,null,null,null,null,null,null,null,null,null,null,null,null,"調布市","132080"]
[null,null,null,null,null,null,null,null,null,null,null,null,null,null,null,"町田市","132098"]
[null,null,null,null,null,null,null,null,null,null,null,null,null,null,null,"小金井市","132101"]
[null,null,null,null,null,null,null,null,null,null,null,null,null,null,null,"小平市","132110"]
[null,null,null,null,null,null,null,null,null,null,null,null,null,null,null,"日野市","132128"]
[null,null,null,null,null,null,null,null,null,null,null,null,null,null,null,"東村山市","132136"]
[null,null,null,null,null,null,null,null,null,null,null,null,null,null,null,"国分寺市","132144"]
[null,null,null,null,null,null,null,null,null,null,null,null,null,null,null,"国立市","132152"]
[null,null,null,null,null,null,null,null,null,null,null,null,null,null,null,"福生市","132187"]
[null,null,null,null,null,null,null,null,null,null,null,null,null,null,null,"狛江市","132195"]
[null,null,null,null,null,null,null,null,null,null,null,null,null,null,null,"東大和市","132209"]
[null,null,null,null,null,null,null,null,null,null,null,null,null,null,null,"清瀬市","132217"]
[null,null,null,null,null,null,null,null,null,null,null,null,null,null,null,"東久留米市","132225"]
[null,null,null,null,null,null,null,null,null,null,null,null,null,null,null,"武蔵村山市","132233"]
[null,null,null,null,null,null,null,null,null,null,null,null,null,null,null,"多摩市","132241"]
[null,null,null,null,null,null,null,null,null,null,null,null,null,null,null,"稲城市","132250"]
[null,null,null,null,null,null,null,null,null,null,null,null,null,null,null,"羽村市","132276"]
[null,null,null,null,null,null,null,null,null,null,null,null,null,null,null,"あきる野市","132284"]
[null,null,null,null,null,null,null,null,null,null,null,null,null,null,null,"西東京市","132292"]
[null,null,null,null,null,null,null,null,null,null,null,null,null,null,null,"西多摩郡瑞穂町","133035"]
[null,null,null,null,null,null,null,null,null,null,null,null,null,null,null,"西多摩郡日の出町","133051"]
[null,null,null,null,null,null,null,null,null,null,null,null,null,null,null,"西多摩郡檜原村","133078"]
[null,null,null,null,null,null,null,null,null,null,null,null,null,null,null,"西多摩郡奥多摩町","133086"]
[null,null,null,null,null,null,null,null,null,null,null,null,null,null,null,"大島町","133612"]
[null,null,null,null,null,null,null,null,null,null,null,null,null,null,null,"利島村","133621"]
[null,null,null,null,null,null,null,null,null,null,null,null,null,null,null,"新島村","133639"]
[null,null,null,null,null,null,null,null,null,null,null,null,null,null,null,"神津島村","133647"]
[null,null,null,null,null,null,null,null,null,null,null,null,null,null,null,"三宅島三宅村","133817"]
[null,null,null,null,null,null,null,null,null,null,null,null,null,null,null,"御蔵島村","133825"]
[null,null,null,null,null,null,null,null,null,null,null,null,null,null,null,"八丈島八丈町","134015"]
[null,null,null,null,null,null,null,null,null,null,null,null,null,null,null,"青ヶ島村","134023"]
[null,null,null,null,null,null,null,null,null,null,null,null,null,null,null,"小笠原村","134210"]
[null,null,null,null,null,null,null,null,null,null,null,null,null,null,null,"横浜市鶴見区","141011"]
[null,null,null,null,null,null,null,null,null,null,null,null,null,null,null,"横浜市神奈川区","141020"]
[null,null,null,null,null,null,null,null,null,null,null,null,null,null,null,"横浜市西区","141038"]
[null,null,null,null,null,null,null,null,null,null,null,null,null,null,null,"横浜市中区","141046"]
[null,null,null,null,null,null,null,null,null,null,null,null,null,null,null,"横浜市南区","141054"]
[null,null,null,null,null,null,null,null,null,null,null,null,null,null,null,"横浜市保土ケ谷区","141062"]
[null,null,null,null,null,null,null,null,null,null,null,null,null,null,null,"横浜市磯子区","141071"]
[null,null,null,null,null,null,null,null,null,null,null,null,null,null,null,"横浜市金沢区","141089"]
[null,null,null,null,null,null,null,null,null,null,null,null,null,null,null,"横浜市港北区","141097"]
[null,null,null,null,null,null,null,null,null,null,null,null,null,null,null,"横浜市戸塚区","141101"]
[null,null,null,null,null,null,null,null,null,null,null,null,null,null,null,"横浜市港南区","141119"]
[null,null,null,null,null,null,null,null,null,null,null,null,null,null,null,"横浜市旭区","141127"]
[null,null,null,null,null,null,null,null,null,null,null,null,null,null,null,"横浜市緑区","141135"]
[null,null,null,null,null,null,null,null,null,null,null,null,null,null,null,"横浜市瀬谷区","141143"]
[null,null,null,null,null,null,null,null,null,null,null,null,null,null,null,"横浜市栄区","141151"]
[null,null,null,null,null,null,null,null,null,null,null,null,null,null,null,"横浜市泉区","141160"]
[null,null,null,null,null,null,null,null,null,null,null,null,null,null,null,"横浜市青葉区","141178"]
[null,null,null,null,null,null,null,null,null,null,null,null,null,null,null,"横浜市都筑区","141186"]
[null,null,null,null,null,null,null,null,null,null,null,null,null,null,null,"川崎市川崎区","141313"]
[null,null,null,null,null,null,null,null,null,null,null,null,null,null,null,"川崎市幸区","141321"]
[null,null,null,null,null,null,null,null,null,null,null,null,null,null,null,"川崎市中原区","141330"]
[null,null,null,null,null,null,null,null,null,null,null,null,null,null,null,"川崎市高津区","141348"]
[null,null,null,null,null,null,null,null,null,null,null,null,null,null,null,"川崎市多摩区","141356"]
[null,null,null,null,null,null,null,null,null,null,null,null,null,null,null,"川崎市宮前区","141364"]
[null,null,null,null,null,null,null,null,null,null,null,null,null,null,null,"川崎市麻生区","141372"]
[null,null,null,null,null,null,null,null,null,null,null,null,null,null,null,"相模原市緑区","141518"]
[null,null,null,null,null,null,null,null,null,null,null,null,null,null,null,"相模原市中央区","141526"]
[null,null,null,null,null,null,null,null,null,null,null,null,null,null,null,"相模原市南区","141534"]
[null,null,null,null,null,null,null,null,null,null,null,null,null,null,null,"横須賀市","142018"]
[null,null,null,null,null,null,null,null,null,null,null,null,null,null,null,"平塚市","142034"]
[null,null,null,null,null,null,null,null,null,null,null,null,null,null,null,"鎌倉市","142042"]
[null,null,null,null,null,null,null,null,null,null,null,null,null,null,null,"藤沢市","142051"]
[null,null,null,null,null,null,null,null,null,null,null,null,null,null,null,"小田原市","142069"]
[null,null,null,null,null,null,null,null,null,null,null,null,null,null,null,"茅ヶ崎市","142077"]
[null,null,null,null,null,null,null,null,null,null,null,null,null,null,null,"逗子市","142085"]
[null,null,null,null,null,null,null,null,null,null,null,null,null,null,null,"三浦市","142107"]
[null,null,null,null,null,null,null,null,null,null,null,null,null,null,null,"秦野市","142115"]
[null,null,null,null,null,null,null,null,null,null,null,null,null,null,null,"厚木市","142123"]
[null,null,null,null,null,null,null,null,null,null,null,null,null,null,null,"大和市","142131"]
[null,null,null,null,null,null,null,null,null,null,null,null,null,null,null,"伊勢原市","142140"]
[null,null,null,null,null,null,null,null,null,null,null,null,null,null,null,"海老名市","142158"]
[null,null,null,null,null,null,null,null,null,null,null,null,null,null,null,"座間市","142166"]
[null,null,null,null,null,null,null,null,null,null,null,null,null,null,null,"南足柄市","142174"]
[null,null,null,null,null,null,null,null,null,null,null,null,null,null,null,"綾瀬市","142182"]
[null,null,null,null,null,null,null,null,null,null,null,null,null,null,null,"三浦郡葉山町","143014"]
[null,null,null,null,null,null,null,null,null,null,null,null,null,null,null,"高座郡寒川町","143219"]
[null,null,null,null,null,null,null,null,null,null,null,null,null,null,null,"中郡大磯町","143413"]
[null,null,null,null,null,null,null,null,null,null,null,null,null,null,null,"中郡二宮町","143421"]
[null,null,null,null,null,null,null,null,null,null,null,null,null,null,null,"足柄上郡中井町","143618"]
[null,null,null,null,null,null,null,null,null,null,null,null,null,null,null,"足柄上郡大井町","143626"]
[null,null,null,null,null,null,null,null,null,null,null,null,null,null,null,"足柄上郡松田町","143634"]
[null,null,null,null,null,null,null,null,null,null,null,null,null,null,null,"足柄上郡山北町","143642"]
[null,null,null,null,null,null,null,null,null,null,null,null,null,null,null,"足柄上郡開成町","143669"]
[null,null,null,null,null,null,null,null,null,null,null,null,null,null,null,"足柄下郡箱根町","143821"]
[null,null,null,null,null,null,null,null,null,null,null,null,null,null,null,"足柄下郡真鶴町","143839"]
[null,null,null,null,null,null,null,null,null,null,null,null,null,null,null,"足柄下郡湯河原町","143847"]
[null,null,null,null,null,null,null,null,null,null,null,null,null,null,null,"愛甲郡愛川町","144011"]
[null,null,null,null,null,null,null,null,null,null,null,null,null,null,null,"愛甲郡清川村","144029"]
[null,null,null,null,null,null,null,null,null,null,null,null,null,null,null,"新潟市北区","151017"]
[null,null,null,null,null,null,null,null,null,null,null,null,null,null,null,"新潟市東区","151025"]
[null,null,null,null,null,null,null,null,null,null,null,null,null,null,null,"新潟市中央区","151033"]
[null,null,null,null,null,null,null,null,null,null,null,null,null,null,null,"新潟市江南区","151041"]
[null,null,null,null,null,null,null,null,null,null,null,null,null,null,null,"新潟市秋葉区","151050"]
[null,null,null,null,null,null,null,null,null,null,null,null,null,null,null,"新潟市南区","151068"]
[null,null,null,null,null,null,null,null,null,null,null,null,null,null,null,"新潟市西区","151076"]
[null,null,null,null,null,null,null,null,null,null,null,null,null,null,null,"新潟市西蒲区","151084"]
[null,null,null,null,null,null,null,null,null,null,null,null,null,null,null,"長岡市","152021"]
[null,null,null,null,null,null,null,null,null,null,null,null,null,null,null,"三条市","152048"]
[null,null,null,null,null,null,null,null,null,null,null,null,null,null,null,"柏崎市","152056"]
[null,null,null,null,null,null,null,null,null,null,null,null,null,null,null,"新発田市","152064"]
[null,null,null,null,null,null,null,null,null,null,null,null,null,null,null,"小千谷市","152081"]
[null,null,null,null,null,null,null,null,null,null,null,null,null,null,null,"加茂市","152099"]
[null,null,null,null,null,null,null,null,null,null,null,null,null,null,null,"十日町市","152102"]
[null,null,null,null,null,null,null,null,null,null,null,null,null,null,null,"見附市","152111"]
[null,null,null,null,null,null,null,null,null,null,null,null,null,null,null,"村上市","152129"]
[null,null,null,null,null,null,null,null,null,null,null,null,null,null,null,"燕市","152137"]
[null,null,null,null,null,null,null,null,null,null,null,null,null,null,null,"糸魚川市","152161"]
[null,null,null,null,null,null,null,null,null,null,null,null,null,null,null,"妙高市","152170"]
[null,null,null,null,null,null,null,null,null,null,null,null,null,null,null,"五泉市","152188"]
[null,null,null,null,null,null,null,null,null,null,null,null,null,null,null,"上越市","152226"]
[null,null,null,null,null,null,null,null,null,null,null,null,null,null,null,"阿賀野市","152234"]
[null,null,null,null,null,null,null,null,null,null,null,null,null,null,null,"佐渡市","152242"]
[null,null,null,null,null,null,null,null,null,null,null,null,null,null,null,"魚沼市","152251"]
[null,null,null,null,null,null,null,null,null,null,null,null,null,null,null,"南魚沼市","152269"]
[null,null,null,null,null,null,null,null,null,null,null,null,null,null,null,"胎内市","152277"]
[null,null,null,null,null,null,null,null,null,null,null,null,null,null,null,"北蒲原郡聖籠町","153079"]
[null,null,null,null,null,null,null,null,null,null,null,null,null,null,null,"西蒲原郡弥彦村","153427"]
[null,null,null,null,null,null,null,null,null,null,null,null,null,null,null,"南蒲原郡田上町","153613"]
[null,null,null,null,null,null,null,null,null,null,null,null,null,null,null,"東蒲原郡阿賀町","153851"]
[null,null,null,null,null,null,null,null,null,null,null,null,null,null,null,"三島郡出雲崎町","154059"]
[null,null,null,null,null,null,null,null,null,null,null,null,null,null,null,"南魚沼郡湯沢町","154610"]
[null,null,null,null,null,null,null,null,null,null,null,null,null,null,null,"中魚沼郡津南町","154822"]
[null,null,null,null,null,null,null,null,null,null,null,null,null,null,null,"刈羽郡刈羽村","155047"]
[null,null,null,null,null,null,null,null,null,null,null,null,null,null,null,"岩船郡関川村","155811"]
[null,null,null,null,null,null,null,null,null,null,null,null,null,null,null,"岩船郡粟島浦村","155861"]
[null,null,null,null,null,null,null,null,null,null,null,null,null,null,null,"富山市","162019"]
[null,null,null,null,null,null,null,null,null,null,null,null,null,null,null,"高岡市","162027"]
[null,null,null,null,null,null,null,null,null,null,null,null,null,null,null,"魚津市","162043"]
[null,null,null,null,null,null,null,null,null,null,null,null,null,null,null,"氷見市","162051"]
[null,null,null,null,null,null,null,null,null,null,null,null,null,null,null,"滑川市","162060"]
[null,null,null,null,null,null,null,null,null,null,null,null,null,null,null,"黒部市","162078"]
[null,null,null,null,null,null,null,null,null,null,null,null,null,null,null,"砺波市","162086"]
[null,null,null,null,null,null,null,null,null,null,null,null,null,null,null,"小矢部市","162094"]
[null,null,null,null,null,null,null,null,null,null,null,null,null,null,null,"南砺市","162108"]
[null,null,null,null,null,null,null,null,null,null,null,null,null,null,null,"射水市","162116"]
[null,null,null,null,null,null,null,null,null,null,null,null,null,null,null,"中新川郡舟橋村","163210"]
[null,null,null,null,null,null,null,null,null,null,null,null,null,null,null,"中新川郡上市町","163228"]
[null,null,null,null,null,null,null,null,null,null,null,null,null,null,null,"中新川郡立山町","163236"]
[null,null,null,null,null,null,null,null,null,null,null,null,null,null,null,"下新川郡入善町","163422"]
[null,null,null,null,null,null,null,null,null,null,null,null,null,null,null,"下新川郡朝日町","163431"]
[null,null,null,null,null,null,null,null,null,null,null,null,null,null,null,"金沢市","172014"]
[null,null,null,null,null,null,null,null,null,null,null,null,null,null,null,"七尾市","172022"]
[null,null,null,null,null,null,null,null,null,null,null,null,null,null,null,"小松市","172031"]
[null,null,null,null,null,null,null,null,null,null,null,null,null,null,null,"輪島市","172049"]
[null,null,null,null,null,null,null,null,null,null,null,null,null,null,null,"珠洲市","172057"]
[null,null,null,null,null,null,null,null,null,null,null,null,null,null,null,"加賀市","172065"]
[null,null,null,null,null,null,null,null,null,null,null,null,null,null,null,"羽咋市","172073"]
[null,null,null,null,null,null,null,null,null,null,null,null,null,null,null,"かほく市","172090"]
[null,null,null,null,null,null,null,null,null,null,null,null,null,null,null,"白山市","172103"]
[null,null,null,null,null,null,null,null,null,null,null,null,null,null,null,"能美市","172111"]
[null,null,null,null,null,null,null,null,null,null,null,null,null,null,null,"野々市市","172120"]
[null,null,null,null,null,null,null,null,null,null,null,null,null,null,null,"能美郡川北町","173240"]
[null,null,null,null,null,null,null,null,null,null,null,null,null,null,null,"河北郡津幡町","173614"]
[null,null,null,null,null,null,null,null,null,null,null,null,null,null,null,"河北郡内灘町","173657"]
[null,null,null,null,null,null,null,null,null,null,null,null,null,null,null,"羽咋郡志賀町","173843"]
[null,null,null,null,null,null,null,null,null,null,null,null,null,null,null,"羽咋郡宝達志水町","173860"]
[null,null,null,null,null,null,null,null,null,null,null,null,null,null,null,"鹿島郡中能登町","174076"]
[null,null,null,null,null,null,null,null,null,null,null,null,null,null,null,"鳳珠郡穴水町","174611"]
[null,null,null,null,null,null,null,null,null,null,null,null,null,null,null,"鳳珠郡能登町","174637"]
[null,null,null,null,null,null,null,null,null,null,null,null,null,null,null,"福井市","182010"]
[null,null,null,null,null,null,null,null,null,null,null,null,null,null,null,"敦賀市","182028"]
[null,null,null,null,null,null,null,null,null,null,null,null,null,null,null,"小浜市","182044"]
[null,null,null,null,null,null,null,null,null,null,null,null,null,null,null,"大野市","182052"]
[null,null,null,null,null,null,null,null,null,null,null,null,null,null,null,"勝山市","182061"]
[null,null,null,null,null,null,null,null,null,null,null,null,null,null,null,"鯖江市","182079"]
[null,null,null,null,null,null,null,null,null,null,null,null,null,null,null,"あわら市","182087"]
[null,null,null,null,null,null,null,null,null,null,null,null,null,null,null,"越前市","182095"]
[null,null,null,null,null,null,null,null,null,null,null,null,null,null,null,"坂井市","182109"]
[null,null,null,null,null,null,null,null,null,null,null,null,null,null,null,"吉田郡永平寺町","183229"]
[null,null,null,null,null,null,null,null,null,null,null,null,null,null,null,"今立郡池田町","183822"]
[null,null,null,null,null,null,null,null,null,null,null,null,null,null,null,"南条郡南越前町","184047"]
[null,null,null,null,null,null,null,null,null,null,null,null,null,null,null,"丹生郡越前町","184233"]
[null,null,null,null,null,null,null,null,null,null,null,null,null,null,null,"三方郡美浜町","184420"]
[null,null,null,null,null,null,null,null,null,null,null,null,null,null,null,"大飯郡高浜町","184811"]
[null,null,null,null,null,null,null,null,null,null,null,null,null,null,null,"大飯郡おおい町","184837"]
[null,null,null,null,null,null,null,null,null,null,null,null,null,null,null,"三方上中郡若狭町","185019"]
[null,null,null,null,null,null,null,null,null,null,null,null,null,null,null,"甲府市","192015"]
[null,null,null,null,null,null,null,null,null,null,null,null,null,null,null,"富士吉田市","192023"]
[null,null,null,null,null,null,null,null,null,null,null,null,null,null,null,"都留市","192040"]
[null,null,null,null,null,null,null,null,null,null,null,null,null,null,null,"山梨市","192058"]
[null,null,null,null,null,null,null,null,null,null,null,null,null,null,null,"大月市","192066"]
[null,null,null,null,null,null,null,null,null,null,null,null,null,null,null,"韮崎市","192074"]
[null,null,null,null,null,null,null,null,null,null,null,null,null,null,null,"南アルプス市","192082"]
[null,null,null,null,null,null,null,null,null,null,null,null,null,null,null,"北杜市","192091"]
[null,null,null,null,null,null,null,null,null,null,null,null,null,null,null,"甲斐市","192104"]
[null,null,null,null,null,null,null,null,null,null,null,null,null,null,null,"笛吹市","192112"]
[null,null,null,null,null,null,null,null,null,null,null,null,null,null,null,"上野原市","192121"]
[null,null,null,null,null,null,null,null,null,null,null,null,null,null,null,"甲州市","192139"]
[null,null,null,null,null,null,null,null,null,null,null,null,null,null,null,"中央市","192147"]
[null,null,null,null,null,null,null,null,null,null,null,null,null,null,null,"西八代郡市川三郷町","193461"]
[null,null,null,null,null,null,null,null,null,null,null,null,null,null,null,"南巨摩郡早川町","193640"]
[null,null,null,null,null,null,null,null,null,null,null,null,null,null,null,"南巨摩郡身延町","193658"]
[null,null,null,null,null,null,null,null,null,null,null,null,null,null,null,"南巨摩郡南部町","193666"]
[null,null,null,null,null,null,null,null,null,null,null,null,null,null,null,"南巨摩郡富士川町","193682"]
[null,null,null,null,null,null,null,null,null,null,null,null,null,null,null,"中巨摩郡昭和町","193844"]
[null,null,null,null,null,null,null,null,null,null,null,null,null,null,null,"南都留郡道志村","194221"]
[null,null,null,null,null,null,null,null,null,null,null,null,null,null,null,"南都留郡西桂町","194239"]
[null,null,null,null,null,null,null,null,null,null,null,null,null,null,null,"南都留郡忍野村","194247"]
[null,null,null,null,null,null,null,null,null,null,null,null,null,null,null,"南都留郡山中湖村","194255"]
[null,null,null,null,null,null,null,null,null,null,null,null,null,null,null,"南都留郡鳴沢村","194298"]
[null,null,null,null,null,null,null,null,null,null,null,null,null,null,null,"南都留郡富士河口湖町","194301"]
[null,null,null,null,null,null,null,null,null,null,null,null,null,null,null,"北都留郡小菅村","194425"]
[null,null,null,null,null,null,null,null,null,null,null,null,null,null,null,"北都留郡丹波山村","194433"]
[null,null,null,null,null,null,null,null,null,null,null,null,null,null,null,"長野市","202011"]
[null,null,null,null,null,null,null,null,null,null,null,null,null,null,null,"松本市","202029"]
[null,null,null,null,null,null,null,null,null,null,null,null,null,null,null,"上田市","202037"]
[null,null,null,null,null,null,null,null,null,null,null,null,null,null,null,"岡谷市","202045"]
[null,null,null,null,null,null,null,null,null,null,null,null,null,null,null,"飯田市","202053"]
[null,null,null,null,null,null,null,null,null,null,null,null,null,null,null,"諏訪市","202061"]
[null,null,null,null,null,null,null,null,null,null,null,null,null,null,null,"須坂市","202070"]
[null,null,null,null,null,null,null,null,null,null,null,null,null,null,null,"小諸市","202088"]
[null,null,null,null,null,null,null,null,null,null,null,null,null,null,null,"伊那市","202096"]
[null,null,null,null,null,null,null,null,null,null,null,null,null,null,null,"駒ヶ根市","202100"]
[null,null,null,null,null,null,null,null,null,null,null,null,null,null,null,"中野市","202118"]
[null,null,null,null,null,null,null,null,null,null,null,null,null,null,null,"大町市","202126"]
[null,null,null,null,null,null,null,null,null,null,null,null,null,null,null,"飯山市","202134"]
[null,null,null,null,null,null,null,null,null,null,null,null,null,null,null,"茅野市","202142"]
[null,null,null,null,null,null,null,null,null,null,null,null,null,null,null,"塩尻市","202151"]
[null,null,null,null,null,null,null,null,null,null,null,null,null,null,null,"佐久市","202177"]
[null,null,null,null,null,null,null,null,null,null,null,null,null,null,null,"千曲市","202185"]
[null,null,null,null,null,null,null,null,null,null,null,null,null,null,null,"東御市","202193"]
[null,null,null,null,null,null,null,null,null,null,null,null,null,null,null,"安曇野市","202207"]
[null,null,null,null,null,null,null,null,null,null,null,null,null,null,null,"南佐久郡小海町","203033"]
[null,null,null,null,null,null,null,null,null,null,null,null,null,null,null,"南佐久郡川上村","203041"]
[null,null,null,null,null,null,null,null,null,null,null,null,null,null,null,"南佐久郡南牧村","203050"]
[null,null,null,null,null,null,null,null,null,null,null,null,null,null,null,"南佐久郡南相木村","203068"]
[null,null,null,null,null,null,null,null,null,null,null,null,null,null,null,"南佐久郡北相木村","203076"]
[null,null,null,null,null,null,null,null,null,null,null,null,null,null,null,"南佐久郡佐久穂町","203092"]
[null,null,null,null,null,null,null,null,null,null,null,null,null,null,null,"北佐久郡軽井沢町","203211"]
[null,null,null,null,null,null,null,null,null,null,null,null,null,null,null,"北佐久郡御代田町","203238"]
[null,null,null,null,null,null,null,null,null,null,null,null,null,null,null,"北佐久郡立科町","203246"]
[null,null,null,null,null,null,null,null,null,null,null,null,null,null,null,"小県郡青木村","203491"]
[null,null,null,null,null,null,null,null,null,null,null,null,null,null,null,"小県郡長和町","203505"]
[null,null,null,null,null,null,null,null,null,null,null,null,null,null,null,"諏訪郡下諏訪町","203611"]
[null,null,null,null,null,null,null,null,null,null,null,null,null,null,null,"諏訪郡富士見町","203629"]
[null,null,null,null,null,null,null,null,null,null,null,null,null,null,null,"諏訪郡原村","203637"]
[null,null,null,null,null,null,null,null,null,null,null,null,null,null,null,"上伊那郡辰野町","203823"]
[null,null,null,null,null,null,null,null,null,null,null,null,null,null,null,"上伊那郡箕輪町","203831"]
[null,null,null,null,null,null,null,null,null,null,null,null,null,null,null,"上伊那郡飯島町","203840"]
[null,null,null,null,null,null,null,null,null,null,null,null,null,null,null,"上伊那郡南箕輪村","203858"]
[null,null,null,null,null,null,null,null,null,null,null,null,null,null,null,"上伊那郡中川村","203866"]
[null,null,null,null,null,null,null,null,null,null,null,null,null,null,null,"上伊那郡宮田村","203882"]
[null,null,null,null,null,null,null,null,null,null,null,null,null,null,null,"下伊那郡松川町","204021"]
[null,null,null,null,null,null,null,null,null,null,null,null,null,null,null,"下伊那郡高森町","204030"]
[null,null,null,null,null,null,null,null,null,null,null,null,null,null,null,"下伊那郡阿南町","204048"]
[null,null,null,null,null,null,null,null,null,null,null,null,null,null,null,"下伊那郡阿智村","204072"]
[null,null,null,null,null,null,null,null,null,null,null,null,null,null,null,"下伊那郡平谷村","204099"]
[null,null,null,null,null,null,null,null,null,null,null,null,null,null,null,"下伊那郡根羽村","204102"]
[null,null,null,null,null,null,null,null,null,null,null,null,null,null,null,"下伊那郡下條村","204111"]
[null,null,null,null,null,null,null,null,null,null,null,null,null,null,null,"下伊那郡売木村","204129"]
[null,null,null,null,null,null,null,null,null,null,null,null,null,null,null,"下伊那郡天龍村","204137"]
[null,null,null,null,null,null,null,null,null,null,null,null,null,null,null,"下伊那郡泰阜村","204145"]
[null,null,null,null,null,null,null,null,null,null,null,null,null,null,null,"下伊那郡喬木村","204153"]
[null,null,null,null,null,null,null,null,null,null,null,null,null,null,null,"下伊那郡豊丘村","204161"]
[null,null,null,null,null,null,null,null,null,null,null,null,null,null,null,"下伊那郡大鹿村","204170"]
[null,null,null,null,null,null,null,null,null,null,null,null,null,null,null,"木曽郡上松町","204226"]
[null,null,null,null,null,null,null,null,null,null,null,null,null,null,null,"木曽郡南木曽町","204234"]
[null,null,null,null,null,null,null,null,null,null,null,null,null,null,null,"木曽郡木祖村","204251"]
[null,null,null,null,null,null,null,null,null,null,null,null,null,null,null,"木曽郡王滝村","204293"]
[null,null,null,null,null,null,null,null,null,null,null,null,null,null,null,"木曽郡大桑村","204307"]
[null,null,null,null,null,null,null,null,null,null,null,null,null,null,null,"木曽郡木曽町","204323"]
[null,null,null,null,null,null,null,null,null,null,null,null,null,null,null,"東筑摩郡麻績村","204463"]
[null,null,null,null,null,null,null,null,null,null,null,null,null,null,null,"東筑摩郡生坂村","204480"]
[null,null,null,null,null,null,null,null,null,null,null,null,null,null,null,"東筑摩郡山形村","204501"]
[null,null,null,null,null,null,null,null,null,null,null,null,null,null,null,"東筑摩郡朝日村","204510"]
[null,null,null,null,null,null,null,null,null,null,null,null,null,null,null,"東筑摩郡筑北村","204528"]
[null,null,null,null,null,null,null,null,null,null,null,null,null,null,null,"北安曇郡池田町","204811"]
[null,null,null,null,null,null,null,null,null,null,null,null,null,null,null,"北安曇郡松川村","204820"]
[null,null,null,null,null,null,null,null,null,null,null,null,null,null,null,"北安曇郡白馬村","204854"]
[null,null,null,null,null,null,null,null,null,null,null,null,null,null,null,"北安曇郡小谷村","204862"]
[null,null,null,null,null,null,null,null,null,null,null,null,null,null,null,"埴科郡坂城町","205214"]
[null,null,null,null,null,null,null,null,null,null,null,null,null,null,null,"上高井郡小布施町","205419"]
[null,null,null,null,null,null,null,null,null,null,null,null,null,null,null,"上高井郡高山村","205435"]
[null,null,null,null,null,null,null,null,null,null,null,null,null,null,null,"下高井郡山ノ内町","205613"]
[null,null,null,null,null,null,null,null,null,null,null,null,null,null,null,"下高井郡木島平村","205621"]
[null,null,null,null,null,null,null,null,null,null,null,null,null,null,null,"下高井郡野沢温泉村","205630"]
[null,null,null,null,null,null,null,null,null,null,null,null,null,null,null,"上水内郡信濃町","205834"]
[null,null,null,null,null,null,null,null,null,null,null,null,null,null,null,"上水内郡小川村","205885"]
[null,null,null,null,null,null,null,null,null,null,null,null,null,null,null,"上水内郡飯綱町","205907"]
[null,null,null,null,null,null,null,null,null,null,null,null,null,null,null,"下水内郡栄村","206024"]
[null,null,null,null,null,null,null,null,null,null,null,null,null,null,null,"岐阜市","212016"]
[null,null,null,null,null,null,null,null,null,null,null,null,null,null,null,"大垣市","212024"]
[null,null,null,null,null,null,null,null,null,null,null,null,null,null,null,"高山市","212032"]
[null,null,null,null,null,null,null,null,null,null,null,null,null,null,null,"多治見市","212041"]
[null,null,null,null,null,null,null,null,null,null,null,null,null,null,null,"関市","212059"]
[null,null,null,null,null,null,null,null,null,null,null,null,null,null,null,"中津川市","212067"]
[null,null,null,null,null,null,null,null,null,null,null,null,null,null,null,"美濃市","212075"]
[null,null,null,null,null,null,null,null,null,null,null,null,null,null,null,"瑞浪市","212083"]
[null,null,null,null,null,null,null,null,null,null,null,null,null,null,null,"羽島市","212091"]
[null,null,null,null,null,null,null,null,null,null,null,null,null,null,null,"恵那市","212105"]
[null,null,null,null,null,null,null,null,null,null,null,null,null,null,null,"美濃加茂市","212113"]
[null,null,null,null,null,null,null,null,null,null,null,null,null,null,null,"土岐市","212121"]
[null,null,null,null,null,null,null,null,null,null,null,null,null,null,null,"各務原市","212130"]
[null,null,null,null,null,null,null,null,null,null,null,null,null,null,null,"可児市","212148"]
[null,null,null,null,null,null,null,null,null,null,null,null,null,null,null,"山県市","212156"]
[null,null,null,null,null,null,null,null,null,null,null,null,null,null,null,"瑞穂市","212164"]
[null,null,null,null,null,null,null,null,null,null,null,null,null,null,null,"飛騨市","212172"]
[null,null,null,null,null,null,null,null,null,null,null,null,null,null,null,"本巣市","212181"]
[null,null,null,null,null,null,null,null,null,null,null,null,null,null,null,"郡上市","212199"]
[null,null,null,null,null,null,null,null,null,null,null,null,null,null,null,"下呂市","212202"]
[null,null,null,null,null,null,null,null,null,null,null,null,null,null,null,"海津市","212211"]
[null,null,null,null,null,null,null,null,null,null,null,null,null,null,null,"羽島郡岐南町","213021"]
[null,null,null,null,null,null,null,null,null,null,null,null,null,null,null,"羽島郡笠松町","213039"]
[null,null,null,null,null,null,null,null,null,null,null,null,null,null,null,"養老郡養老町","213411"]
[null,null,null,null,null,null,null,null,null,null,null,null,null,null,null,"不破郡垂井町","213616"]
[null,null,null,null,null,null,null,null,null,null,null,null,null,null,null,"不破郡関ケ原町","213624"]
[null,null,null,null,null,null,null,null,null,null,null,null,null,null,null,"安八郡神戸町","213811"]
[null,null,null,null,null,null,null,null,null,null,null,null,null,null,null,"安八郡輪之内町","213829"]
[null,null,null,null,null,null,null,null,null,null,null,null,null,null,null,"安八郡安八町","213837"]
[null,null,null,null,null,null,null,null,null,null,null,null,null,null,null,"揖斐郡揖斐川町","214019"]
[null,null,null,null,null,null,null,null,null,null,null,null,null,null,null,"揖斐郡大野町","214035"]
[null,null,null,null,null,null,null,null,null,null,null,null,null,null,null,"揖斐郡池田町","214043"]
[null,null,null,null,null,null,null,null,null,null,null,null,null,null,null,"本巣郡北方町","214213"]
[null,null,null,null,null,null,null,null,null,null,null,null,null,null,null,"加茂郡坂祝町","215015"]
[null,null,null,null,null,null,null,null,null,null,null,null,null,null,null,"加茂郡富加町","215023"]
[null,null,null,null,null,null,null,null,null,null,null,null,null,null,null,"加茂郡川辺町","215031"]
[null,null,null,null,null,null,null,null,null,null,null,null,null,null,null,"加茂郡七宗町","215040"]
[null,null,null,null,null,null,null,null,null,null,null,null,null,null,null,"加茂郡八百津町","215058"]
[null,null,null,null,null,null,null,null,null,null,null,null,null,null,null,"加茂郡白川町","215066"]
[null,null,null,null,null,null,null,null,null,null,null,null,null,null,null,"加茂郡東白川村","215074"]
[null,null,null,null,null,null,null,null,null,null,null,null,null,null,null,"可児郡御嵩町","215210"]
[null,null,null,null,null,null,null,null,null,null,null,null,null,null,null,"大野郡白川村","216046"]
[null,null,null,null,null,null,null,null,null,null,null,null,null,null,null,"静岡市葵区","221015"]
[null,null,null,null,null,null,null,null,null,null,null,null,null,null,null,"静岡市駿河区","221023"]
[null,null,null,null,null,null,null,null,null,null,null,null,null,null,null,"静岡市清水区","221031"]
[null,null,null,null,null,null,null,null,null,null,null,null,null,null,null,"浜松市中区","229317"]
[null,null,null,null,null,null,null,null,null,null,null,null,null,null,null,"浜松市東区","229325"]
[null,null,null,null,null,null,null,null,null,null,null,null,null,null,null,"浜松市西区","229333"]
[null,null,null,null,null,null,null,null,null,null,null,null,null,null,null,"浜松市南区","229341"]
[null,null,null,null,null,null,null,null,null,null,null,null,null,null,null,"浜松市北区","229350"]
[null,null,null,null,null,null,null,null,null,null,null,null,null,null,null,"浜松市浜北区","229368"]
[null,null,null,null,null,null,null,null,null,null,null,null,null,null,null,"浜松市天竜区","229376"]
[null,null,null,null,null,null,null,null,null,null,null,null,null,null,null,"浜松市中央区","221384"]
[null,null,null,null,null,null,null,null,null,null,null,null,null,null,null,"浜松市浜名区","221392"]
[null,null,null,null,null,null,null,null,null,null,null,null,null,null,null,"浜松市天竜区","221406"]
[null,null,null,null,null,null,null,null,null,null,null,null,null,null,null,"沼津市","222038"]
[null,null,null,null,null,null,null,null,null,null,null,null,null,null,null,"熱海市","222054"]
[null,null,null,null,null,null,null,null,null,null,null,null,null,null,null,"三島市","222062"]
[null,null,null,null,null,null,null,null,null,null,null,null,null,null,null,"富士宮市","222071"]
[null,null,null,null,null,null,null,null,null,null,null,null,null,null,null,"伊東市","222089"]
[null,null,null,null,null,null,null,null,null,null,null,null,null,null,null,"島田市","222097"]
[null,null,null,null,null,null,null,null,null,null,null,null,null,null,null,"富士市","222101"]
[null,null,null,null,null,null,null,null,null,null,null,null,null,null,null,"磐田市","222119"]
[null,null,null,null,null,null,null,null,null,null,null,null,null,null,null,"焼津市","222127"]
[null,null,null,null,null,null,null,null,null,null,null,null,null,null,null,"掛川市","222135"]
[null,null,null,null,null,null,null,null,null,null,null,null,null,null,null,"藤枝市","222143"]
[null,null,null,null,null,null,null,null,null,null,null,null,null,null,null,"御殿場市","222151"]
[null,null,null,null,null,null,null,null,null,null,null,null,null,null,null,"袋井市","222160"]
[null,null,null,null,null,null,null,null,null,null,null,null,null,null,null,"下田市","222194"]
[null,null,null,null,null,null,null,null,null,null,null,null,null,null,null,"裾野市","222208"]
[null,null,null,null,null,null,null,null,null,null,null,null,null,null,null,"湖西市","222216"]
[null,null,null,null,null,null,null,null,null,null,null,null,null,null,null,"伊豆市","222224"]
[null,null,null,null,null,null,null,null,null,null,null,null,null,null,null,"御前崎市","222232"]
[null,null,null,null,null,null,null,null,null,null,null,null,null,null,null,"菊川市","222241"]
[null,null,null,null,null,null,null,null,null,null,null,null,null,null,null,"伊豆の国市","222259"]
[null,null,null,null,null,null,null,null,null,null,null,null,null,null,null,"牧之原市","222267"]
[null,null,null,null,null,null,null,null,null,null,null,null,null,null,null,"賀茂郡東伊豆町","223018"]
[null,null,null,null,null,null,null,null,null,null,null,null,null,null,null,"賀茂郡河津町","223026"]
[null,null,null,null,null,null,null,null,null,null,null,null,null,null,null,"賀茂郡南伊豆町","223042"]
[null,null,null,null,null,null,null,null,null,null,null,null,null,null,null,"賀茂郡松崎町","223051"]
[null,null,null,null,null,null,null,null,null,null,null,null,null,null,null,"賀茂郡西伊豆町","223069"]
[null,null,null,null,null,null,null,null,null,null,null,null,null,null,null,"田方郡函南町","223255"]
[null,null,null,null,null,null,null,null,null,null,null,null,null,null,null,"駿東郡清水町","223417"]
[null,null,null,null,null,null,null,null,null,null,null,null,null,null,null,"駿東郡長泉町","223425"]
[null,null,null,null,null,null,null,null,null,null,null,null,null,null,null,"駿東郡小山町","223441"]
[null,null,null,null,null,null,null,null,null,null,null,null,null,null,null,"榛原郡吉田町","224243"]
[null,null,null,null,null,null,null,null,null,null,null,null,null,null,null,"榛原郡川根本町","224294"]
[null,null,null,null,null,null,null,null,null,null,null,null,null,null,null,"周智郡森町","224618"]
[null,null,null,null,null,null,null,null,null,null,null,null,null,null,null,"名古屋市千種区","231011"]
[null,null,null,null,null,null,null,null,null,null,null,null,null,null,null,"名古屋市東区","231029"]
[null,null,null,null,null,null,null,null,null,null,null,null,null,null,null,"名古屋市北区","231037"]
[null,null,null,null,null,null,null,null,null,null,null,null,null,null,null,"名古屋市西区","231045"]
[null,null,null,null,null,null,null,null,null,null,null,null,null,null,null,"名古屋市中村区","231053"]
[null,null,null,null,null,null,null,null,null,null,null,null,null,null,null,"名古屋市中区","231061"]
[null,null,null,null,null,null,null,null,null,null,null,null,null,null,null,"名古屋市昭和区","231070"]
[null,null,null,null,null,null,null,null,null,null,null,null,null,null,null,"名古屋市瑞穂区","231088"]
[null,null,null,null,null,null,null,null,null,null,null,null,null,null,null,"名古屋市熱田区","231096"]
[null,null,null,null,null,null,null,null,null,null,null,null,null,null,null,"名古屋市中川区","231100"]
[null,null,null,null,null,null,null,null,null,null,null,null,null,null,null,"名古屋市港区","231118"]
[null,null,null,null,null,null,null,null,null,null,null,null,null,null,null,"名古屋市南区","231126"]
[null,null,null,null,null,null,null,null,null,null,null,null,null,null,null,"名古屋市守山区","231134"]
[null,null,null,null,null,null,null,null,null,null,null,null,null,null,null,"名古屋市緑区","231142"]
[null,null,null,null,null,null,null,null,null,null,null,null,null,null,null,"名古屋市名東区","231151"]
[null,null,null,null,null,null,null,null,null,null,null,null,null,null,null,"名古屋市天白区","231169"]
[null,null,null,null,null,null,null,null,null,null,null,null,null,null,null,"豊橋市","232017"]
[null,null,null,null,null,null,null,null,null,null,null,null,null,null,null,"岡崎市","232025"]
[null,null,null,null,null,null,null,null,null,null,null,null,null,null,null,"一宮市","232033"]
[null,null,null,null,null,null,null,null,null,null,null,null,null,null,null,"瀬戸市","232041"]
[null,null,null,null,null,null,null,null,null,null,null,null,null,null,null,"半田市","232050"]
[null,null,null,null,null,null,null,null,null,null,null,null,null,null,null,"春日井市","232068"]
[null,null,null,null,null,null,null,null,null,null,null,null,null,null,null,"豊川市","232076"]
[null,null,null,null,null,null,null,null,null,null,null,null,null,null,null,"津島市","232084"]
[null,null,null,null,null,null,null,null,null,null,null,null,null,null,null,"碧南市","232092"]
[null,null,null,null,null,null,null,null,null,null,null,null,null,null,null,"刈谷市","232106"]
[null,null,null,null,null,null,null,null,null,null,null,null,null,null,null,"豊田市","232114"]
[null,null,null,null,null,null,null,null,null,null,null,null,null,null,null,"安城市","232122"]
[null,null,null,null,null,null,null,null,null,null,null,null,null,null,null,"西尾市","232131"]
[null,null,null,null,null,null,null,null,null,null,null,null,null,null,null,"蒲郡市","232149"]
[null,null,null,null,null,null,null,null,null,null,null,null,null,null,null,"犬山市","232157"]
[null,null,null,null,null,null,null,null,null,null,null,null,null,null,null,"常滑市","232165"]
[null,null,null,null,null,null,null,null,null,null,null,null,null,null,null,"江南市","232173"]
[null,null,null,null,null,null,null,null,null,null,null,null,null,null,null,"小牧市","232190"]
[null,null,null,null,null,null,null,null,null,null,null,null,null,null,null,"稲沢市","232203"]
[null,null,null,null,null,null,null,null,null,null,null,null,null,null,null,"新城市","232211"]
[null,null,null,null,null,null,null,null,null,null,null,null,null,null,null,"東海市","232220"]
[null,null,null,null,null,null,null,null,null,null,null,null,null,null,null,"大府市","232238"]
[null,null,null,null,null,null,null,null,null,null,null,null,null,null,null,"知多市","232246"]
[null,null,null,null,null,null,null,null,null,null,null,null,null,null,null,"知立市","232254"]
[null,null,null,null,null,null,null,null,null,null,null,null,null,null,null,"尾張旭市","232262"]
[null,null,null,null,null,null,null,null,null,null,null,null,null,null,null,"高浜市","232271"]
[null,null,null,null,null,null,null,null,null,null,null,null,null,null,null,"岩倉市","232289"]
[null,null,null,null,null,null,null,null,null,null,null,null,null,null,null,"豊明市","232297"]
[null,null,null,null,null,null,null,null,null,null,null,null,null,null,null,"日進市","232301"]
[null,null,null,null,null,null,null,null,null,null,null,null,null,null,null,"田原市","232319"]
[null,null,null,null,null,null,null,null,null,null,null,null,null,null,null,"愛西市","232327"]
[null,null,null,null,null,null,null,null,null,null,null,null,null,null,null,"清須市","232335"]
[null,null,null,null,null,null,null,null,null,null,null,null,null,null,null,"北名古屋市","232343"]
[null,null,null,null,null,null,null,null,null,null,null,null,null,null,null,"弥富市","232351"]
[null,null,null,null,null,null,null,null,null,null,null,null,null,null,null,"みよし市","232360"]
[null,null,null,null,null,null,null,null,null,null,null,null,null,null,null,"あま市","232378"]
[null,null,null,null,null,null,null,null,null,null,null,null,null,null,null,"長久手市","232386"]
[null,null,null,null,null,null,null,null,null,null,null,null,null,null,null,"愛知郡東郷町","233021"]
[null,null,null,null,null,null,null,null,null,null,null,null,null,null,null,"西春日井郡豊山町","233421"]
[null,null,null,null,null,null,null,null,null,null,null,null,null,null,null,"丹羽郡大口町","233617"]
[null,null,null,null,null,null,null,null,null,null,null,null,null,null,null,"丹羽郡扶桑町","233625"]
[null,null,null,null,null,null,null,null,null,null,null,null,null,null,null,"海部郡大治町","234249"]
[null,null,null,null,null,null,null,null,null,null,null,null,null,null,null,"海部郡蟹江町","234257"]
[null,null,null,null,null,null,null,null,null,null,null,null,null,null,null,"海部郡飛島村","234273"]
[null,null,null,null,null,null,null,null,null,null,null,null,null,null,null,"知多郡阿久比町","234419"]
[null,null,null,null,null,null,null,null,null,null,null,null,null,null,null,"知多郡東浦町","234427"]
[null,null,null,null,null,null,null,null,null,null,null,null,null,null,null,"知多郡南知多町","234451"]
[null,null,null,null,null,null,null,null,null,null,null,null,null,null,null,"知多郡美浜町","234460"]
[null,null,null,null,null,null,null,null,null,null,null,null,null,null,null,"知多郡武豊町","234478"]
[null,null,null,null,null,null,null,null,null,null,null,null,null,null,null,"額田郡幸田町","235016"]
[null,null,null,null,null,null,null,null,null,null,null,null,null,null,null,"北設楽郡設楽町","235610"]
[null,null,null,null,null,null,null,null,null,null,null,null,null,null,null,"北設楽郡東栄町","235628"]
[null,null,null,null,null,null,null,null,null,null,null,null,null,null,null,"北設楽郡豊根村","235636"]
[null,null,null,null,null,null,null,null,null,null,null,null,null,null,null,"津市","242012"]
[null,null,null,null,null,null,null,null,null,null,null,null,null,null,null,"四日市市","242021"]
[null,null,null,null,null,null,null,null,null,null,null,null,null,null,null,"伊勢市","242039"]
[null,null,null,null,null,null,null,null,null,null,null,null,null,null,null,"松阪市","242047"]
[null,null,null,null,null,null,null,null,null,null,null,null,null,null,null,"桑名市","242055"]
[null,null,null,null,null,null,null,null,null,null,null,null,null,null,null,"鈴鹿市","242071"]
[null,null,null,null,null,null,null,null,null,null,null,null,null,null,null,"名張市","242080"]
[null,null,null,null,null,null,null,null,null,null,null,null,null,null,null,"尾鷲市","242098"]
[null,null,null,null,null,null,null,null,null,null,null,null,null,null,null,"亀山市","242101"]
[null,null,null,null,null,null,null,null,null,null,null,null,null,null,null,"鳥羽市","242110"]
[null,null,null,null,null,null,null,null,null,null,null,null,null,null,null,"熊野市","242128"]
[null,null,null,null,null,null,null,null,null,null,null,null,null,null,null,"いなべ市","242144"]
[null,null,null,null,null,null,null,null,null,null,null,null,null,null,null,"志摩市","242152"]
[null,null,null,null,null,null,null,null,null,null,null,null,null,null,null,"伊賀市","242161"]
[null,null,null,null,null,null,null,null,null,null,null,null,null,null,null,"桑名郡木曽岬町","243035"]
[null,null,null,null,null,null,null,null,null,null,null,null,null,null,null,"員弁郡東員町","243248"]
[null,null,null,null,null,null,null,null,null,null,null,null,null,null,null,"三重郡菰野町","243418"]
[null,null,null,null,null,null,null,null,null,null,null,null,null,null,null,"三重郡朝日町","243434"]
[null,null,null,null,null,null,null,null,null,null,null,null,null,null,null,"三重郡川越町","243442"]
[null,null,null,null,null,null,null,null,null,null,null,null,null,null,null,"多気郡多気町","244414"]
[null,null,null,null,null,null,null,null,null,null,null,null,null,null,null,"多気郡明和町","244422"]
[null,null,null,null,null,null,null,null,null,null,null,null,null,null,null,"多気郡大台町","244431"]
[null,null,null,null,null,null,null,null,null,null,null,null,null,null,null,"度会郡玉城町","244619"]
[null,null,null,null,null,null,null,null,null,null,null,null,null,null,null,"度会郡度会町","244708"]
[null,null,null,null,null,null,null,null,null,null,null,null,null,null,null,"度会郡大紀町","244716"]
[null,null,null,null,null,null,null,null,null,null,null,null,null,null,null,"度会郡南伊勢町","244724"]
[null,null,null,null,null,null,null,null,null,null,null,null,null,null,null,"北牟婁郡紀北町","245437"]
[null,null,null,null,null,null,null,null,null,null,null,null,null,null,null,"南牟婁郡御浜町","245615"]
[null,null,null,null,null,null,null,null,null,null,null,null,null,null,null,"南牟婁郡紀宝町","245623"]
[null,null,null,null,null,null,null,null,null,null,null,null,null,null,null,"大津市","252018"]
[null,null,null,null,null,null,null,null,null,null,null,null,null,null,null,"彦根市","252026"]
[null,null,null,null,null,null,null,null,null,null,null,null,null,null,null,"長浜市","252034"]
[null,null,null,null,null,null,null,null,null,null,null,null,null,null,null,"近江八幡市","252042"]
[null,null,null,null,null,null,null,null,null,null,null,null,null,null,null,"草津市","252069"]
[null,null,null,null,null,null,null,null,null,null,null,null,null,null,null,"守山市","252077"]
[null,null,null,null,null,null,null,null,null,null,null,null,null,null,null,"栗東市","252085"]
[null,null,null,null,null,null,null,null,null,null,null,null,null,null,null,"甲賀市","252093"]
[null,null,null,null,null,null,null,null,null,null,null,null,null,null,null,"野洲市","252107"]
[null,null,null,null,null,null,null,null,null,null,null,null,null,null,null,"湖南市","252115"]
[null,null,null,null,null,null,null,null,null,null,null,null,null,null,null,"高島市","252123"]
[null,null,null,null,null,null,null,null,null,null,null,null,null,null,null,"東近江市","252131"]
[null,null,null,null,null,null,null,null,null,null,null,null,null,null,null,"米原市","252140"]
[null,null,null,null,null,null,null,null,null,null,null,null,null,null,null,"蒲生郡日野町","253839"]
[null,null,null,null,null,null,null,null,null,null,null,null,null,null,null,"蒲生郡竜王町","253847"]
[null,null,null,null,null,null,null,null,null,null,null,null,null,null,null,"愛知郡愛荘町","254258"]
[null,null,null,null,null,null,null,null,null,null,null,null,null,null,null,"犬上郡豊郷町","254410"]
[null,null,null,null,null,null,null,null,null,null,null,null,null,null,null,"犬上郡甲良町","254428"]
[null,null,null,null,null,null,null,null,null,null,null,null,null,null,null,"犬上郡多賀町","254436"]
[null,null,null,null,null,null,null,null,null,null,null,null,null,null,null,"京都市北区","261017"]
[null,null,null,null,null,null,null,null,null,null,null,null,null,null,null,"京都市上京区","261025"]
[null,null,null,null,null,null,null,null,null,null,null,null,null,null,null,"京都市左京区","261033"]
[null,null,null,null,null,null,null,null,null,null,null,null,null,null,null,"京都市中京区","261041"]
[null,null,null,null,null,null,null,null,null,null,null,null,null,null,null,"京都市東山区","261050"]
[null,null,null,null,null,null,null,null,null,null,null,null,null,null,null,"京都市下京区","261068"]
[null,null,null,null,null,null,null,null,null,null,null,null,null,null,null,"京都市南区","261076"]
[null,null,null,null,null,null,null,null,null,null,null,null,null,null,null,"京都市右京区","261084"]
[null,null,null,null,null,null,null,null,null,null,null,null,null,null,null,"京都市伏見区","261092"]
[null,null,null,null,null,null,null,null,null,null,null,null,null,null,null,"京都市山科区","261106"]
[null,null,null,null,null,null,null,null,null,null,null,null,null,null,null,"京都市西京区","261114"]
[null,null,null,null,null,null,null,null,null,null,null,null,null,null,null,"福知山市","262013"]
[null,null,null,null,null,null,null,null,null,null,null,null,null,null,null,"舞鶴市","262021"]
[null,null,null,null,null,null,null,null,null,null,null,null,null,null,null,"綾部市","262030"]
[null,null,null,null,null,null,null,null,null,null,null,null,null,null,null,"宇治市","262048"]
[null,null,null,null,null,null,null,null,null,null,null,null,null,null,null,"宮津市","262056"]
[null,null,null,null,null,null,null,null,null,null,null,null,null,null,null,"亀岡市","262064"]
[null,null,null,null,null,null,null,null,null,null,null,null,null,null,null,"城陽市","262072"]
[null,null,null,null,null,null,null,null,null,null,null,null,null,null,null,"向日市","262081"]
[null,null,null,null,null,null,null,null,null,null,null,null,null,null,null,"長岡京市","262099"]
[null,null,null,null,null,null,null,null,null,null,null,null,null,null,null,"八幡市","262102"]
[null,null,null,null,null,null,null,null,null,null,null,null,null,null,null,"京田辺市","262111"]
[null,null,null,null,null,null,null,null,null,null,null,null,null,null,null,"京丹後市","262129"]
[null,null,null,null,null,null,null,null,null,null,null,null,null,null,null,"南丹市","262137"]
[null,null,null,null,null,null,null,null,null,null,null,null,null,null,null,"木津川市","262145"]
[null,null,null,null,null,null,null,null,null,null,null,null,null,null,null,"乙訓郡大山崎町","263036"]
[null,null,null,null,null,null,null,null,null,null,null,null,null,null,null,"久世郡久御山町","263222"]
[null,null,null,null,null,null,null,null,null,null,null,null,null,null,null,"綴喜郡井手町","263435"]
[null,null,null,null,null,null,null,null,null,null,null,null,null,null,null,"綴喜郡宇治田原町","263443"]
[null,null,null,null,null,null,null,null,null,null,null,null,null,null,null,"相楽郡笠置町","263648"]
[null,null,null,null,null,null,null,null,null,null,null,null,null,null,null,"相楽郡和束町","263656"]
[null,null,null,null,null,null,null,null,null,null,null,null,null,null,null,"相楽郡精華町","263664"]
[null,null,null,null,null,null,null,null,null,null,null,null,null,null,null,"相楽郡南山城村","263672"]
[null,null,null,null,null,null,null,null,null,null,null,null,null,null,null,"船井郡京丹波町","264075"]
[null,null,null,null,null,null,null,null,null,null,null,null,null,null,null,"与謝郡伊根町","264636"]
[null,null,null,null,null,null,null,null,null,null,null,null,null,null,null,"与謝郡与謝野町","264652"]
[null,null,null,null,null,null,null,null,null,null,null,null,null,null,null,"大阪市都島区","271021"]
[null,null,null,null,null,null,null,null,null,null,null,null,null,null,null,"大阪市福島区","271039"]
[null,null,null,null,null,null,null,null,null,null,null,null,null,null,null,"大阪市此花区","271047"]
[null,null,null,null,null,null,null,null,null,null,null,null,null,null,null,"大阪市西区","271063"]
[null,null,null,null,null,null,null,null,null,null,null,null,null,null,null,"大阪市港区","271071"]
[null,null,null,null,null,null,null,null,null,null,null,null,null,null,null,"大阪市大正区","271080"]
[null,null,null,null,null,null,null,null,null,null,null,null,null,null,null,"大阪市天王寺区","271098"]
[null,null,null,null,null,null,null,null,null,null,null,null,null,null,null,"大阪市浪速区","271110"]
[null,null,null,null,null,null,null,null,null,null,null,null,null,null,null,"大阪市西淀川区","271136"]
[null,null,null,null,null,null,null,null,null,null,null,null,null,null,null,"大阪市東淀川区","271144"]
[null,null,null,null,null,null,null,null,null,null,null,null,null,null,null,"大阪市東成区","271152"]
[null,null,null,null,null,null,null,null,null,null,null,null,null,null,null,"大阪市生野区","271161"]
[null,null,null,null,null,null,null,null,null,null,null,null,null,null,null,"大阪市旭区","271179"]
[null,null,null,null,null,null,null,null,null,null,null,null,null,null,null,"大阪市城東区","271187"]
[null,null,null,null,null,null,null,null,null,null,null,null,null,null,null,"大阪市阿倍野区","271195"]
[null,null,null,null,null,null,null,null,null,null,null,null,null,null,null,"大阪市住吉区","271209"]
[null,null,null,null,null,null,null,null,null,null,null,null,null,null,null,"大阪市東住吉区","271217"]
[null,null,null,null,null,null,null,null,null,null,null,null,null,null,null,"大阪市西成区","271225"]
[null,null,null,null,null,null,null,null,null,null,null,null,null,null,null,"大阪市淀川区","271233"]
[null,null,null,null,null,null,null,null,null,null,null,null,null,null,null,"大阪市鶴見区","271241"]
[null,null,null,null,null,null,null,null,null,null,null,null,null,null,null,"大阪市住之江区","271250"]
[null,null,null,null,null,null,null,null,null,null,null,null,null,null,null,"大阪市平野区","271268"]
[null,null,null,null,null,null,null,null,null,null,null,null,null,null,null,"大阪市北区","271276"]
[null,null,null,null,null,null,null,null,null,null,null,null,null,null,null,"大阪市中央区","271284"]
[null,null,null,null,null,null,null,null,null,null,null,null,null,null,null,"堺市堺区","271411"]
[null,null,null,null,null,null,null,null,null,null,null,null,null,null,null,"堺市中区","271420"]
[null,null,null,null,null,null,null,null,null,null,null,null,null,null,null,"堺市東区","271438"]
[null,null,null,null,null,null,null,null,null,null,null,null,null,null,null,"堺市西区","271446"]
[null,null,null,null,null,null,null,null,null,null,null,null,null,null,null,"堺市南区","271454"]
[null,null,null,null,null,null,null,null,null,null,null,null,null,null,null,"堺市北区","271462"]
[null,null,null,null,null,null,null,null,null,null,null,null,null,null,null,"堺市美原区","271471"]
[null,null,null,null,null,null,null,null,null,null,null,null,null,null,null,"岸和田市","272027"]
[null,null,null,null,null,null,null,null,null,null,null,null,null,null,null,"豊中市","272035"]
[null,null,null,null,null,null,null,null,null,null,null,null,null,null,null,"池田市","272043"]
[null,null,null,null,null,null,null,null,null,null,null,null,null,null,null,"吹田市","272051"]
[null,null,null,null,null,null,null,null,null,null,null,null,null,null,null,"泉大津市","272060"]
[null,null,null,null,null,null,null,null,null,null,null,null,null,null,null,"高槻市","272078"]
[null,null,null,null,null,null,null,null,null,null,null,null,null,null,null,"貝塚市","272086"]
[null,null,null,null,null,null,null,null,null,null,null,null,null,null,null,"守口市","272094"]
[null,null,null,null,null,null,null,null,null,null,null,null,null,null,null,"枚方市","272108"]
[null,null,null,null,null,null,null,null,null,null,null,null,null,null,null,"茨木市","272116"]
[null,null,null,null,null,null,null,null,null,null,null,null,null,null,null,"八尾市","272124"]
[null,null,null,null,null,null,null,null,null,null,null,null,null,null,null,"泉佐野市","272132"]
[null,null,null,null,null,null,null,null,null,null,null,null,null,null,null,"富田林市","272141"]
[null,null,null,null,null,null,null,null,null,null,null,null,null,null,null,"寝屋川市","272159"]
[null,null,null,null,null,null,null,null,null,null,null,null,null,null,null,"河内長野市","272167"]
[null,null,null,null,null,null,null,null,null,null,null,null,null,null,null,"松原市","272175"]
[null,null,null,null,null,null,null,null,null,null,null,null,null,null,null,"大東市","272183"]
[null,null,null,null,null,null,null,null,null,null,null,null,null,null,null,"和泉市","272191"]
[null,null,null,null,null,null,null,null,null,null,null,null,null,null,null,"箕面市","272205"]
[null,null,null,null,null,null,null,null,null,null,null,null,null,null,null,"柏原市","272213"]
[null,null,null,null,null,null,null,null,null,null,null,null,null,null,null,"羽曳野市","272221"]
[null,null,null,null,null,null,null,null,null,null,null,null,null,null,null,"門真市","272230"]
[null,null,null,null,null,null,null,null,null,null,null,null,null,null,null,"摂津市","272248"]
[null,null,null,null,null,null,null,null,null,null,null,null,null,null,null,"高石市","272256"]
[null,null,null,null,null,null,null,null,null,null,null,null,null,null,null,"藤井寺市","272264"]
[null,null,null,null,null,null,null,null,null,null,null,null,null,null,null,"東大阪市","272272"]
[null,null,null,null,null,null,null,null,null,null,null,null,null,null,null,"泉南市","272281"]
[null,null,null,null,null,null,null,null,null,null,null,null,null,null,null,"四條畷市","272299"]
[null,null,null,null,null,null,null,null,null,null,null,null,null,null,null,"交野市","272302"]
[null,null,null,null,null,null,null,null,null,null,null,null,null,null,null,"大阪狭山市","272311"]
[null,null,null,null,null,null,null,null,null,null,null,null,null,null,null,"阪南市","272329"]
[null,null,null,null,null,null,null,null,null,null,null,null,null,null,null,"三島郡島本町","273015"]
[null,null,null,null,null,null,null,null,null,null,null,null,null,null,null,"豊能郡豊能町","273210"]
[null,null,null,null,null,null,null,null,null,null,null,null,null,null,null,"豊能郡能勢町","273228"]
[null,null,null,null,null,null,null,null,null,null,null,null,null,null,null,"泉北郡忠岡町","273414"]
[null,null,null,null,null,null,null,null,null,null,null,null,null,null,null,"泉南郡熊取町","273619"]
[null,null,null,null,null,null,null,null,null,null,null,null,null,null,null,"泉南郡田尻町","273627"]
[null,null,null,null,null,null,null,null,null,null,null,null,null,null,null,"泉南郡岬町","273660"]
[null,null,null,null,null,null,null,null,null,null,null,null,null,null,null,"南河内郡太子町","273813"]
[null,null,null,null,null,null,null,null,null,null,null,null,null,null,null,"南河内郡河南町","273821"]
[null,null,null,null,null,null,null,null,null,null,null,null,null,null,null,"南河内郡千早赤阪村","273830"]
[null,null,null,null,null,null,null,null,null,null,null,null,null,null,null,"神戸市東灘区","281018"]
[null,null,null,null,null,null,null,null,null,null,null,null,null,null,null,"神戸市灘区","281026"]
[null,null,null,null,null,null,null,null,null,null,null,null,null,null,null,"神戸市兵庫区","281051"]
[null,null,null,null,null,null,null,null,null,null,null,null,null,null,null,"神戸市長田区","281069"]
[null,null,null,null,null,null,null,null,null,null,null,null,null,null,null,"神戸市須磨区","281077"]
[null,null,null,null,null,null,null,null,null,null,null,null,null,null,null,"神戸市垂水区","281085"]
[null,null,null,null,null,null,null,null,null,null,null,null,null,null,null,"神戸市北区","281093"]
[null,null,null,null,null,null,null,null,null,null,null,null,null,null,null,"神戸市中央区","281107"]
[null,null,null,null,null,null,null,null,null,null,null,null,null,null,null,"神戸市西区","281115"]
[null,null,null,null,null,null,null,null,null,null,null,null,null,null,null,"姫路市","282014"]
[null,null,null,null,null,null,null,null,null,null,null,null,null,null,null,"尼崎市","282022"]
[null,null,null,null,null,null,null,null,null,null,null,null,null,null,null,"明石市","282031"]
[null,null,null,null,null,null,null,null,null,null,null,null,null,null,null,"西宮市","282049"]
[null,null,null,null,null,null,null,null,null,null,null,null,null,null,null,"洲本市","282057"]
[null,null,null,null,null,null,null,null,null,null,null,null,null,null,null,"芦屋市","282065"]
[null,null,null,null,null,null,null,null,null,null,null,null,null,null,null,"伊丹市","282073"]
[null,null,null,null,null,null,null,null,null,null,null,null,null,null,null,"相生市","282081"]
[null,null,null,null,null,null,null,null,null,null,null,null,null,null,null,"豊岡市","282090"]
[null,null,null,null,null,null,null,null,null,null,null,null,null,null,null,"加古川市","282103"]
[null,null,null,null,null,null,null,null,null,null,null,null,null,null,null,"赤穂市","282120"]
[null,null,null,null,null,null,null,null,null,null,null,null,null,null,null,"西脇市","282138"]
[null,null,null,null,null,null,null,null,null,null,null,null,null,null,null,"宝塚市","282146"]
[null,null,null,null,null,null,null,null,null,null,null,null,null,null,null,"三木市","282154"]
[null,null,null,null,null,null,null,null,null,null,null,null,null,null,null,"高砂市","282162"]
[null,null,null,null,null,null,null,null,null,null,null,null,null,null,null,"川西市","282171"]
[null,null,null,null,null,null,null,null,null,null,null,null,null,null,null,"小野市","282189"]
[null,null,null,null,null,null,null,null,null,null,null,null,null,null,null,"三田市","282197"]
[null,null,null,null,null,null,null,null,null,null,null,null,null,null,null,"加西市","282201"]
[null,null,null,null,null,null,null,null,null,null,null,null,null,null,null,"丹波篠山市","282219"]
[null,null,null,null,null,null,null,null,null,null,null,null,null,null,null,"養父市","282227"]
[null,null,null,null,null,null,null,null,null,null,null,null,null,null,null,"丹波市","282235"]
[null,null,null,null,null,null,null,null,null,null,null,null,null,null,null,"南あわじ市","282243"]
[null,null,null,null,null,null,null,null,null,null,null,null,null,null,null,"朝来市","282251"]
[null,null,null,null,null,null,null,null,null,null,null,null,null,null,null,"淡路市","282260"]
[null,null,null,null,null,null,null,null,null,null,null,null,null,null,null,"宍粟市","282278"]
[null,null,null,null,null,null,null,null,null,null,null,null,null,null,null,"加東市","282286"]
[null,null,null,null,null,null,null,null,null,null,null,null,null,null,null,"たつの市","282294"]
[null,null,null,null,null,null,null,null,null,null,null,null,null,null,null,"川辺郡猪名川町","283011"]
[null,null,null,null,null,null,null,null,null,null,null,null,null,null,null,"多可郡多可町","283657"]
[null,null,null,null,null,null,null,null,null,null,null,null,null,null,null,"加古郡稲美町","283819"]
[null,null,null,null,null,null,null,null,null,null,null,null,null,null,null,"加古郡播磨町","283827"]
[null,null,null,null,null,null,null,null,null,null,null,null,null,null,null,"神崎郡市川町","284424"]
[null,null,null,null,null,null,null,null,null,null,null,null,null,null,null,"神崎郡福崎町","284432"]
[null,null,null,null,null,null,null,null,null,null,null,null,null,null,null,"神崎郡神河町","284467"]
[null,null,null,null,null,null,null,null,null,null,null,null,null,null,null,"揖保郡太子町","284645"]
[null,null,null,null,null,null,null,null,null,null,null,null,null,null,null,"赤穂郡上郡町","284815"]
[null,null,null,null,null,null,null,null,null,null,null,null,null,null,null,"佐用郡佐用町","285013"]
[null,null,null,null,null,null,null,null,null,null,null,null,null,null,null,"美方郡香美町","285854"]
[null,null,null,null,null,null,null,null,null,null,null,null,null,null,null,"美方郡新温泉町","285862"]
[null,null,null,null,null,null,null,null,null,null,null,null,null,null,null,"奈良市","292010"]
[null,null,null,null,null,null,null,null,null,null,null,null,null,null,null,"大和高田市","292028"]
[null,null,null,null,null,null,null,null,null,null,null,null,null,null,null,"大和郡山市","292036"]
[null,null,null,null,null,null,null,null,null,null,null,null,null,null,null,"天理市","292044"]
[null,null,null,null,null,null,null,null,null,null,null,null,null,null,null,"橿原市","292052"]
[null,null,null,null,null,null,null,null,null,null,null,null,null,null,null,"桜井市","292061"]
[null,null,null,null,null,null,null,null,null,null,null,null,null,null,null,"五條市","292079"]
[null,null,null,null,null,null,null,null,null,null,null,null,null,null,null,"御所市","292087"]
[null,null,null,null,null,null,null,null,null,null,null,null,null,null,null,"生駒市","292095"]
[null,null,null,null,null,null,null,null,null,null,null,null,null,null,null,"香芝市","292109"]
[null,null,null,null,null,null,null,null,null,null,null,null,null,null,null,"葛城市","292117"]
[null,null,null,null,null,null,null,null,null,null,null,null,null,null,null,"宇陀市","292125"]
[null,null,null,null,null,null,null,null,null,null,null,null,null,null,null,"山辺郡山添村","293229"]
[null,null,null,null,null,null,null,null,null,null,null,null,null,null,null,"生駒郡平群町","293423"]
[null,null,null,null,null,null,null,null,null,null,null,null,null,null,null,"生駒郡三郷町","293431"]
[null,null,null,null,null,null,null,null,null,null,null,null,null,null,null,"生駒郡斑鳩町","293440"]
[null,null,null,null,null,null,null,null,null,null,null,null,null,null,null,"生駒郡安堵町","293458"]
[null,null,null,null,null,null,null,null,null,null,null,null,null,null,null,"磯城郡川西町","293610"]
[null,null,null,null,null,null,null,null,null,null,null,null,null,null,null,"磯城郡三宅町","293628"]
[null,null,null,null,null,null,null,null,null,null,null,null,null,null,null,"磯城郡田原本町","293636"]
[null,null,null,null,null,null,null,null,null,null,null,null,null,null,null,"宇陀郡曽爾村","293857"]
[null,null,null,null,null,null,null,null,null,null,null,null,null,null,null,"宇陀郡御杖村","293865"]
[null,null,null,null,null,null,null,null,null,null,null,null,null,null,null,"高市郡高取町","294012"]
[null,null,null,null,null,null,null,null,null,null,null,null,null,null,null,"高市郡明日香村","294021"]
[null,null,null,null,null,null,null,null,null,null,null,null,null,null,null,"北葛城郡上牧町","294241"]
[null,null,null,null,null,null,null,null,null,null,null,null,null,null,null,"北葛城郡王寺町","294250"]
[null,null,null,null,null,null,null,null,null,null,null,null,null,null,null,"北葛城郡広陵町","294268"]
[null,null,null,null,null,null,null,null,null,null,null,null,null,null,null,"北葛城郡河合町","294276"]
[null,null,null,null,null,null,null,null,null,null,null,null,null,null,null,"吉野郡吉野町","294411"]
[null,null,null,null,null,null,null,null,null,null,null,null,null,null,null,"吉野郡大淀町","294420"]
[null,null,null,null,null,null,null,null,null,null,null,null,null,null,null,"吉野郡下市町","294438"]
[null,null,null,null,null,null,null,null,null,null,null,null,null,null,null,"吉野郡黒滝村","294446"]
[null,null,null,null,null,null,null,null,null,null,null,null,null,null,null,"吉野郡天川村","294462"]
[null,null,null,null,null,null,null,null,null,null,null,null,null,null,null,"吉野郡野迫川村","294471"]
[null,null,null,null,null,null,null,null,null,null,null,null,null,null,null,"吉野郡十津川村","294497"]
[null,null,null,null,null,null,null,null,null,null,null,null,null,null,null,"吉野郡下北山村","294501"]
[null,null,null,null,null,null,null,null,null,null,null,null,null,null,null,"吉野郡上北山村","294519"]
[null,null,null,null,null,null,null,null,null,null,null,null,null,null,null,"吉野郡川上村","294527"]
[null,null,null,null,null,null,null,null,null,null,null,null,null,null,null,"吉野郡東吉野村","294535"]
[null,null,null,null,null,null,null,null,null,null,null,null,null,null,null,"和歌山市","302015"]
[null,null,null,null,null,null,null,null,null,null,null,null,null,null,null,"海南市","302023"]
[null,null,null,null,null,null,null,null,null,null,null,null,null,null,null,"橋本市","302031"]
[null,null,null,null,null,null,null,null,null,null,null,null,null,null,null,"有田市","302040"]
[null,null,null,null,null,null,null,null,null,null,null,null,null,null,null,"御坊市","302058"]
[null,null,null,null,null,null,null,null,null,null,null,null,null,null,null,"田辺市","302066"]
[null,null,null,null,null,null,null,null,null,null,null,null,null,null,null,"新宮市","302074"]
[null,null,null,null,null,null,null,null,null,null,null,null,null,null,null,"紀の川市","302082"]
[null,null,null,null,null,null,null,null,null,null,null,null,null,null,null,"岩出市","302091"]
[null,null,null,null,null,null,null,null,null,null,null,null,null,null,null,"海草郡紀美野町","303046"]
[null,null,null,null,null,null,null,null,null,null,null,null,null,null,null,"伊都郡かつらぎ町","303411"]
[null,null,null,null,null,null,null,null,null,null,null,null,null,null,null,"伊都郡九度山町","303437"]
[null,null,null,null,null,null,null,null,null,null,null,null,null,null,null,"伊都郡高野町","303445"]
[null,null,null,null,null,null,null,null,null,null,null,null,null,null,null,"有田郡湯浅町","303615"]
[null,null,null,null,null,null,null,null,null,null,null,null,null,null,null,"有田郡広川町","303623"]
[null,null,null,null,null,null,null,null,null,null,null,null,null,null,null,"有田郡有田川町","303666"]
[null,null,null,null,null,null,null,null,null,null,null,null,null,null,null,"日高郡美浜町","303810"]
[null,null,null,null,null,null,null,null,null,null,null,null,null,null,null,"日高郡日高町","303828"]
[null,null,null,null,null,null,null,null,null,null,null,null,null,null,null,"日高郡由良町","303836"]
[null,null,null,null,null,null,null,null,null,null,null,null,null,null,null,"日高郡印南町","303909"]
[null,null,null,null,null,null,null,null,null,null,null,null,null,null,null,"日高郡みなべ町","303917"]
[null,null,null,null,null,null,null,null,null,null,null,null,null,null,null,"日高郡日高川町","303925"]
[null,null,null,null,null,null,null,null,null,null,null,null,null,null,null,"西牟婁郡白浜町","304018"]
[null,null,null,null,null,null,null,null,null,null,null,null,null,null,null,"西牟婁郡上富田町","304042"]
[null,null,null,null,null,null,null,null,null,null,null,null,null,null,null,"西牟婁郡すさみ町","304069"]
[null,null,null,null,null,null,null,null,null,null,null,null,null,null,null,"東牟婁郡那智勝浦町","304212"]
[null,null,null,null,null,null,null,null,null,null,null,null,null,null,null,"東牟婁郡太地町","304221"]
[null,null,null,null,null,null,null,null,null,null,null,null,null,null,null,"東牟婁郡古座川町","304247"]
[null,null,null,null,null,null,null,null,null,null,null,null,null,null,null,"東牟婁郡北山村","304271"]
[null,null,null,null,null,null,null,null,null,null,null,null,null,null,null,"東牟婁郡串本町","304280"]
[null,null,null,null,null,null,null,null,null,null,null,null,null,null,null,"鳥取市","312011"]
[null,null,null,null,null,null,null,null,null,null,null,null,null,null,null,"米子市","312029"]
[null,null,null,null,null,null,null,null,null,null,null,null,null,null,null,"倉吉市","312037"]
[null,null,null,null,null,null,null,null,null,null,null,null,null,null,null,"境港市","312045"]
[null,null,null,null,null,null,null,null,null,null,null,null,null,null,null,"岩美郡岩美町","313025"]
[null,null,null,null,null,null,null,null,null,null,null,null,null,null,null,"八頭郡若桜町","313254"]
[null,null,null,null,null,null,null,null,null,null,null,null,null,null,null,"八頭郡智頭町","313289"]
[null,null,null,null,null,null,null,null,null,null,null,null,null,null,null,"八頭郡八頭町","313297"]
[null,null,null,null,null,null,null,null,null,null,null,null,null,null,null,"東伯郡三朝町","313645"]
[null,null,null,null,null,null,null,null,null,null,null,null,null,null,null,"東伯郡湯梨浜町","313700"]
[null,null,null,null,null,null,null,null,null,null,null,null,null,null,null,"東伯郡琴浦町","313718"]
[null,null,null,null,null,null,null,null,null,null,null,null,null,null,null,"東伯郡北栄町","313726"]
[null,null,null,null,null,null,null,null,null,null,null,null,null,null,null,"西伯郡日吉津村","313840"]
[null,null,null,null,null,null,null,null,null,null,null,null,null,null,null,"西伯郡大山町","313866"]
[null,null,null,null,null,null,null,null,null,null,null,null,null,null,null,"西伯郡南部町","313891"]
[null,null,null,null,null,null,null,null,null,null,null,null,null,null,null,"西伯郡伯耆町","313904"]
[null,null,null,null,null,null,null,null,null,null,null,null,null,null,null,"日野郡日南町","314013"]
[null,null,null,null,null,null,null,null,null,null,null,null,null,null,null,"日野郡日野町","314021"]
[null,null,null,null,null,null,null,null,null,null,null,null,null,null,null,"日野郡江府町","314030"]
[null,null,null,null,null,null,null,null,null,null,null,null,null,null,null,"松江市","322016"]
[null,null,null,null,null,null,null,null,null,null,null,null,null,null,null,"浜田市","322024"]
[null,null,null,null,null,null,null,null,null,null,null,null,null,null,null,"出雲市","322032"]
[null,null,null,null,null,null,null,null,null,null,null,null,null,null,null,"益田市","322041"]
[null,null,null,null,null,null,null,null,null,null,null,null,null,null,null,"大田市","322059"]
[null,null,null,null,null,null,null,null,null,null,null,null,null,null,null,"安来市","322067"]
[null,null,null,null,null,null,null,null,null,null,null,null,null,null,null,"江津市","322075"]
[null,null,null,null,null,null,null,null,null,null,null,null,null,null,null,"雲南市","322091"]
[null,null,null,null,null,null,null,null,null,null,null,null,null,null,null,"仁多郡奥出雲町","323438"]
[null,null,null,null,null,null,null,null,null,null,null,null,null,null,null,"飯石郡飯南町","323861"]
[null,null,null,null,null,null,null,null,null,null,null,null,null,null,null,"邑智郡川本町","324418"]
[null,null,null,null,null,null,null,null,null,null,null,null,null,null,null,"邑智郡美郷町","324485"]
[null,null,null,null,null,null,null,null,null,null,null,null,null,null,null,"邑智郡邑南町","324493"]
[null,null,null,null,null,null,null,null,null,null,null,null,null,null,null,"鹿足郡津和野町","325015"]
[null,null,null,null,null,null,null,null,null,null,null,null,null,null,null,"鹿足郡吉賀町","325058"]
[null,null,null,null,null,null,null,null,null,null,null,null,null,null,null,"隠岐郡海士町","325252"]
[null,null,null,null,null,null,null,null,null,null,null,null,null,null,null,"隠岐郡西ノ島町","325261"]
[null,null,null,null,null,null,null,null,null,null,null,null,null,null,null,"隠岐郡知夫村","325279"]
[null,null,null,null,null,null,null,null,null,null,null,null,null,null,null,"隠岐郡隠岐の島町","325287"]
[null,null,null,null,null,null,null,null,null,null,null,null,null,null,null,"岡山市北区","331015"]
[null,null,null,null,null,null,null,null,null,null,null,null,null,null,null,"岡山市中区","331023"]
[null,null,null,null,null,null,null,null,null,null,null,null,null,null,null,"岡山市東区","331031"]
[null,null,null,null,null,null,null,null,null,null,null,null,null,null,null,"岡山市南区","331040"]
[null,null,null,null,null,null,null,null,null,null,null,null,null,null,null,"倉敷市","332020"]
[null,null,null,null,null,null,null,null,null,null,null,null,null,null,null,"津山市","332038"]
[null,null,null,null,null,null,null,null,null,null,null,null,null,null,null,"玉野市","332046"]
[null,null,null,null,null,null,null,null,null,null,null,null,null,null,null,"笠岡市","332054"]
[null,null,null,null,null,null,null,null,null,null,null,null,null,null,null,"井原市","332071"]
[null,null,null,null,null,null,null,null,null,null,null,null,null,null,null,"総社市","332089"]
[null,null,null,null,null,null,null,null,null,null,null,null,null,null,null,"高梁市","332097"]
[null,null,null,null,null,null,null,null,null,null,null,null,null,null,null,"新見市","332101"]
[null,null,null,null,null,null,null,null,null,null,null,null,null,null,null,"備前市","332119"]
[null,null,null,null,null,null,null,null,null,null,null,null,null,null,null,"瀬戸内市","332127"]
[null,null,null,null,null,null,null,null,null,null,null,null,null,null,null,"赤磐市","332135"]
[null,null,null,null,null,null,null,null,null,null,null,null,null,null,null,"真庭市","332143"]
[null,null,null,null,null,null,null,null,null,null,null,null,null,null,null,"美作市","332151"]
[null,null,null,null,null,null,null,null,null,null,null,null,null,null,null,"浅口市","332160"]
[null,null,null,null,null,null,null,null,null,null,null,null,null,null,null,"和気郡和気町","333468"]
[null,null,null,null,null,null,null,null,null,null,null,null,null,null,null,"都窪郡早島町","334235"]
[null,null,null,null,null,null,null,null,null,null,null,null,null,null,null,"浅口郡里庄町","334456"]
[null,null,null,null,null,null,null,null,null,null,null,null,null,null,null,"小田郡矢掛町","334618"]
[null,null,null,null,null,null,null,null,null,null,null,null,null,null,null,"真庭郡新庄村","335860"]
[null,null,null,null,null,null,null,null,null,null,null,null,null,null,null,"苫田郡鏡野町","336068"]
[null,null,null,null,null,null,null,null,null,null,null,null,null,null,null,"勝田郡勝央町","336220"]
[null,null,null,null,null,null,null,null,null,null,null,null,null,null,null,"勝田郡奈義町","336238"]
[null,null,null,null,null,null,null,null,null,null,null,null,null,null,null,"英田郡西粟倉村","336432"]
[null,null,null,null,null,null,null,null,null,null,null,null,null,null,null,"久米郡久米南町","336637"]
[null,null,null,null,null,null,null,null,null,null,null,null,null,null,null,"久米郡美咲町","336661"]
[null,null,null,null,null,null,null,null,null,null,null,null,null,null,null,"加賀郡吉備中央町","336815"]
[null,null,null,null,null,null,null,null,null,null,null,null,null,null,null,"広島市中区","341011"]
[null,null,null,null,null,null,null,null,null,null,null,null,null,null,null,"広島市東区","341029"]
[null,null,null,null,null,null,null,null,null,null,null,null,null,null,null,"広島市南区","341037"]
[null,null,null,null,null,null,null,null,null,null,null,null,null,null,null,"広島市西区","341045"]
[null,null,null,null,null,null,null,null,null,null,null,null,null,null,null,"広島市安佐南区","341053"]
[null,null,null,null,null,null,null,null,null,null,null,null,null,null,null,"広島市安佐北区","341061"]
[null,null,null,null,null,null,null,null,null,null,null,null,null,null,null,"広島市安芸区","341070"]
[null,null,null,null,null,null,null,null,null,null,null,null,null,null,null,"広島市佐伯区","341088"]
[null,null,null,null,null,null,null,null,null,null,null,null,null,null,null,"呉市","342025"]
[null,null,null,null,null,null,null,null,null,null,null,null,null,null,null,"竹原市","342033"]
[null,null,null,null,null,null,null,null,null,null,null,null,null,null,null,"三原市","342041"]
[null,null,null,null,null,null,null,null,null,null,null,null,null,null,null,"尾道市","342050"]
[null,null,null,null,null,null,null,null,null,null,null,null,null,null,null,"福山市","342076"]
[null,null,null,null,null,null,null,null,null,null,null,null,null,null,null,"府中市","342084"]
[null,null,null,null,null,null,null,null,null,null,null,null,null,null,null,"三次市","342092"]
[null,null,null,null,null,null,null,null,null,null,null,null,null,null,null,"庄原市","342106"]
[null,null,null,null,null,null,null,null,null,null,null,null,null,null,null,"大竹市","342114"]
[null,null,null,null,null,null,null,null,null,null,null,null,null,null,null,"東広島市","342122"]
[null,null,null,null,null,null,null,null,null,null,null,null,null,null,null,"廿日市市","342131"]
[null,null,null,null,null,null,null,null,null,null,null,null,null,null,null,"安芸高田市","342149"]
[null,null,null,null,null,null,null,null,null,null,null,null,null,null,null,"江田島市","342157"]
[null,null,null,null,null,null,null,null,null,null,null,null,null,null,null,"安芸郡府中町","343021"]
[null,null,null,null,null,null,null,null,null,null,null,null,null,null,null,"安芸郡海田町","343048"]
[null,null,null,null,null,null,null,null,null,null,null,null,null,null,null,"安芸郡熊野町","343072"]
[null,null,null,null,null,null,null,null,null,null,null,null,null,null,null,"安芸郡坂町","343099"]
[null,null,null,null,null,null,null,null,null,null,null,null,null,null,null,"山県郡安芸太田町","343684"]
[null,null,null,null,null,null,null,null,null,null,null,null,null,null,null,"山県郡北広島町","343692"]
[null,null,null,null,null,null,null,null,null,null,null,null,null,null,null,"豊田郡大崎上島町","344311"]
[null,null,null,null,null,null,null,null,null,null,null,null,null,null,null,"世羅郡世羅町","344621"]
[null,null,null,null,null,null,null,null,null,null,null,null,null,null,null,"神石郡神石高原町","345458"]
[null,null,null,null,null,null,null,null,null,null,null,null,null,null,null,"下関市","352012"]
[null,null,null,null,null,null,null,null,null,null,null,null,null,null,null,"宇部市","352021"]
[null,null,null,null,null,null,null,null,null,null,null,null,null,null,null,"山口市","352039"]
[null,null,null,null,null,null,null,null,null,null,null,null,null,null,null,"萩市","352047"]
[null,null,null,null,null,null,null,null,null,null,null,null,null,null,null,"防府市","352063"]
[null,null,null,null,null,null,null,null,null,null,null,null,null,null,null,"下松市","352071"]
[null,null,null,null,null,null,null,null,null,null,null,null,null,null,null,"岩国市","352080"]
[null,null,null,null,null,null,null,null,null,null,null,null,null,null,null,"光市","352101"]
[null,null,null,null,null,null,null,null,null,null,null,null,null,null,null,"長門市","352110"]
[null,null,null,null,null,null,null,null,null,null,null,null,null,null,null,"柳井市","352128"]
[null,null,null,null,null,null,null,null,null,null,null,null,null,null,null,"美祢市","352136"]
[null,null,null,null,null,null,null,null,null,null,null,null,null,null,null,"周南市","352152"]
[null,null,null,null,null,null,null,null,null,null,null,null,null,null,null,"山陽小野田市","352161"]
[null,null,null,null,null,null,null,null,null,null,null,null,null,null,null,"大島郡周防大島町","353051"]
[null,null,null,null,null,null,null,null,null,null,null,null,null,null,null,"玖珂郡和木町","353213"]
[null,null,null,null,null,null,null,null,null,null,null,null,null,null,null,"熊毛郡上関町","353418"]
[null,null,null,null,null,null,null,null,null,null,null,null,null,null,null,"熊毛郡田布施町","353434"]
[null,null,null,null,null,null,null,null,null,null,null,null,null,null,null,"熊毛郡平生町","353442"]
[null,null,null,null,null,null,null,null,null,null,null,null,null,null,null,"阿武郡阿武町","355020"]
[null,null,null,null,null,null,null,null,null,null,null,null,null,null,null,"徳島市","362018"]
[null,null,null,null,null,null,null,null,null,null,null,null,null,null,null,"鳴門市","362026"]
[null,null,null,null,null,null,null,null,null,null,null,null,null,null,null,"小松島市","362034"]
[null,null,null,null,null,null,null,null,null,null,null,null,null,null,null,"阿南市","362042"]
[null,null,null,null,null,null,null,null,null,null,null,null,null,null,null,"吉野川市","362051"]
[null,null,null,null,null,null,null,null,null,null,null,null,null,null,null,"阿波市","362069"]
[null,null,null,null,null,null,null,null,null,null,null,null,null,null,null,"美馬市","362077"]
[null,null,null,null,null,null,null,null,null,null,null,null,null,null,null,"三好市","362085"]
[null,null,null,null,null,null,null,null,null,null,null,null,null,null,null,"勝浦郡勝浦町","363014"]
[null,null,null,null,null,null,null,null,null,null,null,null,null,null,null,"勝浦郡上勝町","363022"]
[null,null,null,null,null,null,null,null,null,null,null,null,null,null,null,"名東郡佐那河内村","363219"]
[null,null,null,null,null,null,null,null,null,null,null,null,null,null,null,"名西郡石井町","363413"]
[null,null,null,null,null,null,null,null,null,null,null,null,null,null,null,"名西郡神山町","363421"]
[null,null,null,null,null,null,null,null,null,null,null,null,null,null,null,"那賀郡那賀町","363685"]
[null,null,null,null,null,null,null,null,null,null,null,null,null,null,null,"海部郡牟岐町","363839"]
[null,null,null,null,null,null,null,null,null,null,null,null,null,null,null,"海部郡美波町","363871"]
[null,null,null,null,null,null,null,null,null,null,null,null,null,null,null,"海部郡海陽町","363880"]
[null,null,null,null,null,null,null,null,null,null,null,null,null,null,null,"板野郡松茂町","364011"]
[null,null,null,null,null,null,null,null,null,null,null,null,null,null,null,"板野郡北島町","364029"]
[null,null,null,null,null,null,null,null,null,null,null,null,null,null,null,"板野郡藍住町","364037"]
[null,null,null,null,null,null,null,null,null,null,null,null,null,null,null,"板野郡板野町","364045"]
[null,null,null,null,null,null,null,null,null,null,null,null,null,null,null,"板野郡上板町","364053"]
[null,null,null,null,null,null,null,null,null,null,null,null,null,null,null,"美馬郡つるぎ町","364681"]
[null,null,null,null,null,null,null,null,null,null,null,null,null,null,null,"三好郡東みよし町","364894"]
[null,null,null,null,null,null,null,null,null,null,null,null,null,null,null,"高松市","372013"]
[null,null,null,null,null,null,null,null,null,null,null,null,null,null,null,"丸亀市","372021"]
[null,null,null,null,null,null,null,null,null,null,null,null,null,null,null,"坂出市","372030"]
[null,null,null,null,null,null,null,null,null,null,null,null,null,null,null,"善通寺市","372048"]
[null,null,null,null,null,null,null,null,null,null,null,null,null,null,null,"観音寺市","372056"]
[null,null,null,null,null,null,null,null,null,null,null,null,null,null,null,"さぬき市","372064"]
[null,null,null,null,null,null,null,null,null,null,null,null,null,null,null,"東かがわ市","372072"]
[null,null,null,null,null,null,null,null,null,null,null,null,null,null,null,"三豊市","372081"]
[null,null,null,null,null,null,null,null,null,null,null,null,null,null,null,"小豆郡土庄町","373222"]
[null,null,null,null,null,null,null,null,null,null,null,null,null,null,null,"小豆郡小豆島町","373249"]
[null,null,null,null,null,null,null,null,null,null,null,null,null,null,null,"木田郡三木町","373419"]
[null,null,null,null,null,null,null,null,null,null,null,null,null,null,null,"香川郡直島町","373648"]
[null,null,null,null,null,null,null,null,null,null,null,null,null,null,null,"綾歌郡宇多津町","373869"]
[null,null,null,null,null,null,null,null,null,null,null,null,null,null,null,"綾歌郡綾川町","373877"]
[null,null,null,null,null,null,null,null,null,null,null,null,null,null,null,"仲多度郡琴平町","374032"]
[null,null,null,null,null,null,null,null,null,null,null,null,null,null,null,"仲多度郡多度津町","374041"]
[null,null,null,null,null,null,null,null,null,null,null,null,null,null,null,"仲多度郡まんのう町","374067"]
[null,null,null,null,null,null,null,null,null,null,null,null,null,null,null,"松山市","382019"]
[null,null,null,null,null,null,null,null,null,null,null,null,null,null,null,"今治市","382027"]
[null,null,null,null,null,null,null,null,null,null,null,null,null,null,null,"宇和島市","382035"]
[null,null,null,null,null,null,null,null,null,null,null,null,null,null,null,"八幡浜市","382043"]
[null,null,null,null,null,null,null,null,null,null,null,null,null,null,null,"新居浜市","382051"]
[null,null,null,null,null,null,null,null,null,null,null,null,null,null,null,"西条市","382060"]
[null,null,null,null,null,null,null,null,null,null,null,null,null,null,null,"大洲市","382078"]
[null,null,null,null,null,null,null,null,null,null,null,null,null,null,null,"伊予市","382108"]
[null,null,null,null,null,null,null,null,null,null,null,null,null,null,null,"四国中央市","382132"]
[null,null,null,null,null,null,null,null,null,null,null,null,null,null,null,"西予市","382141"]
[null,null,null,null,null,null,null,null,null,null,null,null,null,null,null,"東温市","382159"]
[null,null,null,null,null,null,null,null,null,null,null,null,null,null,null,"越智郡上島町","383562"]
[null,null,null,null,null,null,null,null,null,null,null,null,null,null,null,"上浮穴郡久万高原町","383864"]
[null,null,null,null,null,null,null,null,null,null,null,null,null,null,null,"伊予郡松前町","384011"]
[null,null,null,null,null,null,null,null,null,null,null,null,null,null,null,"伊予郡砥部町","384020"]
[null,null,null,null,null,null,null,null,null,null,null,null,null,null,null,"喜多郡内子町","384224"]
[null,null,null,null,null,null,null,null,null,null,null,null,null,null,null,"西宇和郡伊方町","384429"]
[null,null,null,null,null,null,null,null,null,null,null,null,null,null,null,"北宇和郡松野町","384844"]
[null,null,null,null,null,null,null,null,null,null,null,null,null,null,null,"北宇和郡鬼北町","384887"]
[null,null,null,null,null,null,null,null,null,null,null,null,null,null,null,"南宇和郡愛南町","385069"]
[null,null,null,null,null,null,null,null,null,null,null,null,null,null,null,"高知市","392014"]
[null,null,null,null,null,null,null,null,null,null,null,null,null,null,null,"室戸市","392022"]
[null,null,null,null,null,null,null,null,null,null,null,null,null,null,null,"安芸市","392031"]
[null,null,null,null,null,null,null,null,null,null,null,null,null,null,null,"南国市","392049"]
[null,null,null,null,null,null,null,null,null,null,null,null,null,null,null,"土佐市","392057"]
[null,null,null,null,null,null,null,null,null,null,null,null,null,null,null,"須崎市","392065"]
[null,null,null,null,null,null,null,null,null,null,null,null,null,null,null,"宿毛市","392081"]
[null,null,null,null,null,null,null,null,null,null,null,null,null,null,null,"土佐清水市","392090"]
[null,null,null,null,null,null,null,null,null,null,null,null,null,null,null,"四万十市","392103"]
[null,null,null,null,null,null,null,null,null,null,null,null,null,null,null,"香南市","392111"]
[null,null,null,null,null,null,null,null,null,null,null,null,null,null,null,"香美市","392120"]
[null,null,null,null,null,null,null,null,null,null,null,null,null,null,null,"安芸郡東洋町","393011"]
[null,null,null,null,null,null,null,null,null,null,null,null,null,null,null,"安芸郡奈半利町","393029"]
[null,null,null,null,null,null,null,null,null,null,null,null,null,null,null,"安芸郡田野町","393037"]
[null,null,null,null,null,null,null,null,null,null,null,null,null,null,null,"安芸郡安田町","393045"]
[null,null,null,null,null,null,null,null,null,null,null,null,null,null,null,"安芸郡北川村","393053"]
[null,null,null,null,null,null,null,null,null,null,null,null,null,null,null,"安芸郡馬路村","393061"]
[null,null,null,null,null,null,null,null,null,null,null,null,null,null,null,"安芸郡芸西村","393070"]
[null,null,null,null,null,null,null,null,null,null,null,null,null,null,null,"長岡郡本山町","393410"]
[null,null,null,null,null,null,null,null,null,null,null,null,null,null,null,"長岡郡大豊町","393444"]
[null,null,null,null,null,null,null,null,null,null,null,null,null,null,null,"土佐郡土佐町","393631"]
[null,null,null,null,null,null,null,null,null,null,null,null,null,null,null,"土佐郡大川村","393649"]
[null,null,null,null,null,null,null,null,null,null,null,null,null,null,null,"吾川郡いの町","393860"]
[null,null,null,null,null,null,null,null,null,null,null,null,null,null,null,"吾川郡仁淀川町","393878"]
[null,null,null,null,null,null,null,null,null,null,null,null,null,null,null,"高岡郡中土佐町","394017"]
[null,null,null,null,null,null,null,null,null,null,null,null,null,null,null,"高岡郡佐川町","394025"]
[null,null,null,null,null,null,null,null,null,null,null,null,null,null,null,"高岡郡越知町","394033"]
[null,null,null,null,null,null,null,null,null,null,null,null,null,null,null,"高岡郡檮原町","394050"]
[null,null,null,null,null,null,null,null,null,null,null,null,null,null,null,"高岡郡日高村","394106"]
[null,null,null,null,null,null,null,null,null,null,null,null,null,null,null,"高岡郡津野町","394114"]
[null,null,null,null,null,null,null,null,null,null,null,null,null,null,null,"高岡郡四万十町","394122"]
[null,null,null,null,null,null,null,null,null,null,null,null,null,null,null,"幡多郡大月町","394246"]
[null,null,null,null,null,null,null,null,null,null,null,null,null,null,null,"幡多郡三原村","394271"]
[null,null,null,null,null,null,null,null,null,null,null,null,null,null,null,"幡多郡黒潮町","394289"]
[null,null,null,null,null,null,null,null,null,null,null,null,null,null,null,"北九州市門司区","401013"]
[null,null,null,null,null,null,null,null,null,null,null,null,null,null,null,"北九州市若松区","401030"]
[null,null,null,null,null,null,null,null,null,null,null,null,null,null,null,"北九州市戸畑区","401056"]
[null,null,null,null,null,null,null,null,null,null,null,null,null,null,null,"北九州市小倉北区","401064"]
[null,null,null,null,null,null,null,null,null,null,null,null,null,null,null,"北九州市小倉南区","401072"]
[null,null,null,null,null,null,null,null,null,null,null,null,null,null,null,"北九州市八幡東区","401081"]
[null,null,null,null,null,null,null,null,null,null,null,null,null,null,null,"北九州市八幡西区","401099"]
[null,null,null,null,null,null,null,null,null,null,null,null,null,null,null,"福岡市東区","401315"]
[null,null,null,null,null,null,null,null,null,null,null,null,null,null,null,"福岡市博多区","401323"]
[null,null,null,null,null,null,null,null,null,null,null,null,null,null,null,"福岡市中央区","401331"]
[null,null,null,null,null,null,null,null,null,null,null,null,null,null,null,"福岡市南区","401340"]
[null,null,null,null,null,null,null,null,null,null,null,null,null,null,null,"福岡市西区","401358"]
[null,null,null,null,null,null,null,null,null,null,null,null,null,null,null,"福岡市城南区","401366"]
[null,null,null,null,null,null,null,null,null,null,null,null,null,null,null,"福岡市早良区","401374"]
[null,null,null,null,null,null,null,null,null,null,null,null,null,null,null,"大牟田市","402028"]
[null,null,null,null,null,null,null,null,null,null,null,null,null,null,null,"久留米市","402036"]
[null,null,null,null,null,null,null,null,null,null,null,null,null,null,null,"直方市","402044"]
[null,null,null,null,null,null,null,null,null,null,null,null,null,null,null,"飯塚市","402052"]
[null,null,null,null,null,null,null,null,null,null,null,null,null,null,null,"田川市","402061"]
[null,null,null,null,null,null,null,null,null,null,null,null,null,null,null,"柳川市","402079"]
[null,null,null,null,null,null,null,null,null,null,null,null,null,null,null,"八女市","402109"]
[null,null,null,null,null,null,null,null,null,null,null,null,null,null,null,"筑後市","402117"]
[null,null,null,null,null,null,null,null,null,null,null,null,null,null,null,"大川市","402125"]
[null,null,null,null,null,null,null,null,null,null,null,null,null,null,null,"行橋市","402133"]
[null,null,null,null,null,null,null,null,null,null,null,null,null,null,null,"豊前市","402141"]
[null,null,null,null,null,null,null,null,null,null,null,null,null,null,null,"中間市","402150"]
[null,null,null,null,null,null,null,null,null,null,null,null,null,null,null,"小郡市","402168"]
[null,null,null,null,null,null,null,null,null,null,null,null,null,null,null,"筑紫野市","402176"]
[null,null,null,null,null,null,null,null,null,null,null,null,null,null,null,"春日市","402184"]
[null,null,null,null,null,null,null,null,null,null,null,null,null,null,null,"大野城市","402192"]
[null,null,null,null,null,null,null,null,null,null,null,null,null,null,null,"宗像市","402206"]
[null,null,null,null,null,null,null,null,null,null,null,null,null,null,null,"太宰府市","402214"]
[null,null,null,null,null,null,null,null,null,null,null,null,null,null,null,"古賀市","402231"]
[null,null,null,null,null,null,null,null,null,null,null,null,null,null,null,"福津市","402249"]
[null,null,null,null,null,null,null,null,null,null,null,null,null,null,null,"うきは市","402257"]
[null,null,null,null,null,null,null,null,null,null,null,null,null,null,null,"宮若市","402265"]
[null,null,null,null,null,null,null,null,null,null,null,null,null,null,null,"嘉麻市","402273"]
[null,null,null,null,null,null,null,null,null,null,null,null,null,null,null,"朝倉市","402281"]
[null,null,null,null,null,null,null,null,null,null,null,null,null,null,null,"みやま市","402290"]
[null,null,null,null,null,null,null,null,null,null,null,null,null,null,null,"糸島市","402303"]
[null,null,null,null,null,null,null,null,null,null,null,null,null,null,null,"那珂川市","402311"]
[null,null,null,null,null,null,null,null,null,null,null,null,null,null,null,"筑紫郡那珂川町","403059"]
[null,null,null,null,null,null,null,null,null,null,null,null,null,null,null,"糟屋郡宇美町","403415"]
[null,null,null,null,null,null,null,null,null,null,null,null,null,null,null,"糟屋郡篠栗町","403423"]
[null,null,null,null,null,null,null,null,null,null,null,null,null,null,null,"糟屋郡志免町","403431"]
[null,null,null,null,null,null,null,null,null,null,null,null,null,null,null,"糟屋郡須惠町","403440"]
[null,null,null,null,null,null,null,null,null,null,null,null,null,null,null,"糟屋郡新宮町","403458"]
[null,null,null,null,null,null,null,null,null,null,null,null,null,null,null,"糟屋郡久山町","403482"]
[null,null,null,null,null,null,null,null,null,null,null,null,null,null,null,"糟屋郡粕屋町","403491"]
[null,null,null,null,null,null,null,null,null,null,null,null,null,null,null,"遠賀郡芦屋町","403814"]
[null,null,null,null,null,null,null,null,null,null,null,null,null,null,null,"遠賀郡水巻町","403822"]
[null,null,null,null,null,null,null,null,null,null,null,null,null,null,null,"遠賀郡岡垣町","403831"]
[null,null,null,null,null,null,null,null,null,null,null,null,null,null,null,"遠賀郡遠賀町","403849"]
[null,null,null,null,null,null,null,null,null,null,null,null,null,null,null,"鞍手郡小竹町","404012"]
[null,null,null,null,null,null,null,null,null,null,null,null,null,null,null,"鞍手郡鞍手町","404021"]
[null,null,null,null,null,null,null,null,null,null,null,null,null,null,null,"嘉穂郡桂川町","404217"]
[null,null,null,null,null,null,null,null,null,null,null,null,null,null,null,"朝倉郡筑前町","404471"]
[null,null,null,null,null,null,null,null,null,null,null,null,null,null,null,"朝倉郡東峰村","404489"]
[null,null,null,null,null,null,null,null,null,null,null,null,null,null,null,"三井郡大刀洗町","405035"]
[null,null,null,null,null,null,null,null,null,null,null,null,null,null,null,"三潴郡大木町","405221"]
[null,null,null,null,null,null,null,null,null,null,null,null,null,null,null,"八女郡広川町","405442"]
[null,null,null,null,null,null,null,null,null,null,null,null,null,null,null,"田川郡香春町","406015"]
[null,null,null,null,null,null,null,null,null,null,null,null,null,null,null,"田川郡添田町","406023"]
[null,null,null,null,null,null,null,null,null,null,null,null,null,null,null,"田川郡糸田町","406040"]
[null,null,null,null,null,null,null,null,null,null,null,null,null,null,null,"田川郡川崎町","406058"]
[null,null,null,null,null,null,null,null,null,null,null,null,null,null,null,"田川郡大任町","406082"]
[null,null,null,null,null,null,null,null,null,null,null,null,null,null,null,"田川郡赤村","406091"]
[null,null,null,null,null,null,null,null,null,null,null,null,null,null,null,"田川郡福智町","406104"]
[null,null,null,null,null,null,null,null,null,null,null,null,null,null,null,"京都郡苅田町","406210"]
[null,null,null,null,null,null,null,null,null,null,null,null,null,null,null,"京都郡みやこ町","406252"]
[null,null,null,null,null,null,null,null,null,null,null,null,null,null,null,"築上郡吉富町","406422"]
[null,null,null,null,null,null,null,null,null,null,null,null,null,null,null,"築上郡上毛町","406465"]
[null,null,null,null,null,null,null,null,null,null,null,null,null,null,null,"築上郡築上町","406473"]
[null,null,null,null,null,null,null,null,null,null,null,null,null,null,null,"佐賀市","412015"]
[null,null,null,null,null,null,null,null,null,null,null,null,null,null,null,"唐津市","412023"]
[null,null,null,null,null,null,null,null,null,null,null,null,null,null,null,"鳥栖市","412031"]
[null,null,null,null,null,null,null,null,null,null,null,null,null,null,null,"多久市","412040"]
[null,null,null,null,null,null,null,null,null,null,null,null,null,null,null,"伊万里市","412058"]
[null,null,null,null,null,null,null,null,null,null,null,null,null,null,null,"武雄市","412066"]
[null,null,null,null,null,null,null,null,null,null,null,null,null,null,null,"鹿島市","412074"]
[null,null,null,null,null,null,null,null,null,null,null,null,null,null,null,"小城市","412082"]
[null,null,null,null,null,null,null,null,null,null,null,null,null,null,null,"嬉野市","412091"]
[null,null,null,null,null,null,null,null,null,null,null,null,null,null,null,"神埼市","412104"]
[null,null,null,null,null,null,null,null,null,null,null,null,null,null,null,"神埼郡吉野ヶ里町","413275"]
[null,null,null,null,null,null,null,null,null,null,null,null,null,null,null,"三養基郡基山町","413411"]
[null,null,null,null,null,null,null,null,null,null,null,null,null,null,null,"三養基郡上峰町","413453"]
[null,null,null,null,null,null,null,null,null,null,null,null,null,null,null,"三養基郡みやき町","413461"]
[null,null,null,null,null,null,null,null,null,null,null,null,null,null,null,"東松浦郡玄海町","413879"]
[null,null,null,null,null,null,null,null,null,null,null,null,null,null,null,"西松浦郡有田町","414018"]
[null,null,null,null,null,null,null,null,null,null,null,null,null,null,null,"杵島郡大町町","414239"]
[null,null,null,null,null,null,null,null,null,null,null,null,null,null,null,"杵島郡江北町","414247"]
[null,null,null,null,null,null,null,null,null,null,null,null,null,null,null,"杵島郡白石町","414255"]
[null,null,null,null,null,null,null,null,null,null,null,null,null,null,null,"藤津郡太良町","414417"]
[null,null,null,null,null,null,null,null,null,null,null,null,null,null,null,"長崎市","422011"]
[null,null,null,null,null,null,null,null,null,null,null,null,null,null,null,"佐世保市","422029"]
[null,null,null,null,null,null,null,null,null,null,null,null,null,null,null,"島原市","422037"]
[null,null,null,null,null,null,null,null,null,null,null,null,null,null,null,"諫早市","422045"]
[null,null,null,null,null,null,null,null,null,null,null,null,null,null,null,"大村市","422053"]
[null,null,null,null,null,null,null,null,null,null,null,null,null,null,null,"平戸市","422070"]
[null,null,null,null,null,null,null,null,null,null,null,null,null,null,null,"松浦市","422088"]
[null,null,null,null,null,null,null,null,null,null,null,null,null,null,null,"対馬市","422096"]
[null,null,null,null,null,null,null,null,null,null,null,null,null,null,null,"壱岐市","422100"]
[null,null,null,null,null,null,null,null,null,null,null,null,null,null,null,"五島市","422118"]
[null,null,null,null,null,null,null,null,null,null,null,null,null,null,null,"西海市","422126"]
[null,null,null,null,null,null,null,null,null,null,null,null,null,null,null,"雲仙市","422134"]
[null,null,null,null,null,null,null,null,null,null,null,null,null,null,null,"南島原市","422142"]
[null,null,null,null,null,null,null,null,null,null,null,null,null,null,null,"西彼杵郡長与町","423076"]
[null,null,null,null,null,null,null,null,null,null,null,null,null,null,null,"西彼杵郡時津町","423084"]
[null,null,null,null,null,null,null,null,null,null,null,null,null,null,null,"東彼杵郡東彼杵町","423211"]
[null,null,null,null,null,null,null,null,null,null,null,null,null,null,null,"東彼杵郡川棚町","423220"]
[null,null,null,null,null,null,null,null,null,null,null,null,null,null,null,"東彼杵郡波佐見町","423238"]
[null,null,null,null,null,null,null,null,null,null,null,null,null,null,null,"北松浦郡小値賀町","423831"]
[null,null,null,null,null,null,null,null,null,null,null,null,null,null,null,"北松浦郡佐々町","423912"]
[null,null,null,null,null,null,null,null,null,null,null,null,null,null,null,"南松浦郡新上五島町","424111"]
[null,null,null,null,null,null,null,null,null,null,null,null,null,null,null,"熊本市中央区","431010"]
[null,null,null,null,null,null,null,null,null,null,null,null,null,null,null,"熊本市東区","431028"]
[null,null,null,null,null,null,null,null,null,null,null,null,null,null,null,"熊本市西区","431036"]
[null,null,null,null,null,null,null,null,null,null,null,null,null,null,null,"熊本市南区","431044"]
[null,null,null,null,null,null,null,null,null,null,null,null,null,null,null,"熊本市北区","431052"]
[null,null,null,null,null,null,null,null,null,null,null,null,null,null,null,"八代市","432024"]
[null,null,null,null,null,null,null,null,null,null,null,null,null,null,null,"人吉市","432032"]
[null,null,null,null,null,null,null,null,null,null,null,null,null,null,null,"荒尾市","432041"]
[null,null,null,null,null,null,null,null,null,null,null,null,null,null,null,"水俣市","432059"]
[null,null,null,null,null,null,null,null,null,null,null,null,null,null,null,"玉名市","432067"]
[null,null,null,null,null,null,null,null,null,null,null,null,null,null,null,"山鹿市","432083"]
[null,null,null,null,null,null,null,null,null,null,null,null,null,null,null,"菊池市","432105"]
[null,null,null,null,null,null,null,null,null,null,null,null,null,null,null,"宇土市","432113"]
[null,null,null,null,null,null,null,null,null,null,null,null,null,null,null,"上天草市","432121"]
[null,null,null,null,null,null,null,null,null,null,null,null,null,null,null,"宇城市","432130"]
[null,null,null,null,null,null,null,null,null,null,null,null,null,null,null,"阿蘇市","432148"]
[null,null,null,null,null,null,null,null,null,null,null,null,null,null,null,"天草市","432156"]
[null,null,null,null,null,null,null,null,null,null,null,null,null,null,null,"合志市","432164"]
[null,null,null,null,null,null,null,null,null,null,null,null,null,null,null,"下益城郡美里町","433489"]
[null,null,null,null,null,null,null,null,null,null,null,null,null,null,null,"玉名郡玉東町","433641"]
[null,null,null,null,null,null,null,null,null,null,null,null,null,null,null,"玉名郡南関町","433675"]
[null,null,null,null,null,null,null,null,null,null,null,null,null,null,null,"玉名郡長洲町","433683"]
[null,null,null,null,null,null,null,null,null,null,null,null,null,null,null,"玉名郡和水町","433691"]
[null,null,null,null,null,null,null,null,null,null,null,null,null,null,null,"菊池郡大津町","434035"]
[null,null,null,null,null,null,null,null,null,null,null,null,null,null,null,"菊池郡菊陽町","434043"]
[null,null,null,null,null,null,null,null,null,null,null,null,null,null,null,"阿蘇郡南小国町","434230"]
[null,null,null,null,null,null,null,null,null,null,null,null,null,null,null,"阿蘇郡小国町","434248"]
[null,null,null,null,null,null,null,null,null,null,null,null,null,null,null,"阿蘇郡産山村","434256"]
[null,null,null,null,null,null,null,null,null,null,null,null,null,null,null,"阿蘇郡高森町","434281"]
[null,null,null,null,null,null,null,null,null,null,null,null,null,null,null,"阿蘇郡西原村","434329"]
[null,null,null,null,null,null,null,null,null,null,null,null,null,null,null,"阿蘇郡南阿蘇村","434337"]
[null,null,null,null,null,null,null,null,null,null,null,null,null,null,null,"上益城郡御船町","434418"]
[null,null,null,null,null,null,null,null,null,null,null,null,null,null,null,"上益城郡嘉島町","434426"]
[null,null,null,null,null,null,null,null,null,null,null,null,null,null,null,"上益城郡益城町","434434"]
[null,null,null,null,null,null,null,null,null,null,null,null,null,null,null,"上益城郡甲佐町","434442"]
[null,null,null,null,null,null,null,null,null,null,null,null,null,null,null,"上益城郡山都町","434477"]
[null,null,null,null,null,null,null,null,null,null,null,null,null,null,null,"八代郡氷川町","434680"]
[null,null,null,null,null,null,null,null,null,null,null,null,null,null,null,"葦北郡芦北町","434825"]
[null,null,null,null,null,null,null,null,null,null,null,null,null,null,null,"葦北郡津奈木町","434841"]
[null,null,null,null,null,null,null,null,null,null,null,null,null,null,null,"球磨郡錦町","435015"]
[null,null,null,null,null,null,null,null,null,null,null,null,null,null,null,"球磨郡多良木町","435058"]
[null,null,null,null,null,null,null,null,null,null,null,null,null,null,null,"球磨郡湯前町","435066"]
[null,null,null,null,null,null,null,null,null,null,null,null,null,null,null,"球磨郡水上村","435074"]
[null,null,null,null,null,null,null,null,null,null,null,null,null,null,null,"球磨郡相良村","435104"]
[null,null,null,null,null,null,null,null,null,null,null,null,null,null,null,"球磨郡五木村","435112"]
[null,null,null,null,null,null,null,null,null,null,null,null,null,null,null,"球磨郡山江村","435121"]
[null,null,null,null,null,null,null,null,null,null,null,null,null,null,null,"球磨郡球磨村","435139"]
[null,null,null,null,null,null,null,null,null,null,null,null,null,null,null,"球磨郡あさぎり町","435147"]
[null,null,null,null,null,null,null,null,null,null,null,null,null,null,null,"天草郡苓北町","435317"]
[null,null,null,null,null,null,null,null,null,null,null,null,null,null,null,"大分市","442011"]
[null,null,null,null,null,null,null,null,null,null,null,null,null,null,null,"別府市","442020"]
[null,null,null,null,null,null,null,null,null,null,null,null,null,null,null,"中津市","442038"]
[null,null,null,null,null,null,null,null,null,null,null,null,null,null,null,"日田市","442046"]
[null,null,null,null,null,null,null,null,null,null,null,null,null,null,null,"佐伯市","442054"]
[null,null,null,null,null,null,null,null,null,null,null,null,null,null,null,"臼杵市","442062"]
[null,null,null,null,null,null,null,null,null,null,null,null,null,null,null,"津久見市","442071"]
[null,null,null,null,null,null,null,null,null,null,null,null,null,null,null,"竹田市","442089"]
[null,null,null,null,null,null,null,null,null,null,null,null,null,null,null,"豊後高田市","442097"]
[null,null,null,null,null,null,null,null,null,null,null,null,null,null,null,"杵築市","442101"]
[null,null,null,null,null,null,null,null,null,null,null,null,null,null,null,"宇佐市","442119"]
[null,null,null,null,null,null,null,null,null,null,null,null,null,null,null,"豊後大野市","442127"]
[null,null,null,null,null,null,null,null,null,null,null,null,null,null,null,"由布市","442135"]
[null,null,null,null,null,null,null,null,null,null,null,null,null,null,null,"国東市","442143"]
[null,null,null,null,null,null,null,null,null,null,null,null,null,null,null,"東国東郡姫島村","443221"]
[null,null,null,null,null,null,null,null,null,null,null,null,null,null,null,"速見郡日出町","443417"]
[null,null,null,null,null,null,null,null,null,null,null,null,null,null,null,"玖珠郡九重町","444618"]
[null,null,null,null,null,null,null,null,null,null,null,null,null,null,null,"玖珠郡玖珠町","444626"]
[null,null,null,null,null,null,null,null,null,null,null,null,null,null,null,"宮崎市","452017"]
[null,null,null,null,null,null,null,null,null,null,null,null,null,null,null,"都城市","452025"]
[null,null,null,null,null,null,null,null,null,null,null,null,null,null,null,"延岡市","452033"]
[null,null,null,null,null,null,null,null,null,null,null,null,null,null,null,"日南市","452041"]
[null,null,null,null,null,null,null,null,null,null,null,null,null,null,null,"小林市","452050"]
[null,null,null,null,null,null,null,null,null,null,null,null,null,null,null,"日向市","452068"]
[null,null,null,null,null,null,null,null,null,null,null,null,null,null,null,"串間市","452076"]
[null,null,null,null,null,null,null,null,null,null,null,null,null,null,null,"西都市","452084"]
[null,null,null,null,null,null,null,null,null,null,null,null,null,null,null,"えびの市","452092"]
[null,null,null,null,null,null,null,null,null,null,null,null,null,null,null,"北諸県郡三股町","453412"]
[null,null,null,null,null,null,null,null,null,null,null,null,null,null,null,"西諸県郡高原町","453617"]
[null,null,null,null,null,null,null,null,null,null,null,null,null,null,null,"東諸県郡国富町","453820"]
[null,null,null,null,null,null,null,null,null,null,null,null,null,null,null,"東諸県郡綾町","453838"]
[null,null,null,null,null,null,null,null,null,null,null,null,null,null,null,"児湯郡高鍋町","454010"]
[null,null,null,null,null,null,null,null,null,null,null,null,null,null,null,"児湯郡新富町","454028"]
[null,null,null,null,null,null,null,null,null,null,null,null,null,null,null,"児湯郡西米良村","454036"]
[null,null,null,null,null,null,null,null,null,null,null,null,null,null,null,"児湯郡木城町","454044"]
[null,null,null,null,null,null,null,null,null,null,null,null,null,null,null,"児湯郡川南町","454052"]
[null,null,null,null,null,null,null,null,null,null,null,null,null,null,null,"児湯郡都農町","454061"]
[null,null,null,null,null,null,null,null,null,null,null,null,null,null,null,"東臼杵郡門川町","454214"]
[null,null,null,null,null,null,null,null,null,null,null,null,null,null,null,"東臼杵郡諸塚村","454290"]
[null,null,null,null,null,null,null,null,null,null,null,null,null,null,null,"東臼杵郡椎葉村","454303"]
[null,null,null,null,null,null,null,null,null,null,null,null,null,null,null,"東臼杵郡美郷町","454311"]
[null,null,null,null,null,null,null,null,null,null,null,null,null,null,null,"西臼杵郡高千穂町","454419"]
[null,null,null,null,null,null,null,null,null,null,null,null,null,null,null,"西臼杵郡日之影町","454427"]
[null,null,null,null,null,null,null,null,null,null,null,null,null,null,null,"西臼杵郡五ヶ瀬町","454435"]
[null,null,null,null,null,null,null,null,null,null,null,null,null,null,null,"鹿児島市","462012"]
[null,null,null,null,null,null,null,null,null,null,null,null,null,null,null,"鹿屋市","462039"]
[null,null,null,null,null,null,null,null,null,null,null,null,null,null,null,"枕崎市","462047"]
[null,null,null,null,null,null,null,null,null,null,null,null,null,null,null,"阿久根市","462063"]
[null,null,null,null,null,null,null,null,null,null,null,null,null,null,null,"出水市","462080"]
[null,null,null,null,null,null,null,null,null,null,null,null,null,null,null,"指宿市","462101"]
[null,null,null,null,null,null,null,null,null,null,null,null,null,null,null,"西之表市","462136"]
[null,null,null,null,null,null,null,null,null,null,null,null,null,null,null,"垂水市","462144"]
[null,null,null,null,null,null,null,null,null,null,null,null,null,null,null,"薩摩川内市","462152"]
[null,null,null,null,null,null,null,null,null,null,null,null,null,null,null,"日置市","462161"]
[null,null,null,null,null,null,null,null,null,null,null,null,null,null,null,"曽於市","462179"]
[null,null,null,null,null,null,null,null,null,null,null,null,null,null,null,"霧島市","462187"]
[null,null,null,null,null,null,null,null,null,null,null,null,null,null,null,"いちき串木野市","462195"]
[null,null,null,null,null,null,null,null,null,null,null,null,null,null,null,"南さつま市","462209"]
[null,null,null,null,null,null,null,null,null,null,null,null,null,null,null,"志布志市","462217"]
[null,null,null,null,null,null,null,null,null,null,null,null,null,null,null,"奄美市","462225"]
[null,null,null,null,null,null,null,null,null,null,null,null,null,null,null,"南九州市","462233"]
[null,null,null,null,null,null,null,null,null,null,null,null,null,null,null,"伊佐市","462241"]
[null,null,null,null,null,null,null,null,null,null,null,null,null,null,null,"姶良市","462250"]
[null,null,null,null,null,null,null,null,null,null,null,null,null,null,null,"鹿児島郡三島村","463035"]
[null,null,null,null,null,null,null,null,null,null,null,null,null,null,null,"鹿児島郡十島村","463043"]
[null,null,null,null,null,null,null,null,null,null,null,null,null,null,null,"薩摩郡さつま町","463922"]
[null,null,null,null,null,null,null,null,null,null,null,null,null,null,null,"出水郡長島町","464040"]
[null,null,null,null,null,null,null,null,null,null,null,null,null,null,null,"姶良郡湧水町","464520"]
[null,null,null,null,null,null,null,null,null,null,null,null,null,null,null,"曽於郡大崎町","464686"]
[null,null,null,null,null,null,null,null,null,null,null,null,null,null,null,"肝属郡東串良町","464821"]
[null,null,null,null,null,null,null,null,null,null,null,null,null,null,null,"肝属郡錦江町","464902"]
[null,null,null,null,null,null,null,null,null,null,null,null,null,null,null,"肝属郡南大隅町","464911"]
[null,null,null,null,null,null,null,null,null,null,null,null,null,null,null,"肝属郡肝付町","464929"]
[null,null,null,null,null,null,null,null,null,null,null,null,null,null,null,"熊毛郡中種子町","465011"]
[null,null,null,null,null,null,null,null,null,null,null,null,null,null,null,"熊毛郡南種子町","465020"]
[null,null,null,null,null,null,null,null,null,null,null,null,null,null,null,"熊毛郡屋久島町","465054"]
[null,null,null,null,null,null,null,null,null,null,null,null,null,null,null,"大島郡大和村","465232"]
[null,null,null,null,null,null,null,null,null,null,null,null,null,null,null,"大島郡宇検村","465241"]
[null,null,null,null,null,null,null,null,null,null,null,null,null,null,null,"大島郡瀬戸内町","465259"]
[null,null,null,null,null,null,null,null,null,null,null,null,null,null,null,"大島郡龍郷町","465275"]
[null,null,null,null,null,null,null,null,null,null,null,null,null,null,null,"大島郡喜界町","465291"]
[null,null,null,null,null,null,null,null,null,null,null,null,null,null,null,"大島郡徳之島町","465305"]
[null,null,null,null,null,null,null,null,null,null,null,null,null,null,null,"大島郡天城町","465313"]
[null,null,null,null,null,null,null,null,null,null,null,null,null,null,null,"大島郡伊仙町","465321"]
[null,null,null,null,null,null,null,null,null,null,null,null,null,null,null,"大島郡和泊町","465330"]
[null,null,null,null,null,null,null,null,null,null,null,null,null,null,null,"大島郡知名町","465348"]
[null,null,null,null,null,null,null,null,null,null,null,null,null,null,null,"大島郡与論町","465356"]
[null,null,null,null,null,null,null,null,null,null,null,null,null,null,null,"那覇市","472018"]
[null,null,null,null,null,null,null,null,null,null,null,null,null,null,null,"宜野湾市","472051"]
[null,null,null,null,null,null,null,null,null,null,null,null,null,null,null,"石垣市","472077"]
[null,null,null,null,null,null,null,null,null,null,null,null,null,null,null,"浦添市","472085"]
[null,null,null,null,null,null,null,null,null,null,null,null,null,null,null,"名護市","472093"]
[null,null,null,null,null,null,null,null,null,null,null,null,null,null,null,"糸満市","472107"]
[null,null,null,null,null,null,null,null,null,null,null,null,null,null,null,"沖縄市","472115"]
[null,null,null,null,null,null,null,null,null,null,null,null,null,null,null,"豊見城市","472123"]
[null,null,null,null,null,null,null,null,null,null,null,null,null,null,null,"うるま市","472131"]
[null,null,null,null,null,null,null,null,null,null,null,null,null,null,null,"宮古島市","472140"]
[null,null,null,null,null,null,null,null,null,null,null,null,null,null,null,"南城市","472158"]
[null,null,null,null,null,null,null,null,null,null,null,null,null,null,null,"国頭郡国頭村","473014"]
[null,null,null,null,null,null,null,null,null,null,null,null,null,null,null,"国頭郡大宜味村","473022"]
[null,null,null,null,null,null,null,null,null,null,null,null,null,null,null,"国頭郡東村","473031"]
[null,null,null,null,null,null,null,null,null,null,null,null,null,null,null,"国頭郡今帰仁村","473065"]
[null,null,null,null,null,null,null,null,null,null,null,null,null,null,null,"国頭郡本部町","473081"]
[null,null,null,null,null,null,null,null,null,null,null,null,null,null,null,"国頭郡恩納村","473111"]
[null,null,null,null,null,null,null,null,null,null,null,null,null,null,null,"国頭郡宜野座村","473138"]
[null,null,null,null,null,null,null,null,null,null,null,null,null,null,null,"国頭郡金武町","473146"]
[null,null,null,null,null,null,null,null,null,null,null,null,null,null,null,"国頭郡伊江村","473154"]
[null,null,null,null,null,null,null,null,null,null,null,null,null,null,null,"中頭郡読谷村","473243"]
[null,null,null,null,null,null,null,null,null,null,null,null,null,null,null,"中頭郡嘉手納町","473251"]
[null,null,null,null,null,null,null,null,null,null,null,null,null,null,null,"中頭郡北谷町","473260"]
[null,null,null,null,null,null,null,null,null,null,null,null,null,null,null,"中頭郡北中城村","473278"]
[null,null,null,null,null,null,null,null,null,null,null,null,null,null,null,"中頭郡中城村","473286"]
[null,null,null,null,null,null,null,null,null,null,null,null,null,null,null,"中頭郡西原町","473294"]
[null,null,null,null,null,null,null,null,null,null,null,null,null,null,null,"島尻郡与那原町","473481"]
[null,null,null,null,null,null,null,null,null,null,null,null,null,null,null,"島尻郡南風原町","473502"]
[null,null,null,null,null,null,null,null,null,null,null,null,null,null,null,"島尻郡渡嘉敷村","473537"]
[null,null,null,null,null,null,null,null,null,null,null,null,null,null,null,"島尻郡座間味村","473545"]
[null,null,null,null,null,null,null,null,null,null,null,null,null,null,null,"島尻郡粟国村","473553"]
[null,null,null,null,null,null,null,null,null,null,null,null,null,null,null,"島尻郡渡名喜村","473561"]
[null,null,null,null,null,null,null,null,null,null,null,null,null,null,null,"島尻郡南大東村","473570"]
[null,null,null,null,null,null,null,null,null,null,null,null,null,null,null,"島尻郡北大東村","473588"]
[null,null,null,null,null,null,null,null,null,null,null,null,null,null,null,"島尻郡伊平屋村","473596"]
[null,null,null,null,null,null,null,null,null,null,null,null,null,null,null,"島尻郡伊是名村","473600"]
[null,null,null,null,null,null,null,null,null,null,null,null,null,null,null,"島尻郡久米島町","473618"]
[null,null,null,null,null,null,null,null,null,null,null,null,null,null,null,"島尻郡八重瀬町","473626"]
[null,null,null,null,null,null,null,null,null,null,null,null,null,null,null,"宮古郡多良間村","473758"]
[null,null,null,null,null,null,null,null,null,null,null,null,null,null,null,"八重山郡竹富町","473812"]
[null,null,null,null,null,null,null,null,null,null,null,null,null,null,null,"八重山郡与那国町","473821"]

{"sheet":"連動マスタ","index":6,"n_rows":196,"n_cols":137,"rows_kept":196,"cut":false,"hidden":true,"merged":[]}
[null,"A012_01",null,"A012_16",null,"A012_17",null,"A012_18",null,"A012_04",null,"A012_14",null,"A012_13",null,"A012_05",null,"A012_02",null,"A012_06",null,"A012_03",null,"A012_08",null,"A012_09",null,"A012_07",null,"A012_19",null,"A012_15",null,"A012_10",null,"A012_11",null,"A012_12",null,"A012_20",null,"A012_21",null,"CA69_1_010006",null,"CA69_1_020001",null,"CA69_1_030007",null,"CA69_1_040002",null,"CA69_1_050008",null,"CA69_1_060003",null,"CA69_1_070009",null,"CA69_1_080004",null,"CA69_1_090000",null,"CA69_1_100005",null,"CA69_1_110001",null,"CA69_1_120006",null,"CA69_1_130001",null,"CA69_1_140007",null,"CA69_1_150002",null,"CA69_1_160008",null,"CA69_1_170003",null,"CA69_1_180009",null,"CA69_1_190004",null,"CA69_1_200000",null,"CA69_1_210005",null,"CA69_1_220001",null,"CA69_1_230006",null,"CA69_1_240001",null,"CA69_1_250007",null,"CA69_1_260002",null,"CA69_1_270008",null,"CA69_1_280003",null,"CA69_1_290009",null,"CA69_1_300004",null,"CA69_1_310000",null,"CA69_1_320005",null,"CA69_1_330001",null,"CA69_1_340006",null,"CA69_1_350001",null,"CA69_1_360007",null,"CA69_1_370002",null,"CA69_1_380008",null,"CA69_1_390003",null,"CA69_1_400009",null,"CA69_1_410004",null,"CA69_1_420000",null,"CA69_1_430005",null,"CA69_1_440001",null,"CA69_1_450006",null,"CA69_1_460001",null,"CA69_1_470007"]
[null,"教授","コード","高度専門職第１号イ・第２号（高度学術研究活動）","コード","高度専門職第１号ロ・第２号（高度専門・技術活動）","コード","高度専門職第１号ハ・第２号（高度経営・管理活動）","コード","経営・管理","コード","法律・会計業務","コード","医療","コード","研究","コード","教育","コード","技術・人文知識・国際業務","コード","企業内転勤","コード","介護","コード","興行","コード","技能","コード","特定技能","コード","技能実習","コード","留学","コード","研修","コード","家族滞在","コード","日本人の配偶者等","コード","永住者の配偶者等","コード","北海道","コード","青森県","コード","岩手県","コード","宮城県","コード","秋田県","コード","山形県","コード","福島県","コード","茨城県","コード","栃木県","コード","群馬県","コード","埼玉県","コード","千葉県","コード","東京都","コード","神奈川県","コード","新潟県","コード","富山県","コード","石川県","コード","福井県","コード","山梨県","コード","長野県","コード","岐阜県","コード","静岡県","コード","愛知県","コード","三重県","コード","滋賀県","コード","京都府","コード","大阪府","コード","兵庫県","コード","奈良県","コード","和歌山県","コード","鳥取県","コード","島根県","コード","岡山県","コード","広島県","コード","山口県","コード","徳島県","コード","香川県","コード","愛媛県","コード","高知県","コード","福岡県","コード","佐賀県","コード","長崎県","コード","熊本県","コード","大分県","コード","宮崎県","コード","鹿児島県","コード","沖縄県","コード"]
[null,null,"81","名称変更（現在所属している契約機関の名前が変わった場合）\nChange in the name of the organization","84","名称変更（現在所属している契約機関の名前が変わった場合）\nChange in the name of the organization","84","名称変更（現在所属している活動機関の名前が変わった場合）\nChange in the name of the organization","81","名称変更（現在所属している活動機関の名前が変わった場合）\nChange in the name of the organization","81","名称変更（現在所属している活動機関の名前が変わった場合）\nChange in the name of the organization","81","名称変更（現在所属している活動機関の名前が変わった場合）\nChange in the name of the organization","81","名称変更（現在所属している契約機関の名前が変わった場合）\nChange in the name of the organization","84","名称変更（現在所属している活動機関の名前が変わった場合）\nChange in the name of the organization","81","名称変更（現在所属している契約機関の名前が変わった場合）\nChange in the name of the organization","84","名称変更（現在所属している活動機関の名前が変わった場合）\nChange in the name of the organization","81","名称変更（現在所属している契約機関の名前が変わった場合）\nChange in the name of the organization","84","名称変更（現在所属している契約機関の名前が変わった場合）\nChange in the name of the organization","84","名称変更（現在所属している契約機関の名前が変わった場合）\nChange in the name of the organization","84","名称変更（現在所属している契約機関の名前が変わった場合）\nChange in the name of the organization","84","名称変更（現在所属している活動機関の名前が変わった場合）\nChange in the name of the organization","81","名称変更（現在所属している活動機関の名前が変わった場合）\nChange in the name of the organization","81","名称変更（現在所属している活動機関の名前が変わった場合）\nChange in the name of the organization","81","名称変更（現在所属している契約機関の名前が変わった場合）\nChange in the name of the organization","84","名称変更（現在所属している契約機関の名前が変わった場合）\nChange in the name of the organization","84","名称変更（現在所属している契約機関の名前が変わった場合）\nChange in the name of the organization","84","札幌市中央区","011011","青森市","022012","盛岡市","032018","仙台市青葉区","041017","秋田市","052019","山形市","062014","福島市","072010","水戸市","082015","宇都宮市","092011","前橋市","102016","さいたま市西区","111015","千葉市中央区","121011","千代田区","131016","横浜市鶴見区","141011","新潟市北区","151017","富山市","162019","金沢市","172014","福井市","182010","甲府市","192015","長野市","202011","岐阜市","212016","静岡市葵区","221015","名古屋市千種区","231011","津市","242012","大津市","252018","京都市北区","261017","大阪市都島区","271021","神戸市東灘区","281018","奈良市","292010","和歌山市","302015","鳥取市","312011","松江市","322016","岡山市北区","331015","広島市中区","341011","下関市","352012","徳島市","362018","高松市","372013","松山市","382019","高知市","392014","北九州市門司区","401013","佐賀市","412015","長崎市","422011","熊本市中央区","431010","大分市","442011","宮崎市","452017","鹿児島市","462012","那覇市","472018"]
[null,"所在地変更（現在所属している活動機関の所在地が変わった場合）\nChange in the address of the organization","82","所在地変更（現在所属している契約機関の所在地が変わった場合）\nChange in the address of the organization","85","所在地変更（現在所属している契約機関の所在地が変わった場合）\nChange in the address of the organization","85","所在地変更（現在所属している活動機関の所在地が変わった場合）\nChange in the address of the organization","82","所在地変更（現在所属している活動機関の所在地が変わった場合）\nChange in the address of the organization","82","所在地変更（現在所属している活動機関の所在地が変わった場合）\nChange in the address of the organization","82","所在地変更（現在所属している活動機関の所在地が変わった場合）\nChange in the address of the organization","82","所在地変更（現在所属している契約機関の所在地が変わった場合）\nChange in the address of the organization","85","所在地変更（現在所属している活動機関の所在地が変わった場合）\nChange in the address of the organization","82","所在地変更（現在所属している契約機関の所在地が変わった場合）\nChange in the address of the organization","85","所在地変更（現在所属している活動機関の所在地が変わった場合）\nChange in the address of the organization","82","所在地変更（現在所属している契約機関の所在地が変わった場合）\nChange in the address of the organization","85","所在地変更（現在所属している契約機関の所在地が変わった場合）\nChange in the address of the organization","85","所在地変更（現在所属している契約機関の所在地が変わった場合）\nChange in the address of the organization","85","所在地変更（現在所属している契約機関の所在地が変わった場合）\nChange in the address of the organization","85","所在地変更（現在所属している活動機関の所在地が変わった場合）\nChange in the address of the organization","82","所在地変更（現在所属している活動機関の所在地が変わった場合）\nChange in the address of the organization","82","所在地変更（現在所属している活動機関の所在地が変わった場合）\nChange in the address of the organization","82","所在地変更（現在所属している契約機関の所在地が変わった場合）\nChange in the address of the organization","85","所在地変更（現在所属している契約機関の所在地が変わった場合）\nChange in the address of the organization","85","所在地変更（現在所属している契約機関の所在地が変わった場合）\nChange in the address of the organization","85","札幌市北区","011029","弘前市","022021","宮古市","032026","仙台市宮城野区","041025","能代市","052027","米沢市","062022","会津若松市","072028","日立市","082023","足利市","092029","高崎市","102024","さいたま市北区","111023","千葉市花見川区","121029","中央区","131024","横浜市神奈川区","141020","新潟市東区","151025","高岡市","162027","七尾市","172022","敦賀市","182028","富士吉田市","192023","松本市","202029","大垣市","212024","静岡市駿河区","221023","名古屋市東区","231029","四日市市","242021","彦根市","252026","京都市上京区","261025","大阪市福島区","271039","神戸市灘区","281026","大和高田市","292028","海南市","302023","米子市","312029","浜田市","322024","岡山市中区","331023","広島市東区","341029","宇部市","352021","鳴門市","362026","丸亀市","372021","今治市","382027","室戸市","392022","北九州市若松区","401030","唐津市","412023","佐世保市","422029","熊本市東区","431028","別府市","442020","都城市","452025","鹿屋市","462039","宜野湾市","472051"]
[null,null,null,null,null,null,null,null,null,null,null,null,null,null,null,null,null,null,null,null,null,null,null,null,null,null,null,null,null,null,null,null,null,null,null,null,null,null,null,null,null,null,null,"札幌市東区","011037","八戸市","022039","大船渡市","032034","仙台市若林区","041033","横手市","052035","鶴岡市","062031","郡山市","072036","土浦市","082031","栃木市","092037","桐生市","102032","さいたま市大宮区","111031","千葉市稲毛区","121037","港区","131032","横浜市西区","141038","新潟市中央区","151033","魚津市","162043","小松市","172031","小浜市","182044","都留市","192040","上田市","202037","高山市","212032","静岡市清水区","221031","名古屋市北区","231037","伊勢市","242039","長浜市","252034","京都市左京区","261033","大阪市此花区","271047","神戸市兵庫区","281051","大和郡山市","292036","橋本市","302031","倉吉市","312037","出雲市","322032","岡山市東区","331031","広島市南区","341037","山口市","352039","小松島市","362034","坂出市","372030","宇和島市","382035","安芸市","392031","北九州市戸畑区","401056","鳥栖市","412031","島原市","422037","熊本市西区","431036","中津市","442038","延岡市","452033","枕崎市","462047","石垣市","472077"]
[null,null,null,null,null,null,null,null,null,null,null,null,null,null,null,null,null,null,null,null,null,null,null,null,null,null,null,null,null,null,null,null,null,null,null,null,null,null,null,null,null,null,null,"札幌市白石区","011045","黒石市","022047","花巻市","032051","仙台市太白区","041041","大館市","052043","酒田市","062049","いわき市","072044","古河市","082040","佐野市","092045","伊勢崎市","102041","さいたま市見沼区","111040","千葉市若葉区","121045","新宿区","131041","横浜市中区","141046","新潟市江南区","151041","氷見市","162051","輪島市","172049","大野市","182052","山梨市","192058","岡谷市","202045","多治見市","212041","浜松市中央区","221384","名古屋市西区","231045","松阪市","242047","近江八幡市","252042","京都市中京区","261041","大阪市西区","271063","神戸市長田区","281069","天理市","292044","有田市","302040","境港市","312045","益田市","322041","岡山市南区","331040","広島市西区","341045","萩市","352047","阿南市","362042","善通寺市","372048","八幡浜市","382043","南国市","392049","北九州市小倉北区","401064","多久市","412040","諫早市","422045","熊本市南区","431044","日田市","442046","日南市","452041","阿久根市","462063","浦添市","472085"]
[null,null,null,null,null,null,null,null,null,null,null,null,null,null,null,null,null,null,null,null,null,null,null,null,null,null,null,null,null,null,null,null,null,null,null,null,null,null,null,null,null,null,null,"札幌市豊平区","011053","五所川原市","022055","北上市","032069","仙台市泉区","041050","男鹿市","052060","新庄市","062057","白河市","072052","石岡市","082058","鹿沼市","092053","太田市","102059","さいたま市中央区","111058","千葉市緑区","121053","文京区","131059","横浜市南区","141054","新潟市秋葉区","151050","滑川市","162060","珠洲市","172057","勝山市","182061","大月市","192066","飯田市","202053","関市","212059","浜松市浜名区","221392","名古屋市中村区","231053","桑名市","242055","草津市","252069","京都市東山区","261050","大阪市港区","271071","神戸市須磨区","281077","橿原市","292052","御坊市","302058","岩美郡岩美町","313025","大田市","322059","倉敷市","332020","広島市安佐南区","341053","防府市","352063","吉野川市","362051","観音寺市","372056","新居浜市","382051","土佐市","392057","北九州市小倉南区","401072","伊万里市","412058","大村市","422053","熊本市北区","431052","佐伯市","442054","小林市","452050","出水市","462080","名護市","472093"]
[null,null,null,null,null,null,null,null,null,null,null,null,null,null,null,null,null,null,null,null,null,null,null,null,null,null,null,null,null,null,null,null,null,null,null,null,null,null,null,null,null,null,null,"札幌市南区","011061","十和田市","022063","久慈市","032077","石巻市","042021","湯沢市","052078","寒河江市","062065","須賀川市","072079","結城市","082074","日光市","092061","沼田市","102067","さいたま市桜区","111066","千葉市美浜区","121061","台東区","131067","横浜市保土ケ谷区","141062","新潟市南区","151068","黒部市","162078","加賀市","172065","鯖江市","182079","韮崎市","192074","諏訪市","202061","中津川市","212067","浜松市天竜区","221406","名古屋市中区","231061","鈴鹿市","242071","守山市","252077","京都市下京区","261068","大阪市大正区","271080","神戸市垂水区","281085","桜井市","292061","田辺市","302066","八頭郡若桜町","313254","安来市","322067","津山市","332038","広島市安佐北区","341061","下松市","352071","阿波市","362069","さぬき市","372064","西条市","382060","須崎市","392065","北九州市八幡東区","401081","武雄市","412066","平戸市","422070","八代市","432024","臼杵市","442062","日向市","452068","指宿市","462101","糸満市","472107"]
[null,null,null,null,null,null,null,null,null,null,null,null,null,null,null,null,null,null,null,null,null,null,null,null,null,null,null,null,null,null,null,null,null,null,null,null,null,null,null,null,null,null,null,"札幌市西区","011070","三沢市","022071","遠野市","032085","塩竈市","042030","鹿角市","052094","上山市","062073","喜多方市","072087","龍ケ崎市","082082","小山市","092088","館林市","102075","さいたま市浦和区","111074","銚子市","122025","墨田区","131075","横浜市磯子区","141071","新潟市西区","151076","砺波市","162086","羽咋市","172073","あわら市","182087","南アルプス市","192082","須坂市","202070","美濃市","212075","沼津市","222038","名古屋市昭和区","231070","名張市","242080","栗東市","252085","京都市南区","261076","大阪市天王寺区","271098","神戸市北区","281093","五條市","292079","新宮市","302074","八頭郡智頭町","313289","江津市","322075","玉野市","332046","広島市安芸区","341070","岩国市","352080","美馬市","362077","東かがわ市","372072","大洲市","382078","宿毛市","392081","北九州市八幡西区","401099","鹿島市","412074","松浦市","422088","人吉市","432032","津久見市","442071","串間市","452076","西之表市","462136","沖縄市","472115"]
[null,null,null,null,null,null,null,null,null,null,null,null,null,null,null,null,null,null,null,null,null,null,null,null,null,null,null,null,null,null,null,null,null,null,null,null,null,null,null,null,null,null,null,"札幌市厚別区","011088","むつ市","022080","一関市","032093","気仙沼市","042056","由利本荘市","052108","村山市","062081","相馬市","072095","下妻市","082104","真岡市","092096","渋川市","102083","さいたま市南区","111082","市川市","122033","江東区","131083","横浜市金沢区","141089","新潟市西蒲区","151084","小矢部市","162094","かほく市","172090","越前市","182095","北杜市","192091","小諸市","202088","瑞浪市","212083","熱海市","222054","名古屋市瑞穂区","231088","尾鷲市","242098","甲賀市","252093","京都市右京区","261084","大阪市浪速区","271110","神戸市中央区","281107","御所市","292087","紀の川市","302082","八頭郡八頭町","313297","雲南市","322091","笠岡市","332054","広島市佐伯区","341088","光市","352101","三好市","362085","三豊市","372081","伊予市","382108","土佐清水市","392090","福岡市東区","401315","小城市","412082","対馬市","422096","荒尾市","432041","竹田市","442089","西都市","452084","垂水市","462144","豊見城市","472123"]
[null,null,null,null,null,null,null,null,null,null,null,null,null,null,null,null,null,null,null,null,null,null,null,null,null,null,null,null,null,null,null,null,null,null,null,null,null,null,null,null,null,null,null,"札幌市手稲区","011096","つがる市","022098","陸前高田市","032107","白石市","042064","潟上市","052116","長井市","062090","二本松市","072109","常総市","082112","大田原市","092100","藤岡市","102091","さいたま市緑区","111091","船橋市","122041","品川区","131091","横浜市港北区","141097","長岡市","152021","南砺市","162108","白山市","172103","坂井市","182109","甲斐市","192104","伊那市","202096","羽島市","212091","三島市","222062","名古屋市熱田区","231096","亀山市","242101","野洲市","252107","京都市伏見区","261092","大阪市西淀川区","271136","神戸市西区","281115","生駒市","292095","岩出市","302091","東伯郡三朝町","313645","仁多郡奥出雲町","323438","井原市","332071","呉市","342025","長門市","352110","勝浦郡勝浦町","363014","小豆郡土庄町","373222","四国中央市","382132","四万十市","392103","福岡市博多区","401323","嬉野市","412091","壱岐市","422100","水俣市","432059","豊後高田市","442097","えびの市","452092","薩摩川内市","462152","うるま市","472131"]
[null,null,null,null,null,null,null,null,null,null,null,null,null,null,null,null,null,null,null,null,null,null,null,null,null,null,null,null,null,null,null,null,null,null,null,null,null,null,null,null,null,null,null,"札幌市清田区","011100","平川市","022101","釜石市","032115","名取市","042072","大仙市","052124","天童市","062103","田村市","072117","常陸太田市","082121","矢板市","092118","富岡市","102105","さいたま市岩槻区","111104","館山市","122050","目黒区","131105","横浜市戸塚区","141101","三条市","152048","射水市","162116","能美市","172111","吉田郡永平寺町","183229","笛吹市","192112","駒ヶ根市","202100","恵那市","212105","富士宮市","222071","名古屋市中川区","231100","鳥羽市","242110","湖南市","252115","京都市山科区","261106","大阪市東淀川区","271144","姫路市","282014","香芝市","292109","海草郡紀美野町","303046","東伯郡湯梨浜町","313700","飯石郡飯南町","323861","総社市","332089","竹原市","342033","柳井市","352128","勝浦郡上勝町","363022","小豆郡小豆島町","373249","西予市","382141","香南市","392111","福岡市中央区","401331","神埼市","412104","五島市","422118","玉名市","432067","杵築市","442101","北諸県郡三股町","453412","日置市","462161","宮古島市","472140"]
[null,null,null,null,null,null,null,null,null,null,null,null,null,null,null,null,null,null,null,null,null,null,null,null,null,null,null,null,null,null,null,null,null,null,null,null,null,null,null,null,null,null,null,"函館市","012025","東津軽郡平内町","023019","二戸市","032131","角田市","042081","北秋田市","052132","東根市","062111","南相馬市","072125","高萩市","082147","那須塩原市","092134","安中市","102113","川越市","112011","木更津市","122068","大田区","131113","横浜市港南区","141119","柏崎市","152056","中新川郡舟橋村","163210","野々市市","172120","今立郡池田町","183822","上野原市","192121","中野市","202118","美濃加茂市","212113","伊東市","222089","名古屋市港区","231118","熊野市","242128","高島市","252123","京都市西京区","261114","大阪市東成区","271152","尼崎市","282022","葛城市","292117","伊都郡かつらぎ町","303411","東伯郡琴浦町","313718","邑智郡川本町","324418","高梁市","332097","三原市","342041","美祢市","352136","名東郡佐那河内村","363219","木田郡三木町","373419","東温市","382159","香美市","392120","福岡市南区","401340","神埼郡吉野ヶ里町","413275","西海市","422126","山鹿市","432083","宇佐市","442119","西諸県郡高原町","453617","曽於市","462179","南城市","472158"]
[null,null,null,null,null,null,null,null,null,null,null,null,null,null,null,null,null,null,null,null,null,null,null,null,null,null,null,null,null,null,null,null,null,null,null,null,null,null,null,null,null,null,null,"小樽市","012033","東津軽郡今別町","023035","八幡平市","032140","多賀城市","042099","にかほ市","052141","尾花沢市","062120","伊達市","072133","北茨城市","082155","さくら市","092142","みどり市","102121","熊谷市","112020","松戸市","122076","世田谷区","131121","横浜市旭区","141127","新発田市","152064","中新川郡上市町","163228","能美郡川北町","173240","南条郡南越前町","184047","甲州市","192139","大町市","202126","土岐市","212121","島田市","222097","名古屋市南区","231126","いなべ市","242144","東近江市","252131","福知山市","262013","大阪市生野区","271161","明石市","282031","宇陀市","292125","伊都郡九度山町","303437","東伯郡北栄町","313726","邑智郡美郷町","324485","新見市","332101","尾道市","342050","周南市","352152","名西郡石井町","363413","香川郡直島町","373648","越智郡上島町","383562","安芸郡東洋町","393011","福岡市西区","401358","三養基郡基山町","413411","雲仙市","422134","菊池市","432105","豊後大野市","442127","東諸県郡国富町","453820","霧島市","462187","国頭郡国頭村","473014"]
[null,null,null,null,null,null,null,null,null,null,null,null,null,null,null,null,null,null,null,null,null,null,null,null,null,null,null,null,null,null,null,null,null,null,null,null,null,null,null,null,null,null,null,"旭川市","012041","東津軽郡蓬田村","023043","奥州市","032158","岩沼市","042111","仙北市","052159","南陽市","062138","本宮市","072141","笠間市","082163","那須烏山市","092151","北群馬郡榛東村","103446","川口市","112038","野田市","122084","渋谷区","131130","横浜市緑区","141135","小千谷市","152081","中新川郡立山町","163236","河北郡津幡町","173614","丹生郡越前町","184233","中央市","192147","飯山市","202134","各務原市","212130","富士市","222101","名古屋市守山区","231134","志摩市","242152","米原市","252140","舞鶴市","262021","大阪市旭区","271179","西宮市","282049","山辺郡山添村","293229","伊都郡高野町","303445","西伯郡日吉津村","313840","邑智郡邑南町","324493","備前市","332119","福山市","342076","山陽小野田市","352161","名西郡神山町","363421","綾歌郡宇多津町","373869","上浮穴郡久万高原町","383864","安芸郡奈半利町","393029","福岡市城南区","401366","三養基郡上峰町","413453","南島原市","422142","宇土市","432113","由布市","442135","東諸県郡綾町","453838","いちき串木野市","462195","国頭郡大宜味村","473022"]
[null,null,null,null,null,null,null,null,null,null,null,null,null,null,null,null,null,null,null,null,null,null,null,null,null,null,null,null,null,null,null,null,null,null,null,null,null,null,null,null,null,null,null,"室蘭市","012050","東津軽郡外ヶ浜町","023078","滝沢市","032166","登米市","042129","鹿角郡小坂町","053031","東村山郡山辺町","063011","伊達郡桑折町","073016","取手市","082171","下野市","092169","北群馬郡吉岡町","103454","行田市","112062","茂原市","122106","中野区","131148","横浜市瀬谷区","141143","加茂市","152099","下新川郡入善町","163422","河北郡内灘町","173657","三方郡美浜町","184420","西八代郡市川三郷町","193461","茅野市","202142","可児市","212148","磐田市","222119","名古屋市緑区","231142","伊賀市","242161","蒲生郡日野町","253839","綾部市","262030","大阪市城東区","271187","洲本市","282057","生駒郡平群町","293423","有田郡湯浅町","303615","西伯郡大山町","313866","鹿足郡津和野町","325015","瀬戸内市","332127","府中市","342084","大島郡周防大島町","353051","那賀郡那賀町","363685","綾歌郡綾川町","373877","伊予郡松前町","384011","安芸郡田野町","393037","福岡市早良区","401374","三養基郡みやき町","413461","西彼杵郡長与町","423076","上天草市","432121","国東市","442143","児湯郡高鍋町","454010","南さつま市","462209","国頭郡東村","473031"]
[null,null,null,null,null,null,null,null,null,null,null,null,null,null,null,null,null,null,null,null,null,null,null,null,null,null,null,null,null,null,null,null,null,null,null,null,null,null,null,null,null,null,null,"釧路市","012068","西津軽郡鰺ヶ沢町","023213","岩手郡雫石町","033014","栗原市","042137","北秋田郡上小阿仁村","053279","東村山郡中山町","063029","伊達郡国見町","073032","牛久市","082198","河内郡上三川町","093017","多野郡上野村","103667","秩父市","112071","成田市","122114","杉並区","131156","横浜市栄区","141151","十日町市","152102","下新川郡朝日町","163431","羽咋郡志賀町","173843","大飯郡高浜町","184811","南巨摩郡早川町","193640","塩尻市","202151","山県市","212156","焼津市","222127","名古屋市名東区","231151","桑名郡木曽岬町","243035","蒲生郡竜王町","253847","宇治市","262048","大阪市阿倍野区","271195","芦屋市","282065","生駒郡三郷町","293431","有田郡広川町","303623","西伯郡南部町","313891","鹿足郡吉賀町","325058","赤磐市","332135","三次市","342092","玖珂郡和木町","353213","海部郡牟岐町","363839","仲多度郡琴平町","374032","伊予郡砥部町","384020","安芸郡安田町","393045","大牟田市","402028","東松浦郡玄海町","413879","西彼杵郡時津町","423084","宇城市","432130","東国東郡姫島村","443221","児湯郡新富町","454028","志布志市","462217","国頭郡今帰仁村","473065"]
[null,null,null,null,null,null,null,null,null,null,null,null,null,null,null,null,null,null,null,null,null,null,null,null,null,null,null,null,null,null,null,null,null,null,null,null,null,null,null,null,null,null,null,"帯広市","012076","西津軽郡深浦町","023230","岩手郡葛巻町","033022","東松島市","042145","山本郡藤里町","053465","西村山郡河北町","063215","伊達郡川俣町","073083","つくば市","082201","芳賀郡益子町","093424","多野郡神流町","103675","所沢市","112089","佐倉市","122122","豊島区","131164","横浜市泉区","141160","見附市","152111",null,null,"羽咋郡宝達志水町","173860","大飯郡おおい町","184837","南巨摩郡身延町","193658","佐久市","202177","瑞穂市","212164","掛川市","222135","名古屋市天白区","231169","員弁郡東員町","243248","愛知郡愛荘町","254258","宮津市","262056","大阪市住吉区","271209","伊丹市","282073","生駒郡斑鳩町","293440","有田郡有田川町","303666","西伯郡伯耆町","313904","隠岐郡海士町","325252","真庭市","332143","庄原市","342106","熊毛郡上関町","353418","海部郡美波町","363871","仲多度郡多度津町","374041","喜多郡内子町","384224","安芸郡北川村","393053","久留米市","402036","西松浦郡有田町","414018","東彼杵郡東彼杵町","423211","阿蘇市","432148","速見郡日出町","443417","児湯郡西米良村","454036","奄美市","462225","国頭郡本部町","473081"]
[null,null,null,null,null,null,null,null,null,null,null,null,null,null,null,null,null,null,null,null,null,null,null,null,null,null,null,null,null,null,null,null,null,null,null,null,null,null,null,null,null,null,null,"北見市","012084","中津軽郡西目屋村","023434","岩手郡岩手町","033031","大崎市","042153","山本郡三種町","053481","西村山郡西川町","063223","安達郡大玉村","073229","ひたちなか市","082210","芳賀郡茂木町","093432","甘楽郡下仁田町","103829","飯能市","112097","東金市","122131","北区","131172","横浜市青葉区","141178","村上市","152129",null,null,"鹿島郡中能登町","174076","三方上中郡若狭町","185019","南巨摩郡南部町","193666","千曲市","202185","飛騨市","212172","藤枝市","222143","豊橋市","232017","三重郡菰野町","243418","犬上郡豊郷町","254410","亀岡市","262064","大阪市東住吉区","271217","相生市","282081","生駒郡安堵町","293458","日高郡美浜町","303810","日野郡日南町","314013","隠岐郡西ノ島町","325261","美作市","332151","大竹市","342114","熊毛郡田布施町","353434","海部郡海陽町","363880","仲多度郡まんのう町","374067","西宇和郡伊方町","384429","安芸郡馬路村","393061","直方市","402044","杵島郡大町町","414239","東彼杵郡川棚町","423220","天草市","432156","玖珠郡九重町","444618","児湯郡木城町","454044","南九州市","462233","国頭郡恩納村","473111"]
[null,null,null,null,null,null,null,null,null,null,null,null,null,null,null,null,null,null,null,null,null,null,null,null,null,null,null,null,null,null,null,null,null,null,null,null,null,null,null,null,null,null,null,"夕張市","012092","南津軽郡藤崎町","023612","岩手郡滝沢村","033057","富谷市","042161","山本郡八峰町","053490","西村山郡朝日町","063231","岩瀬郡鏡石町","073423","鹿嶋市","082228","芳賀郡市貝町","093441","甘楽郡南牧村","103837","加須市","112101","旭市","122157","荒川区","131181","横浜市都筑区","141186","燕市","152137",null,null,"鳳珠郡穴水町","174611",null,null,"南巨摩郡富士川町","193682","東御市","202193","本巣市","212181","御殿場市","222151","岡崎市","232025","三重郡朝日町","243434","犬上郡甲良町","254428","城陽市","262072","大阪市西成区","271225","豊岡市","282090","磯城郡川西町","293610","日高郡日高町","303828","日野郡日野町","314021","隠岐郡知夫村","325279","浅口市","332160","東広島市","342122","熊毛郡平生町","353442","板野郡松茂町","364011",null,null,"北宇和郡松野町","384844","安芸郡芸西村","393070","飯塚市","402052","杵島郡江北町","414247","東彼杵郡波佐見町","423238","合志市","432164","玖珠郡玖珠町","444626","児湯郡川南町","454052","伊佐市","462241","国頭郡宜野座村","473138"]
[null,null,null,null,null,null,null,null,null,null,null,null,null,null,null,null,null,null,null,null,null,null,null,null,null,null,null,null,null,null,null,null,null,null,null,null,null,null,null,null,null,null,null,"岩見沢市","012106","南津軽郡大鰐町","023621","紫波郡紫波町","033219","刈田郡蔵王町","043010","南秋田郡五城目町","053619","西村山郡大江町","063240","岩瀬郡天栄村","073440","潮来市","082236","芳賀郡芳賀町","093459","甘楽郡甘楽町","103845","本庄市","112119","習志野市","122165","板橋区","131199","川崎市川崎区","141313","糸魚川市","152161",null,null,"鳳珠郡能登町","174637",null,null,"中巨摩郡昭和町","193844","安曇野市","202207","郡上市","212199","袋井市","222160","一宮市","232033","三重郡川越町","243442","犬上郡多賀町","254436","向日市","262081","大阪市淀川区","271233","加古川市","282103","磯城郡三宅町","293628","日高郡由良町","303836","日野郡江府町","314030","隠岐郡隠岐の島町","325287","和気郡和気町","333468","廿日市市","342131","阿武郡阿武町","355020","板野郡北島町","364029",null,null,"北宇和郡鬼北町","384887","長岡郡本山町","393410","田川市","402061","杵島郡白石町","414255","北松浦郡小値賀町","423831","下益城郡美里町","433489",null,null,"児湯郡都農町","454061","姶良市","462250","国頭郡金武町","473146"]
[null,null,null,null,null,null,null,null,null,null,null,null,null,null,null,null,null,null,null,null,null,null,null,null,null,null,null,null,null,null,null,null,null,null,null,null,null,null,null,null,null,null,null,"網走市","012114","南津軽郡田舎館村","023671","紫波郡矢巾町","033227","刈田郡七ヶ宿町","043028","南秋田郡八郎潟町","053635","北村山郡大石田町","063410","南会津郡下郷町","073628","守谷市","082244","下都賀郡壬生町","093611","吾妻郡中之条町","104213","東松山市","112127","柏市","122173","練馬区","131202","川崎市幸区","141321","妙高市","152170",null,null,null,null,null,null,"南都留郡道志村","194221","南佐久郡小海町","203033","下呂市","212202","下田市","222194","瀬戸市","232041","多気郡多気町","244414",null,null,"長岡京市","262099","大阪市鶴見区","271241","赤穂市","282120","磯城郡田原本町","293636","日高郡印南町","303909",null,null,null,null,"都窪郡早島町","334235","安芸高田市","342149",null,null,"板野郡藍住町","364037",null,null,"南宇和郡愛南町","385069","長岡郡大豊町","393444","柳川市","402079","藤津郡太良町","414417","北松浦郡佐々町","423912","玉名郡玉東町","433641",null,null,"東臼杵郡門川町","454214","鹿児島郡三島村","463035","国頭郡伊江村","473154"]
[null,null,null,null,null,null,null,null,null,null,null,null,null,null,null,null,null,null,null,null,null,null,null,null,null,null,null,null,null,null,null,null,null,null,null,null,null,null,null,null,null,null,null,"留萌市","012122","北津軽郡板柳町","023817","和賀郡西和賀町","033669","柴田郡大河原町","043214","南秋田郡井川町","053660","最上郡金山町","063614","南会津郡檜枝岐村","073644","常陸大宮市","082252","下都賀郡野木町","093645","吾妻郡長野原町","104248","春日部市","112143","勝浦市","122181","足立区","131211","川崎市中原区","141330","五泉市","152188",null,null,null,null,null,null,"南都留郡西桂町","194239","南佐久郡川上村","203041","海津市","212211","裾野市","222208","半田市","232050","多気郡明和町","244422",null,null,"八幡市","262102","大阪市住之江区","271250","西脇市","282138","宇陀郡曽爾村","293857","日高郡みなべ町","303917",null,null,null,null,"浅口郡里庄町","334456","江田島市","342157",null,null,"板野郡板野町","364045",null,null,null,null,"土佐郡土佐町","393631","八女市","402109",null,null,"南松浦郡新上五島町","424111","玉名郡南関町","433675",null,null,"東臼杵郡諸塚村","454290","鹿児島郡十島村","463043","中頭郡読谷村","473243"]
[null,null,null,null,null,null,null,null,null,null,null,null,null,null,null,null,null,null,null,null,null,null,null,null,null,null,null,null,null,null,null,null,null,null,null,null,null,null,null,null,null,null,null,"苫小牧市","012131","北津軽郡鶴田町","023841","胆沢郡金ケ崎町","033812","柴田郡村田町","043222","南秋田郡大潟村","053686","最上郡最上町","063622","南会津郡只見町","073679","那珂市","082261","下都賀郡岩舟町","093670","吾妻郡嬬恋村","104256","狭山市","112151","市原市","122190","葛飾区","131229","川崎市高津区","141348","上越市","152226",null,null,null,null,null,null,"南都留郡忍野村","194247","南佐久郡南牧村","203050","羽島郡岐南町","213021","湖西市","222216","春日井市","232068","多気郡大台町","244431",null,null,"京田辺市","262111","大阪市平野区","271268","宝塚市","282146","宇陀郡御杖村","293865","日高郡日高川町","303925",null,null,null,null,"小田郡矢掛町","334618","安芸郡府中町","343021",null,null,"板野郡上板町","364053",null,null,null,null,"土佐郡大川村","393649","筑後市","402117",null,null,null,null,"玉名郡長洲町","433683",null,null,"東臼杵郡椎葉村","454303","薩摩郡さつま町","463922","中頭郡嘉手納町","473251"]
[null,null,null,null,null,null,null,null,null,null,null,null,null,null,null,null,null,null,null,null,null,null,null,null,null,null,null,null,null,null,null,null,null,null,null,null,null,null,null,null,null,null,null,"稚内市","012149","北津軽郡中泊町","023876","西磐井郡平泉町","034029","柴田郡柴田町","043231","仙北郡美郷町","054348","最上郡舟形町","063631","南会津郡南会津町","073687","筑西市","082279","塩谷郡塩谷町","093840","吾妻郡草津町","104264","羽生市","112160","流山市","122203","江戸川区","131237","川崎市多摩区","141356","阿賀野市","152234",null,null,null,null,null,null,"南都留郡山中湖村","194255","南佐久郡南相木村","203068","羽島郡笠松町","213039","伊豆市","222224","豊川市","232076","度会郡玉城町","244619",null,null,"京丹後市","262129","大阪市北区","271276","三木市","282154","高市郡高取町","294012","西牟婁郡白浜町","304018",null,null,null,null,"真庭郡新庄村","335860","安芸郡海田町","343048",null,null,"美馬郡つるぎ町","364681",null,null,null,null,"吾川郡いの町","393860","大川市","402125",null,null,null,null,"玉名郡和水町","433691",null,null,"東臼杵郡美郷町","454311","出水郡長島町","464040","中頭郡北谷町","473260"]
[null,null,null,null,null,null,null,null,null,null,null,null,null,null,null,null,null,null,null,null,null,null,null,null,null,null,null,null,null,null,null,null,null,null,null,null,null,null,null,null,null,null,null,"美唄市","012157","上北郡野辺地町","024015","気仙郡住田町","034410","柴田郡川崎町","043249","雄勝郡羽後町","054631","最上郡真室川町","063649","耶麻郡北塩原村","074021","坂東市","082287","塩谷郡高根沢町","093866","吾妻郡高山村","104281","鴻巣市","112178","八千代市","122211","八王子市","132012","川崎市宮前区","141364","佐渡市","152242",null,null,null,null,null,null,"南都留郡鳴沢村","194298","南佐久郡北相木村","203076","養老郡養老町","213411","御前崎市","222232","津島市","232084","度会郡度会町","244708",null,null,"南丹市","262137","大阪市中央区","271284","高砂市","282162","高市郡明日香村","294021","西牟婁郡上富田町","304042",null,null,null,null,"苫田郡鏡野町","336068","安芸郡熊野町","343072",null,null,"三好郡東みよし町","364894",null,null,null,null,"吾川郡仁淀川町","393878","行橋市","402133",null,null,null,null,"菊池郡大津町","434035",null,null,"西臼杵郡高千穂町","454419","姶良郡湧水町","464520","中頭郡北中城村","473278"]
[null,null,null,null,null,null,null,null,null,null,null,null,null,null,null,null,null,null,null,null,null,null,null,null,null,null,null,null,null,null,null,null,null,null,null,null,null,null,null,null,null,null,null,"芦別市","012165","上北郡七戸町","024023","上閉伊郡大槌町","034614","伊具郡丸森町","043419","雄勝郡東成瀬村","054640","最上郡大蔵村","063657","耶麻郡西会津町","074055","稲敷市","082295","那須郡那須町","094072","吾妻郡東吾妻町","104299","深谷市","112186","我孫子市","122220","立川市","132021","川崎市麻生区","141372","魚沼市","152251",null,null,null,null,null,null,"南都留郡富士河口湖町","194301","南佐久郡佐久穂町","203092","不破郡垂井町","213616","菊川市","222241","碧南市","232092","度会郡大紀町","244716",null,null,"木津川市","262145","堺市堺区","271411","川西市","282171","北葛城郡上牧町","294241","西牟婁郡すさみ町","304069",null,null,null,null,"勝田郡勝央町","336220","安芸郡坂町","343099",null,null,null,null,null,null,null,null,"高岡郡中土佐町","394017","豊前市","402141",null,null,null,null,"菊池郡菊陽町","434043",null,null,"西臼杵郡日之影町","454427","曽於郡大崎町","464686","中頭郡中城村","473286"]
[null,null,null,null,null,null,null,null,null,null,null,null,null,null,null,null,null,null,null,null,null,null,null,null,null,null,null,null,null,null,null,null,null,null,null,null,null,null,null,null,null,null,null,"江別市","012173","上北郡六戸町","024058","下閉伊郡山田町","034827","亘理郡亘理町","043613",null,null,"最上郡鮭川村","063665","耶麻郡磐梯町","074071","かすみがうら市","082309","那須郡那珂川町","094111","利根郡片品村","104434","上尾市","112194","鴨川市","122238","武蔵野市","132039","相模原市緑区","141518","南魚沼市","152269",null,null,null,null,null,null,"北都留郡小菅村","194425","北佐久郡軽井沢町","203211","不破郡関ケ原町","213624","伊豆の国市","222259","刈谷市","232106","度会郡南伊勢町","244724",null,null,"乙訓郡大山崎町","263036","堺市中区","271420","小野市","282189","北葛城郡王寺町","294250","東牟婁郡那智勝浦町","304212",null,null,null,null,"勝田郡奈義町","336238","山県郡安芸太田町","343684",null,null,null,null,null,null,null,null,"高岡郡佐川町","394025","中間市","402150",null,null,null,null,"阿蘇郡南小国町","434230",null,null,"西臼杵郡五ヶ瀬町","454435","肝属郡東串良町","464821","中頭郡西原町","473294"]
[null,null,null,null,null,null,null,null,null,null,null,null,null,null,null,null,null,null,null,null,null,null,null,null,null,null,null,null,null,null,null,null,null,null,null,null,null,null,null,null,null,null,null,"赤平市","012181","上北郡横浜町","024066","下閉伊郡岩泉町","034835","亘理郡山元町","043621",null,null,"最上郡戸沢村","063673","耶麻郡猪苗代町","074080","桜川市","082317",null,null,"利根郡川場村","104442","草加市","112216","鎌ケ谷市","122246","三鷹市","132047","相模原市中央区","141526","胎内市","152277",null,null,null,null,null,null,"北都留郡丹波山村","194433","北佐久郡御代田町","203238","安八郡神戸町","213811","牧之原市","222267","豊田市","232114","北牟婁郡紀北町","245437",null,null,"久世郡久御山町","263222","堺市東区","271438","三田市","282197","北葛城郡広陵町","294268","東牟婁郡太地町","304221",null,null,null,null,"英田郡西粟倉村","336432","山県郡北広島町","343692",null,null,null,null,null,null,null,null,"高岡郡越知町","394033","小郡市","402168",null,null,null,null,"阿蘇郡小国町","434248",null,null,null,null,"肝属郡錦江町","464902","島尻郡与那原町","473481"]
[null,null,null,null,null,null,null,null,null,null,null,null,null,null,null,null,null,null,null,null,null,null,null,null,null,null,null,null,null,null,null,null,null,null,null,null,null,null,null,null,null,null,null,"紋別市","012190","上北郡東北町","024082","下閉伊郡田野畑村","034843","宮城郡松島町","044016",null,null,"東置賜郡高畠町","063819","河沼郡会津坂下町","074217","神栖市","082325",null,null,"利根郡昭和村","104485","越谷市","112224","君津市","122254","青梅市","132055","相模原市南区","141534","北蒲原郡聖籠町","153079",null,null,null,null,null,null,null,null,"北佐久郡立科町","203246","安八郡輪之内町","213829","賀茂郡東伊豆町","223018","安城市","232122","南牟婁郡御浜町","245615",null,null,"綴喜郡井手町","263435","堺市西区","271446","加西市","282201","北葛城郡河合町","294276","東牟婁郡古座川町","304247",null,null,null,null,"久米郡久米南町","336637","豊田郡大崎上島町","344311",null,null,null,null,null,null,null,null,"高岡郡檮原町","394050","筑紫野市","402176",null,null,null,null,"阿蘇郡産山村","434256",null,null,null,null,"肝属郡南大隅町","464911","島尻郡南風原町","473502"]
[null,null,null,null,null,null,null,null,null,null,null,null,null,null,null,null,null,null,null,null,null,null,null,null,null,null,null,null,null,null,null,null,null,null,null,null,null,null,null,null,null,null,null,"士別市","012203","上北郡六ヶ所村","024112","下閉伊郡普代村","034851","宮城郡七ヶ浜町","044041",null,null,"東置賜郡川西町","063827","河沼郡湯川村","074225","行方市","082333",null,null,"利根郡みなかみ町","104493","蕨市","112232","富津市","122262","府中市","132063","横須賀市","142018","西蒲原郡弥彦村","153427",null,null,null,null,null,null,null,null,"小県郡青木村","203491","安八郡安八町","213837","賀茂郡河津町","223026","西尾市","232131","南牟婁郡紀宝町","245623",null,null,"綴喜郡宇治田原町","263443","堺市南区","271454","丹波篠山市","282219","吉野郡吉野町","294411","東牟婁郡北山村","304271",null,null,null,null,"久米郡美咲町","336661","世羅郡世羅町","344621",null,null,null,null,null,null,null,null,"高岡郡日高村","394106","春日市","402184",null,null,null,null,"阿蘇郡高森町","434281",null,null,null,null,"肝属郡肝付町","464929","島尻郡渡嘉敷村","473537"]
[null,null,null,null,null,null,null,null,null,null,null,null,null,null,null,null,null,null,null,null,null,null,null,null,null,null,null,null,null,null,null,null,null,null,null,null,null,null,null,null,null,null,null,"名寄市","012211","上北郡おいらせ町","024121","九戸郡軽米町","035017","宮城郡利府町","044067",null,null,"西置賜郡小国町","064017","河沼郡柳津町","074233","鉾田市","082341",null,null,"佐波郡玉村町","104647","戸田市","112241","浦安市","122271","昭島市","132071","平塚市","142034","南蒲原郡田上町","153613",null,null,null,null,null,null,null,null,"小県郡長和町","203505","揖斐郡揖斐川町","214019","賀茂郡南伊豆町","223042","蒲郡市","232149",null,null,null,null,"相楽郡笠置町","263648","堺市北区","271462","養父市","282227","吉野郡大淀町","294420","東牟婁郡串本町","304280",null,null,null,null,"加賀郡吉備中央町","336815","神石郡神石高原町","345458",null,null,null,null,null,null,null,null,"高岡郡津野町","394114","大野城市","402192",null,null,null,null,"阿蘇郡西原村","434329",null,null,null,null,"熊毛郡中種子町","465011","島尻郡座間味村","473545"]
[null,null,null,null,null,null,null,null,null,null,null,null,null,null,null,null,null,null,null,null,null,null,null,null,null,null,null,null,null,null,null,null,null,null,null,null,null,null,null,null,null,null,null,"三笠市","012220","下北郡大間町","024236","九戸郡野田村","035033","黒川郡大和町","044211",null,null,"西置賜郡白鷹町","064025","大沼郡三島町","074446","つくばみらい市","082350",null,null,"邑楽郡板倉町","105210","入間市","112259","四街道市","122289","調布市","132080","鎌倉市","142042","東蒲原郡阿賀町","153851",null,null,null,null,null,null,null,null,"諏訪郡下諏訪町","203611","揖斐郡大野町","214035","賀茂郡松崎町","223051","犬山市","232157",null,null,null,null,"相楽郡和束町","263656","堺市美原区","271471","丹波市","282235","吉野郡下市町","294438",null,null,null,null,null,null,null,null,null,null,null,null,null,null,null,null,null,null,"高岡郡四万十町","394122","宗像市","402206",null,null,null,null,"阿蘇郡南阿蘇村","434337",null,null,null,null,"熊毛郡南種子町","465020","島尻郡粟国村","473553"]
[null,null,null,null,null,null,null,null,null,null,null,null,null,null,null,null,null,null,null,null,null,null,null,null,null,null,null,null,null,null,null,null,null,null,null,null,null,null,null,null,null,null,null,"根室市","012238","下北郡東通村","024244","九戸郡九戸村","035068","黒川郡大郷町","044229",null,null,"西置賜郡飯豊町","064033","大沼郡金山町","074454","小美玉市","082368",null,null,"邑楽郡明和町","105228","朝霞市","112275","袖ケ浦市","122297","町田市","132098","藤沢市","142051","三島郡出雲崎町","154059",null,null,null,null,null,null,null,null,"諏訪郡富士見町","203629","揖斐郡池田町","214043","賀茂郡西伊豆町","223069","常滑市","232165",null,null,null,null,"相楽郡精華町","263664","岸和田市","272027","南あわじ市","282243","吉野郡黒滝村","294446",null,null,null,null,null,null,null,null,null,null,null,null,null,null,null,null,null,null,"幡多郡大月町","394246","太宰府市","402214",null,null,null,null,"上益城郡御船町","434418",null,null,null,null,"熊毛郡屋久島町","465054","島尻郡渡名喜村","473561"]
[null,null,null,null,null,null,null,null,null,null,null,null,null,null,null,null,null,null,null,null,null,null,null,null,null,null,null,null,null,null,null,null,null,null,null,null,null,null,null,null,null,null,null,"千歳市","012246","下北郡風間浦村","024252","九戸郡洋野町","035076","黒川郡富谷町","044237",null,null,"東田川郡三川町","064262","大沼郡昭和村","074462","東茨城郡茨城町","083020",null,null,"邑楽郡千代田町","105236","志木市","112283","八街市","122301","小金井市","132101","小田原市","142069","南魚沼郡湯沢町","154610",null,null,null,null,null,null,null,null,"諏訪郡原村","203637","本巣郡北方町","214213","田方郡函南町","223255","江南市","232173",null,null,null,null,"相楽郡南山城村","263672","豊中市","272035","朝来市","282251","吉野郡天川村","294462",null,null,null,null,null,null,null,null,null,null,null,null,null,null,null,null,null,null,"幡多郡三原村","394271","古賀市","402231",null,null,null,null,"上益城郡嘉島町","434426",null,null,null,null,"大島郡大和村","465232","島尻郡南大東村","473570"]
[null,null,null,null,null,null,null,null,null,null,null,null,null,null,null,null,null,null,null,null,null,null,null,null,null,null,null,null,null,null,null,null,null,null,null,null,null,null,null,null,null,null,null,"滝川市","012254","下北郡佐井村","024261","二戸郡一戸町","035246","黒川郡大衡村","044245",null,null,"東田川郡庄内町","064289","大沼郡会津美里町","074471","東茨城郡大洗町","083097",null,null,"邑楽郡大泉町","105244","和光市","112291","印西市","122319","小平市","132110","茅ヶ崎市","142077","中魚沼郡津南町","154822",null,null,null,null,null,null,null,null,"上伊那郡辰野町","203823","加茂郡坂祝町","215015","駿東郡清水町","223417","小牧市","232190",null,null,null,null,"船井郡京丹波町","264075","池田市","272043","淡路市","282260","吉野郡野迫川村","294471",null,null,null,null,null,null,null,null,null,null,null,null,null,null,null,null,null,null,"幡多郡黒潮町","394289","福津市","402249",null,null,null,null,"上益城郡益城町","434434",null,null,null,null,"大島郡宇検村","465241","島尻郡北大東村","473588"]
[null,null,null,null,null,null,null,null,null,null,null,null,null,null,null,null,null,null,null,null,null,null,null,null,null,null,null,null,null,null,null,null,null,null,null,null,null,null,null,null,null,null,null,"砂川市","012262","三戸郡三戸町","024414",null,null,"加美郡色麻町","044440",null,null,"飽海郡遊佐町","064611","西白河郡西郷村","074616","東茨城郡城里町","083101",null,null,"邑楽郡邑楽町","105252","新座市","112305","白井市","122327","日野市","132128","逗子市","142085","刈羽郡刈羽村","155047",null,null,null,null,null,null,null,null,"上伊那郡箕輪町","203831","加茂郡富加町","215023","駿東郡長泉町","223425","稲沢市","232203",null,null,null,null,"与謝郡伊根町","264636","吹田市","272051","宍粟市","282278","吉野郡十津川村","294497",null,null,null,null,null,null,null,null,null,null,null,null,null,null,null,null,null,null,null,null,"うきは市","402257",null,null,null,null,"上益城郡甲佐町","434442",null,null,null,null,"大島郡瀬戸内町","465259","島尻郡伊平屋村","473596"]
[null,null,null,null,null,null,null,null,null,null,null,null,null,null,null,null,null,null,null,null,null,null,null,null,null,null,null,null,null,null,null,null,null,null,null,null,null,null,null,null,null,null,null,"歌志内市","012271","三戸郡五戸町","024422",null,null,"加美郡加美町","044458",null,null,null,null,"西白河郡泉崎村","074641","那珂郡東海村","083411",null,null,null,null,"桶川市","112313","富里市","122335","東村山市","132136","三浦市","142107","岩船郡関川村","155811",null,null,null,null,null,null,null,null,"上伊那郡飯島町","203840","加茂郡川辺町","215031","駿東郡小山町","223441","新城市","232211",null,null,null,null,"与謝郡与謝野町","264652","泉大津市","272060","加東市","282286","吉野郡下北山村","294501",null,null,null,null,null,null,null,null,null,null,null,null,null,null,null,null,null,null,null,null,"宮若市","402265",null,null,null,null,"上益城郡山都町","434477",null,null,null,null,"大島郡龍郷町","465275","島尻郡伊是名村","473600"]
[null,null,null,null,null,null,null,null,null,null,null,null,null,null,null,null,null,null,null,null,null,null,null,null,null,null,null,null,null,null,null,null,null,null,null,null,null,null,null,null,null,null,null,"深川市","012289","三戸郡田子町","024431",null,null,"遠田郡涌谷町","045012",null,null,null,null,"西白河郡中島村","074659","久慈郡大子町","083640",null,null,null,null,"久喜市","112321","南房総市","122343","国分寺市","132144","秦野市","142115","岩船郡粟島浦村","155861",null,null,null,null,null,null,null,null,"上伊那郡南箕輪村","203858","加茂郡七宗町","215040","榛原郡吉田町","224243","東海市","232220",null,null,null,null,null,null,"高槻市","272078","たつの市","282294","吉野郡上北山村","294519",null,null,null,null,null,null,null,null,null,null,null,null,null,null,null,null,null,null,null,null,"嘉麻市","402273",null,null,null,null,"八代郡氷川町","434680",null,null,null,null,"大島郡喜界町","465291","島尻郡久米島町","473618"]
[null,null,null,null,null,null,null,null,null,null,null,null,null,null,null,null,null,null,null,null,null,null,null,null,null,null,null,null,null,null,null,null,null,null,null,null,null,null,null,null,null,null,null,"富良野市","012297","三戸郡南部町","024457",null,null,"遠田郡美里町","045055",null,null,null,null,"西白河郡矢吹町","074667","稲敷郡美浦村","084425",null,null,null,null,"北本市","112330","匝瑳市","122351","国立市","132152","厚木市","142123",null,null,null,null,null,null,null,null,null,null,"上伊那郡中川村","203866","加茂郡八百津町","215058","榛原郡川根本町","224294","大府市","232238",null,null,null,null,null,null,"貝塚市","272086","川辺郡猪名川町","283011","吉野郡川上村","294527",null,null,null,null,null,null,null,null,null,null,null,null,null,null,null,null,null,null,null,null,"朝倉市","402281",null,null,null,null,"葦北郡芦北町","434825",null,null,null,null,"大島郡徳之島町","465305","島尻郡八重瀬町","473626"]
[null,null,null,null,null,null,null,null,null,null,null,null,null,null,null,null,null,null,null,null,null,null,null,null,null,null,null,null,null,null,null,null,null,null,null,null,null,null,null,null,null,null,null,"登別市","012301","三戸郡階上町","024465",null,null,"牡鹿郡女川町","045811",null,null,null,null,"東白川郡棚倉町","074811","稲敷郡阿見町","084433",null,null,null,null,"八潮市","112348","香取市","122360","福生市","132187","大和市","142131",null,null,null,null,null,null,null,null,null,null,"上伊那郡宮田村","203882","加茂郡白川町","215066","周智郡森町","224618","知多市","232246",null,null,null,null,null,null,"守口市","272094","多可郡多可町","283657","吉野郡東吉野村","294535",null,null,null,null,null,null,null,null,null,null,null,null,null,null,null,null,null,null,null,null,"みやま市","402290",null,null,null,null,"葦北郡津奈木町","434841",null,null,null,null,"大島郡天城町","465313","宮古郡多良間村","473758"]
[null,null,null,null,null,null,null,null,null,null,null,null,null,null,null,null,null,null,null,null,null,null,null,null,null,null,null,null,null,null,null,null,null,null,null,null,null,null,null,null,null,null,null,"恵庭市","012319","三戸郡新郷村","024503",null,null,"本吉郡南三陸町","046060",null,null,null,null,"東白川郡矢祭町","074829","稲敷郡河内町","084476",null,null,null,null,"富士見市","112356","山武市","122378","狛江市","132195","伊勢原市","142140",null,null,null,null,null,null,null,null,null,null,"下伊那郡松川町","204021","加茂郡東白川村","215074",null,null,"知立市","232254",null,null,null,null,null,null,"枚方市","272108","加古郡稲美町","283819",null,null,null,null,null,null,null,null,null,null,null,null,null,null,null,null,null,null,null,null,null,null,"糸島市","402303",null,null,null,null,"球磨郡錦町","435015",null,null,null,null,"大島郡伊仙町","465321","八重山郡竹富町","473812"]
[null,null,null,null,null,null,null,null,null,null,null,null,null,null,null,null,null,null,null,null,null,null,null,null,null,null,null,null,null,null,null,null,null,null,null,null,null,null,null,null,null,null,null,"伊達市","012335",null,null,null,null,null,null,null,null,null,null,"東白川郡塙町","074837","結城郡八千代町","085219",null,null,null,null,"三郷市","112372","いすみ市","122386","東大和市","132209","海老名市","142158",null,null,null,null,null,null,null,null,null,null,"下伊那郡高森町","204030","可児郡御嵩町","215210",null,null,"尾張旭市","232262",null,null,null,null,null,null,"茨木市","272116","加古郡播磨町","283827",null,null,null,null,null,null,null,null,null,null,null,null,null,null,null,null,null,null,null,null,null,null,"那珂川市","402311",null,null,null,null,"球磨郡多良木町","435058",null,null,null,null,"大島郡和泊町","465330","八重山郡与那国町","473821"]
[null,null,null,null,null,null,null,null,null,null,null,null,null,null,null,null,null,null,null,null,null,null,null,null,null,null,null,null,null,null,null,null,null,null,null,null,null,null,null,null,null,null,null,"北広島市","012343",null,null,null,null,null,null,null,null,null,null,"東白川郡鮫川村","074845","猿島郡五霞町","085421",null,null,null,null,"蓮田市","112381","大網白里市","122394","清瀬市","132217","座間市","142166",null,null,null,null,null,null,null,null,null,null,"下伊那郡阿南町","204048","大野郡白川村","216046",null,null,"高浜市","232271",null,null,null,null,null,null,"八尾市","272124","神崎郡市川町","284424",null,null,null,null,null,null,null,null,null,null,null,null,null,null,null,null,null,null,null,null,null,null,"筑紫郡那珂川町","403059",null,null,null,null,"球磨郡湯前町","435066",null,null,null,null,"大島郡知名町","465348"]
[null,null,null,null,null,null,null,null,null,null,null,null,null,null,null,null,null,null,null,null,null,null,null,null,null,null,null,null,null,null,null,null,null,null,null,null,null,null,null,null,null,null,null,"石狩市","012351",null,null,null,null,null,null,null,null,null,null,"石川郡石川町","075019","猿島郡境町","085464",null,null,null,null,"坂戸市","112399","印旛郡酒々井町","123226","東久留米市","132225","南足柄市","142174",null,null,null,null,null,null,null,null,null,null,"下伊那郡阿智村","204072",null,null,null,null,"岩倉市","232289",null,null,null,null,null,null,"泉佐野市","272132","神崎郡福崎町","284432",null,null,null,null,null,null,null,null,null,null,null,null,null,null,null,null,null,null,null,null,null,null,"糟屋郡宇美町","403415",null,null,null,null,"球磨郡水上村","435074",null,null,null,null,"大島郡与論町","465356"]
[null,null,null,null,null,null,null,null,null,null,null,null,null,null,null,null,null,null,null,null,null,null,null,null,null,null,null,null,null,null,null,null,null,null,null,null,null,null,null,null,null,null,null,"北斗市","012360",null,null,null,null,null,null,null,null,null,null,"石川郡玉川村","075027","北相馬郡利根町","085642",null,null,null,null,"幸手市","112402","印旛郡栄町","123293","武蔵村山市","132233","綾瀬市","142182",null,null,null,null,null,null,null,null,null,null,"下伊那郡平谷村","204099",null,null,null,null,"豊明市","232297",null,null,null,null,null,null,"富田林市","272141","神崎郡神河町","284467",null,null,null,null,null,null,null,null,null,null,null,null,null,null,null,null,null,null,null,null,null,null,"糟屋郡篠栗町","403423",null,null,null,null,"球磨郡相良村","435104"]
[null,null,null,null,null,null,null,null,null,null,null,null,null,null,null,null,null,null,null,null,null,null,null,null,null,null,null,null,null,null,null,null,null,null,null,null,null,null,null,null,null,null,null,"石狩郡当別町","013030",null,null,null,null,null,null,null,null,null,null,"石川郡平田村","075035",null,null,null,null,null,null,"鶴ヶ島市","112411","香取郡神崎町","123421","多摩市","132241","三浦郡葉山町","143014",null,null,null,null,null,null,null,null,null,null,"下伊那郡根羽村","204102",null,null,null,null,"日進市","232301",null,null,null,null,null,null,"寝屋川市","272159","揖保郡太子町","284645",null,null,null,null,null,null,null,null,null,null,null,null,null,null,null,null,null,null,null,null,null,null,"糟屋郡志免町","403431",null,null,null,null,"球磨郡五木村","435112"]
[null,null,null,null,null,null,null,null,null,null,null,null,null,null,null,null,null,null,null,null,null,null,null,null,null,null,null,null,null,null,null,null,null,null,null,null,null,null,null,null,null,null,null,"石狩郡新篠津村","013048",null,null,null,null,null,null,null,null,null,null,"石川郡浅川町","075043",null,null,null,null,null,null,"日高市","112429","香取郡多古町","123471","稲城市","132250","高座郡寒川町","143219",null,null,null,null,null,null,null,null,null,null,"下伊那郡下條村","204111",null,null,null,null,"田原市","232319",null,null,null,null,null,null,"河内長野市","272167","赤穂郡上郡町","284815",null,null,null,null,null,null,null,null,null,null,null,null,null,null,null,null,null,null,null,null,null,null,"糟屋郡須惠町","403440",null,null,null,null,"球磨郡山江村","435121"]
[null,null,null,null,null,null,null,null,null,null,null,null,null,null,null,null,null,null,null,null,null,null,null,null,null,null,null,null,null,null,null,null,null,null,null,null,null,null,null,null,null,null,null,"松前郡松前町","013315",null,null,null,null,null,null,null,null,null,null,"石川郡古殿町","075051",null,null,null,null,null,null,"吉川市","112437","香取郡東庄町","123498","羽村市","132276","中郡大磯町","143413",null,null,null,null,null,null,null,null,null,null,"下伊那郡売木村","204129",null,null,null,null,"愛西市","232327",null,null,null,null,null,null,"松原市","272175","佐用郡佐用町","285013",null,null,null,null,null,null,null,null,null,null,null,null,null,null,null,null,null,null,null,null,null,null,"糟屋郡新宮町","403458",null,null,null,null,"球磨郡球磨村","435139"]
[null,null,null,null,null,null,null,null,null,null,null,null,null,null,null,null,null,null,null,null,null,null,null,null,null,null,null,null,null,null,null,null,null,null,null,null,null,null,null,null,null,null,null,"松前郡福島町","013323",null,null,null,null,null,null,null,null,null,null,"田村郡三春町","075213",null,null,null,null,null,null,"ふじみ野市","112453","山武郡大網白里町","124028","あきる野市","132284","中郡二宮町","143421",null,null,null,null,null,null,null,null,null,null,"下伊那郡天龍村","204137",null,null,null,null,"清須市","232335",null,null,null,null,null,null,"大東市","272183","美方郡香美町","285854",null,null,null,null,null,null,null,null,null,null,null,null,null,null,null,null,null,null,null,null,null,null,"糟屋郡久山町","403482",null,null,null,null,"球磨郡あさぎり町","435147"]
[null,null,null,null,null,null,null,null,null,null,null,null,null,null,null,null,null,null,null,null,null,null,null,null,null,null,null,null,null,null,null,null,null,null,null,null,null,null,null,null,null,null,null,"上磯郡知内町","013331",null,null,null,null,null,null,null,null,null,null,"田村郡小野町","075221",null,null,null,null,null,null,"白岡市","112461","山武郡九十九里町","124036","西東京市","132292","足柄上郡中井町","143618",null,null,null,null,null,null,null,null,null,null,"下伊那郡泰阜村","204145",null,null,null,null,"北名古屋市","232343",null,null,null,null,null,null,"和泉市","272191","美方郡新温泉町","285862",null,null,null,null,null,null,null,null,null,null,null,null,null,null,null,null,null,null,null,null,null,null,"糟屋郡粕屋町","403491",null,null,null,null,"天草郡苓北町","435317"]
[null,null,null,null,null,null,null,null,null,null,null,null,null,null,null,null,null,null,null,null,null,null,null,null,null,null,null,null,null,null,null,null,null,null,null,null,null,null,null,null,null,null,null,"上磯郡木古内町","013340",null,null,null,null,null,null,null,null,null,null,"双葉郡広野町","075418",null,null,null,null,null,null,"北足立郡伊奈町","113018","山武郡芝山町","124095","西多摩郡瑞穂町","133035","足柄上郡大井町","143626",null,null,null,null,null,null,null,null,null,null,"下伊那郡喬木村","204153",null,null,null,null,"弥富市","232351",null,null,null,null,null,null,"箕面市","272205",null,null,null,null,null,null,null,null,null,null,null,null,null,null,null,null,null,null,null,null,null,null,null,null,"遠賀郡芦屋町","403814"]
[null,null,null,null,null,null,null,null,null,null,null,null,null,null,null,null,null,null,null,null,null,null,null,null,null,null,null,null,null,null,null,null,null,null,null,null,null,null,null,null,null,null,null,"亀田郡七飯町","013374",null,null,null,null,null,null,null,null,null,null,"双葉郡楢葉町","075426",null,null,null,null,null,null,"入間郡三芳町","113247","山武郡横芝光町","124109","西多摩郡日の出町","133051","足柄上郡松田町","143634",null,null,null,null,null,null,null,null,null,null,"下伊那郡豊丘村","204161",null,null,null,null,"みよし市","232360",null,null,null,null,null,null,"柏原市","272213",null,null,null,null,null,null,null,null,null,null,null,null,null,null,null,null,null,null,null,null,null,null,null,null,"遠賀郡水巻町","403822"]
[null,null,null,null,null,null,null,null,null,null,null,null,null,null,null,null,null,null,null,null,null,null,null,null,null,null,null,null,null,null,null,null,null,null,null,null,null,null,null,null,null,null,null,"茅部郡鹿部町","013439",null,null,null,null,null,null,null,null,null,null,"双葉郡富岡町","075434",null,null,null,null,null,null,"入間郡毛呂山町","113263","長生郡一宮町","124214","西多摩郡檜原村","133078","足柄上郡山北町","143642",null,null,null,null,null,null,null,null,null,null,"下伊那郡大鹿村","204170",null,null,null,null,"あま市","232378",null,null,null,null,null,null,"羽曳野市","272221",null,null,null,null,null,null,null,null,null,null,null,null,null,null,null,null,null,null,null,null,null,null,null,null,"遠賀郡岡垣町","403831"]
[null,null,null,null,null,null,null,null,null,null,null,null,null,null,null,null,null,null,null,null,null,null,null,null,null,null,null,null,null,null,null,null,null,null,null,null,null,null,null,null,null,null,null,"茅部郡森町","013455",null,null,null,null,null,null,null,null,null,null,"双葉郡川内村","075442",null,null,null,null,null,null,"入間郡越生町","113271","長生郡睦沢町","124222","西多摩郡奥多摩町","133086","足柄上郡開成町","143669",null,null,null,null,null,null,null,null,null,null,"木曽郡上松町","204226",null,null,null,null,"長久手市","232386",null,null,null,null,null,null,"門真市","272230",null,null,null,null,null,null,null,null,null,null,null,null,null,null,null,null,null,null,null,null,null,null,null,null,"遠賀郡遠賀町","403849"]
[null,null,null,null,null,null,null,null,null,null,null,null,null,null,null,null,null,null,null,null,null,null,null,null,null,null,null,null,null,null,null,null,null,null,null,null,null,null,null,null,null,null,null,"二海郡八雲町","013463",null,null,null,null,null,null,null,null,null,null,"双葉郡大熊町","075451",null,null,null,null,null,null,"比企郡滑川町","113417","長生郡長生村","124231","大島町","133612","足柄下郡箱根町","143821",null,null,null,null,null,null,null,null,null,null,"木曽郡南木曽町","204234",null,null,null,null,"愛知郡東郷町","233021",null,null,null,null,null,null,"摂津市","272248",null,null,null,null,null,null,null,null,null,null,null,null,null,null,null,null,null,null,null,null,null,null,null,null,"鞍手郡小竹町","404012"]
[null,null,null,null,null,null,null,null,null,null,null,null,null,null,null,null,null,null,null,null,null,null,null,null,null,null,null,null,null,null,null,null,null,null,null,null,null,null,null,null,null,null,null,"山越郡長万部町","013471",null,null,null,null,null,null,null,null,null,null,"双葉郡双葉町","075469",null,null,null,null,null,null,"比企郡嵐山町","113425","長生郡白子町","124249","利島村","133621","足柄下郡真鶴町","143839",null,null,null,null,null,null,null,null,null,null,"木曽郡木祖村","204251",null,null,null,null,"西春日井郡豊山町","233421",null,null,null,null,null,null,"高石市","272256",null,null,null,null,null,null,null,null,null,null,null,null,null,null,null,null,null,null,null,null,null,null,null,null,"鞍手郡鞍手町","404021"]
[null,null,null,null,null,null,null,null,null,null,null,null,null,null,null,null,null,null,null,null,null,null,null,null,null,null,null,null,null,null,null,null,null,null,null,null,null,null,null,null,null,null,null,"檜山郡江差町","013617",null,null,null,null,null,null,null,null,null,null,"双葉郡浪江町","075477",null,null,null,null,null,null,"比企郡小川町","113433","長生郡長柄町","124265","新島村","133639","足柄下郡湯河原町","143847",null,null,null,null,null,null,null,null,null,null,"木曽郡王滝村","204293",null,null,null,null,"丹羽郡大口町","233617",null,null,null,null,null,null,"藤井寺市","272264",null,null,null,null,null,null,null,null,null,null,null,null,null,null,null,null,null,null,null,null,null,null,null,null,"嘉穂郡桂川町","404217"]
[null,null,null,null,null,null,null,null,null,null,null,null,null,null,null,null,null,null,null,null,null,null,null,null,null,null,null,null,null,null,null,null,null,null,null,null,null,null,null,null,null,null,null,"檜山郡上ノ国町","013625",null,null,null,null,null,null,null,null,null,null,"双葉郡葛尾村","075485",null,null,null,null,null,null,"比企郡川島町","113468","長生郡長南町","124273","神津島村","133647","愛甲郡愛川町","144011",null,null,null,null,null,null,null,null,null,null,"木曽郡大桑村","204307",null,null,null,null,"丹羽郡扶桑町","233625",null,null,null,null,null,null,"東大阪市","272272",null,null,null,null,null,null,null,null,null,null,null,null,null,null,null,null,null,null,null,null,null,null,null,null,"朝倉郡筑前町","404471"]
[null,null,null,null,null,null,null,null,null,null,null,null,null,null,null,null,null,null,null,null,null,null,null,null,null,null,null,null,null,null,null,null,null,null,null,null,null,null,null,null,null,null,null,"檜山郡厚沢部町","013633",null,null,null,null,null,null,null,null,null,null,"相馬郡新地町","075612",null,null,null,null,null,null,"比企郡吉見町","113476","夷隅郡大多喜町","124419","三宅島三宅村","133817","愛甲郡清川村","144029",null,null,null,null,null,null,null,null,null,null,"木曽郡木曽町","204323",null,null,null,null,"海部郡大治町","234249",null,null,null,null,null,null,"泉南市","272281",null,null,null,null,null,null,null,null,null,null,null,null,null,null,null,null,null,null,null,null,null,null,null,null,"朝倉郡東峰村","404489"]
[null,null,null,null,null,null,null,null,null,null,null,null,null,null,null,null,null,null,null,null,null,null,null,null,null,null,null,null,null,null,null,null,null,null,null,null,null,null,null,null,null,null,null,"爾志郡乙部町","013641",null,null,null,null,null,null,null,null,null,null,"相馬郡飯舘村","075647",null,null,null,null,null,null,"比企郡鳩山町","113484","夷隅郡御宿町","124435","御蔵島村","133825",null,null,null,null,null,null,null,null,null,null,null,null,"東筑摩郡麻績村","204463",null,null,null,null,"海部郡蟹江町","234257",null,null,null,null,null,null,"四條畷市","272299",null,null,null,null,null,null,null,null,null,null,null,null,null,null,null,null,null,null,null,null,null,null,null,null,"三井郡大刀洗町","405035"]
[null,null,null,null,null,null,null,null,null,null,null,null,null,null,null,null,null,null,null,null,null,null,null,null,null,null,null,null,null,null,null,null,null,null,null,null,null,null,null,null,null,null,null,"奥尻郡奥尻町","013676",null,null,null,null,null,null,null,null,null,null,null,null,null,null,null,null,null,null,"比企郡ときがわ町","113492","安房郡鋸南町","124630","八丈島八丈町","134015",null,null,null,null,null,null,null,null,null,null,null,null,"東筑摩郡生坂村","204480",null,null,null,null,"海部郡飛島村","234273",null,null,null,null,null,null,"交野市","272302",null,null,null,null,null,null,null,null,null,null,null,null,null,null,null,null,null,null,null,null,null,null,null,null,"三潴郡大木町","405221"]
[null,null,null,null,null,null,null,null,null,null,null,null,null,null,null,null,null,null,null,null,null,null,null,null,null,null,null,null,null,null,null,null,null,null,null,null,null,null,null,null,null,null,null,"瀬棚郡今金町","013706",null,null,null,null,null,null,null,null,null,null,null,null,null,null,null,null,null,null,"秩父郡横瀬町","113611",null,null,"青ヶ島村","134023",null,null,null,null,null,null,null,null,null,null,null,null,"東筑摩郡山形村","204501",null,null,null,null,"知多郡阿久比町","234419",null,null,null,null,null,null,"大阪狭山市","272311",null,null,null,null,null,null,null,null,null,null,null,null,null,null,null,null,null,null,null,null,null,null,null,null,"八女郡広川町","405442"]
[null,null,null,null,null,null,null,null,null,null,null,null,null,null,null,null,null,null,null,null,null,null,null,null,null,null,null,null,null,null,null,null,null,null,null,null,null,null,null,null,null,null,null,"久遠郡せたな町","013714",null,null,null,null,null,null,null,null,null,null,null,null,null,null,null,null,null,null,"秩父郡皆野町","113620",null,null,"小笠原村","134210",null,null,null,null,null,null,null,null,null,null,null,null,"東筑摩郡朝日村","204510",null,null,null,null,"知多郡東浦町","234427",null,null,null,null,null,null,"阪南市","272329",null,null,null,null,null,null,null,null,null,null,null,null,null,null,null,null,null,null,null,null,null,null,null,null,"田川郡香春町","406015"]
[null,null,null,null,null,null,null,null,null,null,null,null,null,null,null,null,null,null,null,null,null,null,null,null,null,null,null,null,null,null,null,null,null,null,null,null,null,null,null,null,null,null,null,"島牧郡島牧村","013919",null,null,null,null,null,null,null,null,null,null,null,null,null,null,null,null,null,null,"秩父郡長瀞町","113638",null,null,null,null,null,null,null,null,null,null,null,null,null,null,null,null,"東筑摩郡筑北村",204528,null,null,null,null,"知多郡南知多町",234451,null,null,null,null,null,null,"三島郡島本町",273015,null,null,null,null,null,null,null,null,null,null,null,null,null,null,null,null,null,null,null,null,null,null,null,null,"田川郡添田町",406023]
[null,null,null,null,null,null,null,null,null,null,null,null,null,null,null,null,null,null,null,null,null,null,null,null,null,null,null,null,null,null,null,null,null,null,null,null,null,null,null,null,null,null,null,"寿都郡寿都町","013927",null,null,null,null,null,null,null,null,null,null,null,null,null,null,null,null,null,null,"秩父郡小鹿野町","113654",null,null,null,null,null,null,null,null,null,null,null,null,null,null,null,null,"北安曇郡池田町",204811,null,null,null,null,"知多郡美浜町",234460,null,null,null,null,null,null,"豊能郡豊能町",273210,null,null,null,null,null,null,null,null,null,null,null,null,null,null,null,null,null,null,null,null,null,null,null,null,"田川郡糸田町",406040]
[null,null,null,null,null,null,null,null,null,null,null,null,null,null,null,null,null,null,null,null,null,null,null,null,null,null,null,null,null,null,null,null,null,null,null,null,null,null,null,null,null,null,null,"寿都郡黒松内町","013935",null,null,null,null,null,null,null,null,null,null,null,null,null,null,null,null,null,null,"秩父郡東秩父村","113697",null,null,null,null,null,null,null,null,null,null,null,null,null,null,null,null,"北安曇郡松川村",204820,null,null,null,null,"知多郡武豊町",234478,null,null,null,null,null,null,"豊能郡能勢町",273228,null,null,null,null,null,null,null,null,null,null,null,null,null,null,null,null,null,null,null,null,null,null,null,null,"田川郡川崎町",406058]
[null,null,null,null,null,null,null,null,null,null,null,null,null,null,null,null,null,null,null,null,null,null,null,null,null,null,null,null,null,null,null,null,null,null,null,null,null,null,null,null,null,null,null,"磯谷郡蘭越町","013943",null,null,null,null,null,null,null,null,null,null,null,null,null,null,null,null,null,null,"児玉郡美里町","113816",null,null,null,null,null,null,null,null,null,null,null,null,null,null,null,null,"北安曇郡白馬村",204854,null,null,null,null,"額田郡幸田町",235016,null,null,null,null,null,null,"泉北郡忠岡町",273414,null,null,null,null,null,null,null,null,null,null,null,null,null,null,null,null,null,null,null,null,null,null,null,null,"田川郡大任町",406082]
[null,null,null,null,null,null,null,null,null,null,null,null,null,null,null,null,null,null,null,null,null,null,null,null,null,null,null,null,null,null,null,null,null,null,null,null,null,null,null,null,null,null,null,"虻田郡ニセコ町","013951",null,null,null,null,null,null,null,null,null,null,null,null,null,null,null,null,null,null,"児玉郡神川町","113832",null,null,null,null,null,null,null,null,null,null,null,null,null,null,null,null,"北安曇郡小谷村",204862,null,null,null,null,"北設楽郡設楽町",235610,null,null,null,null,null,null,"泉南郡熊取町",273619,null,null,null,null,null,null,null,null,null,null,null,null,null,null,null,null,null,null,null,null,null,null,null,null,"田川郡赤村",406091]
[null,null,null,null,null,null,null,null,null,null,null,null,null,null,null,null,null,null,null,null,null,null,null,null,null,null,null,null,null,null,null,null,null,null,null,null,null,null,null,null,null,null,null,"虻田郡真狩村","013960",null,null,null,null,null,null,null,null,null,null,null,null,null,null,null,null,null,null,"児玉郡上里町","113859",null,null,null,null,null,null,null,null,null,null,null,null,null,null,null,null,"埴科郡坂城町",205214,null,null,null,null,"北設楽郡東栄町",235628,null,null,null,null,null,null,"泉南郡田尻町",273627,null,null,null,null,null,null,null,null,null,null,null,null,null,null,null,null,null,null,null,null,null,null,null,null,"田川郡福智町",406104]
[null,null,null,null,null,null,null,null,null,null,null,null,null,null,null,null,null,null,null,null,null,null,null,null,null,null,null,null,null,null,null,null,null,null,null,null,null,null,null,null,null,null,null,"虻田郡留寿都村","013978",null,null,null,null,null,null,null,null,null,null,null,null,null,null,null,null,null,null,"大里郡寄居町","114081",null,null,null,null,null,null,null,null,null,null,null,null,null,null,null,null,"上高井郡小布施町",205419,null,null,null,null,"北設楽郡豊根村",235636,null,null,null,null,null,null,"泉南郡岬町",273660,null,null,null,null,null,null,null,null,null,null,null,null,null,null,null,null,null,null,null,null,null,null,null,null,"京都郡苅田町",406210]
[null,null,null,null,null,null,null,null,null,null,null,null,null,null,null,null,null,null,null,null,null,null,null,null,null,null,null,null,null,null,null,null,null,null,null,null,null,null,null,null,null,null,null,"虻田郡喜茂別町","013986",null,null,null,null,null,null,null,null,null,null,null,null,null,null,null,null,null,null,"南埼玉郡宮代町","114421",null,null,null,null,null,null,null,null,null,null,null,null,null,null,null,null,"上高井郡高山村",205435,null,null,null,null,null,null,null,null,null,null,null,null,"南河内郡太子町",273813,null,null,null,null,null,null,null,null,null,null,null,null,null,null,null,null,null,null,null,null,null,null,null,null,"京都郡みやこ町",406252]
[null,null,null,null,null,null,null,null,null,null,null,null,null,null,null,null,null,null,null,null,null,null,null,null,null,null,null,null,null,null,null,null,null,null,null,null,null,null,null,null,null,null,null,"虻田郡京極町","013994",null,null,null,null,null,null,null,null,null,null,null,null,null,null,null,null,null,null,"南埼玉郡白岡町","114456",null,null,null,null,null,null,null,null,null,null,null,null,null,null,null,null,"下高井郡山ノ内町",205613,null,null,null,null,null,null,null,null,null,null,null,null,"南河内郡河南町",273821,null,null,null,null,null,null,null,null,null,null,null,null,null,null,null,null,null,null,null,null,null,null,null,null,"築上郡吉富町",406422]
[null,null,null,null,null,null,null,null,null,null,null,null,null,null,null,null,null,null,null,null,null,null,null,null,null,null,null,null,null,null,null,null,null,null,null,null,null,null,null,null,null,null,null,"虻田郡倶知安町","014001",null,null,null,null,null,null,null,null,null,null,null,null,null,null,null,null,null,null,"北葛飾郡杉戸町","114642",null,null,null,null,null,null,null,null,null,null,null,null,null,null,null,null,"下高井郡木島平村",205621,null,null,null,null,null,null,null,null,null,null,null,null,"南河内郡千早赤阪村",273830,null,null,null,null,null,null,null,null,null,null,null,null,null,null,null,null,null,null,null,null,null,null,null,null,"築上郡上毛町",406465]
[null,null,null,null,null,null,null,null,null,null,null,null,null,null,null,null,null,null,null,null,null,null,null,null,null,null,null,null,null,null,null,null,null,null,null,null,null,null,null,null,null,null,null,"岩内郡共和町","014010",null,null,null,null,null,null,null,null,null,null,null,null,null,null,null,null,null,null,"北葛飾郡松伏町","114651",null,null,null,null,null,null,null,null,null,null,null,null,null,null,null,null,"下高井郡野沢温泉村",205630,null,null,null,null,null,null,null,null,null,null,null,null,null,null,null,null,null,null,null,null,null,null,null,null,null,null,null,null,null,null,null,null,null,null,null,null,null,null,"築上郡築上町",406473]
[null,null,null,null,null,null,null,null,null,null,null,null,null,null,null,null,null,null,null,null,null,null,null,null,null,null,null,null,null,null,null,null,null,null,null,null,null,null,null,null,null,null,null,"岩内郡岩内町","014028",null,null,null,null,null,null,null,null,null,null,null,null,null,null,null,null,null,null,null,null,null,null,null,null,null,null,null,null,null,null,null,null,null,null,null,null,"上水内郡信濃町",205834]
[null,null,null,null,null,null,null,null,null,null,null,null,null,null,null,null,null,null,null,null,null,null,null,null,null,null,null,null,null,null,null,null,null,null,null,null,null,null,null,null,null,null,null,"古宇郡泊村","014036",null,null,null,null,null,null,null,null,null,null,null,null,null,null,null,null,null,null,null,null,null,null,null,null,null,null,null,null,null,null,null,null,null,null,null,null,"上水内郡小川村",205885]
[null,null,null,null,null,null,null,null,null,null,null,null,null,null,null,null,null,null,null,null,null,null,null,null,null,null,null,null,null,null,null,null,null,null,null,null,null,null,null,null,null,null,null,"古宇郡神恵内村","014044",null,null,null,null,null,null,null,null,null,null,null,null,null,null,null,null,null,null,null,null,null,null,null,null,null,null,null,null,null,null,null,null,null,null,null,null,"上水内郡飯綱町",205907]
[null,null,null,null,null,null,null,null,null,null,null,null,null,null,null,null,null,null,null,null,null,null,null,null,null,null,null,null,null,null,null,null,null,null,null,null,null,null,null,null,null,null,null,"積丹郡積丹町","014052",null,null,null,null,null,null,null,null,null,null,null,null,null,null,null,null,null,null,null,null,null,null,null,null,null,null,null,null,null,null,null,null,null,null,null,null,"下水内郡栄村",206024]
[null,null,null,null,null,null,null,null,null,null,null,null,null,null,null,null,null,null,null,null,null,null,null,null,null,null,null,null,null,null,null,null,null,null,null,null,null,null,null,null,null,null,null,"古平郡古平町","014061"]
[null,null,null,null,null,null,null,null,null,null,null,null,null,null,null,null,null,null,null,null,null,null,null,null,null,null,null,null,null,null,null,null,null,null,null,null,null,null,null,null,null,null,null,"余市郡仁木町","014079"]
[null,null,null,null,null,null,null,null,null,null,null,null,null,null,null,null,null,null,null,null,null,null,null,null,null,null,null,null,null,null,null,null,null,null,null,null,null,null,null,null,null,null,null,"余市郡余市町","014087"]
[null,null,null,null,null,null,null,null,null,null,null,null,null,null,null,null,null,null,null,null,null,null,null,null,null,null,null,null,null,null,null,null,null,null,null,null,null,null,null,null,null,null,null,"余市郡赤井川村","014095"]
[null,null,null,null,null,null,null,null,null,null,null,null,null,null,null,null,null,null,null,null,null,null,null,null,null,null,null,null,null,null,null,null,null,null,null,null,null,null,null,null,null,null,null,"空知郡南幌町","014231"]
[null,null,null,null,null,null,null,null,null,null,null,null,null,null,null,null,null,null,null,null,null,null,null,null,null,null,null,null,null,null,null,null,null,null,null,null,null,null,null,null,null,null,null,"空知郡奈井江町","014249"]
[null,null,null,null,null,null,null,null,null,null,null,null,null,null,null,null,null,null,null,null,null,null,null,null,null,null,null,null,null,null,null,null,null,null,null,null,null,null,null,null,null,null,null,"空知郡上砂川町","014257"]
[null,null,null,null,null,null,null,null,null,null,null,null,null,null,null,null,null,null,null,null,null,null,null,null,null,null,null,null,null,null,null,null,null,null,null,null,null,null,null,null,null,null,null,"夕張郡由仁町","014273"]
[null,null,null,null,null,null,null,null,null,null,null,null,null,null,null,null,null,null,null,null,null,null,null,null,null,null,null,null,null,null,null,null,null,null,null,null,null,null,null,null,null,null,null,"夕張郡長沼町","014281"]
[null,null,null,null,null,null,null,null,null,null,null,null,null,null,null,null,null,null,null,null,null,null,null,null,null,null,null,null,null,null,null,null,null,null,null,null,null,null,null,null,null,null,null,"夕張郡栗山町","014290"]
[null,null,null,null,null,null,null,null,null,null,null,null,null,null,null,null,null,null,null,null,null,null,null,null,null,null,null,null,null,null,null,null,null,null,null,null,null,null,null,null,null,null,null,"樺戸郡月形町","014303"]
[null,null,null,null,null,null,null,null,null,null,null,null,null,null,null,null,null,null,null,null,null,null,null,null,null,null,null,null,null,null,null,null,null,null,null,null,null,null,null,null,null,null,null,"樺戸郡浦臼町","014311"]
[null,null,null,null,null,null,null,null,null,null,null,null,null,null,null,null,null,null,null,null,null,null,null,null,null,null,null,null,null,null,null,null,null,null,null,null,null,null,null,null,null,null,null,"樺戸郡新十津川町","014320"]
[null,null,null,null,null,null,null,null,null,null,null,null,null,null,null,null,null,null,null,null,null,null,null,null,null,null,null,null,null,null,null,null,null,null,null,null,null,null,null,null,null,null,null,"雨竜郡妹背牛町","014338"]
[null,null,null,null,null,null,null,null,null,null,null,null,null,null,null,null,null,null,null,null,null,null,null,null,null,null,null,null,null,null,null,null,null,null,null,null,null,null,null,null,null,null,null,"雨竜郡秩父別町","014346"]
[null,null,null,null,null,null,null,null,null,null,null,null,null,null,null,null,null,null,null,null,null,null,null,null,null,null,null,null,null,null,null,null,null,null,null,null,null,null,null,null,null,null,null,"雨竜郡雨竜町","014362"]
[null,null,null,null,null,null,null,null,null,null,null,null,null,null,null,null,null,null,null,null,null,null,null,null,null,null,null,null,null,null,null,null,null,null,null,null,null,null,null,null,null,null,null,"雨竜郡北竜町","014371"]
[null,null,null,null,null,null,null,null,null,null,null,null,null,null,null,null,null,null,null,null,null,null,null,null,null,null,null,null,null,null,null,null,null,null,null,null,null,null,null,null,null,null,null,"雨竜郡沼田町","014389"]
[null,null,null,null,null,null,null,null,null,null,null,null,null,null,null,null,null,null,null,null,null,null,null,null,null,null,null,null,null,null,null,null,null,null,null,null,null,null,null,null,null,null,null,"上川郡鷹栖町","014524"]
[null,null,null,null,null,null,null,null,null,null,null,null,null,null,null,null,null,null,null,null,null,null,null,null,null,null,null,null,null,null,null,null,null,null,null,null,null,null,null,null,null,null,null,"上川郡東神楽町","014532"]
[null,null,null,null,null,null,null,null,null,null,null,null,null,null,null,null,null,null,null,null,null,null,null,null,null,null,null,null,null,null,null,null,null,null,null,null,null,null,null,null,null,null,null,"上川郡当麻町","014541"]
[null,null,null,null,null,null,null,null,null,null,null,null,null,null,null,null,null,null,null,null,null,null,null,null,null,null,null,null,null,null,null,null,null,null,null,null,null,null,null,null,null,null,null,"上川郡比布町","014559"]
[null,null,null,null,null,null,null,null,null,null,null,null,null,null,null,null,null,null,null,null,null,null,null,null,null,null,null,null,null,null,null,null,null,null,null,null,null,null,null,null,null,null,null,"上川郡愛別町","014567"]
[null,null,null,null,null,null,null,null,null,null,null,null,null,null,null,null,null,null,null,null,null,null,null,null,null,null,null,null,null,null,null,null,null,null,null,null,null,null,null,null,null,null,null,"上川郡上川町","014575"]
[null,null,null,null,null,null,null,null,null,null,null,null,null,null,null,null,null,null,null,null,null,null,null,null,null,null,null,null,null,null,null,null,null,null,null,null,null,null,null,null,null,null,null,"上川郡東川町","014583"]
[null,null,null,null,null,null,null,null,null,null,null,null,null,null,null,null,null,null,null,null,null,null,null,null,null,null,null,null,null,null,null,null,null,null,null,null,null,null,null,null,null,null,null,"上川郡美瑛町","014591"]
[null,null,null,null,null,null,null,null,null,null,null,null,null,null,null,null,null,null,null,null,null,null,null,null,null,null,null,null,null,null,null,null,null,null,null,null,null,null,null,null,null,null,null,"空知郡上富良野町","014605"]
[null,null,null,null,null,null,null,null,null,null,null,null,null,null,null,null,null,null,null,null,null,null,null,null,null,null,null,null,null,null,null,null,null,null,null,null,null,null,null,null,null,null,null,"空知郡中富良野町","014613"]
[null,null,null,null,null,null,null,null,null,null,null,null,null,null,null,null,null,null,null,null,null,null,null,null,null,null,null,null,null,null,null,null,null,null,null,null,null,null,null,null,null,null,null,"空知郡南富良野町","014621"]
[null,null,null,null,null,null,null,null,null,null,null,null,null,null,null,null,null,null,null,null,null,null,null,null,null,null,null,null,null,null,null,null,null,null,null,null,null,null,null,null,null,null,null,"勇払郡占冠村","014630"]
[null,null,null,null,null,null,null,null,null,null,null,null,null,null,null,null,null,null,null,null,null,null,null,null,null,null,null,null,null,null,null,null,null,null,null,null,null,null,null,null,null,null,null,"上川郡和寒町","014648"]
[null,null,null,null,null,null,null,null,null,null,null,null,null,null,null,null,null,null,null,null,null,null,null,null,null,null,null,null,null,null,null,null,null,null,null,null,null,null,null,null,null,null,null,"上川郡剣淵町","014656"]
[null,null,null,null,null,null,null,null,null,null,null,null,null,null,null,null,null,null,null,null,null,null,null,null,null,null,null,null,null,null,null,null,null,null,null,null,null,null,null,null,null,null,null,"上川郡下川町","014681"]
[null,null,null,null,null,null,null,null,null,null,null,null,null,null,null,null,null,null,null,null,null,null,null,null,null,null,null,null,null,null,null,null,null,null,null,null,null,null,null,null,null,null,null,"中川郡美深町","014699"]
[null,null,null,null,null,null,null,null,null,null,null,null,null,null,null,null,null,null,null,null,null,null,null,null,null,null,null,null,null,null,null,null,null,null,null,null,null,null,null,null,null,null,null,"中川郡音威子府村","014702"]
[null,null,null,null,null,null,null,null,null,null,null,null,null,null,null,null,null,null,null,null,null,null,null,null,null,null,null,null,null,null,null,null,null,null,null,null,null,null,null,null,null,null,null,"中川郡中川町","014711"]
[null,null,null,null,null,null,null,null,null,null,null,null,null,null,null,null,null,null,null,null,null,null,null,null,null,null,null,null,null,null,null,null,null,null,null,null,null,null,null,null,null,null,null,"雨竜郡幌加内町","014729"]
[null,null,null,null,null,null,null,null,null,null,null,null,null,null,null,null,null,null,null,null,null,null,null,null,null,null,null,null,null,null,null,null,null,null,null,null,null,null,null,null,null,null,null,"増毛郡増毛町","014818"]
[null,null,null,null,null,null,null,null,null,null,null,null,null,null,null,null,null,null,null,null,null,null,null,null,null,null,null,null,null,null,null,null,null,null,null,null,null,null,null,null,null,null,null,"留萌郡小平町","014826"]
[null,null,null,null,null,null,null,null,null,null,null,null,null,null,null,null,null,null,null,null,null,null,null,null,null,null,null,null,null,null,null,null,null,null,null,null,null,null,null,null,null,null,null,"苫前郡苫前町","014834"]
[null,null,null,null,null,null,null,null,null,null,null,null,null,null,null,null,null,null,null,null,null,null,null,null,null,null,null,null,null,null,null,null,null,null,null,null,null,null,null,null,null,null,null,"苫前郡羽幌町","014842"]
[null,null,null,null,null,null,null,null,null,null,null,null,null,null,null,null,null,null,null,null,null,null,null,null,null,null,null,null,null,null,null,null,null,null,null,null,null,null,null,null,null,null,null,"苫前郡初山別村","014851"]
[null,null,null,null,null,null,null,null,null,null,null,null,null,null,null,null,null,null,null,null,null,null,null,null,null,null,null,null,null,null,null,null,null,null,null,null,null,null,null,null,null,null,null,"天塩郡遠別町","014869"]
[null,null,null,null,null,null,null,null,null,null,null,null,null,null,null,null,null,null,null,null,null,null,null,null,null,null,null,null,null,null,null,null,null,null,null,null,null,null,null,null,null,null,null,"天塩郡天塩町","014877"]
[null,null,null,null,null,null,null,null,null,null,null,null,null,null,null,null,null,null,null,null,null,null,null,null,null,null,null,null,null,null,null,null,null,null,null,null,null,null,null,null,null,null,null,"宗谷郡猿払村","015113"]
[null,null,null,null,null,null,null,null,null,null,null,null,null,null,null,null,null,null,null,null,null,null,null,null,null,null,null,null,null,null,null,null,null,null,null,null,null,null,null,null,null,null,null,"枝幸郡浜頓別町","015121"]
[null,null,null,null,null,null,null,null,null,null,null,null,null,null,null,null,null,null,null,null,null,null,null,null,null,null,null,null,null,null,null,null,null,null,null,null,null,null,null,null,null,null,null,"枝幸郡中頓別町","015130"]
[null,null,null,null,null,null,null,null,null,null,null,null,null,null,null,null,null,null,null,null,null,null,null,null,null,null,null,null,null,null,null,null,null,null,null,null,null,null,null,null,null,null,null,"枝幸郡枝幸町","015148"]
[null,null,null,null,null,null,null,null,null,null,null,null,null,null,null,null,null,null,null,null,null,null,null,null,null,null,null,null,null,null,null,null,null,null,null,null,null,null,null,null,null,null,null,"天塩郡豊富町","015164"]
[null,null,null,null,null,null,null,null,null,null,null,null,null,null,null,null,null,null,null,null,null,null,null,null,null,null,null,null,null,null,null,null,null,null,null,null,null,null,null,null,null,null,null,"礼文郡礼文町","015172"]
[null,null,null,null,null,null,null,null,null,null,null,null,null,null,null,null,null,null,null,null,null,null,null,null,null,null,null,null,null,null,null,null,null,null,null,null,null,null,null,null,null,null,null,"利尻郡利尻町","015181"]
[null,null,null,null,null,null,null,null,null,null,null,null,null,null,null,null,null,null,null,null,null,null,null,null,null,null,null,null,null,null,null,null,null,null,null,null,null,null,null,null,null,null,null,"利尻郡利尻富士町","015199"]
[null,null,null,null,null,null,null,null,null,null,null,null,null,null,null,null,null,null,null,null,null,null,null,null,null,null,null,null,null,null,null,null,null,null,null,null,null,null,null,null,null,null,null,"天塩郡幌延町","015202"]
[null,null,null,null,null,null,null,null,null,null,null,null,null,null,null,null,null,null,null,null,null,null,null,null,null,null,null,null,null,null,null,null,null,null,null,null,null,null,null,null,null,null,null,"網走郡美幌町","015431"]
[null,null,null,null,null,null,null,null,null,null,null,null,null,null,null,null,null,null,null,null,null,null,null,null,null,null,null,null,null,null,null,null,null,null,null,null,null,null,null,null,null,null,null,"網走郡津別町","015440"]
[null,null,null,null,null,null,null,null,null,null,null,null,null,null,null,null,null,null,null,null,null,null,null,null,null,null,null,null,null,null,null,null,null,null,null,null,null,null,null,null,null,null,null,"斜里郡斜里町","015458"]
[null,null,null,null,null,null,null,null,null,null,null,null,null,null,null,null,null,null,null,null,null,null,null,null,null,null,null,null,null,null,null,null,null,null,null,null,null,null,null,null,null,null,null,"斜里郡清里町","015466"]
[null,null,null,null,null,null,null,null,null,null,null,null,null,null,null,null,null,null,null,null,null,null,null,null,null,null,null,null,null,null,null,null,null,null,null,null,null,null,null,null,null,null,null,"斜里郡小清水町","015474"]
[null,null,null,null,null,null,null,null,null,null,null,null,null,null,null,null,null,null,null,null,null,null,null,null,null,null,null,null,null,null,null,null,null,null,null,null,null,null,null,null,null,null,null,"常呂郡訓子府町","015491"]
[null,null,null,null,null,null,null,null,null,null,null,null,null,null,null,null,null,null,null,null,null,null,null,null,null,null,null,null,null,null,null,null,null,null,null,null,null,null,null,null,null,null,null,"常呂郡置戸町","015504"]
[null,null,null,null,null,null,null,null,null,null,null,null,null,null,null,null,null,null,null,null,null,null,null,null,null,null,null,null,null,null,null,null,null,null,null,null,null,null,null,null,null,null,null,"常呂郡佐呂間町","015521"]
[null,null,null,null,null,null,null,null,null,null,null,null,null,null,null,null,null,null,null,null,null,null,null,null,null,null,null,null,null,null,null,null,null,null,null,null,null,null,null,null,null,null,null,"紋別郡遠軽町","015555"]
[null,null,null,null,null,null,null,null,null,null,null,null,null,null,null,null,null,null,null,null,null,null,null,null,null,null,null,null,null,null,null,null,null,null,null,null,null,null,null,null,null,null,null,"紋別郡湧別町","015598"]
[null,null,null,null,null,null,null,null,null,null,null,null,null,null,null,null,null,null,null,null,null,null,null,null,null,null,null,null,null,null,null,null,null,null,null,null,null,null,null,null,null,null,null,"紋別郡滝上町","015601"]
[null,null,null,null,null,null,null,null,null,null,null,null,null,null,null,null,null,null,null,null,null,null,null,null,null,null,null,null,null,null,null,null,null,null,null,null,null,null,null,null,null,null,null,"紋別郡興部町","015610"]
[null,null,null,null,null,null,null,null,null,null,null,null,null,null,null,null,null,null,null,null,null,null,null,null,null,null,null,null,null,null,null,null,null,null,null,null,null,null,null,null,null,null,null,"紋別郡西興部村","015628"]
[null,null,null,null,null,null,null,null,null,null,null,null,null,null,null,null,null,null,null,null,null,null,null,null,null,null,null,null,null,null,null,null,null,null,null,null,null,null,null,null,null,null,null,"紋別郡雄武町","015636"]
[null,null,null,null,null,null,null,null,null,null,null,null,null,null,null,null,null,null,null,null,null,null,null,null,null,null,null,null,null,null,null,null,null,null,null,null,null,null,null,null,null,null,null,"網走郡大空町","015644"]
[null,null,null,null,null,null,null,null,null,null,null,null,null,null,null,null,null,null,null,null,null,null,null,null,null,null,null,null,null,null,null,null,null,null,null,null,null,null,null,null,null,null,null,"虻田郡豊浦町","015717"]
[null,null,null,null,null,null,null,null,null,null,null,null,null,null,null,null,null,null,null,null,null,null,null,null,null,null,null,null,null,null,null,null,null,null,null,null,null,null,null,null,null,null,null,"有珠郡壮瞥町","015750"]
[null,null,null,null,null,null,null,null,null,null,null,null,null,null,null,null,null,null,null,null,null,null,null,null,null,null,null,null,null,null,null,null,null,null,null,null,null,null,null,null,null,null,null,"白老郡白老町","015784"]
[null,null,null,null,null,null,null,null,null,null,null,null,null,null,null,null,null,null,null,null,null,null,null,null,null,null,null,null,null,null,null,null,null,null,null,null,null,null,null,null,null,null,null,"勇払郡厚真町","015814"]
[null,null,null,null,null,null,null,null,null,null,null,null,null,null,null,null,null,null,null,null,null,null,null,null,null,null,null,null,null,null,null,null,null,null,null,null,null,null,null,null,null,null,null,"虻田郡洞爺湖町","015849"]
[null,null,null,null,null,null,null,null,null,null,null,null,null,null,null,null,null,null,null,null,null,null,null,null,null,null,null,null,null,null,null,null,null,null,null,null,null,null,null,null,null,null,null,"勇払郡安平町","015857"]
[null,null,null,null,null,null,null,null,null,null,null,null,null,null,null,null,null,null,null,null,null,null,null,null,null,null,null,null,null,null,null,null,null,null,null,null,null,null,null,null,null,null,null,"勇払郡むかわ町","015865"]
[null,null,null,null,null,null,null,null,null,null,null,null,null,null,null,null,null,null,null,null,null,null,null,null,null,null,null,null,null,null,null,null,null,null,null,null,null,null,null,null,null,null,null,"沙流郡日高町","016012"]
[null,null,null,null,null,null,null,null,null,null,null,null,null,null,null,null,null,null,null,null,null,null,null,null,null,null,null,null,null,null,null,null,null,null,null,null,null,null,null,null,null,null,null,"沙流郡平取町","016021"]
[null,null,null,null,null,null,null,null,null,null,null,null,null,null,null,null,null,null,null,null,null,null,null,null,null,null,null,null,null,null,null,null,null,null,null,null,null,null,null,null,null,null,null,"新冠郡新冠町","016047"]
[null,null,null,null,null,null,null,null,null,null,null,null,null,null,null,null,null,null,null,null,null,null,null,null,null,null,null,null,null,null,null,null,null,null,null,null,null,null,null,null,null,null,null,"浦河郡浦河町","016071"]
[null,null,null,null,null,null,null,null,null,null,null,null,null,null,null,null,null,null,null,null,null,null,null,null,null,null,null,null,null,null,null,null,null,null,null,null,null,null,null,null,null,null,null,"様似郡様似町","016080"]
[null,null,null,null,null,null,null,null,null,null,null,null,null,null,null,null,null,null,null,null,null,null,null,null,null,null,null,null,null,null,null,null,null,null,null,null,null,null,null,null,null,null,null,"幌泉郡えりも町","016098"]
[null,null,null,null,null,null,null,null,null,null,null,null,null,null,null,null,null,null,null,null,null,null,null,null,null,null,null,null,null,null,null,null,null,null,null,null,null,null,null,null,null,null,null,"日高郡新ひだか町","016101"]
[null,null,null,null,null,null,null,null,null,null,null,null,null,null,null,null,null,null,null,null,null,null,null,null,null,null,null,null,null,null,null,null,null,null,null,null,null,null,null,null,null,null,null,"河東郡音更町","016314"]
[null,null,null,null,null,null,null,null,null,null,null,null,null,null,null,null,null,null,null,null,null,null,null,null,null,null,null,null,null,null,null,null,null,null,null,null,null,null,null,null,null,null,null,"河東郡士幌町","016322"]
[null,null,null,null,null,null,null,null,null,null,null,null,null,null,null,null,null,null,null,null,null,null,null,null,null,null,null,null,null,null,null,null,null,null,null,null,null,null,null,null,null,null,null,"河東郡上士幌町","016331"]
[null,null,null,null,null,null,null,null,null,null,null,null,null,null,null,null,null,null,null,null,null,null,null,null,null,null,null,null,null,null,null,null,null,null,null,null,null,null,null,null,null,null,null,"河東郡鹿追町","016349"]
[null,null,null,null,null,null,null,null,null,null,null,null,null,null,null,null,null,null,null,null,null,null,null,null,null,null,null,null,null,null,null,null,null,null,null,null,null,null,null,null,null,null,null,"上川郡新得町","016357"]
[null,null,null,null,null,null,null,null,null,null,null,null,null,null,null,null,null,null,null,null,null,null,null,null,null,null,null,null,null,null,null,null,null,null,null,null,null,null,null,null,null,null,null,"上川郡清水町","016365"]
[null,null,null,null,null,null,null,null,null,null,null,null,null,null,null,null,null,null,null,null,null,null,null,null,null,null,null,null,null,null,null,null,null,null,null,null,null,null,null,null,null,null,null,"河西郡芽室町","016373"]
[null,null,null,null,null,null,null,null,null,null,null,null,null,null,null,null,null,null,null,null,null,null,null,null,null,null,null,null,null,null,null,null,null,null,null,null,null,null,null,null,null,null,null,"河西郡中札内村","016381"]
[null,null,null,null,null,null,null,null,null,null,null,null,null,null,null,null,null,null,null,null,null,null,null,null,null,null,null,null,null,null,null,null,null,null,null,null,null,null,null,null,null,null,null,"河西郡更別村","016390"]
[null,null,null,null,null,null,null,null,null,null,null,null,null,null,null,null,null,null,null,null,null,null,null,null,null,null,null,null,null,null,null,null,null,null,null,null,null,null,null,null,null,null,null,"広尾郡大樹町","016411"]
[null,null,null,null,null,null,null,null,null,null,null,null,null,null,null,null,null,null,null,null,null,null,null,null,null,null,null,null,null,null,null,null,null,null,null,null,null,null,null,null,null,null,null,"広尾郡広尾町","016420"]
[null,null,null,null,null,null,null,null,null,null,null,null,null,null,null,null,null,null,null,null,null,null,null,null,null,null,null,null,null,null,null,null,null,null,null,null,null,null,null,null,null,null,null,"中川郡幕別町","016438"]
[null,null,null,null,null,null,null,null,null,null,null,null,null,null,null,null,null,null,null,null,null,null,null,null,null,null,null,null,null,null,null,null,null,null,null,null,null,null,null,null,null,null,null,"中川郡池田町","016446"]
[null,null,null,null,null,null,null,null,null,null,null,null,null,null,null,null,null,null,null,null,null,null,null,null,null,null,null,null,null,null,null,null,null,null,null,null,null,null,null,null,null,null,null,"中川郡豊頃町","016454"]
[null,null,null,null,null,null,null,null,null,null,null,null,null,null,null,null,null,null,null,null,null,null,null,null,null,null,null,null,null,null,null,null,null,null,null,null,null,null,null,null,null,null,null,"中川郡本別町","016462"]
[null,null,null,null,null,null,null,null,null,null,null,null,null,null,null,null,null,null,null,null,null,null,null,null,null,null,null,null,null,null,null,null,null,null,null,null,null,null,null,null,null,null,null,"足寄郡足寄町","016471"]
[null,null,null,null,null,null,null,null,null,null,null,null,null,null,null,null,null,null,null,null,null,null,null,null,null,null,null,null,null,null,null,null,null,null,null,null,null,null,null,null,null,null,null,"足寄郡陸別町","016489"]
[null,null,null,null,null,null,null,null,null,null,null,null,null,null,null,null,null,null,null,null,null,null,null,null,null,null,null,null,null,null,null,null,null,null,null,null,null,null,null,null,null,null,null,"十勝郡浦幌町","016497"]
[null,null,null,null,null,null,null,null,null,null,null,null,null,null,null,null,null,null,null,null,null,null,null,null,null,null,null,null,null,null,null,null,null,null,null,null,null,null,null,null,null,null,null,"釧路郡釧路町","016616"]
[null,null,null,null,null,null,null,null,null,null,null,null,null,null,null,null,null,null,null,null,null,null,null,null,null,null,null,null,null,null,null,null,null,null,null,null,null,null,null,null,null,null,null,"厚岸郡厚岸町","016624"]
[null,null,null,null,null,null,null,null,null,null,null,null,null,null,null,null,null,null,null,null,null,null,null,null,null,null,null,null,null,null,null,null,null,null,null,null,null,null,null,null,null,null,null,"厚岸郡浜中町","016632"]
[null,null,null,null,null,null,null,null,null,null,null,null,null,null,null,null,null,null,null,null,null,null,null,null,null,null,null,null,null,null,null,null,null,null,null,null,null,null,null,null,null,null,null,"川上郡標茶町","016641"]
[null,null,null,null,null,null,null,null,null,null,null,null,null,null,null,null,null,null,null,null,null,null,null,null,null,null,null,null,null,null,null,null,null,null,null,null,null,null,null,null,null,null,null,"川上郡弟子屈町","016659"]
[null,null,null,null,null,null,null,null,null,null,null,null,null,null,null,null,null,null,null,null,null,null,null,null,null,null,null,null,null,null,null,null,null,null,null,null,null,null,null,null,null,null,null,"阿寒郡鶴居村","016675"]
[null,null,null,null,null,null,null,null,null,null,null,null,null,null,null,null,null,null,null,null,null,null,null,null,null,null,null,null,null,null,null,null,null,null,null,null,null,null,null,null,null,null,null,"白糠郡白糠町","016683"]
[null,null,null,null,null,null,null,null,null,null,null,null,null,null,null,null,null,null,null,null,null,null,null,null,null,null,null,null,null,null,null,null,null,null,null,null,null,null,null,null,null,null,null,"野付郡別海町","016918"]
[null,null,null,null,null,null,null,null,null,null,null,null,null,null,null,null,null,null,null,null,null,null,null,null,null,null,null,null,null,null,null,null,null,null,null,null,null,null,null,null,null,null,null,"標津郡中標津町","016926"]
[null,null,null,null,null,null,null,null,null,null,null,null,null,null,null,null,null,null,null,null,null,null,null,null,null,null,null,null,null,null,null,null,null,null,null,null,null,null,null,null,null,null,null,"標津郡標津町","016934"]
[null,null,null,null,null,null,null,null,null,null,null,null,null,null,null,null,null,null,null,null,null,null,null,null,null,null,null,null,null,null,null,null,null,null,null,null,null,null,null,null,null,null,null,"目梨郡羅臼町","016942"]
[null,null,null,null,null,null,null,null,null,null,null,null,null,null,null,null,null,null,null,null,null,null,null,null,null,null,null,null,null,null,null,null,null,null,null,null,null,null,null,null,null,null,null,"色丹郡色丹村","016951"]
[null,null,null,null,null,null,null,null,null,null,null,null,null,null,null,null,null,null,null,null,null,null,null,null,null,null,null,null,null,null,null,null,null,null,null,null,null,null,null,null,null,null,null,"国後郡泊村","016969"]
[null,null,null,null,null,null,null,null,null,null,null,null,null,null,null,null,null,null,null,null,null,null,null,null,null,null,null,null,null,null,null,null,null,null,null,null,null,null,null,null,null,null,null,"国後郡留夜別村","016977"]
[null,null,null,null,null,null,null,null,null,null,null,null,null,null,null,null,null,null,null,null,null,null,null,null,null,null,null,null,null,null,null,null,null,null,null,null,null,null,null,null,null,null,null,"択捉郡留別村","016985"]
[null,null,null,null,null,null,null,null,null,null,null,null,null,null,null,null,null,null,null,null,null,null,null,null,null,null,null,null,null,null,null,null,null,null,null,null,null,null,null,null,null,null,null,"紗那郡紗那村","016993"]
[null,null,null,null,null,null,null,null,null,null,null,null,null,null,null,null,null,null,null,null,null,null,null,null,null,null,null,null,null,null,null,null,null,null,null,null,null,null,null,null,null,null,null,"蘂取郡蘂取村","017001"]